Workbook

Sheet Data
A1: Name | B1: Date | C1: Team | D1: Opponent | E1: G | F1: A | G1: P | H1: G60 | I1: A60 | J1: P60 | K1: PenD | L1: CF% | M1: PDO | N1: PSh% | O1: ZSO%Rel | P1: TOI/Gm | Q1: iHSC | R1: HSCF%Rel | S1: HSCF% | T1: HSCF%off | U1: HSC+/- | V1: HSCF | W1: HSCA | X1: HSCF60 | Y1: HSCA60 | Z1: HSCP60 | AA1: iSC | AB1: SCF%Rel | AC1: SCF% | AD1: SCF%off | AE1: SC+/- | AF1: SCF | AG1: SCA | AH1: SCF60 | AI1: SCA60 | AJ1: SCP60 | AK1: CF%Rel | AL1: CF%off | AM1: C+/- | AN1: CF | AO1: CA | AP1: CF60 | AQ1: CA60 | AR1: CP60 | AS1: OCOn% | AT1: BK | AU1: AB | AV1: iCF | AW1: FF%Rel | AX1: FF% | AY1: FF%off | AZ1: F+/- | BA1: FF | BB1: FA | BC1: FF60 | BD1: FA60 | BE1: FP60 | BF1: OFOn% | BG1: MS | BH1: iFF | BI1: SF%Rel | BJ1: SF% | BK1: SF%off | BL1: S+/- | BM1: SF60 | BN1: SA60 | BO1: SF | BP1: SA | BQ1: iSF | BR1: OCAOn% | BS1: OFAOn% | BT1: GF%Rel | BU1: GF60 | BV1: GF%off | BW1: GA60 | BX1: GF | BY1: GA | BZ1: G+/- | CA1: GF% | CB1: PFenSh% | CC1: OSh% | CD1: OFenSh% | CE1: OSv% | CF1: OFenSv% | CG1: FO%^ | CH1: FO_W | CI1: FO_L | CJ1: ZSO% | CK1: ZSO | CL1: ZSN | CM1: ZSD | CN1: HIT | CO1: HIT- | CP1: A1 | CQ1: A2 | CR1: SH | CS1: GV | CT1: TK | CU1: PN | CV1: PN- | CW1: PenD60 | CX1: TOI | CY1: TOIoff | CZ1: TOI% | DA1: TOIT% | DB1: TOIC% | DC1: CorT% | DD1: CorC% | DE1: tCF60 | DF1: tCA60 | DG1: cCF60 | DH1: cCA60
A2: Aaron.Ekblad | B2: 2015-01-02 | C2: FLA | D2: BUF | E2: 0 | F2: 1 | G2: 1 | H2: 0 | I2: 180 | J2: 180 | K2: 0 | L2: 100 | P2: 0.3 | Q2: 0 | S2: 100 | U2: 2.1 | V2: 2.1 | W2: 0 | X2: 378.5 | AA2: 0 | AC2: 100 | AE2: 2.1 | AF2: 2.1 | AH2: 378.5 | AM2: 2.1 | AN2: 2.1 | AP2: 377.1 | AT2: 0 | AU2: 0 | AV2: 0 | BG2: 0 | BJ2: 100 | BL2: 2.1 | BM2: 377.1 | BO2: 2.1 | BQ2: 0 | BU2: 180 | BX2: 1 | CC2: 47.7 | CN2: 0 | CO2: 0 | CP2: 0 | CQ2: 1 | CR2: 0 | CS2: 0 | CT2: 0 | CX2: 0.3 | CY2: 0 | CZ2: 100 | DA2: 16.9
A3: Aaron.Ekblad | B3: 2015-01-04 | C3: FLA | D3: WSH | E3: 0 | F3: 0 | G3: 0 | H3: 0 | I3: 0 | J3: 0 | K3: 0 | L3: 93.6 | N3: 0 | P3: 7.2 | Q3: 1 | R3: -51.4 | S3: 48.6 | T3: 100 | U3: -0.1 | V3: 0.9 | W3: 1 | X3: 7.8 | AA3: 2 | AB3: -18.1 | AC3: 81.9 | AD3: 100 | AE3: 3.5 | AF3: 4.5 | AH3: 37.6 | AK3: -6.4 | AL3: 100 | AM3: 13.6 | AN3: 14.6 | AP3: 120.9 | AT3: 4 | AU3: 0 | AV3: 9 | BG3: 2 | BI3: 0 | BJ3: 100 | BK3: 100 | BL3: 5.6 | BM3: 46.5 | BO3: 5.6 | BQ3: 3 | BU3: 0 | BX3: 0 | CC3: 0 | CN3: 0 | CO3: 1 | CP3: 0 | CQ3: 0 | CR3: 3 | CS3: 0 | CT3: 1 | CX3: 7.2 | CY3: 1.5 | CZ3: 82.7 | DA3: 17.2
A4: Aaron.Ekblad | B4: 2015-01-08 | C4: FLA | D4: VAN | E4: 0 | F4: 0 | G4: 0 | H4: 0 | I4: 0 | J4: 0 | K4: 0 | L4: 0 | P4: 2.3 | Q4: 0 | S4: 0 | U4: -1 | V4: 0 | W4: 1 | X4: 0 | AA4: 0 | AC4: 0 | AE4: -1 | AF4: 0 | AH4: 0 | AK4: -34 | AL4: 34 | AM4: -2 | AN4: 0 | AP4: 0 | AT4: 0 | AU4: 0 | AV4: 0 | BG4: 0 | BI4: -50.7 | BJ4: 0 | BK4: 50.7 | BL4: -1 | BM4: 0 | BO4: 0 | BQ4: 0 | BU4: 0 | BX4: 0 | CE4: 100 | CN4: 0 | CO4: 0 | CP4: 0 | CQ4: 0 | CR4: 0 | CS4: 0 | CT4: 0 | CX4: 2.3 | CY4: 1.6 | CZ4: 58.5 | DA4: 16.2
A5: Aaron.Ekblad | B5: 2015-01-09 | C5: FLA | D5: CGY | E5: 0 | F5: 0 | G5: 0 | H5: 0 | I5: 0 | J5: 0 | K5: 0 | L5: 100 | P5: 0.7 | Q5: 0 | U5: 0 | V5: 0 | W5: 0 | X5: 0 | AA5: 0 | AC5: 100 | AE5: 1.1 | AF5: 1.1 | AH5: 89.7 | AM5: 1.1 | AN5: 1.1 | AP5: 90.6 | AT5: 0 | AU5: 0 | AV5: 0 | BG5: 0 | BJ5: 100 | BL5: 1.1 | BM5: 90.6 | BO5: 1.1 | BQ5: 0 | BU5: 0 | BX5: 0 | CC5: 0 | CN5: 0 | CO5: 0 | CP5: 0 | CQ5: 0 | CR5: 0 | CS5: 0 | CT5: 0 | CX5: 0.7 | CY5: 1 | CZ5: 40.8 | DA5: 16.4
A6: Aaron.Ekblad | B6: 2015-01-11 | C6: FLA | D6: EDM | E6: 0 | F6: 0 | G6: 0 | H6: 0 | I6: 0 | J6: 0 | K6: 0 | L6: 100 | N6: 0 | P6: 2.4 | Q6: 0 | S6: 100 | U6: 2.5 | V6: 2.5 | W6: 0 | X6: 61.7 | AA6: 0 | AC6: 100 | AE6: 2.5 | AF6: 2.5 | AH6: 61.7 | AM6: 7.7 | AN6: 7.7 | AP6: 190.9 | AT6: 0 | AU6: 0 | AV6: 2 | BG6: 1 | BJ6: 100 | BL6: 3.8 | BM6: 93.5 | BO6: 3.8 | BQ6: 1 | BU6: 0 | BX6: 0 | CC6: 0 | CN6: 0 | CO6: 0 | CP6: 0 | CQ6: 0 | CR6: 1 | CS6: 0 | CT6: 0 | CX6: 2.4 | CY6: 1 | CZ6: 71.1 | DA6: 16.5
A7: Aaron.Ekblad | B7: 2015-01-13 | C7: FLA | D7: WPG | E7: 0 | F7: 0 | G7: 0 | H7: 0 | I7: 0 | J7: 0 | K7: 0 | L7: 61.7 | P7: 3.7 | Q7: 0 | U7: 0 | V7: 0 | W7: 0 | X7: 0 | AA7: 1 | AC7: 48.8 | AE7: 0 | AF7: 1 | AH7: 15.5 | AK7: -38.3 | AL7: 100 | AM7: 0.6 | AN7: 1.6 | AP7: 26.3 | AT7: 1 | AU7: 0 | AV7: 1 | BG7: 0 | BK7: 100 | BL7: 0 | BM7: 0 | BO7: 0 | BQ7: 0 | BU7: 0 | BX7: 0 | CN7: 0 | CO7: 0 | CP7: 0 | CQ7: 0 | CR7: 0 | CS7: 0 | CT7: 0 | CX7: 3.7 | CY7: 1.3 | CZ7: 73.9 | DA7: 16.8
A8: Aaron.Ekblad | B8: 2015-01-15 | C8: FLA | D8: COL | E8: 1 | F8: 0 | G8: 1 | H8: 23.4 | I8: 0 | J8: 23.4 | K8: 0 | L8: 100 | N8: 50 | P8: 2.6 | Q8: 0 | U8: 0 | V8: 0 | W8: 0 | X8: 0 | AA8: 2 | AC8: 100 | AE8: 4 | AF8: 4 | AH8: 93 | AM8: 5.7 | AN8: 5.7 | AP8: 132.7 | AT8: 0 | AU8: 0 | AV8: 2 | BG8: 0 | BJ8: 100 | BL8: 5.7 | BM8: 132.7 | BO8: 5.7 | BQ8: 2 | BU8: 23.4 | BX8: 1 | CC8: 17.6 | CN8: 1 | CO8: 0 | CP8: 0 | CQ8: 0 | CR8: 1 | CS8: 0 | CT8: 0 | CX8: 2.6 | CY8: 0 | CZ8: 100 | DA8: 17
A9: Aaron.Ekblad | B9: 2015-01-17 | C9: FLA | D9: EDM | E9: 0 | F9: 0 | G9: 0 | H9: 0 | I9: 0 | J9: 0 | K9: 0 | L9: 86.5 | M9: 0 | P9: 4.3 | Q9: 0 | U9: 0 | V9: 0 | W9: 0 | X9: 0 | AA9: 0 | AC9: 0 | AE9: -1 | AF9: 0 | AH9: 0 | AK9: -13.5 | AL9: 100 | AM9: 5.4 | AN9: 6.4 | AP9: 88.8 | AT9: 2 | AU9: 0 | AV9: 2 | BG9: 0 | BI9: -50.1 | BJ9: 49.9 | BK9: 100 | BL9: 0 | BM9: 13.8 | BO9: 1 | BQ9: 0 | BU9: 0 | BX9: 0 | CC9: 0 | CE9: 0 | CN9: 0 | CO9: 0 | CP9: 0 | CQ9: 0 | CR9: 0 | CS9: 0 | CT9: 0 | CX9: 4.3 | CY9: 1.5 | CZ9: 74.6 | DA9: 16.7
A10: Aaron.Ekblad | B10: 2015-01-19 | C10: FLA | D10: VAN | E10: 0 | F10: 0 | G10: 0 | H10: 0 | I10: 0 | J10: 0 | K10: 0 | L10: 64.7 | M10: 100 | N10: 0 | P10: 4.8 | Q10: 0 | R10: 32.6 | S10: 100 | T10: 67.4 | U10: 0.9 | V10: 0.9 | W10: 0 | X10: 11.8 | AA10: 0 | AB10: 24 | AC10: 74.8 | AD10: 50.8 | AE10: 2 | AF10: 3 | AH10: 36.9 | AK10: 6.9 | AL10: 57.8 | AM10: 2.5 | AN10: 5.5 | AP10: 68.3 | AT10: 1 | AU10: 0 | AV10: 2 | BG10: 0 | BI10: 33.8 | BJ10: 64.1 | BK10: 30.4 | BL10: 1.6 | BM10: 44.5 | BO10: 3.6 | BQ10: 1 | BU10: 0 | BX10: 0 | CC10: 0 | CE10: 100 | CN10: 0 | CO10: 0 | CP10: 0 | CQ10: 0 | CR10: 1 | CS10: 0 | CT10: 0 | CX10: 4.8 | CY10: 2.7 | CZ10: 63.8 | DA10: 16.9
A11: Aaron.Ekblad | B11: 2015-01-27 | C11: FLA | D11: DET | E11: 0 | F11: 2 | G11: 2 | H11: 0 | I11: 31 | J11: 31 | K11: 0 | L11: 91.3 | M11: 26.4 | N11: 0 | P11: 3.9 | Q11: 0 | S11: 75.3 | U11: 2.1 | V11: 3.1 | W11: 1 | X11: 47.3 | AA11: 0 | AB11: -14.2 | AC11: 85.8 | AD11: 100 | AE11: 5 | AF11: 6 | AH11: 93.6 | AK11: -8.7 | AL11: 100 | AM11: 9.5 | AN11: 10.5 | AP11: 163 | AT11: 0 | AU11: 0 | AV11: 2 | BG11: 1 | BI11: -11.6 | BJ11: 88.4 | BK11: 100 | BL11: 6.6 | BM11: 117.7 | BO11: 7.6 | BQ11: 1 | BU11: 31 | BV11: 100 | BX11: 2 | CC11: 26.4 | CE11: 0 | CN11: 0 | CO11: 0 | CP11: 1 | CQ11: 1 | CR11: 1 | CS11: 0 | CT11: 0 | CX11: 3.9 | CY11: 2.3 | CZ11: 62.7 | DA11: 17.2
A12: Aaron.Ekblad | B12: 2015-01-29 | C12: FLA | D12: CBJ | E12: 0 | F12: 0 | G12: 0 | H12: 0 | I12: 0 | J12: 0 | K12: 0 | L12: 85.7 | M12: 100 | P12: 3 | Q12: 0 | R12: 0 | S12: 100 | T12: 100 | U12: 1.2 | V12: 1.2 | W12: 0 | X12: 24.3 | AA12: 1 | AB12: -22.5 | AC12: 77.5 | AD12: 100 | AE12: 2.5 | AF12: 3.5 | AH12: 68.1 | AK12: -14.3 | AL12: 100 | AM12: 5 | AN12: 6 | AP12: 118.1 | AT12: 1 | AU12: 0 | AV12: 1 | BG12: 0 | BI12: -20.3 | BJ12: 79.7 | BK12: 100 | BL12: 2.9 | BM12: 77.3 | BO12: 3.9 | BQ12: 0 | BU12: 0 | BX12: 0 | CC12: 0 | CE12: 100 | CN12: 0 | CO12: 0 | CP12: 0 | CQ12: 0 | CR12: 0 | CS12: 0 | CT12: 0 | CX12: 3 | CY12: 2.8 | CZ12: 51.8 | DA12: 16.9
A13: Aaron.Ekblad | B13: 2015-01-31 | C13: FLA | D13: N.J | E13: 0 | F13: 0 | G13: 0 | H13: 0 | I13: 0 | J13: 0 | K13: 0 | L13: 100 | P13: 1.2 | Q13: 0 | S13: 100 | U13: 1 | V13: 1 | W13: 0 | X13: 47.8 | AA13: 0 | AC13: 100 | AE13: 1 | AF13: 1 | AH13: 47.8 | AK13: 0 | AL13: 100 | AM13: 2.1 | AN13: 2.1 | AP13: 100.8 | AT13: 0 | AU13: 0 | AV13: 0 | BG13: 0 | BI13: 0 | BJ13: 100 | BK13: 100 | BL13: 0.9 | BM13: 45.1 | BO13: 0.9 | BQ13: 0 | BU13: 0 | BX13: 0 | CC13: 0 | CN13: 0 | CO13: 0 | CP13: 0 | CQ13: 0 | CR13: 0 | CS13: 0 | CT13: 0 | CX13: 1.2 | CY13: 1.8 | CZ13: 40.7 | DA13: 16.8
A14: Aaron.Ekblad | B14: 2015-02-02 | C14: FLA | D14: NYR | E14: 0 | F14: 0 | G14: 0 | H14: 0 | I14: 0 | J14: 0 | K14: 0 | L14: 51.7 | M14: 0 | P14: 1 | Q14: 0 | S14: 0 | U14: -1 | V14: 0 | W14: 1 | X14: 0 | AA14: 0 | AC14: 50.9 | AE14: 0 | AF14: 1 | AH14: 62.2 | AK14: -48.3 | AL14: 100 | AM14: 0.1 | AN14: 2.1 | AP14: 128.6 | AT14: 0 | AU14: 1 | AV14: 0 | BG14: 0 | BI14: -47.8 | BJ14: 52.2 | BK14: 100 | BL14: 0.1 | BM14: 65.6 | BO14: 1.1 | BQ14: 0 | BU14: 0 | BV14: 100 | BX14: 0 | CC14: 0 | CE14: 0 | CN14: 0 | CO14: 0 | CP14: 0 | CQ14: 0 | CR14: 0 | CS14: 0 | CT14: 0 | CX14: 1 | CY14: 1.1 | CZ14: 47.4 | DA14: 17.2
A15: Aaron.Ekblad | B15: 2015-02-03 | C15: FLA | D15: NYI | E15: 0 | F15: 1 | G15: 1 | H15: 0 | I15: 44.4 | J15: 44.4 | K15: 0 | L15: 100 | P15: 1.4 | Q15: 0 | S15: 100 | U15: 1.9 | V15: 1.9 | W15: 0 | X15: 86 | AA15: 0 | AC15: 100 | AE15: 1.9 | AF15: 1.9 | AH15: 86 | AM15: 4.2 | AN15: 4.2 | AP15: 187.2 | AT15: 0 | AU15: 0 | AV15: 0 | BG15: 0 | BJ15: 100 | BL15: 2 | BM15: 88.5 | BO15: 2 | BQ15: 0 | BU15: 44.4 | BX15: 1 | CC15: 50.2 | CN15: 0 | CO15: 0 | CP15: 0 | CQ15: 1 | CR15: 0 | CS15: 0 | CT15: 0 | CX15: 1.4 | CY15: 0.8 | CZ15: 63.3 | DA15: 16.8
A16: Aaron.Ekblad | B16: 2015-02-05 | C16: FLA | D16: L.A | E16: 0 | F16: 0 | G16: 0 | H16: 0 | I16: 0 | J16: 0 | K16: 0 | L16: 100 | P16: 1.2 | Q16: 0 | U16: 0 | V16: 0 | W16: 0 | X16: 0 | AA16: 0 | AD16: 0 | AE16: 0 | AF16: 0 | AH16: 0 | AK16: 100 | AL16: 0 | AM16: 2 | AN16: 2 | AP16: 101.7 | AT16: 0 | AU16: 0 | AV16: 0 | BG16: 0 | BI16: 100 | BJ16: 100 | BK16: 0 | BL16: 2 | BM16: 101.7 | BO16: 2 | BQ16: 0 | BU16: 0 | BX16: 0 | CC16: 0 | CN16: 0 | CO16: 0 | CP16: 0 | CQ16: 0 | CR16: 0 | CS16: 0 | CT16: 0 | CX16: 1.2 | CY16: 0.7 | CZ16: 63.2 | DA16: 16.6
A17: Aaron.Ekblad | B17: 2015-02-08 | C17: FLA | D17: NSH | E17: 0 | F17: 0 | G17: 0 | H17: 0 | I17: 0 | J17: 0 | K17: 0 | L17: 100 | P17: 1.6 | Q17: 0 | T17: 100 | U17: 0 | V17: 0 | W17: 0 | X17: 0 | AA17: 0 | AB17: 0 | AC17: 100 | AD17: 100 | AE17: 1.1 | AF17: 1.1 | AH17: 39.3 | AK17: 0 | AL17: 100 | AM17: 1 | AN17: 1 | AP17: 36.6 | AT17: 0 | AU17: 0 | AV17: 0 | BG17: 0 | BI17: 0 | BJ17: 100 | BK17: 100 | BL17: 1 | BM17: 36.6 | BO17: 1 | BQ17: 0 | BU17: 0 | BX17: 0 | CC17: 0 | CN17: 0 | CO17: 0 | CP17: 0 | CQ17: 0 | CR17: 0 | CS17: 0 | CT17: 0 | CX17: 1.6 | CY17: 2.6 | CZ17: 38.4 | DA17: 16.9
A18: Aaron.Ekblad | B18: 2015-02-10 | C18: FLA | D18: ANA | E18: 0 | F18: 0 | G18: 0 | H18: 0 | I18: 0 | J18: 0 | K18: 0 | L18: 88.7 | M18: 123 | N18: 0 | P18: 8 | Q18: 0 | T18: 100 | U18: 0 | V18: 0 | W18: 0 | X18: 0 | AA18: 0 | AB18: -48.7 | AC18: 51.3 | AD18: 100 | AE18: 0.1 | AF18: 1.1 | AH18: 7.9 | AK18: -2.3 | AL18: 91 | AM18: 6.8 | AN18: 7.8 | AP18: 58.6 | AT18: 1 | AU18: 0 | AV18: 2 | BG18: 0 | BI18: -18.7 | BJ18: 81.3 | BK18: 100 | BL18: 3.3 | BM18: 32.6 | BO18: 4.3 | BQ18: 1 | BU18: 7.5 | BV18: 100 | BX18: 1 | CC18: 23 | CE18: 100 | CN18: 1 | CO18: 1 | CP18: 0 | CQ18: 0 | CR18: 1 | CS18: 0 | CT18: 0 | CX18: 8 | CY18: 5.2 | CZ18: 60.9 | DA18: 17.4
A19: Aaron.Ekblad | B19: 2015-02-12 | C19: FLA | D19: MIN | E19: 0 | F19: 0 | G19: 0 | H19: 0 | I19: 0 | J19: 0 | K19: 0 | L19: 85 | M19: 100 | P19: 3.7 | Q19: 0 | S19: 52.7 | U19: 0.1 | V19: 1.1 | W19: 1 | X19: 18.3 | AA19: 0 | AC19: 80.4 | AE19: 3.1 | AF19: 4.1 | AH19: 67.2 | AK19: -15 | AL19: 100 | AM19: 4.7 | AN19: 5.7 | AP19: 92.9 | AT19: 0 | AU19: 0 | AV19: 1 | BG19: 1 | BI19: -25.3 | BJ19: 74.7 | BK19: 100 | BL19: 2 | BM19: 48.4 | BO19: 3 | BQ19: 0 | BU19: 0 | BX19: 0 | CC19: 0 | CE19: 100 | CN19: 0 | CO19: 0 | CP19: 0 | CQ19: 0 | CR19: 0 | CS19: 0 | CT19: 0 | CX19: 3.7 | CY19: 1.8 | CZ19: 66.9 | DA19: 17
A20: Aaron.Ekblad | B20: 2015-02-13 | C20: FLA | D20: DAL | E20: 0 | F20: 0 | G20: 0 | H20: 0 | I20: 0 | J20: 0 | K20: 0 | L20: 45.9 | P20: 2.2 | Q20: 0 | R20: -69.2 | S20: 30.8 | T20: 100 | U20: -1.1 | V20: 0.9 | W20: 2 | X20: 24.6 | AA20: 0 | AB20: -50.8 | AC20: 49.2 | AD20: 100 | AE20: -0.1 | AF20: 1.9 | AH20: 53.7 | AK20: -54.1 | AL20: 100 | AM20: -0.3 | AN20: 1.7 | AP20: 46.9 | AT20: 0 | AU20: 0 | AV20: 0 | BG20: 0 | BI20: -100 | BJ20: 0 | BK20: 100 | BL20: -1 | BM20: 0 | BO20: 0 | BQ20: 0 | BU20: 0 | BX20: 0 | CE20: 0 | CN20: 0 | CO20: 0 | CP20: 0 | CQ20: 0 | CR20: 0 | CS20: 0 | CT20: 0 | CX20: 2.2 | CY20: 1.8 | CZ20: 55.2 | DA20: 17
A21: Aaron.Ekblad | B21: 2015-02-15 | C21: FLA | D21: STL | E21: 0 | F21: 0 | G21: 0 | H21: 0 | I21: 0 | J21: 0 | K21: 0 | L21: 100 | N21: 0 | P21: 1.6 | Q21: 0 | S21: 100 | U21: 3.9 | V21: 3.9 | W21: 0 | X21: 144.2 | AA21: 0 | AB21: 0 | AC21: 100 | AD21: 100 | AE21: 3.9 | AF21: 3.9 | AH21: 144.2 | AK21: 0 | AL21: 100 | AM21: 5.3 | AN21: 5.3 | AP21: 198.3 | AT21: 0 | AU21: 0 | AV21: 1 | BG21: 0 | BI21: 0 | BJ21: 100 | BK21: 100 | BL21: 5.3 | BM21: 198.3 | BO21: 5.3 | BQ21: 1 | BU21: 0 | BX21: 0 | CC21: 0 | CN21: 0 | CO21: 0 | CP21: 0 | CQ21: 0 | CR21: 1 | CS21: 0 | CT21: 0 | CX21: 1.6 | CY21: 2.4 | CZ21: 40.2 | DA21: 17.2
A22: Aaron.Ekblad | B22: 2015-02-17 | C22: FLA | D22: TOR | E22: 0 | F22: 0 | G22: 0 | H22: 0 | I22: 0 | J22: 0 | K22: 0 | L22: 0 | P22: 2.4 | Q22: 0 | T22: 100 | U22: 0 | V22: 0 | W22: 0 | X22: 0 | AA22: 0 | AD22: 100 | AE22: 0 | AF22: 0 | AH22: 0 | AK22: -100 | AL22: 100 | AM22: -1 | AN22: 0 | AP22: 0 | AT22: 0 | AU22: 0 | AV22: 0 | BG22: 0 | BI22: -100 | BJ22: 0 | BK22: 100 | BL22: -1 | BM22: 0 | BO22: 0 | BQ22: 0 | BU22: 0 | BV22: 100 | BX22: 0 | CE22: 100 | CN22: 0 | CO22: 0 | CP22: 0 | CQ22: 0 | CR22: 0 | CS22: 0 | CT22: 0 | CX22: 2.4 | CY22: 5 | CZ22: 32.4 | DA22: 16.9
A23: Aaron.Ekblad | B23: 2015-02-19 | C23: FLA | D23: MTL | E23: 0 | F23: 0 | G23: 0 | H23: 0 | I23: 0 | J23: 0 | K23: 0 | L23: 65.4 | P23: 1.2 | Q23: 0 | U23: 0 | V23: 0 | W23: 0 | X23: 0 | AA23: 0 | AC23: 100 | AE23: 2 | AF23: 2 | AH23: 103.6 | AM23: 0.9 | AN23: 1.9 | AP23: 96.4 | AT23: 0 | AU23: 0 | AV23: 0 | BG23: 0 | BJ23: 100 | BL23: 0.9 | BM23: 47.5 | BO23: 0.9 | BQ23: 0 | BU23: 0 | BX23: 0 | CC23: 0 | CN23: 0 | CO23: 0 | CP23: 0 | CQ23: 0 | CR23: 0 | CS23: 0 | CT23: 0 | CX23: 1.2 | CY23: 0.8 | CZ23: 59.7 | DA23: 16.9
A24: Aaron.Ekblad | B24: 2015-02-21 | C24: FLA | D24: OTT | E24: 0 | F24: 0 | G24: 0 | H24: 0 | I24: 0 | J24: 0 | K24: 0 | L24: 100 | P24: 2.5 | Q24: 0 | U24: 0 | V24: 0 | W24: 0 | X24: 0 | AA24: 0 | AE24: 0 | AF24: 0 | AH24: 0 | AK24: 52 | AL24: 48 | AM24: 0.9 | AN24: 0.9 | AP24: 22.7 | AT24: 0 | AU24: 0 | AV24: 0 | BG24: 0 | BI24: 52 | BJ24: 100 | BK24: 48 | BL24: 0.9 | BM24: 22.7 | BO24: 0.9 | BQ24: 0 | BU24: 0 | BX24: 0 | CC24: 0 | CN24: 0 | CO24: 0 | CP24: 0 | CQ24: 0 | CR24: 0 | CS24: 0 | CT24: 0 | CX24: 2.5 | CY24: 1.6 | CZ24: 60.3 | DA24: 17
A25: Aaron.Ekblad | B25: 2015-02-22 | C25: FLA | D25: PIT | E25: 0 | F25: 0 | G25: 0 | H25: 0 | I25: 0 | J25: 0 | K25: 0 | L25: 100 | P25: 3.4 | Q25: 0 | R25: 0 | S25: 100 | T25: 100 | U25: 1.1 | V25: 1.1 | W25: 0 | X25: 20.1 | AA25: 0 | AB25: 0 | AC25: 100 | AD25: 100 | AE25: 2.2 | AF25: 2.2 | AH25: 38.9 | AK25: 21.8 | AL25: 78.2 | AM25: 3.8 | AN25: 3.8 | AP25: 66.9 | AT25: 0 | AU25: 0 | AV25: 0 | BG25: 0 | BI25: 26.7 | BJ25: 100 | BK25: 73.3 | BL25: 1.9 | BM25: 33 | BO25: 1.9 | BQ25: 0 | BU25: 0 | BX25: 0 | CC25: 0 | CN25: 0 | CO25: 0 | CP25: 0 | CQ25: 0 | CR25: 0 | CS25: 0 | CT25: 0 | CX25: 3.4 | CY25: 2.7 | CZ25: 55.6 | DA25: 17.2
A26: Aaron.Ekblad | B26: 2015-02-24 | C26: FLA | D26: CHI | E26: 0 | F26: 0 | G26: 0 | H26: 0 | I26: 0 | J26: 0 | K26: 0 | L26: 100 | N26: 0 | P26: 2.9 | Q26: 0 | S26: 100 | U26: 0.9 | V26: 0.9 | W26: 0 | X26: 17.7 | AA26: 0 | AB26: 0 | AC26: 100 | AD26: 100 | AE26: 0.9 | AF26: 0.9 | AH26: 17.7 | AK26: 0 | AL26: 100 | AM26: 2.6 | AN26: 2.6 | AP26: 52.3 | AT26: 0 | AU26: 0 | AV26: 1 | BG26: 0 | BI26: 0 | BJ26: 100 | BK26: 100 | BL26: 2.6 | BM26: 52.3 | BO26: 2.6 | BQ26: 1 | BU26: 0 | BX26: 0 | CC26: 0 | CN26: 0 | CO26: 0 | CP26: 0 | CQ26: 0 | CR26: 1 | CS26: 0 | CT26: 0 | CX26: 2.9 | CY26: 1.4 | CZ26: 68 | DA26: 17.1
A27: Aaron.Ekblad | B27: 2015-02-26 | C27: FLA | D27: CHI | E27: 0 | F27: 0 | G27: 0 | H27: 0 | I27: 0 | J27: 0 | K27: 0 | L27: 100 | P27: 1.4 | Q27: 0 | U27: 0 | V27: 0 | W27: 0 | X27: 0 | AA27: 0 | AE27: 0 | AF27: 0 | AH27: 0 | AM27: 0.9 | AN27: 0.9 | AP27: 41.7 | AT27: 0 | AU27: 0 | AV27: 0 | BG27: 0 | BJ27: 100 | BL27: 0.9 | BM27: 41.7 | BO27: 0.9 | BQ27: 0 | BU27: 0 | BX27: 0 | CC27: 0 | CN27: 0 | CO27: 0 | CP27: 0 | CQ27: 0 | CR27: 0 | CS27: 0 | CT27: 0 | CX27: 1.4 | CY27: 0 | CZ27: 100 | DA27: 17.3
A28: Aaron.Ekblad | B28: 2015-02-28 | C28: FLA | D28: BUF | E28: 0 | F28: 0 | G28: 0 | H28: 0 | I28: 0 | J28: 0 | K28: 0 | L28: 86.5 | P28: 4.3 | Q28: 0 | R28: 0 | S28: 100 | T28: 100 | U28: 1.9 | V28: 1.9 | W28: 0 | X28: 25.9 | AA28: 0 | AB28: -6.3 | AC28: 79.1 | AD28: 85.4 | AE28: 2.8 | AF28: 3.8 | AH28: 52.4 | AK28: -8.2 | AL28: 94.7 | AM28: 5.4 | AN28: 6.4 | AP28: 88.7 | AT28: 1 | AU28: 0 | AV28: 1 | BG28: 0 | BI28: 0 | BJ28: 100 | BK28: 100 | BL28: 4.5 | BM28: 61.8 | BO28: 4.5 | BQ28: 0 | BU28: 0 | BV28: 100 | BX28: 0 | CC28: 0 | CN28: 0 | CO28: 0 | CP28: 0 | CQ28: 0 | CR28: 0 | CS28: 0 | CT28: 0 | CX28: 4.3 | CY28: 6.8 | CZ28: 38.7 | DA28: 17
A29: Aaron.Ekblad | B29: 2015-03-01 | C29: FLA | D29: T.B | E29: 1 | F29: 0 | G29: 1 | H29: 14.7 | I29: 0 | J29: 14.7 | K29: 0 | L29: 100 | N29: 50 | P29: 4.1 | Q29: 0 | U29: 0 | V29: 0 | W29: 0 | X29: 0 | AA29: 0 | AB29: 0 | AC29: 100 | AD29: 100 | AE29: 1.4 | AF29: 1.4 | AH29: 21.2 | AK29: 0 | AL29: 100 | AM29: 5.9 | AN29: 5.9 | AP29: 85.8 | AT29: 0 | AU29: 0 | AV29: 2 | BG29: 0 | BI29: 0 | BJ29: 100 | BK29: 100 | BL29: 2 | BM29: 29.1 | BO29: 2 | BQ29: 2 | BU29: 14.7 | BX29: 1 | CC29: 50.4 | CN29: 0 | CO29: 0 | CP29: 0 | CQ29: 0 | CR29: 1 | CS29: 0 | CT29: 0 | CX29: 4.1 | CY29: 3.6 | CZ29: 53 | DA29: 16.3
A30: Aaron.Ekblad | B30: 2015-03-03 | C30: FLA | D30: TOR | E30: 1 | F30: 0 | G30: 1 | H30: 14.6 | I30: 0 | J30: 14.6 | K30: 0 | L30: 100 | N30: 50 | P30: 4.1 | Q30: 0 | R30: 50.8 | S30: 100 | T30: 49.2 | U30: 2.9 | V30: 2.9 | W30: 0 | X30: 41.9 | AA30: 0 | AB30: 25.6 | AC30: 100 | AD30: 74.4 | AE30: 2.9 | AF30: 2.9 | AH30: 41.9 | AK30: 18.4 | AL30: 81.6 | AM30: 8.6 | AN30: 8.6 | AP30: 125.7 | AT30: 0 | AU30: 0 | AV30: 2 | BG30: 0 | BI30: 27.2 | BJ30: 100 | BK30: 72.8 | BL30: 6.6 | BM30: 95.6 | BO30: 6.6 | BQ30: 2 | BU30: 14.5 | BX30: 1 | CC30: 15.2 | CN30: 0 | CO30: 0 | CP30: 0 | CQ30: 0 | CR30: 1 | CS30: 0 | CT30: 0 | CX30: 4.1 | CY30: 1.8 | CZ30: 69.1 | DA30: 17.1
A31: Aaron.Ekblad | B31: 2015-03-05 | C31: FLA | D31: DAL | E31: 0 | F31: 0 | G31: 0 | H31: 0 | I31: 0 | J31: 0 | K31: 0 | L31: 100 | N31: 0 | P31: 1.1 | Q31: 0 | R31: 100 | S31: 100 | T31: 0 | U31: 1.4 | V31: 1.4 | W31: 0 | X31: 75.9 | AA31: 0 | AB31: 100 | AC31: 100 | AD31: 0 | AE31: 3.5 | AF31: 3.5 | AH31: 193.7 | AK31: 21.3 | AL31: 78.7 | AM31: 4.5 | AN31: 4.5 | AP31: 249.7 | AT31: 0 | AU31: 0 | AV31: 1 | BG31: 0 | BI31: 31.7 | BJ31: 100 | BK31: 68.3 | BL31: 2.2 | BM31: 120.3 | BO31: 2.2 | BQ31: 1 | BU31: 0 | BX31: 0 | CC31: 0 | CN31: 0 | CO31: 0 | CP31: 0 | CQ31: 0 | CR31: 1 | CS31: 0 | CT31: 0 | CX31: 1.1 | CY31: 3 | CZ31: 26.4 | DA31: 16.6
A32: Aaron.Ekblad | B32: 2015-03-12 | C32: FLA | D32: WPG | E32: 0 | F32: 0 | G32: 0 | H32: 0 | I32: 0 | J32: 0 | K32: 0 | L32: 54 | N32: 0 | P32: 3.4 | Q32: 1 | R32: 50 | S32: 100 | T32: 50 | U32: 1.2 | V32: 1.2 | W32: 0 | X32: 20.8 | AA32: 1 | AB32: 3.9 | AC32: 53.9 | AD32: 50 | AE32: 0.2 | AF32: 1.2 | AH32: 20.8 | AK32: -13.4 | AL32: 67.4 | AM32: 0.2 | AN32: 1.2 | AP32: 20.9 | AT32: 0 | AU32: 0 | AV32: 1 | BG32: 0 | BI32: 50 | BJ32: 100 | BK32: 50 | BL32: 1.2 | BM32: 20.9 | BO32: 1.2 | BQ32: 1 | BU32: 0 | BV32: 100 | BX32: 0 | CC32: 0 | CN32: 1 | CO32: 0 | CP32: 0 | CQ32: 0 | CR32: 1 | CS32: 0 | CT32: 0 | CX32: 3.4 | CY32: 1.9 | CZ32: 64.3 | DA32: 17
A33: Aaron.Ekblad | B33: 2015-03-14 | C33: FLA | D33: CAR | E33: 0 | F33: 0 | G33: 0 | H33: 0 | I33: 0 | J33: 0 | K33: 0 | L33: 100 | P33: 1.3 | Q33: 0 | T33: 100 | U33: 0 | V33: 0 | W33: 0 | X33: 0 | AA33: 0 | AB33: 0 | AC33: 100 | AD33: 100 | AE33: 1 | AF33: 1 | AH33: 45.9 | AK33: 0 | AL33: 100 | AM33: 1 | AN33: 1 | AP33: 45.9 | AT33: 0 | AU33: 0 | AV33: 0 | BG33: 0 | BI33: 0 | BJ33: 100 | BK33: 100 | BL33: 1 | BM33: 45.9 | BO33: 1 | BQ33: 0 | BU33: 45.9 | BX33: 1 | CC33: 100 | CN33: 0 | CO33: 0 | CP33: 0 | CQ33: 0 | CR33: 0 | CS33: 0 | CT33: 0 | CX33: 1.3 | CY33: 1.6 | CZ33: 44.2 | DA33: 17
A34: Aaron.Ekblad | B34: 2015-03-15 | C34: FLA | D34: NYR | E34: 0 | F34: 0 | G34: 0 | H34: 0 | I34: 0 | J34: 0 | K34: 0 | L34: 100 | N34: 0 | P34: 1.2 | Q34: 0 | U34: 0 | V34: 0 | W34: 0 | X34: 0 | AA34: 0 | AE34: 0 | AF34: 0 | AH34: 0 | AK34: 51.3 | AL34: 48.7 | AM34: 1.8 | AN34: 1.8 | AP34: 92.3 | AT34: 0 | AU34: 0 | AV34: 1 | BG34: 0 | BI34: 0 | BJ34: 100 | BK34: 100 | BL34: 1.8 | BM34: 92.3 | BO34: 1.8 | BQ34: 1 | BU34: 0 | BX34: 0 | CC34: 0 | CN34: 0 | CO34: 0 | CP34: 0 | CQ34: 0 | CR34: 1 | CS34: 0 | CT34: 0 | CX34: 1.2 | CY34: 2.5 | CZ34: 31.9 | DA34: 17.3
A35: Aaron.Ekblad | B35: 2015-03-17 | C35: FLA | D35: MTL | E35: 0 | F35: 0 | G35: 0 | H35: 0 | I35: 0 | J35: 0 | K35: 0 | L35: 87.6 | M35: 100 | N35: 0 | P35: 4.1 | Q35: 0 | U35: 0 | V35: 0 | W35: 0 | X35: 0 | AA35: 0 | AB35: 66 | AC35: 66 | AD35: 0 | AE35: 0.9 | AF35: 1.9 | AH35: 28.7 | AK35: 24 | AL35: 63.6 | AM35: 6.1 | AN35: 7.1 | AP35: 104.2 | AT35: 0 | AU35: 0 | AV35: 1 | BG35: 0 | BI35: 37.1 | BJ35: 84.2 | BK35: 47.1 | BL35: 4.3 | BM35: 79 | BO35: 5.3 | BQ35: 1 | BU35: 0 | BV35: 0 | BX35: 0 | CC35: 0 | CE35: 100 | CN35: 0 | CO35: 0 | CP35: 0 | CQ35: 0 | CR35: 1 | CS35: 0 | CT35: 0 | CX35: 4.1 | CY35: 1.8 | CZ35: 69.4 | DA35: 17.2
A36: Aaron.Ekblad | B36: 2015-03-19 | C36: FLA | D36: DET | E36: 0 | F36: 0 | G36: 0 | H36: 0 | I36: 0 | J36: 0 | K36: 0 | L36: 81.6 | M36: 100 | P36: 4.9 | Q36: 0 | R36: 0 | S36: 100 | T36: 100 | U36: 1.1 | V36: 1.1 | W36: 0 | X36: 13.2 | AA36: 0 | AB36: 0 | AC36: 100 | AD36: 100 | AE36: 2.2 | AF36: 2.2 | AH36: 26.9 | AK36: -18.4 | AL36: 100 | AM36: 3.4 | AN36: 4.4 | AP36: 54.6 | AT36: 0 | AU36: 0 | AV36: 0 | BG36: 0 | BI36: -18.4 | BJ36: 81.6 | BK36: 100 | BL36: 3.4 | BM36: 54.6 | BO36: 4.4 | BQ36: 0 | BU36: 0 | BX36: 0 | CC36: 0 | CE36: 100 | CN36: 1 | CO36: 0 | CP36: 0 | CQ36: 0 | CR36: 0 | CS36: 0 | CT36: 1 | CX36: 4.9 | CY36: 1.3 | CZ36: 78.8 | DA36: 16.6
A37: Aaron.Ekblad | B37: 2015-03-21 | C37: FLA | D37: BOS | E37: 0 | F37: 0 | G37: 0 | H37: 0 | I37: 0 | J37: 0 | K37: 0 | L37: 100 | P37: 3 | Q37: 0 | S37: 100 | U37: 0.9 | V37: 0.9 | W37: 0 | X37: 18.4 | AA37: 0 | AB37: 0 | AC37: 100 | AD37: 100 | AE37: 0.9 | AF37: 0.9 | AH37: 18.4 | AK37: 0 | AL37: 100 | AM37: 3 | AN37: 3 | AP37: 60.2 | AT37: 0 | AU37: 0 | AV37: 0 | BG37: 0 | BJ37: 100 | BL37: 0.9 | BM37: 18.2 | BO37: 0.9 | BQ37: 0 | BU37: 0 | BX37: 0 | CC37: 0 | CN37: 0 | CO37: 0 | CP37: 0 | CQ37: 0 | CR37: 0 | CS37: 0 | CT37: 0 | CX37: 3 | CY37: 2.5 | CZ37: 55.1 | DA37: 16.5
A38: Aaron.Ekblad | B38: 2015-03-24 | C38: FLA | D38: T.B | E38: 0 | F38: 0 | G38: 0 | H38: 0 | I38: 0 | J38: 0 | K38: 0 | L38: 100 | P38: 0.6 | Q38: 0 | R38: 100 | S38: 100 | T38: 0 | U38: 1.9 | V38: 1.9 | W38: 0 | X38: 200.6 | AA38: 0 | AB38: 51.6 | AC38: 100 | AD38: 48.4 | AE38: 1.9 | AF38: 1.9 | AH38: 200.6 | AK38: 20.4 | AL38: 79.6 | AM38: 1.9 | AN38: 1.9 | AP38: 203.5 | AT38: 0 | AU38: 0 | AV38: 0 | BG38: 0 | BI38: 25.8 | BJ38: 100 | BK38: 74.2 | BL38: 1.9 | BM38: 203.5 | BO38: 1.9 | BQ38: 0 | BU38: 0 | BX38: 0 | CC38: 0 | CN38: 0 | CO38: 0 | CP38: 0 | CQ38: 0 | CR38: 0 | CS38: 0 | CT38: 0 | CX38: 0.6 | CY38: 2.8 | CZ38: 16.6 | DA38: 17
A39: Aaron.Ekblad | B39: 2015-03-26 | C39: FLA | D39: TOR | E39: 0 | F39: 0 | G39: 0 | H39: 0 | I39: 0 | J39: 0 | K39: 0 | P39: 0.8 | Q39: 0 | U39: 0 | V39: 0 | W39: 0 | X39: 0 | AA39: 0 | AE39: 0 | AF39: 0 | AH39: 0 | AL39: 54.5 | AM39: 0 | AN39: 0 | AP39: 0 | AT39: 0 | AU39: 0 | AV39: 0 | BG39: 0 | BK39: 54.5 | BL39: 0 | BM39: 0 | BO39: 0 | BQ39: 0 | BU39: 0 | BX39: 0 | CN39: 0 | CO39: 0 | CP39: 0 | CQ39: 0 | CR39: 0 | CS39: 0 | CT39: 0 | CX39: 0.8 | CY39: 1.2 | CZ39: 37.5 | DA39: 16.7
A40: Aaron.Ekblad | B40: 2015-03-28 | C40: FLA | D40: MTL | E40: 0 | F40: 0 | G40: 0 | H40: 0 | I40: 0 | J40: 0 | K40: 0 | L40: 100 | P40: 0.6 | Q40: 0 | S40: 100 | U40: 1 | V40: 1 | W40: 0 | X40: 94.7 | AA40: 0 | AC40: 100 | AE40: 1 | AF40: 1 | AH40: 94.7 | AK40: 0 | AL40: 100 | AM40: 1 | AN40: 1 | AP40: 94.7 | AT40: 0 | AU40: 0 | AV40: 0 | BG40: 0 | BI40: 0 | BJ40: 100 | BK40: 100 | BL40: 1 | BM40: 94.7 | BO40: 1 | BQ40: 0 | BU40: 94.7 | BX40: 1 | CC40: 100 | CN40: 0 | CO40: 0 | CP40: 0 | CQ40: 0 | CR40: 0 | CS40: 0 | CT40: 0 | CX40: 0.6 | CY40: 1.3 | CZ40: 32.5 | DA40: 17.2
A41: Aaron.Ekblad | B41: 2015-03-29 | C41: FLA | D41: OTT | E41: 0 | F41: 0 | G41: 0 | H41: 0 | I41: 0 | J41: 0 | K41: 0 | L41: 83.1 | N41: 0 | P41: 2.6 | Q41: 0 | S41: 100 | U41: 1 | V41: 1 | W41: 0 | X41: 23.2 | AA41: 1 | AB41: 0 | AC41: 100 | AD41: 100 | AE41: 4.1 | AF41: 4.1 | AH41: 94.7 | AK41: -5.9 | AL41: 89 | AM41: 3.9 | AN41: 4.9 | AP41: 113.8 | AT41: 1 | AU41: 1 | AV41: 2 | BG41: 0 | BI41: 33.3 | BJ41: 100 | BK41: 66.7 | BL41: 4 | BM41: 92.8 | BO41: 4 | BQ41: 1 | BU41: 23.2 | BV41: 100 | BX41: 1 | CC41: 24.9 | CN41: 0 | CO41: 0 | CP41: 0 | CQ41: 0 | CR41: 1 | CS41: 1 | CT41: 0 | CX41: 2.6 | CY41: 3.8 | CZ41: 40.3 | DA41: 16.9
A42: Aaron.Ekblad | B42: 2015-03-31 | C42: FLA | D42: BOS | E42: 0 | F42: 0 | G42: 0 | K42: 0 | P42: 0 | Q42: 0 | T42: 100 | U42: 0 | V42: 0 | W42: 0 | AA42: 0 | AD42: 100 | AE42: 0 | AF42: 0 | AL42: 100 | AM42: 0 | AN42: 0 | AT42: 0 | AU42: 0 | AV42: 0 | BG42: 0 | BK42: 100 | BL42: 0 | BO42: 0 | BQ42: 0 | BV42: 100 | BX42: 0 | CN42: 0 | CO42: 0 | CP42: 0 | CQ42: 0 | CR42: 0 | CS42: 0 | CT42: 0 | CX42: 0 | CY42: 0.6 | CZ42: 0
A43: Aaron.Ekblad | B43: 2015-04-02 | C43: FLA | D43: CAR | E43: 0 | F43: 0 | G43: 0 | H43: 0 | I43: 0 | J43: 0 | K43: 0 | P43: 0.5 | Q43: 0 | U43: 0 | V43: 0 | W43: 0 | X43: 0 | AA43: 0 | AD43: 100 | AE43: 0 | AF43: 0 | AH43: 0 | AL43: 100 | AM43: 0 | AN43: 0 | AP43: 0 | AT43: 0 | AU43: 0 | AV43: 0 | BG43: 0 | BL43: 0 | BM43: 0 | BO43: 0 | BQ43: 0 | BU43: 0 | BX43: 0 | CN43: 0 | CO43: 0 | CP43: 0 | CQ43: 0 | CR43: 0 | CS43: 0 | CT43: 0 | CX43: 0.5 | CY43: 1.5 | CZ43: 24.9 | DA43: 16.5
A44: Aaron.Ekblad | B44: 2015-04-04 | C44: FLA | D44: T.B | E44: 0 | F44: 0 | G44: 0 | H44: 0 | I44: 0 | J44: 0 | K44: 0 | L44: 100 | P44: 2.7 | Q44: 0 | S44: 100 | U44: 0.9 | V44: 0.9 | W44: 0 | X44: 19.9 | AA44: 0 | AB44: 0 | AC44: 100 | AD44: 100 | AE44: 1.8 | AF44: 1.8 | AH44: 40.2 | AK44: 20.8 | AL44: 79.2 | AM44: 4.8 | AN44: 4.8 | AP44: 107 | AT44: 1 | AU44: 0 | AV44: 2 | BG44: 1 | BI44: 52.3 | BJ44: 100 | BK44: 47.7 | BL44: 1.8 | BM44: 40.6 | BO44: 1.8 | BQ44: 0 | BU44: 0 | BX44: 0 | CC44: 0 | CN44: 0 | CO44: 0 | CP44: 0 | CQ44: 0 | CR44: 0 | CS44: 0 | CT44: 0 | CX44: 2.7 | CY44: 4 | CZ44: 40.3 | DA44: 16.3
A45: Aaron.Ekblad | B45: 2015-04-05 | C45: FLA | D45: MTL | E45: 1 | F45: 0 | G45: 1 | H45: 22.3 | I45: 0 | J45: 22.3 | K45: 0 | L45: 100 | N45: 100 | P45: 2.7 | Q45: 0 | T45: 100 | U45: 0 | V45: 0 | W45: 0 | X45: 0 | AA45: 0 | AB45: 0 | AC45: 100 | AD45: 100 | AE45: 2.9 | AF45: 2.9 | AH45: 64.7 | AK45: 0 | AL45: 100 | AM45: 5.8 | AN45: 5.8 | AP45: 128.7 | AT45: 1 | AU45: 0 | AV45: 2 | BG45: 0 | BI45: 0 | BJ45: 100 | BK45: 100 | BL45: 2.8 | BM45: 62 | BO45: 2.8 | BQ45: 1 | BU45: 22.3 | BX45: 1 | CC45: 35.9 | CN45: 0 | CO45: 1 | CP45: 0 | CQ45: 0 | CR45: 0 | CS45: 0 | CT45: 0 | CX45: 2.7 | CY45: 1.8 | CZ45: 60.3 | DA45: 16.7
A46: Aaron.Ekblad | B46: 2015-04-09 | C46: FLA | D46: BOS | E46: 0 | F46: 1 | G46: 1 | H46: 0 | I46: 28.6 | J46: 28.6 | K46: 0 | L46: 81.1 | M46: 123.3 | N46: 0 | P46: 2.1 | Q46: 0 | S46: 100 | U46: 1.1 | V46: 1.1 | W46: 0 | X46: 30.6 | AA46: 0 | AB46: 0 | AC46: 100 | AD46: 100 | AE46: 2.1 | AF46: 2.1 | AH46: 59.2 | AK46: -18.9 | AL46: 100 | AM46: 3.3 | AN46: 4.3 | AP46: 122.5 | AT46: 0 | AU46: 0 | AV46: 2 | BG46: 0 | BI46: -18.9 | BJ46: 81.1 | BK46: 100 | BL46: 3.3 | BM46: 122.5 | BO46: 4.3 | BQ46: 2 | BU46: 28.6 | BX46: 1 | CC46: 23.3 | CE46: 100 | CN46: 0 | CO46: 0 | CP46: 0 | CQ46: 1 | CR46: 2 | CS46: 0 | CT46: 0 | CX46: 2.1 | CY46: 1.6 | CZ46: 57 | DA46: 15.7
A47: Aaron.Ekblad | B47: 2015-04-11 | C47: FLA | D47: N.J | E47: 0 | F47: 1 | G47: 1 | H47: 0 | I47: 16.4 | J47: 16.4 | K47: 0 | L47: 71.5 | M47: 133.6 | P47: 3.6 | Q47: 0 | R47: 100 | S47: 100 | T47: 0 | U47: 1 | V47: 1 | W47: 0 | X47: 16.4 | AA47: 0 | AB47: -12.4 | AC47: 67.3 | AD47: 79.7 | AE47: 1.1 | AF47: 2.1 | AH47: 33.8 | AK47: -17.9 | AL47: 89.4 | AM47: 3 | AN47: 5 | AP47: 82.6 | AT47: 0 | AU47: 0 | AV47: 0 | BG47: 0 | BI47: -10.3 | BJ47: 59.8 | BK47: 70.1 | BL47: 1 | BM47: 48.9 | BO47: 3 | BQ47: 0 | BU47: 16.4 | BX47: 1 | CC47: 33.6 | CE47: 100 | CN47: 1 | CO47: 0 | CP47: 0 | CQ47: 1 | CR47: 0 | CS47: 0 | CT47: 0 | CX47: 3.6 | CY47: 3.2 | CZ47: 53.5 | DA47: 16.4
A48: Aaron.Ekblad | B48: 2015-10-10 | C48: FLA | D48: PHI | E48: 0 | F48: 1 | G48: 1 | H48: 0 | I48: 28.9 | J48: 28.9 | K48: 0 | L48: 43.5 | M48: 200 | P48: 2.1 | Q48: 0 | R48: -100 | S48: 0 | T48: 100 | U48: -3 | V48: 0 | W48: 3 | X48: 0 | AA48: 0 | AB48: -100 | AC48: 0 | AD48: 100 | AE48: -3 | AF48: 0 | AH48: 0 | AK48: -47.4 | AL48: 90.9 | AM48: -0.7 | AN48: 2.3 | AP48: 66.9 | AT48: 0 | AU48: 0 | AV48: 0 | BG48: 0 | BI48: -56.4 | BJ48: 25 | BK48: 81.4 | BL48: -2 | BM48: 28.9 | BO48: 1 | BQ48: 0 | BU48: 28.9 | BV48: 100 | BX48: 1 | CC48: 100 | CE48: 100 | CN48: 0 | CO48: 0 | CP48: 1 | CQ48: 0 | CR48: 0 | CS48: 0 | CT48: 0 | CX48: 2.1 | CY48: 5.7 | CZ48: 26.7 | DA48: 17
A49: Aaron.Ekblad | B49: 2015-10-12 | C49: FLA | D49: PHI | E49: 0 | F49: 0 | G49: 0 | H49: 0 | I49: 0 | J49: 0 | K49: 0 | L49: 69.3 | P49: 5.2 | Q49: 0 | R49: 50 | S49: 100 | T49: 50 | U49: 1.1 | V49: 1.1 | W49: 0 | X49: 12.5 | AA49: 0 | AB49: -1.5 | AC49: 65.8 | AD49: 67.3 | AE49: 1.9 | AF49: 3.9 | AH49: 44.6 | AK49: -9.6 | AL49: 78.8 | AM49: 2.5 | AN49: 4.5 | AP49: 52.2 | AT49: 0 | AU49: 1 | AV49: 0 | BG49: 0 | BI49: 41.4 | BJ49: 100 | BK49: 58.6 | BL49: 2 | BM49: 22.9 | BO49: 2 | BQ49: 0 | BU49: 0 | BX49: 0 | CC49: 0 | CN49: 2 | CO49: 0 | CP49: 0 | CQ49: 0 | CR49: 0 | CS49: 0 | CT49: 0 | CX49: 5.2 | CY49: 6.4 | CZ49: 44.9 | DA49: 17.2
A50: Aaron.Ekblad | B50: 2015-10-13 | C50: FLA | D50: CAR | E50: 0 | F50: 0 | G50: 0 | H50: 0 | I50: 0 | J50: 0 | K50: 0 | L50: 75.8 | P50: 3.1 | Q50: 0 | S50: 53.6 | U50: 0.2 | V50: 1.2 | W50: 1 | X50: 22 | AA50: 0 | AB50: 68.8 | AC50: 68.8 | AD50: 0 | AE50: 1.2 | AF50: 2.2 | AH50: 42 | AK50: 10.9 | AL50: 64.9 | AM50: 2.1 | AN50: 3.1 | AP50: 59.8 | AT50: 0 | AU50: 0 | AV50: 0 | BG50: 0 | BI50: 100 | BJ50: 100 | BK50: 0 | BL50: 2.2 | BM50: 42 | BO50: 2.2 | BQ50: 0 | BU50: 0 | BX50: 0 | CC50: 0 | CN50: 0 | CO50: 0 | CP50: 0 | CQ50: 0 | CR50: 0 | CS50: 0 | CT50: 0 | CX50: 3.1 | CY50: 2.8 | CZ50: 53 | DA50: 16.4
A51: Aaron.Ekblad | B51: 2015-10-15 | C51: FLA | D51: BUF | E51: 0 | F51: 1 | G51: 1 | H51: 0 | I51: 16 | J51: 16 | K51: 0 | L51: 100 | P51: 3.8 | Q51: 0 | S51: 100 | U51: 6.5 | V51: 6.5 | W51: 0 | X51: 104.2 | AA51: 0 | AC51: 100 | AE51: 12.4 | AF51: 12.4 | AH51: 198.8 | AK51: 0 | AL51: 100 | AM51: 15.2 | AN51: 15.2 | AP51: 242.8 | AT51: 0 | AU51: 0 | AV51: 0 | BG51: 0 | BI51: 0 | BJ51: 100 | BK51: 100 | BL51: 8.3 | BM51: 132.3 | BO51: 8.3 | BQ51: 0 | BU51: 32 | BX51: 2 | CC51: 24.2 | CN51: 0 | CO51: 1 | CP51: 0 | CQ51: 1 | CR51: 0 | CS51: 0 | CT51: 0 | CX51: 3.8 | CY51: 1.4 | CZ51: 72.1 | DA51: 16.4
A52: Aaron.Ekblad | B52: 2015-10-17 | C52: FLA | D52: DAL | E52: 0 | F52: 0 | G52: 0 | H52: 0 | I52: 0 | J52: 0 | K52: 0 | L52: 100 | P52: 0.7 | Q52: 0 | S52: 100 | U52: 1.2 | V52: 1.2 | W52: 0 | X52: 99.6 | AA52: 0 | AC52: 100 | AE52: 1.2 | AF52: 1.2 | AH52: 99.6 | AM52: 1 | AN52: 1 | AP52: 84.1 | AT52: 0 | AU52: 0 | AV52: 0 | BG52: 0 | BL52: 0 | BM52: 0 | BO52: 0 | BQ52: 0 | BU52: 0 | BX52: 0 | CN52: 0 | CO52: 0 | CP52: 0 | CQ52: 0 | CR52: 0 | CS52: 0 | CT52: 0 | CX52: 0.7 | CY52: 1.1 | CZ52: 39.3 | DA52: 15.9
A53: Aaron.Ekblad | B53: 2015-10-20 | C53: FLA | D53: PIT | E53: 0 | F53: 0 | G53: 0 | H53: 0 | I53: 0 | J53: 0 | K53: 0 | L53: 64.1 | M53: 100 | P53: 1.2 | Q53: 0 | T53: 100 | U53: 0 | V53: 0 | W53: 0 | X53: 0 | AA53: 0 | AB53: 33.8 | AC53: 100 | AD53: 66.2 | AE53: 0.9 | AF53: 0.9 | AH53: 44.6 | AK53: -5.3 | AL53: 69.4 | AM53: 0.8 | AN53: 1.8 | AP53: 85.6 | AT53: 0 | AU53: 0 | AV53: 0 | BG53: 0 | BI53: -35.9 | BJ53: 64.1 | BK53: 100 | BL53: 0.8 | BM53: 85.6 | BO53: 1.8 | BQ53: 0 | BU53: 0 | BX53: 0 | CC53: 0 | CE53: 100 | CN53: 0 | CO53: 0 | CP53: 0 | CQ53: 0 | CR53: 0 | CS53: 1 | CT53: 0 | CX53: 1.2 | CY53: 2.8 | CZ53: 30.9 | DA53: 16.6
A54: Aaron.Ekblad | B54: 2015-10-22 | C54: FLA | D54: CHI | E54: 0 | F54: 0 | G54: 0 | H54: 0 | I54: 0 | J54: 0 | K54: 0 | L54: 100 | P54: 2.6 | Q54: 0 | S54: 100 | U54: 1.9 | V54: 1.9 | W54: 0 | X54: 44.6 | AA54: 0 | AB54: 0 | AC54: 100 | AD54: 100 | AE54: 1.9 | AF54: 1.9 | AH54: 44.6 | AK54: 0 | AL54: 100 | AM54: 1.9 | AN54: 1.9 | AP54: 43.4 | AT54: 0 | AU54: 0 | AV54: 0 | BG54: 0 | BI54: 0 | BJ54: 100 | BK54: 100 | BL54: 1.9 | BM54: 43.4 | BO54: 1.9 | BQ54: 0 | BU54: 23.5 | BX54: 1 | CC54: 54 | CN54: 0 | CO54: 0 | CP54: 0 | CQ54: 0 | CR54: 0 | CS54: 0 | CT54: 0 | CX54: 2.6 | CY54: 2.9 | CZ54: 47.1 | DA54: 16.8
A55: Aaron.Ekblad | B55: 2015-10-24 | C55: FLA | D55: DAL | E55: 0 | F55: 0 | G55: 0 | H55: 0 | I55: 0 | J55: 0 | K55: 0 | L55: 100 | N55: 0 | P55: 1.4 | Q55: 0 | R55: 0 | S55: 100 | T55: 100 | U55: 0.9 | V55: 0.9 | W55: 0 | X55: 35.8 | AA55: 1 | AB55: 0 | AC55: 100 | AD55: 100 | AE55: 1.8 | AF55: 1.8 | AH55: 75.7 | AK55: 0 | AL55: 100 | AM55: 2.9 | AN55: 2.9 | AP55: 119.9 | AT55: 0 | AU55: 0 | AV55: 1 | BG55: 0 | BI55: 0 | BJ55: 100 | BK55: 100 | BL55: 2 | BM55: 83.8 | BO55: 2 | BQ55: 1 | BU55: 0 | BX55: 0 | CC55: 0 | CN55: 0 | CO55: 0 | CP55: 0 | CQ55: 0 | CR55: 1 | CS55: 0 | CT55: 0 | CX55: 1.4 | CY55: 0.5 | CZ55: 72.6 | DA55: 16.1
A56: Aaron.Ekblad | B56: 2015-10-27 | C56: FLA | D56: COL | E56: 0 | F56: 0 | G56: 0 | H56: 0 | I56: 0 | J56: 0 | K56: 0 | L56: 100 | P56: 1.3 | Q56: 0 | T56: 100 | U56: 0 | V56: 0 | W56: 0 | X56: 0 | AA56: 0 | AD56: 100 | AE56: 0 | AF56: 0 | AH56: 0 | AK56: 0 | AL56: 100 | AM56: 3.7 | AN56: 3.7 | AP56: 174 | AT56: 0 | AU56: 0 | AV56: 0 | BG56: 0 | BI56: 0 | BJ56: 100 | BK56: 100 | BL56: 2.1 | BM56: 100.4 | BO56: 2.1 | BQ56: 0 | BU56: 0 | BV56: 100 | BX56: 0 | CC56: 0 | CN56: 0 | CO56: 0 | CP56: 0 | CQ56: 0 | CR56: 0 | CS56: 0 | CT56: 0 | CX56: 1.3 | CY56: 2 | CZ56: 39.2 | DA56: 15.8
A57: Aaron.Ekblad | B57: 2015-10-30 | C57: FLA | D57: BOS | E57: 0 | F57: 0 | G57: 0 | H57: 0 | I57: 0 | J57: 0 | K57: 0 | L57: 88.2 | M57: 127.9 | P57: 2.9 | Q57: 0 | R57: -34.8 | S57: 65.2 | T57: 100 | U57: 0.9 | V57: 1.9 | W57: 1 | X57: 38.6 | AA57: 0 | AB57: -20.1 | AC57: 79.9 | AD57: 100 | AE57: 3 | AF57: 4 | AH57: 82.2 | AK57: -11.8 | AL57: 100 | AM57: 6.5 | AN57: 7.5 | AP57: 153.8 | AT57: 0 | AU57: 0 | AV57: 0 | BG57: 0 | BI57: -21.8 | BJ57: 78.2 | BK57: 100 | BL57: 2.6 | BM57: 74 | BO57: 3.6 | BQ57: 0 | BU57: 20.6 | BX57: 1 | CC57: 27.9 | CE57: 100 | CN57: 0 | CO57: 0 | CP57: 0 | CQ57: 0 | CR57: 0 | CS57: 0 | CT57: 0 | CX57: 2.9 | CY57: 4.1 | CZ57: 41.4 | DA57: 16.2
A58: Aaron.Ekblad | B58: 2015-10-31 | C58: FLA | D58: WSH | E58: 0 | F58: 0 | G58: 0 | H58: 0 | I58: 0 | J58: 0 | K58: 0 | L58: 100 | N58: 0 | P58: 2.9 | Q58: 0 | T58: 100 | U58: 0 | V58: 0 | W58: 0 | X58: 0 | AA58: 0 | AB58: 0 | AC58: 100 | AD58: 100 | AE58: 2.2 | AF58: 2.2 | AH58: 45.8 | AK58: 0 | AL58: 100 | AM58: 8.1 | AN58: 8.1 | AP58: 166.5 | AT58: 1 | AU58: 0 | AV58: 2 | BG58: 0 | BI58: 0 | BJ58: 100 | BK58: 100 | BL58: 3.9 | BM58: 80.4 | BO58: 3.9 | BQ58: 1 | BU58: 0 | BX58: 0 | CC58: 0 | CN58: 0 | CO58: 0 | CP58: 0 | CQ58: 0 | CR58: 1 | CS58: 0 | CT58: 0 | CX58: 2.9 | CY58: 3.1 | CZ58: 48.8 | DA58: 16
A59: Aaron.Ekblad | B59: 2015-11-04 | C59: FLA | D59: ANA | E59: 0 | F59: 0 | G59: 0 | H59: 0 | I59: 0 | J59: 0 | K59: 0 | L59: 78.6 | P59: 3.6 | Q59: 0 | R59: -47.9 | S59: 52.1 | T59: 100 | U59: 0.1 | V59: 1.1 | W59: 1 | X59: 18.2 | AA59: 0 | AB59: -47.9 | AC59: 52.1 | AD59: 100 | AE59: 0.1 | AF59: 1.1 | AH59: 18.2 | AK59: -21.4 | AL59: 100 | AM59: 2.7 | AN59: 3.7 | AP59: 61.6 | AT59: 1 | AU59: 0 | AV59: 1 | BG59: 0 | BI59: -100 | BJ59: 0 | BK59: 100 | BL59: -1 | BM59: 0 | BO59: 0 | BQ59: 0 | BU59: 0 | BX59: 0 | CE59: 100 | CN59: 0 | CO59: 0 | CP59: 0 | CQ59: 0 | CR59: 0 | CS59: 0 | CT59: 0 | CX59: 3.6 | CY59: 2.3 | CZ59: 60.9 | DA59: 17.4
A60: Aaron.Ekblad | B60: 2015-11-05 | C60: FLA | D60: S.J | E60: 0 | F60: 0 | G60: 0 | H60: 0 | I60: 0 | J60: 0 | K60: 0 | L60: 100 | N60: 0 | P60: 3 | Q60: 0 | S60: 100 | U60: 3.8 | V60: 3.8 | W60: 0 | X60: 77.3 | AA60: 1 | AB60: 0 | AC60: 100 | AD60: 100 | AE60: 5.5 | AF60: 5.5 | AH60: 110.1 | AK60: 0 | AL60: 100 | AM60: 6.8 | AN60: 6.8 | AP60: 136.6 | AT60: 2 | AU60: 0 | AV60: 3 | BG60: 0 | BI60: 0 | BJ60: 100 | BK60: 100 | BL60: 3.7 | BM60: 74.4 | BO60: 3.7 | BQ60: 1 | BU60: 0 | BV60: 100 | BX60: 0 | CC60: 0 | CN60: 0 | CO60: 0 | CP60: 0 | CQ60: 0 | CR60: 1 | CS60: 0 | CT60: 0 | CX60: 3 | CY60: 1.9 | CZ60: 61 | DA60: 16.3
A61: Aaron.Ekblad | B61: 2015-11-07 | C61: FLA | D61: L.A | E61: 0 | F61: 0 | G61: 0 | H61: 0 | I61: 0 | J61: 0 | K61: 0 | L61: 100 | N61: 0 | P61: 1.5 | Q61: 0 | T61: 100 | U61: 0 | V61: 0 | W61: 0 | X61: 0 | AA61: 0 | AB61: 34.3 | AC61: 100 | AD61: 65.7 | AE61: 1 | AF61: 1 | AH61: 39.9 | AK61: 27.6 | AL61: 72.4 | AM61: 3 | AN61: 3 | AP61: 118.7 | AT61: 0 | AU61: 0 | AV61: 1 | BG61: 0 | BI61: 100 | BJ61: 100 | BK61: 0 | BL61: 2.1 | BM61: 83 | BO61: 2.1 | BQ61: 1 | BU61: 0 | BX61: 0 | CC61: 0 | CN61: 0 | CO61: 0 | CP61: 0 | CQ61: 0 | CR61: 1 | CS61: 0 | CT61: 0 | CX61: 1.5 | CY61: 3 | CZ61: 32.9 | DA61: 16.5
A62: Aaron.Ekblad | B62: 2015-11-10 | C62: FLA | D62: CGY | E62: 0 | F62: 0 | G62: 0 | H62: 0 | I62: 0 | J62: 0 | K62: 0 | L62: 74.6 | P62: 1.3 | Q62: 0 | R62: 0 | S62: 100 | T62: 100 | U62: 2 | V62: 2 | W62: 0 | X62: 91.1 | AA62: 0 | AB62: 0 | AC62: 100 | AD62: 100 | AE62: 2 | AF62: 2 | AH62: 91.1 | AK62: -25.4 | AL62: 100 | AM62: 1.9 | AN62: 2.9 | AP62: 131.5 | AT62: 0 | AU62: 0 | AV62: 0 | BG62: 0 | BI62: 0 | BJ62: 100 | BK62: 100 | BL62: 2.9 | BM62: 131.5 | BO62: 2.9 | BQ62: 0 | BU62: 0 | BV62: 100 | BX62: 0 | CC62: 0 | CN62: 0 | CO62: 0 | CP62: 0 | CQ62: 0 | CR62: 0 | CS62: 0 | CT62: 0 | CX62: 1.3 | CY62: 0.9 | CZ62: 60.8 | DA62: 17.3
A63: Aaron.Ekblad | B63: 2015-11-12 | C63: FLA | D63: BUF | E63: 0 | F63: 0 | G63: 0 | H63: 0 | I63: 0 | J63: 0 | K63: 0 | L63: 100 | N63: 0 | P63: 2.8 | Q63: 0 | S63: 100 | U63: 1 | V63: 1 | W63: 0 | X63: 21.2 | AA63: 0 | AB63: 0 | AC63: 100 | AD63: 100 | AE63: 1 | AF63: 1 | AH63: 21.2 | AK63: 0 | AL63: 100 | AM63: 6 | AN63: 6 | AP63: 126.2 | AT63: 0 | AU63: 0 | AV63: 1 | BG63: 0 | BI63: 0 | BJ63: 100 | BK63: 100 | BL63: 2.9 | BM63: 60.5 | BO63: 2.9 | BQ63: 1 | BU63: 21.2 | BX63: 1 | CC63: 35 | CN63: 0 | CO63: 1 | CP63: 0 | CQ63: 0 | CR63: 1 | CS63: 0 | CT63: 0 | CX63: 2.8 | CY63: 2.7 | CZ63: 51.4 | DA63: 17.1
A64: Aaron.Ekblad | B64: 2015-11-14 | C64: FLA | D64: T.B | E64: 0 | F64: 0 | G64: 0 | H64: 0 | I64: 0 | J64: 0 | K64: 0 | L64: 100 | P64: 2.3 | Q64: 0 | S64: 100 | U64: 1 | V64: 1 | W64: 0 | X64: 27.2 | AA64: 1 | AC64: 100 | AE64: 3 | AF64: 3 | AH64: 77.3 | AK64: 0 | AL64: 100 | AM64: 5.2 | AN64: 5.2 | AP64: 135.5 | AT64: 1 | AU64: 0 | AV64: 2 | BG64: 1 | BJ64: 100 | BL64: 3 | BM64: 79.5 | BO64: 3 | BQ64: 0 | BU64: 0 | BX64: 0 | CC64: 0 | CN64: 0 | CO64: 0 | CP64: 0 | CQ64: 0 | CR64: 0 | CS64: 0 | CT64: 0 | CX64: 2.3 | CY64: 0.9 | CZ64: 72.8 | DA64: 16.7
A65: Aaron.Ekblad | B65: 2015-11-16 | C65: FLA | D65: T.B | E65: 0 | F65: 0 | G65: 0 | H65: 0 | I65: 0 | J65: 0 | K65: 0 | L65: 100 | N65: 0 | P65: 1.8 | Q65: 0 | S65: 100 | U65: 0.9 | V65: 0.9 | W65: 0 | X65: 30.3 | AA65: 0 | AB65: 0 | AC65: 100 | AD65: 100 | AE65: 0.9 | AF65: 0.9 | AH65: 30.3 | AK65: 25.5 | AL65: 74.5 | AM65: 3 | AN65: 3 | AP65: 98.7 | AT65: 1 | AU65: 0 | AV65: 2 | BG65: 0 | BI65: 0 | BJ65: 100 | BK65: 100 | BL65: 1.9 | BM65: 62.5 | BO65: 1.9 | BQ65: 1 | BU65: 0 | BX65: 0 | CC65: 0 | CN65: 0 | CO65: 0 | CP65: 0 | CQ65: 0 | CR65: 1 | CS65: 0 | CT65: 0 | CX65: 1.8 | CY65: 2.5 | CZ65: 42.1 | DA65: 16.8
A66: Aaron.Ekblad | B66: 2015-11-19 | C66: FLA | D66: ANA | E66: 0 | F66: 0 | G66: 0 | H66: 0 | I66: 0 | J66: 0 | K66: 0 | L66: 72.7 | M66: 0 | N66: 0 | P66: 4.2 | Q66: 0 | R66: 0 | S66: 0 | T66: 0 | U66: -1 | V66: 0 | W66: 1 | X66: 0 | AA66: 0 | AB66: 49.7 | AC66: 49.7 | AD66: 0 | AE66: 0 | AF66: 1 | AH66: 14.1 | AK66: 72.7 | AL66: 0 | AM66: 3.3 | AN66: 5.3 | AP66: 76.2 | AT66: 0 | AU66: 0 | AV66: 1 | BG66: 0 | BI66: 64 | BJ66: 64 | BK66: 0 | BL66: 0.8 | BM66: 25.5 | BO66: 1.8 | BQ66: 1 | BU66: 0 | BX66: 0 | CC66: 0 | CE66: 0 | CN66: 0 | CO66: 0 | CP66: 0 | CQ66: 0 | CR66: 1 | CS66: 0 | CT66: 0 | CX66: 4.2 | CY66: 1.1 | CZ66: 79.3 | DA66: 16.9
A67: Aaron.Ekblad | B67: 2015-11-21 | C67: FLA | D67: NYR | E67: 0 | F67: 0 | G67: 0 | H67: 0 | I67: 0 | J67: 0 | K67: 0 | L67: 100 | N67: 0 | P67: 3.4 | Q67: 0 | R67: 0 | S67: 100 | T67: 100 | U67: 1.9 | V67: 1.9 | W67: 0 | X67: 34.5 | AA67: 0 | AB67: 23.7 | AC67: 100 | AD67: 76.3 | AE67: 4.1 | AF67: 4.1 | AH67: 72.7 | AK67: 10 | AL67: 90 | AM67: 11.5 | AN67: 11.5 | AP67: 204.6 | AT67: 0 | AU67: 0 | AV67: 2 | BG67: 1 | BI67: 14.4 | BJ67: 100 | BK67: 85.6 | BL67: 7.4 | BM67: 132.7 | BO67: 7.4 | BQ67: 1 | BU67: 0 | BV67: 100 | BX67: 0 | CC67: 0 | CN67: 1 | CO67: 0 | CP67: 0 | CQ67: 0 | CR67: 1 | CS67: 1 | CT67: 0 | CX67: 3.4 | CY67: 4.6 | CZ67: 42.2 | DA67: 16.8
A68: Aaron.Ekblad | B68: 2015-11-23 | C68: FLA | D68: L.A | E68: 0 | F68: 0 | G68: 0 | H68: 0 | I68: 0 | J68: 0 | K68: -1 | L68: 79.4 | M68: 135.4 | P68: 3.6 | Q68: 0 | S68: 64.6 | U68: 0.8 | V68: 1.8 | W68: 1 | X68: 30.1 | AA68: 0 | AB68: -26.2 | AC68: 73.8 | AD68: 100 | AE68: 1.8 | AF68: 2.8 | AH68: 46.6 | AK68: -20.6 | AL68: 100 | AM68: 2.8 | AN68: 3.8 | AP68: 63.5 | AT68: 1 | AU68: 0 | AV68: 1 | BG68: 0 | BI68: -26.1 | BJ68: 73.9 | BK68: 100 | BL68: 1.8 | BM68: 46.7 | BO68: 2.8 | BQ68: 0 | BU68: 16.5 | BX68: 1 | CC68: 35.4 | CE68: 100 | CN68: 0 | CO68: 0 | CP68: 0 | CQ68: 0 | CR68: 0 | CS68: 0 | CT68: 0 | CX68: 3.6 | CY68: 3 | CZ68: 55 | DA68: 17.1
A69: Aaron.Ekblad | B69: 2015-11-27 | C69: FLA | D69: NYI | E69: 0 | F69: 0 | G69: 0 | H69: 0 | I69: 0 | J69: 0 | K69: 0 | L69: 100 | N69: 0 | P69: 0.9 | Q69: 0 | U69: 0 | V69: 0 | W69: 0 | X69: 0 | AA69: 0 | AE69: 0 | AF69: 0 | AH69: 0 | AK69: 0 | AL69: 100 | AM69: 2.2 | AN69: 2.2 | AP69: 137.4 | AT69: 0 | AU69: 0 | AV69: 1 | BG69: 0 | BJ69: 100 | BL69: 1 | BM69: 61.6 | BO69: 1 | BQ69: 1 | BU69: 0 | BX69: 0 | CC69: 0 | CN69: 0 | CO69: 0 | CP69: 0 | CQ69: 0 | CR69: 1 | CS69: 0 | CT69: 0 | CX69: 0.9 | CY69: 1.3 | CZ69: 42.3 | DA69: 16.3
A70: Aaron.Ekblad | B70: 2015-11-29 | C70: FLA | D70: DET | E70: 0 | F70: 0 | G70: 0 | H70: 0 | I70: 0 | J70: 0 | K70: 0 | L70: 100 | P70: 4.9 | Q70: 0 | S70: 100 | U70: 2.9 | V70: 2.9 | W70: 0 | X70: 35.6 | AA70: 0 | AC70: 100 | AE70: 6 | AF70: 6 | AH70: 73.5 | AK70: 0 | AL70: 100 | AM70: 8.1 | AN70: 8.1 | AP70: 99.1 | AT70: 0 | AU70: 0 | AV70: 0 | BG70: 0 | BI70: 0 | BJ70: 100 | BK70: 100 | BL70: 4.8 | BM70: 58.9 | BO70: 4.8 | BQ70: 0 | BU70: 0 | BX70: 0 | CC70: 0 | CN70: 0 | CO70: 0 | CP70: 0 | CQ70: 0 | CR70: 0 | CS70: 0 | CT70: 0 | CX70: 4.9 | CY70: 4.2 | CZ70: 53.9 | DA70: 16.3
A71: Aaron.Ekblad | B71: 2015-12-01 | C71: FLA | D71: STL | E71: 0 | F71: 0 | G71: 0 | H71: 0 | I71: 0 | J71: 0 | K71: 0 | P71: 1.6 | Q71: 0 | U71: 0 | V71: 0 | W71: 0 | X71: 0 | AA71: 0 | AE71: 0 | AF71: 0 | AH71: 0 | AM71: 0 | AN71: 0 | AP71: 0 | AT71: 0 | AU71: 0 | AV71: 0 | BG71: 0 | BL71: 0 | BM71: 0 | BO71: 0 | BQ71: 0 | BU71: 0 | BX71: 0 | CN71: 0 | CO71: 0 | CP71: 0 | CQ71: 0 | CR71: 0 | CS71: 0 | CT71: 0 | CX71: 1.6 | CY71: 0 | CZ71: 100 | DA71: 16.5
A72: Aaron.Ekblad | B72: 2015-12-03 | C72: FLA | D72: NSH | E72: 0 | F72: 0 | G72: 0 | H72: 0 | I72: 0 | J72: 0 | K72: 0 | P72: 1.1 | Q72: 0 | T72: 100 | U72: 0 | V72: 0 | W72: 0 | X72: 0 | AA72: 0 | AD72: 100 | AE72: 0 | AF72: 0 | AH72: 0 | AL72: 100 | AM72: 0 | AN72: 0 | AP72: 0 | AT72: 0 | AU72: 0 | AV72: 0 | BG72: 0 | BK72: 100 | BL72: 0 | BM72: 0 | BO72: 0 | BQ72: 0 | BU72: 0 | BV72: 100 | BX72: 0 | CN72: 0 | CO72: 0 | CP72: 0 | CQ72: 0 | CR72: 0 | CS72: 0 | CT72: 0 | CX72: 1.1 | CY72: 0.5 | CZ72: 69.4 | DA72: 16.1
A73: Aaron.Ekblad | B73: 2015-12-04 | C73: FLA | D73: CBJ | E73: 0 | F73: 0 | G73: 0 | H73: 0 | I73: 0 | J73: 0 | K73: 0 | L73: 100 | N73: 0 | P73: 1.6 | Q73: 0 | U73: 0 | V73: 0 | W73: 0 | X73: 0 | AA73: 1 | AB73: 0 | AC73: 100 | AD73: 100 | AE73: 1 | AF73: 1 | AH73: 37.7 | AK73: 0 | AL73: 100 | AM73: 2.9 | AN73: 2.9 | AP73: 111.2 | AT73: 1 | AU73: 0 | AV73: 2 | BG73: 0 | BI73: 0 | BJ73: 100 | BK73: 100 | BL73: 1.9 | BM73: 73.5 | BO73: 1.9 | BQ73: 1 | BU73: 0 | BX73: 0 | CC73: 0 | CN73: 0 | CO73: 0 | CP73: 0 | CQ73: 0 | CR73: 1 | CS73: 0 | CT73: 0 | CX73: 1.6 | CY73: 2.6 | CZ73: 38.3 | DA73: 16.3
A74: Aaron.Ekblad | B74: 2015-12-06 | C74: FLA | D74: N.J | E74: 0 | F74: 0 | G74: 0 | H74: 0 | I74: 0 | J74: 0 | K74: 0 | L74: 100 | P74: 2.3 | Q74: 0 | S74: 100 | U74: 1 | V74: 1 | W74: 0 | X74: 25.7 | AA74: 0 | AB74: 0 | AC74: 100 | AD74: 100 | AE74: 1 | AF74: 1 | AH74: 25.7 | AK74: 0 | AL74: 100 | AM74: 2.1 | AN74: 2.1 | AP74: 54.4 | AT74: 1 | AU74: 0 | AV74: 1 | BG74: 0 | BI74: 0 | BJ74: 100 | BK74: 100 | BL74: 0.9 | BM74: 24.4 | BO74: 0.9 | BQ74: 0 | BU74: 0 | BX74: 0 | CC74: 0 | CN74: 0 | CO74: 0 | CP74: 0 | CQ74: 0 | CR74: 0 | CS74: 0 | CT74: 0 | CX74: 2.3 | CY74: 1.8 | CZ74: 56.7 | DA74: 17
A75: Aaron.Ekblad | B75: 2015-12-08 | C75: FLA | D75: OTT | E75: 0 | F75: 0 | G75: 0 | H75: 0 | I75: 0 | J75: 0 | K75: 0 | L75: 100 | P75: 1.6 | Q75: 0 | T75: 100 | U75: 0 | V75: 0 | W75: 0 | X75: 0 | AA75: 1 | AB75: 0 | AC75: 100 | AD75: 100 | AE75: 1.1 | AF75: 1.1 | AH75: 41.7 | AK75: 11 | AL75: 89 | AM75: 2.9 | AN75: 2.9 | AP75: 107.9 | AT75: 1 | AU75: 0 | AV75: 2 | BG75: 1 | BI75: 0 | BJ75: 100 | BK75: 100 | BL75: 0.9 | BM75: 33.2 | BO75: 0.9 | BQ75: 0 | BU75: 0 | BX75: 0 | CC75: 0 | CN75: 0 | CO75: 0 | CP75: 0 | CQ75: 0 | CR75: 0 | CS75: 0 | CT75: 0 | CX75: 1.6 | CY75: 4.6 | CZ75: 26 | DA75: 15.8
A76: Aaron.Ekblad | B76: 2015-12-10 | C76: FLA | D76: WSH | E76: 0 | F76: 0 | G76: 0 | H76: 0 | I76: 0 | J76: 0 | K76: 0 | L76: 68.5 | M76: 100 | P76: 5.1 | Q76: 0 | T76: 100 | U76: 0 | V76: 0 | W76: 0 | X76: 0 | AA76: 0 | AB76: -50.5 | AC76: 49.5 | AD76: 100 | AE76: 0 | AF76: 1 | AH76: 11.6 | AK76: -31.5 | AL76: 100 | AM76: 2.3 | AN76: 4.3 | AP76: 51.6 | AT76: 0 | AU76: 0 | AV76: 2 | BG76: 2 | BI76: -32.9 | BJ76: 67.1 | BK76: 100 | BL76: 1 | BM76: 24.1 | BO76: 2 | BQ76: 0 | BU76: 0 | BV76: 100 | BX76: 0 | CC76: 0 | CE76: 100 | CN76: 0 | CO76: 0 | CP76: 0 | CQ76: 0 | CR76: 0 | CS76: 0 | CT76: 0 | CX76: 5.1 | CY76: 3.1 | CZ76: 62.1 | DA76: 16.6
A77: Aaron.Ekblad | B77: 2015-12-12 | C77: FLA | D77: BOS | E77: 0 | F77: 0 | G77: 0 | H77: 0 | I77: 0 | J77: 0 | K77: 0 | L77: 0 | P77: 1.3 | Q77: 0 | U77: 0 | V77: 0 | W77: 0 | X77: 0 | AA77: 0 | AC77: 0 | AE77: -2 | AF77: 0 | AH77: 0 | AK77: -100 | AL77: 100 | AM77: -2 | AN77: 0 | AP77: 0 | AT77: 0 | AU77: 0 | AV77: 0 | BG77: 0 | BJ77: 0 | BL77: -1 | BM77: 0 | BO77: 0 | BQ77: 0 | BU77: 0 | BX77: 0 | CE77: 100 | CN77: 0 | CO77: 0 | CP77: 0 | CQ77: 0 | CR77: 0 | CS77: 0 | CT77: 0 | CX77: 1.3 | CY77: 0.7 | CZ77: 65.2 | DA77: 16.8
A78: Aaron.Ekblad | B78: 2015-12-15 | C78: FLA | D78: NYI | E78: 0 | F78: 0 | G78: 0 | H78: 0 | I78: 0 | J78: 0 | K78: 0 | L78: 100 | P78: 2.1 | Q78: 0 | T78: 0 | U78: 0 | V78: 0 | W78: 0 | X78: 0 | AA78: 0 | AB78: 100 | AC78: 100 | AD78: 0 | AE78: 1 | AF78: 1 | AH78: 28.3 | AK78: 51.2 | AL78: 48.8 | AM78: 1.9 | AN78: 1.9 | AP78: 53.8 | AT78: 1 | AU78: 0 | AV78: 1 | BG78: 0 | BI78: 100 | BJ78: 100 | BK78: 0 | BL78: 1 | BM78: 27.2 | BO78: 1 | BQ78: 0 | BU78: 0 | BX78: 0 | CC78: 0 | CN78: 0 | CO78: 0 | CP78: 0 | CQ78: 0 | CR78: 0 | CS78: 0 | CT78: 0 | CX78: 2.1 | CY78: 3.9 | CZ78: 35.6 | DA78: 16.2
A79: Aaron.Ekblad | B79: 2015-12-17 | C79: FLA | D79: N.J | E79: 0 | F79: 0 | G79: 0 | H79: 0 | I79: 0 | J79: 0 | K79: 0 | P79: 1.3 | Q79: 0 | U79: 0 | V79: 0 | W79: 0 | X79: 0 | AA79: 0 | AD79: 100 | AE79: 0 | AF79: 0 | AH79: 0 | AL79: 100 | AM79: 0 | AN79: 0 | AP79: 0 | AT79: 0 | AU79: 0 | AV79: 0 | BG79: 0 | BK79: 100 | BL79: 0 | BM79: 0 | BO79: 0 | BQ79: 0 | BU79: 0 | BV79: 100 | BX79: 0 | CN79: 0 | CO79: 0 | CP79: 0 | CQ79: 0 | CR79: 0 | CS79: 0 | CT79: 0 | CX79: 1.3 | CY79: 2.1 | CZ79: 38.4 | DA79: 17.2
A80: Aaron.Ekblad | B80: 2015-12-18 | C80: FLA | D80: CAR | E80: 0 | F80: 0 | G80: 0 | H80: 0 | I80: 0 | J80: 0 | K80: 0 | L80: 100 | P80: 2.1 | Q80: 0 | T80: 0 | U80: 0 | V80: 0 | W80: 0 | X80: 0 | AA80: 1 | AB80: 100 | AC80: 100 | AD80: 0 | AE80: 0.9 | AF80: 0.9 | AH80: 26.6 | AK80: 36.9 | AL80: 63.1 | AM80: 3.1 | AN80: 3.1 | AP80: 90.3 | AT80: 0 | AU80: 0 | AV80: 2 | BG80: 2 | BJ80: 100 | BL80: 1.2 | BM80: 35.3 | BO80: 1.2 | BQ80: 0 | BU80: 0 | BX80: 0 | CC80: 0 | CN80: 0 | CO80: 0 | CP80: 0 | CQ80: 0 | CR80: 0 | CS80: 0 | CT80: 0 | CX80: 2.1 | CY80: 3.4 | CZ80: 37.8 | DA80: 16.8
A81: Aaron.Ekblad | B81: 2015-12-20 | C81: FLA | D81: VAN | E81: 1 | F81: 0 | G81: 1 | H81: 22.9 | I81: 0 | J81: 22.9 | K81: 0 | L81: 100 | N81: 100 | P81: 2.6 | Q81: 1 | S81: 100 | U81: 2 | V81: 2 | W81: 0 | X81: 45.9 | AA81: 1 | AB81: 0 | AC81: 100 | AD81: 100 | AE81: 3.1 | AF81: 3.1 | AH81: 70 | AK81: 0 | AL81: 100 | AM81: 3 | AN81: 3 | AP81: 68.3 | AT81: 0 | AU81: 0 | AV81: 1 | BG81: 0 | BJ81: 100 | BL81: 3 | BM81: 68.3 | BO81: 3 | BQ81: 1 | BU81: 45.9 | BX81: 2 | CC81: 67.1 | CN81: 0 | CO81: 0 | CP81: 0 | CQ81: 0 | CR81: 0 | CS81: 0 | CT81: 0 | CX81: 2.6 | CY81: 2 | CZ81: 56.6 | DA81: 17.2
A82: Aaron.Ekblad | B82: 2015-12-22 | C82: FLA | D82: OTT | E82: 0 | F82: 0 | G82: 0 | H82: 0 | I82: 0 | J82: 0 | K82: 0 | L82: 91.3 | P82: 5.1 | Q82: 0 | R82: 0 | S82: 100 | T82: 100 | U82: 5.1 | V82: 5.1 | W82: 0 | X82: 60.3 | AA82: 0 | AB82: -13.7 | AC82: 86.3 | AD82: 100 | AE82: 5.3 | AF82: 6.3 | AH82: 74.1 | AK82: -8.7 | AL82: 100 | AM82: 9.4 | AN82: 10.4 | AP82: 122.9 | AT82: 1 | AU82: 0 | AV82: 1 | BG82: 0 | BI82: 0 | BJ82: 100 | BK82: 100 | BL82: 7.1 | BM82: 83.1 | BO82: 7.1 | BQ82: 0 | BU82: 0 | BX82: 0 | CC82: 0 | CN82: 1 | CO82: 0 | CP82: 0 | CQ82: 0 | CR82: 0 | CS82: 0 | CT82: 0 | CX82: 5.1 | CY82: 4.8 | CZ82: 51.8 | DA82: 16.9
A83: Aaron.Ekblad | B83: 2015-12-27 | C83: FLA | D83: CBJ | E83: 0 | F83: 0 | G83: 0 | H83: 0 | I83: 0 | J83: 0 | K83: 0 | L83: 86.3 | N83: 0 | P83: 4.2 | Q83: 1 | R83: 0 | S83: 100 | T83: 100 | U83: 4.3 | V83: 4.3 | W83: 0 | X83: 61.5 | AA83: 1 | AB83: 0 | AC83: 100 | AD83: 100 | AE83: 4.3 | AF83: 4.3 | AH83: 61.5 | AK83: -13.7 | AL83: 100 | AM83: 5.3 | AN83: 6.3 | AP83: 90 | AT83: 0 | AU83: 0 | AV83: 2 | BG83: 0 | BI83: 0 | BJ83: 100 | BK83: 100 | BL83: 5.2 | BM83: 74.8 | BO83: 5.2 | BQ83: 2 | BU83: 0 | BX83: 0 | CC83: 0 | CN83: 0 | CO83: 0 | CP83: 0 | CQ83: 0 | CR83: 2 | CS83: 0 | CT83: 0 | CX83: 4.2 | CY83: 5.8 | CZ83: 42.1 | DA83: 17.4
A84: Aaron.Ekblad | B84: 2015-12-29 | C84: FLA | D84: MTL | E84: 0 | F84: 1 | G84: 1 | H84: 0 | I84: 13.8 | J84: 13.8 | K84: 0 | L84: 66.4 | M84: 150.5 | P84: 4.3 | Q84: 0 | T84: 100 | U84: 0 | V84: 0 | W84: 0 | X84: 0 | AA84: 0 | AB84: -32.7 | AC84: 67.3 | AD84: 100 | AE84: 1.1 | AF84: 2.1 | AH84: 28.4 | AK84: 14.8 | AL84: 51.6 | AM84: 1 | AN84: 2 | AP84: 27.4 | AT84: 0 | AU84: 0 | AV84: 0 | BG84: 0 | BI84: 66.4 | BJ84: 66.4 | BK84: 0 | BL84: 1 | BM84: 27.4 | BO84: 2 | BQ84: 0 | BU84: 13.8 | BX84: 1 | CC84: 50.5 | CE84: 100 | CN84: 0 | CO84: 1 | CP84: 0 | CQ84: 1 | CR84: 0 | CS84: 0 | CT84: 0 | CX84: 4.3 | CY84: 2.9 | CZ84: 60.2 | DA84: 17.3
A85: Aaron.Ekblad | B85: 2016-01-02 | C85: FLA | D85: NYR | E85: 0 | F85: 0 | G85: 0 | H85: 0 | I85: 0 | J85: 0 | K85: 0 | L85: 84.9 | M85: 100 | P85: 2.1 | Q85: 0 | S85: 100 | U85: 1.1 | V85: 1.1 | W85: 0 | X85: 30.1 | AA85: 0 | AB85: 0 | AC85: 100 | AD85: 100 | AE85: 3.3 | AF85: 3.3 | AH85: 91.9 | AK85: -15.1 | AL85: 100 | AM85: 4.6 | AN85: 5.6 | AP85: 157.1 | AT85: 0 | AU85: 0 | AV85: 0 | BG85: 0 | BI85: -22 | BJ85: 78 | BK85: 100 | BL85: 2.6 | BM85: 99.5 | BO85: 3.6 | BQ85: 0 | BU85: 0 | BV85: 100 | BX85: 0 | CC85: 0 | CE85: 100 | CN85: 0 | CO85: 0 | CP85: 0 | CQ85: 0 | CR85: 0 | CS85: 0 | CT85: 0 | CX85: 2.1 | CY85: 2.6 | CZ85: 45.4 | DA85: 17.3
A86: Aaron.Ekblad | B86: 2016-01-03 | C86: FLA | D86: MIN | E86: 0 | F86: 0 | G86: 0 | H86: 0 | I86: 0 | J86: 0 | K86: 0 | L86: 100 | N86: 0 | P86: 4.8 | Q86: 0 | R86: 0 | S86: 100 | T86: 100 | U86: 2.5 | V86: 2.5 | W86: 0 | X86: 31 | AA86: 0 | AB86: 16.5 | AC86: 100 | AD86: 83.5 | AE86: 3.5 | AF86: 3.5 | AH86: 44.3 | AK86: 16.5 | AL86: 83.5 | AM86: 5.1 | AN86: 5.1 | AP86: 64.8 | AT86: 0 | AU86: 0 | AV86: 2 | BG86: 0 | BI86: 19.7 | BJ86: 100 | BK86: 80.3 | BL86: 3 | BM86: 38.3 | BO86: 3 | BQ86: 2 | BU86: 0 | BX86: 0 | CC86: 0 | CN86: 0 | CO86: 0 | CP86: 0 | CQ86: 0 | CR86: 2 | CS86: 0 | CT86: 0 | CX86: 4.8 | CY86: 5.1 | CZ86: 48.5 | DA86: 17.5
A87: Aaron.Ekblad | B87: 2016-01-05 | C87: FLA | D87: BUF | E87: 0 | F87: 0 | G87: 0 | H87: 0 | I87: 0 | J87: 0 | K87: 0 | P87: 0.5 | Q87: 0 | U87: 0 | V87: 0 | W87: 0 | X87: 0 | AA87: 0 | AE87: 0 | AF87: 0 | AH87: 0 | AM87: 0 | AN87: 0 | AP87: 0 | AT87: 0 | AU87: 0 | AV87: 0 | BG87: 0 | BL87: 0 | BM87: 0 | BO87: 0 | BQ87: 0 | BU87: 0 | BX87: 0 | CN87: 0 | CO87: 0 | CP87: 0 | CQ87: 0 | CR87: 0 | CS87: 0 | CT87: 0 | CX87: 0.5 | CY87: 0 | CZ87: 100 | DA87: 17.2
A88: Aaron.Ekblad | B88: 2016-01-07 | C88: FLA | D88: OTT | E88: 0 | F88: 0 | G88: 0 | H88: 0 | I88: 0 | J88: 0 | K88: 0 | L88: 40.4 | P88: 2.1 | Q88: 0 | U88: 0 | V88: 0 | W88: 0 | X88: 0 | AA88: 0 | AE88: 0 | AF88: 0 | AH88: 0 | AM88: -0.6 | AN88: 1.4 | AP88: 39.1 | AT88: 1 | AU88: 0 | AV88: 1 | BG88: 0 | BJ88: 0 | BL88: -2 | BM88: 0 | BO88: 0 | BQ88: 0 | BU88: 0 | BX88: 0 | CE88: 100 | CN88: 0 | CO88: 0 | CP88: 0 | CQ88: 0 | CR88: 0 | CS88: 0 | CT88: 0 | CX88: 2.1 | CY88: 1.2 | CZ88: 64.1 | DA88: 16.8
A89: Aaron.Ekblad | B89: 2016-01-10 | C89: FLA | D89: EDM | E89: 0 | F89: 0 | G89: 0 | K89: 0 | P89: 0 | Q89: 0 | U89: 0 | V89: 0 | W89: 0 | AA89: 0 | AE89: 0 | AF89: 0 | AM89: 0 | AN89: 0 | AT89: 0 | AU89: 0 | AV89: 0 | BG89: 0 | BL89: 0 | BO89: 0 | BQ89: 0 | BX89: 0 | CN89: 0 | CO89: 0 | CP89: 0 | CQ89: 0 | CR89: 0 | CS89: 0 | CT89: 0 | CX89: 0 | CY89: 0
A90: Aaron.Ekblad | B90: 2016-01-22 | C90: FLA | D90: CHI | E90: 0 | F90: 0 | G90: 0 | H90: 0 | I90: 0 | J90: 0 | K90: 0 | L90: 100 | P90: 3.1 | Q90: 0 | R90: 0 | S90: 100 | T90: 100 | U90: 1.1 | V90: 1.1 | W90: 0 | X90: 21.6 | AA90: 0 | AB90: 0 | AC90: 100 | AD90: 100 | AE90: 1.1 | AF90: 1.1 | AH90: 21.6 | AK90: 0 | AL90: 100 | AM90: 3.4 | AN90: 3.4 | AP90: 64.9 | AT90: 0 | AU90: 0 | AV90: 0 | BG90: 0 | BI90: 0 | BJ90: 100 | BK90: 100 | BL90: 2.4 | BM90: 45.1 | BO90: 2.4 | BQ90: 0 | BU90: 0 | BX90: 0 | CC90: 0 | CN90: 0 | CO90: 0 | CP90: 0 | CQ90: 0 | CR90: 0 | CS90: 0 | CT90: 0 | CX90: 3.1 | CY90: 2.6 | CZ90: 54.4 | DA90: 17.2
A91: Aaron.Ekblad | B91: 2016-01-23 | C91: FLA | D91: T.B | E91: 0 | F91: 0 | G91: 0 | H91: 0 | I91: 0 | J91: 0 | K91: 0 | L91: 100 | N91: 0 | P91: 4.5 | Q91: 0 | R91: 0 | S91: 100 | T91: 100 | U91: 3.4 | V91: 3.4 | W91: 0 | X91: 46.2 | AA91: 0 | AB91: 0 | AC91: 100 | AD91: 100 | AE91: 4.7 | AF91: 4.7 | AH91: 63.5 | AK91: 16.8 | AL91: 83.2 | AM91: 8.2 | AN91: 8.2 | AP91: 110.2 | AT91: 0 | AU91: 0 | AV91: 2 | BG91: 0 | BI91: 20.4 | BJ91: 100 | BK91: 79.6 | BL91: 3.9 | BM91: 52.6 | BO91: 3.9 | BQ91: 2 | BU91: 13.4 | BX91: 1 | CC91: 25.5 | CN91: 0 | CO91: 0 | CP91: 0 | CQ91: 0 | CR91: 2 | CS91: 0 | CT91: 0 | CX91: 4.5 | CY91: 3.3 | CZ91: 57.3 | DA91: 16.8
A92: Aaron.Ekblad | B92: 2016-01-26 | C92: FLA | D92: TOR | E92: 0 | F92: 0 | G92: 0 | H92: 0 | I92: 0 | J92: 0 | K92: 0 | L92: 100 | N92: 0 | P92: 4.6 | Q92: 1 | R92: 0 | S92: 100 | T92: 100 | U92: 0.9 | V92: 0.9 | W92: 0 | X92: 12.3 | AA92: 1 | AB92: 0 | AC92: 100 | AD92: 100 | AE92: 2.9 | AF92: 2.9 | AH92: 37.9 | AK92: 0 | AL92: 100 | AM92: 4.9 | AN92: 4.9 | AP92: 64.5 | AT92: 0 | AU92: 0 | AV92: 2 | BG92: 0 | BI92: 0 | BJ92: 100 | BK92: 100 | BL92: 3.9 | BM92: 51.2 | BO92: 3.9 | BQ92: 2 | BU92: 0 | BV92: 100 | BX92: 0 | CC92: 0 | CN92: 0 | CO92: 0 | CP92: 0 | CQ92: 0 | CR92: 2 | CS92: 0 | CT92: 0 | CX92: 4.6 | CY92: 3.5 | CZ92: 56.6 | DA92: 16.9
A93: Aaron.Ekblad | B93: 2016-02-02 | C93: FLA | D93: WSH | E93: 0 | F93: 0 | G93: 0 | H93: 0 | I93: 0 | J93: 0 | K93: 0 | L93: 84 | M93: 200 | P93: 2.1 | Q93: 0 | S93: 100 | U93: 1.9 | V93: 1.9 | W93: 0 | X93: 54.5 | AA93: 0 | AB93: -20.6 | AC93: 79.4 | AD93: 100 | AE93: 2.9 | AF93: 3.9 | AH93: 109.7 | AK93: -16 | AL93: 100 | AM93: 4.2 | AN93: 5.2 | AP93: 149.3 | AT93: 0 | AU93: 0 | AV93: 1 | BG93: 1 | BI93: -33.3 | BJ93: 66.7 | BK93: 100 | BL93: 1 | BM93: 56.9 | BO93: 2 | BQ93: 0 | BU93: 56.9 | BX93: 2 | CC93: 100 | CE93: 100 | CN93: 0 | CO93: 0 | CP93: 0 | CQ93: 0 | CR93: 0 | CS93: 0 | CT93: 0 | CX93: 2.1 | CY93: 0.7 | CZ93: 74.4 | DA93: 16.7
A94: Aaron.Ekblad | B94: 2016-02-04 | C94: FLA | D94: DET | E94: 0 | F94: 1 | G94: 1 | H94: 0 | I94: 15.8 | J94: 15.8 | K94: 0 | L94: 100 | N94: 0 | P94: 3.8 | Q94: 0 | S94: 100 | U94: 1 | V94: 1 | W94: 0 | X94: 15.8 | AA94: 0 | AC94: 100 | AE94: 2.1 | AF94: 2.1 | AH94: 32.6 | AK94: 0 | AL94: 100 | AM94: 7.3 | AN94: 7.3 | AP94: 115.5 | AT94: 1 | AU94: 0 | AV94: 2 | BG94: 0 | BI94: 0 | BJ94: 100 | BK94: 100 | BL94: 5.1 | BM94: 81.3 | BO94: 5.1 | BQ94: 1 | BU94: 15.8 | BV94: 100 | BX94: 1 | CC94: 19.5 | CN94: 0 | CO94: 0 | CP94: 0 | CQ94: 1 | CR94: 1 | CS94: 0 | CT94: 0 | CX94: 3.8 | CY94: 3 | CZ94: 55.9 | DA94: 16.9
A95: Aaron.Ekblad | B95: 2016-02-06 | C95: FLA | D95: PIT | E95: 0 | F95: 0 | G95: 0 | H95: 0 | I95: 0 | J95: 0 | K95: 0 | L95: 50.3 | M95: 100 | N95: 0 | P95: 3.4 | Q95: 0 | T95: 100 | U95: 0 | V95: 0 | W95: 0 | X95: 0 | AA95: 0 | AB95: -83.9 | AC95: 0 | AD95: 83.9 | AE95: -2 | AF95: 0 | AH95: 0 | AK95: -33.7 | AL95: 84 | AM95: 0 | AN95: 3 | AP95: 53.2 | AT95: 1 | AU95: 0 | AV95: 2 | BG95: 0 | BI95: -50.5 | BJ95: 49.5 | BK95: 100 | BL95: 0 | BM95: 17.2 | BO95: 1 | BQ95: 1 | BU95: 0 | BV95: 100 | BX95: 0 | CC95: 0 | CE95: 100 | CN95: 0 | CO95: 0 | CP95: 0 | CQ95: 0 | CR95: 1 | CS95: 0 | CT95: 0 | CX95: 3.4 | CY95: 4.3 | CZ95: 44.3 | DA95: 17.5
A96: Aaron.Ekblad | B96: 2016-02-08 | C96: FLA | D96: DET | E96: 0 | F96: 0 | G96: 0 | H96: 0 | I96: 0 | J96: 0 | K96: -1 | L96: 100 | P96: 4.7 | Q96: 0 | R96: 0 | S96: 100 | T96: 100 | U96: 1.3 | V96: 1.3 | W96: 0 | X96: 16.2 | AA96: 0 | AB96: 0 | AC96: 100 | AD96: 100 | AE96: 3.5 | AF96: 3.5 | AH96: 44.7 | AK96: 0 | AL96: 100 | AM96: 8 | AN96: 8 | AP96: 103.5 | AT96: 1 | AU96: 0 | AV96: 1 | BG96: 0 | BI96: 0 | BJ96: 100 | BK96: 100 | BL96: 1 | BM96: 13.5 | BO96: 1 | BQ96: 0 | BU96: 0 | BX96: 0 | CC96: 0 | CN96: 0 | CO96: 0 | CP96: 0 | CQ96: 0 | CR96: 0 | CS96: 0 | CT96: 0 | CX96: 4.7 | CY96: 4.6 | CZ96: 50.3 | DA96: 17.4
A97: Aaron.Ekblad | B97: 2016-02-09 | C97: FLA | D97: BUF | E97: 0 | F97: 0 | G97: 0 | K97: 0 | P97: 0 | Q97: 0 | T97: 100 | U97: 0 | V97: 0 | W97: 0 | AA97: 0 | AD97: 100 | AE97: 0 | AF97: 0 | AL97: 100 | AM97: 0 | AN97: 0 | AT97: 0 | AU97: 0 | AV97: 0 | BG97: 0 | BK97: 100 | BL97: 0 | BO97: 0 | BQ97: 0 | BX97: 0 | CN97: 0 | CO97: 0 | CP97: 0 | CQ97: 0 | CR97: 0 | CS97: 0 | CT97: 0 | CX97: 0 | CY97: 1.4 | CZ97: 0
A98: Aaron.Ekblad | B98: 2016-02-12 | C98: FLA | D98: STL | E98: 0 | F98: 0 | G98: 0 | H98: 0 | I98: 0 | J98: 0 | K98: 0 | L98: 100 | P98: 2.4 | Q98: 0 | U98: 0 | V98: 0 | W98: 0 | X98: 0 | AA98: 0 | AB98: 47.9 | AC98: 100 | AD98: 52.1 | AE98: 0.9 | AF98: 0.9 | AH98: 23.6 | AK98: 22.1 | AL98: 77.9 | AM98: 2.7 | AN98: 2.7 | AP98: 68 | AT98: 0 | AU98: 0 | AV98: 2 | BG98: 2 | BI98: 36.5 | BJ98: 100 | BK98: 63.5 | BL98: 0.9 | BM98: 21.6 | BO98: 0.9 | BQ98: 0 | BU98: 0 | BX98: 0 | CC98: 0 | CN98: 0 | CO98: 0 | CP98: 0 | CQ98: 0 | CR98: 0 | CS98: 0 | CT98: 0 | CX98: 2.4 | CY98: 3.5 | CZ98: 40.8 | DA98: 16.8
A99: Aaron.Ekblad | B99: 2016-02-13 | C99: FLA | D99: NSH | E99: 0 | F99: 0 | G99: 0 | H99: 0 | I99: 0 | J99: 0 | K99: 0 | L99: 75 | M99: 0 | P99: 3.9 | Q99: 0 | R99: -100 | S99: 0 | T99: 100 | U99: -1 | V99: 0 | W99: 1 | X99: 0 | AA99: 1 | AB99: -15.1 | AC99: 51.1 | AD99: 66.2 | AE99: 0 | AF99: 1 | AH99: 16.2 | AK99: 26 | AL99: 49 | AM99: 2 | AN99: 3 | AP99: 46.3 | AT99: 0 | AU99: 0 | AV99: 1 | BG99: 1 | BI99: 4 | BJ99: 49 | BK99: 45 | BL99: 0 | BM99: 14.8 | BO99: 1 | BQ99: 0 | BU99: 0 | BX99: 0 | CC99: 0 | CE99: 0 | CN99: 0 | CO99: 0 | CP99: 0 | CQ99: 0 | CR99: 0 | CS99: 1 | CT99: 0 | CX99: 3.9 | CY99: 4.4 | CZ99: 47.1 | DA99: 16.7
A100: Aaron.Ekblad | B100: 2016-02-15 | C100: FLA | D100: PIT | E100: 0 | F100: 0 | G100: 0 | H100: 0 | I100: 0 | J100: 0 | K100: 0 | L100: 84.5 | M100: 100 | N100: 0 | P100: 2.4 | Q100: 1 | S100: 52.7 | U100: 0.1 | V100: 1.1 | W100: 1 | X100: 28.3 | AA100: 1 | AC100: 72.9 | AE100: 1.7 | AF100: 2.7 | AH100: 68.6 | AK100: -15.5 | AL100: 100 | AM100: 4.4 | AN100: 5.4 | AP100: 138.5 | AT100: 1 | AU100: 0 | AV100: 2 | BG100: 0 | BI100: -29.9 | BJ100: 70.1 | BK100: 100 | BL100: 1.3 | BM100: 59.7 | BO100: 2.3 | BQ100: 1 | BU100: 0 | BX100: 0 | CC100: 0 | CE100: 100 | CN100: 0 | CO100: 0 | CP100: 0 | CQ100: 0 | CR100: 1 | CS100: 0 | CT100: 0 | CX100: 2.4 | CY100: 3 | CZ100: 43.6 | DA100: 17.5
A101: Aaron.Ekblad | B101: 2016-02-18 | C101: FLA | D101: S.J | E101: 0 | F101: 0 | G101: 0 | H101: 0 | I101: 0 | J101: 0 | K101: 0 | L101: 100 | P101: 1.2 | Q101: 0 | U101: 0 | V101: 0 | W101: 0 | X101: 0 | AA101: 0 | AD101: 100 | AE101: 0 | AF101: 0 | AH101: 0 | AK101: 0 | AL101: 100 | AM101: 1 | AN101: 1 | AP101: 47 | AT101: 0 | AU101: 0 | AV101: 0 | BG101: 0 | BI101: 0 | BJ101: 100 | BK101: 100 | BL101: 1 | BM101: 47 | BO101: 1 | BQ101: 0 | BU101: 0 | BX101: 0 | CC101: 0 | CN101: 0 | CO101: 0 | CP101: 0 | CQ101: 0 | CR101: 0 | CS101: 0 | CT101: 0 | CX101: 1.2 | CY101: 0.7 | CZ101: 64.7 | DA101: 17.6
A102: Aaron.Ekblad | B102: 2016-02-20 | C102: FLA | D102: WPG | E102: 0 | F102: 0 | G102: 0 | H102: 0 | I102: 0 | J102: 0 | K102: 0 | L102: 100 | N102: 0 | P102: 2.2 | Q102: 0 | R102: 100 | S102: 100 | T102: 0 | U102: 1 | V102: 1 | W102: 0 | X102: 29 | AA102: 0 | AB102: 100 | AC102: 100 | AD102: 0 | AE102: 1 | AF102: 1 | AH102: 29 | AK102: 32.9 | AL102: 67.1 | AM102: 6.1 | AN102: 6.1 | AP102: 169.1 | AT102: 1 | AU102: 0 | AV102: 2 | BG102: 0 | BI102: 50.1 | BJ102: 100 | BK102: 49.9 | BL102: 3 | BM102: 82 | BO102: 3 | BQ102: 1 | BU102: 27.7 | BX102: 1 | CC102: 33.8 | CN102: 0 | CO102: 1 | CP102: 0 | CQ102: 0 | CR102: 1 | CS102: 0 | CT102: 0 | CX102: 2.2 | CY102: 2.8 | CZ102: 43.6 | DA102: 17.5
A103: Aaron.Ekblad | B103: 2016-02-25 | C103: FLA | D103: ARI | E103: 0 | F103: 0 | G103: 0 | H103: 0 | I103: 0 | J103: 0 | K103: 0 | L103: 87.2 | M103: 100 | P103: 3.4 | Q103: 0 | R103: 0 | S103: 100 | T103: 100 | U103: 3.1 | V103: 3.1 | W103: 0 | X103: 53.7 | AA103: 1 | AB103: -16.2 | AC103: 83.8 | AD103: 100 | AE103: 4.2 | AF103: 5.2 | AH103: 90.6 | AK103: -12.8 | AL103: 100 | AM103: 5.8 | AN103: 6.8 | AP103: 118.9 | AT103: 1 | AU103: 0 | AV103: 2 | BG103: 1 | BI103: -23.7 | BJ103: 76.3 | BK103: 100 | BL103: 2.2 | BM103: 56.4 | BO103: 3.2 | BQ103: 0 | BU103: 0 | BV103: 100 | BX103: 0 | CC103: 0 | CE103: 100 | CN103: 0 | CO103: 0 | CP103: 0 | CQ103: 0 | CR103: 0 | CS103: 0 | CT103: 0 | CX103: 3.4 | CY103: 3.2 | CZ103: 51.5 | DA103: 17.2
A104: Aaron.Ekblad | B104: 2016-02-27 | C104: FLA | D104: CBJ | E104: 0 | F104: 0 | G104: 0 | H104: 0 | I104: 0 | J104: 0 | K104: 0 | L104: 73.4 | P104: 4.4 | Q104: 0 | R104: 0 | S104: 100 | T104: 100 | U104: 1 | V104: 1 | W104: 0 | X104: 14.3 | AA104: 0 | AB104: -49 | AC104: 51 | AD104: 100 | AE104: 0 | AF104: 1 | AH104: 14.3 | AK104: -26.6 | AL104: 100 | AM104: 3.5 | AN104: 5.5 | AP104: 75.8 | AT104: 1 | AU104: 0 | AV104: 2 | BG104: 1 | BI104: 0 | BJ104: 100 | BK104: 100 | BL104: 1 | BM104: 14 | BO104: 1 | BQ104: 0 | BU104: 0 | BV104: 100 | BX104: 0 | CC104: 0 | CN104: 0 | CO104: 0 | CP104: 0 | CQ104: 0 | CR104: 0 | CS104: 0 | CT104: 0 | CX104: 4.4 | CY104: 5 | CZ104: 46.7 | DA104: 16.9
A105: Adam.Cracknell | B105: 2015-10-07 | C105: VAN | D105: CGY | E105: 0 | F105: 0 | G105: 0 | K105: 0 | P105: 0 | Q105: 0 | T105: 100 | U105: 0 | V105: 0 | W105: 0 | AA105: 0 | AD105: 87.6 | AE105: 0 | AF105: 0 | AL105: 94.3 | AM105: 0 | AN105: 0 | AT105: 0 | AU105: 0 | AV105: 0 | BG105: 0 | BK105: 100 | BL105: 0 | BO105: 0 | BQ105: 0 | BX105: 0 | CN105: 0 | CO105: 0 | CP105: 0 | CQ105: 0 | CR105: 0 | CS105: 0 | CT105: 0 | CX105: 0 | CY105: 5.4 | CZ105: 0
A106: Adam.Cracknell | B106: 2015-10-10 | C106: VAN | D106: CGY | E106: 0 | F106: 0 | G106: 0 | K106: 0 | P106: 0 | Q106: 0 | T106: 100 | U106: 0 | V106: 0 | W106: 0 | AA106: 0 | AD106: 100 | AE106: 0 | AF106: 0 | AL106: 86.7 | AM106: 0 | AN106: 0 | AT106: 0 | AU106: 0 | AV106: 0 | BG106: 0 | BK106: 100 | BL106: 0 | BO106: 0 | BQ106: 0 | BV106: 100 | BX106: 0 | CN106: 0 | CO106: 0 | CP106: 0 | CQ106: 0 | CR106: 0 | CS106: 0 | CT106: 0 | CX106: 0 | CY106: 5.4 | CZ106: 0
A107: Adam.Cracknell | B107: 2015-10-12 | C107: VAN | D107: ANA | E107: 0 | F107: 0 | G107: 0 | H107: 0 | I107: 0 | J107: 0 | K107: 0 | L107: 0 | P107: 0.3 | Q107: 0 | T107: 100 | U107: 0 | V107: 0 | W107: 0 | X107: 0 | AA107: 0 | AD107: 52.1 | AE107: 0 | AF107: 0 | AH107: 0 | AK107: -72.5 | AL107: 72.5 | AM107: -1 | AN107: 0 | AP107: 0 | AT107: 0 | AU107: 0 | AV107: 0 | BG107: 0 | BK107: 50.3 | BL107: 0 | BM107: 0 | BO107: 0 | BQ107: 0 | BU107: 0 | BX107: 0 | CN107: 0 | CO107: 0 | CP107: 0 | CQ107: 0 | CR107: 0 | CS107: 0 | CT107: 0 | CX107: 0.3 | CY107: 3.6 | CZ107: 7.4 | DA107: 17.1
A108: Adam.Cracknell | B108: 2015-10-13 | C108: VAN | D108: L.A | E108: 0 | F108: 0 | G108: 0 | H108: 0 | I108: 0 | J108: 0 | K108: 0 | P108: 0.2 | Q108: 0 | T108: 100 | U108: 0 | V108: 0 | W108: 0 | X108: 0 | AA108: 0 | AD108: 89.1 | AE108: 0 | AF108: 0 | AH108: 0 | AL108: 91.7 | AM108: 0 | AN108: 0 | AP108: 0 | AT108: 0 | AU108: 0 | AV108: 0 | BG108: 0 | BK108: 83.4 | BL108: 0 | BM108: 0 | BO108: 0 | BQ108: 0 | BU108: 0 | BX108: 0 | CN108: 0 | CO108: 0 | CP108: 0 | CQ108: 0 | CR108: 0 | CS108: 0 | CT108: 0 | CX108: 0.2 | CY108: 6.5 | CZ108: 2.6 | DA108: 16.8
A109: Adam.Cracknell | B109: 2015-10-16 | C109: VAN | D109: STL | E109: 0 | F109: 0 | G109: 0 | K109: 0 | P109: 0 | Q109: 0 | T109: 100 | U109: 0 | V109: 0 | W109: 0 | AA109: 0 | AD109: 100 | AE109: 0 | AF109: 0 | AL109: 93.4 | AM109: 0 | AN109: 0 | AT109: 0 | AU109: 0 | AV109: 0 | BG109: 0 | BK109: 100 | BL109: 0 | BO109: 0 | BQ109: 0 | BX109: 0 | CN109: 0 | CO109: 0 | CP109: 0 | CQ109: 0 | CR109: 0 | CS109: 0 | CT109: 0 | CX109: 0 | CY109: 9.5 | CZ109: 0
A110: Adam.Cracknell | B110: 2015-10-18 | C110: VAN | D110: EDM | E110: 0 | F110: 0 | G110: 0 | K110: 0 | P110: 0 | Q110: 0 | T110: 100 | U110: 0 | V110: 0 | W110: 0 | AA110: 0 | AD110: 100 | AE110: 0 | AF110: 0 | AL110: 82.2 | AM110: 0 | AN110: 0 | AT110: 0 | AU110: 0 | AV110: 0 | BG110: 0 | BK110: 73.2 | BL110: 0 | BO110: 0 | BQ110: 0 | BX110: 0 | CN110: 0 | CO110: 0 | CP110: 0 | CQ110: 0 | CR110: 0 | CS110: 0 | CT110: 0 | CX110: 0 | CY110: 2.3 | CZ110: 0
A111: Adam.Cracknell | B111: 2015-10-30 | C111: VAN | D111: ARI | E111: 0 | F111: 0 | G111: 0 | K111: 0 | P111: 0 | Q111: 0 | T111: 100 | U111: 0 | V111: 0 | W111: 0 | AA111: 0 | AD111: 100 | AE111: 0 | AF111: 0 | AL111: 93.1 | AM111: 0 | AN111: 0 | AT111: 0 | AU111: 0 | AV111: 0 | BG111: 0 | BK111: 87.1 | BL111: 0 | BO111: 0 | BQ111: 0 | BV111: 100 | BX111: 0 | CN111: 0 | CO111: 0 | CP111: 0 | CQ111: 0 | CR111: 0 | CS111: 0 | CT111: 0 | CX111: 0 | CY111: 6.2 | CZ111: 0
A112: Adam.Cracknell | B112: 2015-11-02 | C112: VAN | D112: PHI | E112: 0 | F112: 0 | G112: 0 | K112: 0 | P112: 0 | Q112: 0 | U112: 0 | V112: 0 | W112: 0 | AA112: 0 | AD112: 100 | AE112: 0 | AF112: 0 | AL112: 100 | AM112: 0 | AN112: 0 | AT112: 0 | AU112: 0 | AV112: 0 | BG112: 0 | BK112: 100 | BL112: 0 | BO112: 0 | BQ112: 0 | BX112: 0 | CN112: 0 | CO112: 0 | CP112: 0 | CQ112: 0 | CR112: 0 | CS112: 0 | CT112: 0 | CX112: 0 | CY112: 1.8 | CZ112: 0
A113: Adam.Cracknell | B113: 2015-11-04 | C113: VAN | D113: PIT | E113: 0 | F113: 0 | G113: 0 | K113: 0 | P113: 0 | Q113: 0 | T113: 100 | U113: 0 | V113: 0 | W113: 0 | AA113: 0 | AD113: 100 | AE113: 0 | AF113: 0 | AL113: 100 | AM113: 0 | AN113: 0 | AT113: 0 | AU113: 0 | AV113: 0 | BG113: 0 | BK113: 100 | BL113: 0 | BO113: 0 | BQ113: 0 | BX113: 0 | CN113: 0 | CO113: 0 | CP113: 0 | CQ113: 0 | CR113: 0 | CS113: 0 | CT113: 0 | CX113: 0 | CY113: 7.2 | CZ113: 0
A114: Adam.Cracknell | B114: 2015-11-10 | C114: VAN | D114: CBJ | E114: 0 | F114: 0 | G114: 0 | H114: 0 | I114: 0 | J114: 0 | K114: 0 | L114: 0 | P114: 0.4 | Q114: 0 | T114: 51.9 | U114: 0 | V114: 0 | W114: 0 | X114: 0 | AA114: 0 | AB114: -68.3 | AC114: 0 | AD114: 68.3 | AE114: -1 | AF114: 0 | AH114: 0 | AK114: -64.2 | AL114: 64.2 | AM114: -1 | AN114: 0 | AP114: 0 | AT114: 0 | AU114: 0 | AV114: 0 | BG114: 0 | BI114: -50.9 | BJ114: 0 | BK114: 50.9 | BL114: -1 | BM114: 0 | BO114: 0 | BQ114: 0 | BU114: 0 | BV114: 0 | BX114: 0 | CN114: 0 | CO114: 0 | CP114: 0 | CQ114: 0 | CR114: 0 | CS114: 0 | CT114: 0 | CX114: 0.4 | CY114: 5.1 | CZ114: 8.1 | DA114: 16.9
A115: Adam.Cracknell | B115: 2015-11-12 | C115: VAN | D115: OTT | E115: 0 | F115: 0 | G115: 0 | K115: 0 | P115: 0 | Q115: 0 | T115: 52 | U115: 0 | V115: 0 | W115: 0 | AA115: 0 | AD115: 50.5 | AE115: 0 | AF115: 0 | AL115: 76.5 | AM115: 0 | AN115: 0 | AT115: 0 | AU115: 0 | AV115: 0 | BG115: 0 | BK115: 64.8 | BL115: 0 | BO115: 0 | BQ115: 0 | BX115: 0 | CN115: 0 | CO115: 0 | CP115: 0 | CQ115: 0 | CR115: 0 | CS115: 0 | CT115: 0 | CX115: 0 | CY115: 3.9 | CZ115: 0
A116: Adam.Cracknell | B116: 2015-11-14 | C116: VAN | D116: TOR | E116: 0 | F116: 0 | G116: 0 | K116: 0 | P116: 0 | Q116: 0 | T116: 100 | U116: 0 | V116: 0 | W116: 0 | AA116: 0 | AD116: 100 | AE116: 0 | AF116: 0 | AL116: 89.6 | AM116: 0 | AN116: 0 | AT116: 0 | AU116: 0 | AV116: 0 | BG116: 0 | BK116: 84.8 | BL116: 0 | BO116: 0 | BQ116: 0 | BV116: 100 | BX116: 0 | CN116: 0 | CO116: 0 | CP116: 0 | CQ116: 0 | CR116: 0 | CS116: 0 | CT116: 0 | CX116: 0 | CY116: 4.3 | CZ116: 0
A117: Adam.Cracknell | B117: 2015-11-16 | C117: VAN | D117: MTL | E117: 0 | F117: 0 | G117: 0 | K117: 0 | P117: 0 | Q117: 0 | T117: 38.6 | U117: 0 | V117: 0 | W117: 0 | AA117: 0 | AD117: 48.5 | AE117: 0 | AF117: 0 | AL117: 66.5 | AM117: 0 | AN117: 0 | AT117: 0 | AU117: 0 | AV117: 0 | BG117: 0 | BK117: 68.5 | BL117: 0 | BO117: 0 | BQ117: 0 | BV117: 66.7 | BX117: 0 | CN117: 0 | CO117: 0 | CP117: 0 | CQ117: 0 | CR117: 0 | CS117: 0 | CT117: 0 | CX117: 0 | CY117: 6.8 | CZ117: 0
A118: Adam.Cracknell | B118: 2015-11-18 | C118: VAN | D118: WPG | E118: 0 | F118: 0 | G118: 0 | H118: 0 | I118: 0 | J118: 0 | K118: 0 | L118: 43.2 | P118: 0.8 | Q118: 0 | T118: 100 | U118: 0 | V118: 0 | W118: 0 | X118: 0 | AA118: 0 | AB118: -43.2 | AC118: 45.8 | AD118: 89 | AE118: -0.2 | AF118: 0.8 | AH118: 67.7 | AK118: -50.5 | AL118: 93.7 | AM118: -0.2 | AN118: 0.8 | AP118: 60.9 | AT118: 0 | AU118: 0 | AV118: 0 | BG118: 0 | BI118: -100 | BJ118: 0 | BK118: 100 | BL118: -1 | BM118: 0 | BO118: 0 | BQ118: 0 | BU118: 0 | BV118: 100 | BX118: 0 | CN118: 0 | CO118: 0 | CP118: 0 | CQ118: 0 | CR118: 0 | CS118: 0 | CT118: 0 | CX118: 0.8 | CY118: 7.8 | CZ118: 8.8 | DA118: 16.6
A119: Adam.Cracknell | B119: 2015-11-21 | C119: VAN | D119: CHI | E119: 0 | F119: 0 | G119: 0 | K119: 0 | P119: 0 | Q119: 0 | T119: 100 | U119: 0 | V119: 0 | W119: 0 | AA119: 0 | AD119: 100 | AE119: 0 | AF119: 0 | AL119: 88.6 | AM119: 0 | AN119: 0 | AT119: 0 | AU119: 0 | AV119: 0 | BG119: 0 | BK119: 82.9 | BL119: 0 | BO119: 0 | BQ119: 0 | BV119: 100 | BX119: 0 | CN119: 0 | CO119: 0 | CP119: 0 | CQ119: 0 | CR119: 0 | CS119: 0 | CT119: 0 | CX119: 0 | CY119: 3.3 | CZ119: 0
A120: Adam.Cracknell | B120: 2015-11-22 | C120: VAN | D120: N.J | E120: 0 | F120: 0 | G120: 0 | K120: 0 | P120: 0 | Q120: 0 | T120: 100 | U120: 0 | V120: 0 | W120: 0 | AA120: 0 | AD120: 100 | AE120: 0 | AF120: 0 | AL120: 100 | AM120: 0 | AN120: 0 | AT120: 0 | AU120: 0 | AV120: 0 | BG120: 0 | BK120: 100 | BL120: 0 | BO120: 0 | BQ120: 0 | BX120: 0 | CN120: 0 | CO120: 0 | CP120: 0 | CQ120: 0 | CR120: 0 | CS120: 0 | CT120: 0 | CX120: 0 | CY120: 10.4 | CZ120: 0
A121: Adam.Cracknell | B121: 2015-11-25 | C121: VAN | D121: MIN | E121: 0 | F121: 0 | G121: 0 | K121: 0 | P121: 0 | Q121: 0 | T121: 0 | U121: 0 | V121: 0 | W121: 0 | AA121: 0 | AD121: 50 | AE121: 0 | AF121: 0 | AL121: 50 | AM121: 0 | AN121: 0 | AT121: 0 | AU121: 0 | AV121: 0 | BG121: 0 | BK121: 50 | BL121: 0 | BO121: 0 | BQ121: 0 | BV121: 100 | BX121: 0 | CN121: 0 | CO121: 0 | CP121: 0 | CQ121: 0 | CR121: 0 | CS121: 0 | CT121: 0 | CX121: 0 | CY121: 1.5 | CZ121: 0
A122: Adam.Cracknell | B122: 2015-11-27 | C122: VAN | D122: DAL | E122: 0 | F122: 0 | G122: 0 | H122: 0 | I122: 0 | J122: 0 | K122: 0 | P122: 1.3 | Q122: 0 | T122: 100 | U122: 0 | V122: 0 | W122: 0 | X122: 0 | AA122: 0 | AD122: 65.3 | AE122: 0 | AF122: 0 | AH122: 0 | AL122: 81 | AM122: 0 | AN122: 0 | AP122: 0 | AT122: 0 | AU122: 0 | AV122: 0 | BG122: 0 | BK122: 77.3 | BL122: 0 | BM122: 0 | BO122: 0 | BQ122: 0 | BU122: 0 | BV122: 100 | BX122: 0 | CN122: 0 | CO122: 0 | CP122: 0 | CQ122: 0 | CR122: 0 | CS122: 0 | CT122: 0 | CX122: 1.3 | CY122: 9.7 | CZ122: 12 | DA122: 16.6
A123: Adam.Cracknell | B123: 2015-11-30 | C123: VAN | D123: ANA | E123: 0 | F123: 0 | G123: 0 | H123: 0 | I123: 0 | J123: 0 | K123: 0 | L123: 100 | P123: 0.9 | Q123: 0 | R123: 0 | S123: 100 | T123: 100 | U123: 1.1 | V123: 1.1 | W123: 0 | X123: 71.1 | AA123: 0 | AB123: 0 | AC123: 100 | AD123: 100 | AE123: 1.1 | AF123: 1.1 | AH123: 71.1 | AK123: 0 | AL123: 100 | AM123: 0.8 | AN123: 0.8 | AP123: 51.6 | AT123: 0 | AU123: 0 | AV123: 0 | BG123: 0 | BK123: 100 | BL123: 0 | BM123: 0 | BO123: 0 | BQ123: 0 | BU123: 0 | BX123: 0 | CN123: 0 | CO123: 1 | CP123: 0 | CQ123: 0 | CR123: 0 | CS123: 0 | CT123: 0 | CX123: 0.9 | CY123: 5.2 | CZ123: 14.7 | DA123: 16.9
A124: Adam.Cracknell | B124: 2015-12-01 | C124: VAN | D124: L.A | E124: 0 | F124: 0 | G124: 0 | K124: 0 | P124: 0 | Q124: 0 | T124: 100 | U124: 0 | V124: 0 | W124: 0 | AA124: 0 | AD124: 100 | AE124: 0 | AF124: 0 | AL124: 86 | AM124: 0 | AN124: 0 | AT124: 0 | AU124: 0 | AV124: 0 | BG124: 0 | BK124: 100 | BL124: 0 | BO124: 0 | BQ124: 0 | BV124: 100 | BX124: 0 | CN124: 0 | CO124: 0 | CP124: 0 | CQ124: 0 | CR124: 0 | CS124: 0 | CT124: 0 | CX124: 0 | CY124: 5 | CZ124: 0
A125: Adam.Cracknell | B125: 2015-12-03 | C125: VAN | D125: DAL | E125: 0 | F125: 0 | G125: 0 | K125: 0 | P125: 0 | Q125: 0 | T125: 100 | U125: 0 | V125: 0 | W125: 0 | AA125: 0 | AD125: 100 | AE125: 0 | AF125: 0 | AL125: 100 | AM125: 0 | AN125: 0 | AT125: 0 | AU125: 0 | AV125: 0 | BG125: 0 | BK125: 100 | BL125: 0 | BO125: 0 | BQ125: 0 | BX125: 0 | CN125: 0 | CO125: 0 | CP125: 0 | CQ125: 0 | CR125: 0 | CS125: 0 | CT125: 0 | CX125: 0 | CY125: 2.1 | CZ125: 0
A126: Adam.Cracknell | B126: 2015-12-05 | C126: VAN | D126: BOS | E126: 0 | F126: 0 | G126: 0 | H126: 0 | I126: 0 | J126: 0 | K126: 0 | P126: 0.2 | Q126: 0 | U126: 0 | V126: 0 | W126: 0 | X126: 0 | AA126: 0 | AD126: 100 | AE126: 0 | AF126: 0 | AH126: 0 | AL126: 100 | AM126: 0 | AN126: 0 | AP126: 0 | AT126: 0 | AU126: 0 | AV126: 0 | BG126: 0 | BK126: 100 | BL126: 0 | BM126: 0 | BO126: 0 | BQ126: 0 | BU126: 0 | BX126: 0 | CN126: 0 | CO126: 0 | CP126: 0 | CQ126: 0 | CR126: 0 | CS126: 0 | CT126: 0 | CX126: 0.2 | CY126: 5.8 | CZ126: 2.8 | DA126: 17.3
A127: Adam.Cracknell | B127: 2015-12-07 | C127: VAN | D127: BUF | E127: 0 | F127: 0 | G127: 0 | H127: 0 | I127: 0 | J127: 0 | K127: 0 | P127: 0.1 | Q127: 0 | T127: 100 | U127: 0 | V127: 0 | W127: 0 | X127: 0 | AA127: 0 | AD127: 100 | AE127: 0 | AF127: 0 | AH127: 0 | AL127: 100 | AM127: 0 | AN127: 0 | AP127: 0 | AT127: 0 | AU127: 0 | AV127: 0 | BG127: 0 | BK127: 100 | BL127: 0 | BM127: 0 | BO127: 0 | BQ127: 0 | BU127: 0 | BV127: 100 | BX127: 0 | CN127: 0 | CO127: 0 | CP127: 0 | CQ127: 0 | CR127: 0 | CS127: 0 | CT127: 0 | CX127: 0.1 | CY127: 8.1 | CZ127: 1.4 | DA127: 17.1
A128: Adam.Cracknell | B128: 2015-12-09 | C128: VAN | D128: NYR | E128: 0 | F128: 0 | G128: 0 | K128: 0 | P128: 0 | Q128: 0 | T128: 49.4 | U128: 0 | V128: 0 | W128: 0 | AA128: 0 | AD128: 89.1 | AE128: 0 | AF128: 0 | AL128: 90.4 | AM128: 0 | AN128: 0 | AT128: 0 | AU128: 0 | AV128: 0 | BG128: 0 | BK128: 85.4 | BL128: 0 | BO128: 0 | BQ128: 0 | BV128: 100 | BX128: 0 | CN128: 0 | CO128: 0 | CP128: 0 | CQ128: 0 | CR128: 0 | CS128: 0 | CT128: 0 | CX128: 0 | CY128: 6.4 | CZ128: 0
A129: Adam.Cracknell | B129: 2015-12-13 | C129: VAN | D129: CHI | E129: 0 | F129: 0 | G129: 0 | K129: 0 | P129: 0 | Q129: 0 | T129: 100 | U129: 0 | V129: 0 | W129: 0 | AA129: 0 | AD129: 86.1 | AE129: 0 | AF129: 0 | AL129: 91.2 | AM129: 0 | AN129: 0 | AT129: 0 | AU129: 0 | AV129: 0 | BG129: 0 | BK129: 100 | BL129: 0 | BO129: 0 | BQ129: 0 | BX129: 0 | CN129: 0 | CO129: 0 | CP129: 0 | CQ129: 0 | CR129: 0 | CS129: 0 | CT129: 0 | CX129: 0 | CY129: 6.3 | CZ129: 0
A130: Adam.Cracknell | B130: 2015-12-17 | C130: VAN | D130: PHI | E130: 0 | F130: 0 | G130: 0 | K130: 0 | P130: 0 | Q130: 0 | U130: 0 | V130: 0 | W130: 0 | AA130: 0 | AD130: 100 | AE130: 0 | AF130: 0 | AL130: 100 | AM130: 0 | AN130: 0 | AT130: 0 | AU130: 0 | AV130: 0 | BG130: 0 | BK130: 100 | BL130: 0 | BO130: 0 | BQ130: 0 | BX130: 0 | CN130: 0 | CO130: 0 | CP130: 0 | CQ130: 0 | CR130: 0 | CS130: 0 | CT130: 0 | CX130: 0 | CY130: 4.7 | CZ130: 0
A131: Adam.Cracknell | B131: 2015-12-18 | C131: VAN | D131: DET | E131: 0 | F131: 0 | G131: 0 | K131: 0 | P131: 0 | Q131: 0 | T131: 100 | U131: 0 | V131: 0 | W131: 0 | AA131: 0 | AD131: 86.9 | AE131: 0 | AF131: 0 | AL131: 92 | AM131: 0 | AN131: 0 | AT131: 0 | AU131: 0 | AV131: 0 | BG131: 0 | BK131: 86 | BL131: 0 | BO131: 0 | BQ131: 0 | BX131: 0 | CN131: 0 | CO131: 0 | CP131: 0 | CQ131: 0 | CR131: 0 | CS131: 0 | CT131: 0 | CX131: 0 | CY131: 3.6 | CZ131: 0
A132: Adam.Cracknell | B132: 2015-12-20 | C132: VAN | D132: FLA | E132: 0 | F132: 0 | G132: 0 | K132: 0 | P132: 0 | Q132: 0 | T132: 100 | U132: 0 | V132: 0 | W132: 0 | AA132: 0 | AD132: 100 | AE132: 0 | AF132: 0 | AL132: 84.8 | AM132: 0 | AN132: 0 | AT132: 0 | AU132: 0 | AV132: 0 | BG132: 0 | BK132: 76.3 | BL132: 0 | BO132: 0 | BQ132: 0 | BX132: 0 | CN132: 0 | CO132: 0 | CP132: 0 | CQ132: 0 | CR132: 0 | CS132: 0 | CT132: 0 | CX132: 0 | CY132: 3.8 | CZ132: 0
A133: Adam.Cracknell | B133: 2015-12-22 | C133: VAN | D133: T.B | E133: 0 | F133: 0 | G133: 0 | K133: 0 | P133: 0 | Q133: 0 | T133: 100 | U133: 0 | V133: 0 | W133: 0 | AA133: 0 | AD133: 100 | AE133: 0 | AF133: 0 | AL133: 100 | AM133: 0 | AN133: 0 | AT133: 0 | AU133: 0 | AV133: 0 | BG133: 0 | BK133: 100 | BL133: 0 | BO133: 0 | BQ133: 0 | BX133: 0 | CN133: 0 | CO133: 0 | CP133: 0 | CQ133: 0 | CR133: 0 | CS133: 0 | CT133: 0 | CX133: 0 | CY133: 1.9 | CZ133: 0
A134: Adam.Cracknell | B134: 2015-12-26 | C134: VAN | D134: EDM | E134: 0 | F134: 0 | G134: 0 | K134: 0 | P134: 0 | Q134: 0 | T134: 100 | U134: 0 | V134: 0 | W134: 0 | AA134: 0 | AD134: 100 | AE134: 0 | AF134: 0 | AL134: 100 | AM134: 0 | AN134: 0 | AT134: 0 | AU134: 0 | AV134: 0 | BG134: 0 | BK134: 100 | BL134: 0 | BO134: 0 | BQ134: 0 | BX134: 0 | CN134: 0 | CO134: 0 | CP134: 0 | CQ134: 0 | CR134: 0 | CS134: 0 | CT134: 0 | CX134: 0 | CY134: 3.9 | CZ134: 0
A135: Adam.Cracknell | B135: 2016-01-01 | C135: VAN | D135: ANA | E135: 0 | F135: 0 | G135: 0 | K135: 0 | P135: 0 | Q135: 0 | T135: 0 | U135: 0 | V135: 0 | W135: 0 | AA135: 0 | AD135: 74.5 | AE135: 0 | AF135: 0 | AL135: 87.8 | AM135: 0 | AN135: 0 | AT135: 0 | AU135: 0 | AV135: 0 | BG135: 0 | BK135: 100 | BL135: 0 | BO135: 0 | BQ135: 0 | BX135: 0 | CN135: 0 | CO135: 0 | CP135: 0 | CQ135: 0 | CR135: 0 | CS135: 0 | CT135: 0 | CX135: 0 | CY135: 5.7 | CZ135: 0
A136: Adam.Cracknell | B136: 2016-01-04 | C136: VAN | D136: ARI | E136: 0 | F136: 0 | G136: 0 | K136: 0 | P136: 0 | Q136: 0 | T136: 100 | U136: 0 | V136: 0 | W136: 0 | AA136: 0 | AD136: 100 | AE136: 0 | AF136: 0 | AL136: 100 | AM136: 0 | AN136: 0 | AT136: 0 | AU136: 0 | AV136: 0 | BG136: 0 | BK136: 100 | BL136: 0 | BO136: 0 | BQ136: 0 | BV136: 100 | BX136: 0 | CN136: 0 | CO136: 0 | CP136: 0 | CQ136: 0 | CR136: 0 | CS136: 0 | CT136: 0 | CX136: 0 | CY136: 2.7 | CZ136: 0
A137: Adam.Cracknell | B137: 2016-01-06 | C137: VAN | D137: CAR | E137: 0 | F137: 0 | G137: 0 | K137: 0 | P137: 0 | Q137: 0 | T137: 66.2 | U137: 0 | V137: 0 | W137: 0 | AA137: 0 | AD137: 66.2 | AE137: 0 | AF137: 0 | AL137: 68.5 | AM137: 0 | AN137: 0 | AT137: 0 | AU137: 0 | AV137: 0 | BG137: 0 | BK137: 48.8 | BL137: 0 | BO137: 0 | BQ137: 0 | BV137: 50 | BX137: 0 | CN137: 0 | CO137: 0 | CP137: 0 | CQ137: 0 | CR137: 0 | CS137: 0 | CT137: 0 | CX137: 0 | CY137: 8.2 | CZ137: 0
A138: Adam.Cracknell | B138: 2016-01-09 | C138: VAN | D138: T.B | E138: 0 | F138: 0 | G138: 0 | K138: 0 | P138: 0 | Q138: 0 | T138: 100 | U138: 0 | V138: 0 | W138: 0 | AA138: 0 | AD138: 100 | AE138: 0 | AF138: 0 | AL138: 100 | AM138: 0 | AN138: 0 | AT138: 0 | AU138: 0 | AV138: 0 | BG138: 0 | BK138: 100 | BL138: 0 | BO138: 0 | BQ138: 0 | BV138: 100 | BX138: 0 | CN138: 0 | CO138: 0 | CP138: 0 | CQ138: 0 | CR138: 0 | CS138: 0 | CT138: 0 | CX138: 0 | CY138: 2.5 | CZ138: 0
A139: Adam.Cracknell | B139: 2016-01-14 | C139: VAN | D139: WSH | E139: 0 | F139: 0 | G139: 0 | K139: 0 | P139: 0 | Q139: 0 | T139: 100 | U139: 0 | V139: 0 | W139: 0 | AA139: 0 | AD139: 100 | AE139: 0 | AF139: 0 | AL139: 100 | AM139: 0 | AN139: 0 | AT139: 0 | AU139: 0 | AV139: 0 | BG139: 0 | BK139: 100 | BL139: 0 | BO139: 0 | BQ139: 0 | BV139: 100 | BX139: 0 | CN139: 0 | CO139: 0 | CP139: 0 | CQ139: 0 | CR139: 0 | CS139: 0 | CT139: 0 | CX139: 0 | CY139: 4 | CZ139: 0
A140: Adam.Cracknell | B140: 2016-01-19 | C140: VAN | D140: NYR | E140: 0 | F140: 0 | G140: 0 | H140: 0 | I140: 0 | J140: 0 | K140: 0 | L140: 0 | P140: 0.4 | Q140: 0 | T140: 0 | U140: 0 | V140: 0 | W140: 0 | X140: 0 | AA140: 0 | AD140: 0 | AE140: 0 | AF140: 0 | AH140: 0 | AK140: 0 | AL140: 0 | AM140: -1 | AN140: 0 | AP140: 0 | AT140: 0 | AU140: 0 | AV140: 0 | BG140: 0 | BL140: 0 | BM140: 0 | BO140: 0 | BQ140: 0 | BU140: 0 | BX140: 0 | CN140: 0 | CO140: 0 | CP140: 0 | CQ140: 0 | CR140: 0 | CS140: 0 | CT140: 0 | CX140: 0.4 | CY140: 1.6 | CZ140: 17.7 | DA140: 17.8
A141: Adam.Cracknell | B141: 2016-01-26 | C141: VAN | D141: NSH | E141: 0 | F141: 0 | G141: 0 | K141: 0 | P141: 0 | Q141: 0 | T141: 100 | U141: 0 | V141: 0 | W141: 0 | AA141: 0 | AD141: 100 | AE141: 0 | AF141: 0 | AL141: 100 | AM141: 0 | AN141: 0 | AT141: 0 | AU141: 0 | AV141: 0 | BG141: 0 | BK141: 100 | BL141: 0 | BO141: 0 | BQ141: 0 | BX141: 0 | CN141: 0 | CO141: 0 | CP141: 0 | CQ141: 0 | CR141: 0 | CS141: 0 | CT141: 0 | CX141: 0 | CY141: 2.5 | CZ141: 0
A142: Adam.Cracknell | B142: 2016-02-10 | C142: VAN | D142: ARI | E142: 0 | F142: 0 | G142: 0 | K142: 0 | P142: 0 | Q142: 0 | T142: 49.7 | U142: 0 | V142: 0 | W142: 0 | AA142: 0 | AD142: 49.6 | AE142: 0 | AF142: 0 | AL142: 57.7 | AM142: 0 | AN142: 0 | AT142: 0 | AU142: 0 | AV142: 0 | BG142: 0 | BK142: 24 | BL142: 0 | BO142: 0 | BQ142: 0 | BX142: 0 | CN142: 0 | CO142: 0 | CP142: 0 | CQ142: 0 | CR142: 0 | CS142: 0 | CT142: 0 | CX142: 0 | CY142: 7.5 | CZ142: 0
A143: Adam.Cracknell | B143: 2016-02-18 | C143: VAN | D143: ANA | E143: 0 | F143: 0 | G143: 0 | K143: 0 | P143: 0 | Q143: 0 | T143: 100 | U143: 0 | V143: 0 | W143: 0 | AA143: 0 | AD143: 100 | AE143: 0 | AF143: 0 | AL143: 100 | AM143: 0 | AN143: 0 | AT143: 0 | AU143: 0 | AV143: 0 | BG143: 0 | BK143: 100 | BL143: 0 | BO143: 0 | BQ143: 0 | BV143: 100 | BX143: 0 | CN143: 0 | CO143: 0 | CP143: 0 | CQ143: 0 | CR143: 0 | CS143: 0 | CT143: 0 | CX143: 0 | CY143: 6 | CZ143: 0
A144: Adam.Cracknell | B144: 2016-02-19 | C144: VAN | D144: CGY | E144: 0 | F144: 0 | G144: 0 | K144: 0 | P144: 0 | Q144: 0 | T144: 100 | U144: 0 | V144: 0 | W144: 0 | AA144: 0 | AD144: 100 | AE144: 0 | AF144: 0 | AL144: 100 | AM144: 0 | AN144: 0 | AT144: 0 | AU144: 0 | AV144: 0 | BG144: 0 | BK144: 100 | BL144: 0 | BO144: 0 | BQ144: 0 | BX144: 0 | CN144: 0 | CO144: 0 | CP144: 0 | CQ144: 0 | CR144: 0 | CS144: 0 | CT144: 0 | CX144: 0 | CY144: 4.1 | CZ144: 0
A145: Adam.Cracknell | B145: 2016-02-21 | C145: VAN | D145: COL | E145: 0 | F145: 0 | G145: 0 | K145: 0 | P145: 0 | Q145: 0 | T145: 65.8 | U145: 0 | V145: 0 | W145: 0 | AA145: 0 | AD145: 59.1 | AE145: 0 | AF145: 0 | AL145: 50.2 | AM145: 0 | AN145: 0 | AT145: 0 | AU145: 0 | AV145: 0 | BG145: 0 | BK145: 49.5 | BL145: 0 | BO145: 0 | BQ145: 0 | BV145: 100 | BX145: 0 | CN145: 0 | CO145: 0 | CP145: 0 | CQ145: 0 | CR145: 0 | CS145: 0 | CT145: 0 | CX145: 0 | CY145: 2.4 | CZ145: 0
A146: Taylor.Hall | B146: 2015-01-02 | C146: EDM | D146: COL | E146: 0 | F146: 0 | G146: 0 | H146: 0 | I146: 0 | J146: 0 | K146: 0 | L146: 100 | P146: 3.6 | Q146: 0 | S146: 100 | U146: 4 | V146: 4 | W146: 0 | X146: 68.2 | AA146: 1 | AB146: 0 | AC146: 100 | AD146: 100 | AE146: 7.7 | AF146: 7.7 | AH146: 130.4 | AK146: 0 | AL146: 100 | AM146: 10 | AN146: 10 | AP146: 168 | AT146: 2 | AU146: 0 | AV146: 2 | BG146: 0 | BI146: 0 | BJ146: 100 | BK146: 100 | BL146: 6.5 | BM146: 110.1 | BO146: 6.5 | BQ146: 0 | BU146: 16.9 | BX146: 1 | CC146: 15.3 | CN146: 0 | CO146: 0 | CP146: 0 | CQ146: 0 | CR146: 0 | CS146: 0 | CT146: 0 | CX146: 3.6 | CY146: 1.2 | CZ146: 74.3 | DA146: 19.1
A147: Taylor.Hall | B147: 2015-01-04 | C147: EDM | D147: NYI | E147: 0 | F147: 0 | G147: 0 | H147: 0 | I147: 0 | J147: 0 | K147: 0 | L147: 100 | N147: 0 | P147: 1.8 | Q147: 1 | S147: 100 | U147: 3 | V147: 3 | W147: 0 | X147: 98.8 | AA147: 2 | AC147: 100 | AE147: 3.9 | AF147: 3.9 | AH147: 132.1 | AK147: 0 | AL147: 100 | AM147: 5.9 | AN147: 5.9 | AP147: 196.8 | AT147: 1 | AU147: 0 | AV147: 3 | BG147: 0 | BI147: 0 | BJ147: 100 | BK147: 100 | BL147: 4 | BM147: 133.4 | BO147: 4 | BQ147: 2 | BU147: 0 | BX147: 0 | CC147: 0 | CN147: 0 | CO147: 0 | CP147: 0 | CQ147: 0 | CR147: 2 | CS147: 1 | CT147: 1 | CX147: 1.8 | CY147: 0.9 | CZ147: 65.5 | DA147: 19.6
A148: Taylor.Hall | B148: 2015-01-06 | C148: EDM | D148: DET | E148: 0 | F148: 0 | G148: 0 | H148: 0 | I148: 0 | J148: 0 | K148: 0 | L148: 59.5 | M148: 100 | N148: 0 | P148: 2.9 | Q148: 0 | T148: 51.2 | U148: 0 | V148: 0 | W148: 0 | X148: 0 | AA148: 2 | AB148: 0 | AC148: 67.2 | AD148: 67.2 | AE148: 1 | AF148: 2 | AH148: 42.9 | AK148: -15.1 | AL148: 74.7 | AM148: 0.9 | AN148: 2.9 | AP148: 61.7 | AT148: 0 | AU148: 1 | AV148: 2 | BG148: 1 | BI148: -0.1 | BJ148: 66.5 | BK148: 66.6 | BL148: 1 | BM148: 41.7 | BO148: 2 | BQ148: 1 | BU148: 0 | BV148: 100 | BX148: 0 | CC148: 0 | CE148: 100 | CN148: 1 | CO148: 0 | CP148: 0 | CQ148: 0 | CR148: 1 | CS148: 0 | CT148: 1 | CX148: 2.9 | CY148: 1.8 | CZ148: 61.4 | DA148: 18.8
A149: Taylor.Hall | B149: 2015-01-09 | C149: EDM | D149: CHI | E149: 0 | F149: 0 | G149: 0 | H149: 0 | I149: 0 | J149: 0 | K149: 0 | L149: 100 | N149: 0 | P149: 2.1 | Q149: 0 | T149: 100 | U149: 0 | V149: 0 | W149: 0 | X149: 0 | AA149: 0 | AB149: 0 | AC149: 100 | AD149: 100 | AE149: 2 | AF149: 2 | AH149: 57.1 | AK149: 0 | AL149: 100 | AM149: 6.5 | AN149: 6.5 | AP149: 181.9 | AT149: 2 | AU149: 0 | AV149: 3 | BG149: 0 | BI149: 0 | BJ149: 100 | BK149: 100 | BL149: 2 | BM149: 55.5 | BO149: 2 | BQ149: 1 | BU149: 0 | BV149: 100 | BX149: 0 | CC149: 0 | CN149: 0 | CO149: 0 | CP149: 0 | CQ149: 0 | CR149: 1 | CS149: 0 | CT149: 0 | CX149: 2.1 | CY149: 1.1 | CZ149: 66.2 | DA149: 19.2
A150: Taylor.Hall | B150: 2015-01-11 | C150: EDM | D150: FLA | E150: 0 | F150: 0 | G150: 0 | H150: 0 | I150: 0 | J150: 0 | K150: 0 | L150: 100 | P150: 1.2 | Q150: 0 | U150: 0 | V150: 0 | W150: 0 | X150: 0 | AA150: 0 | AC150: 100 | AE150: 1.9 | AF150: 1.9 | AH150: 95.7 | AM150: 3.5 | AN150: 3.5 | AP150: 178.4 | AT150: 0 | AU150: 0 | AV150: 0 | BG150: 0 | BJ150: 100 | BL150: 2.7 | BM150: 137.3 | BO150: 2.7 | BQ150: 0 | BU150: 0 | BX150: 0 | CC150: 0 | CN150: 0 | CO150: 1 | CP150: 0 | CQ150: 0 | CR150: 0 | CS150: 0 | CT150: 0 | CX150: 1.2 | CY150: 0.9 | CZ150: 57.5 | DA150: 19.2
A151: Taylor.Hall | B151: 2015-01-13 | C151: EDM | D151: STL | E151: 0 | F151: 0 | G151: 0 | H151: 0 | I151: 0 | J151: 0 | K151: 0 | L151: 100 | P151: 3 | Q151: 0 | S151: 100 | U151: 1 | V151: 1 | W151: 0 | X151: 19.7 | AA151: 0 | AC151: 100 | AE151: 1 | AF151: 1 | AH151: 19.7 | AK151: 0 | AL151: 100 | AM151: 5.9 | AN151: 5.9 | AP151: 116.6 | AT151: 1 | AU151: 0 | AV151: 1 | BG151: 0 | BI151: 0 | BJ151: 100 | BK151: 100 | BL151: 1 | BM151: 19.7 | BO151: 1 | BQ151: 0 | BU151: 19.7 | BX151: 1 | CC151: 100 | CN151: 0 | CO151: 0 | CP151: 0 | CQ151: 0 | CR151: 0 | CS151: 0 | CT151: 0 | CX151: 3 | CY151: 1.4 | CZ151: 68.2 | DA151: 19.2
A152: Taylor.Hall | B152: 2015-01-15 | C152: EDM | D152: T.B | E152: 0 | F152: 1 | G152: 1 | H152: 0 | I152: 18 | J152: 18 | K152: 0 | L152: 100 | P152: 3.3 | Q152: 0 | R152: 0 | S152: 100 | T152: 100 | U152: 1.9 | V152: 1.9 | W152: 0 | X152: 33.4 | AA152: 0 | AB152: 0 | AC152: 100 | AD152: 100 | AE152: 3 | AF152: 3 | AH152: 53.5 | AK152: 0 | AL152: 100 | AM152: 6 | AN152: 6 | AP152: 108.2 | AT152: 1 | AU152: 0 | AV152: 1 | BG152: 0 | BI152: 0 | BJ152: 100 | BK152: 100 | BL152: 3.9 | BM152: 69.8 | BO152: 3.9 | BQ152: 0 | BU152: 18 | BX152: 1 | CC152: 25.8 | CN152: 0 | CO152: 0 | CP152: 1 | CQ152: 0 | CR152: 0 | CS152: 0 | CT152: 0 | CX152: 3.3 | CY152: 3.2 | CZ152: 51 | DA152: 19
A153: Taylor.Hall | B153: 2015-01-17 | C153: EDM | D153: FLA | E153: 0 | F153: 0 | G153: 0 | H153: 0 | I153: 0 | J153: 0 | K153: 0 | L153: 100 | N153: 0 | P153: 5.6 | Q153: 0 | T153: 100 | U153: 0 | V153: 0 | W153: 0 | X153: 0 | AA153: 0 | AD153: 100 | AE153: 0 | AF153: 0 | AH153: 0 | AK153: 0 | AL153: 100 | AM153: 8.1 | AN153: 8.1 | AP153: 86.7 | AT153: 0 | AU153: 0 | AV153: 3 | BG153: 2 | BI153: 0 | BJ153: 100 | BK153: 100 | BL153: 2.9 | BM153: 30.8 | BO153: 2.9 | BQ153: 1 | BU153: 0 | BX153: 0 | CC153: 0 | CN153: 0 | CO153: 1 | CP153: 0 | CQ153: 0 | CR153: 1 | CS153: 0 | CT153: 0 | CX153: 5.6 | CY153: 1 | CZ153: 84.8 | DA153: 19.2
A154: Taylor.Hall | B154: 2015-01-20 | C154: EDM | D154: WSH | E154: 0 | F154: 0 | G154: 0 | H154: 0 | I154: 0 | J154: 0 | K154: 0 | L154: 85.1 | M154: 126.5 | N154: 0 | P154: 5.8 | Q154: 1 | S154: 100 | U154: 3.1 | V154: 3.1 | W154: 0 | X154: 31.8 | AA154: 3 | AB154: 37.6 | AC154: 89.3 | AD154: 51.7 | AE154: 7.3 | AF154: 8.3 | AH154: 85.9 | AK154: 30.8 | AL154: 54.3 | AM154: 9.5 | AN154: 11.5 | AP154: 118.3 | AT154: 2 | AU154: 0 | AV154: 4 | BG154: 1 | BI154: 15.5 | BJ154: 65.4 | BK154: 49.8 | BL154: 1.8 | BM154: 39 | BO154: 3.8 | BQ154: 1 | BU154: 10.3 | BX154: 1 | CC154: 26.5 | CE154: 100 | CN154: 0 | CO154: 0 | CP154: 0 | CQ154: 0 | CR154: 1 | CS154: 0 | CT154: 0 | CX154: 5.8 | CY154: 3.5 | CZ154: 62.6 | DA154: 19.6
A155: Taylor.Hall | B155: 2015-02-02 | C155: EDM | D155: S.J | E155: 0 | F155: 0 | G155: 0 | H155: 0 | I155: 0 | J155: 0 | K155: 0 | L155: 100 | N155: 0 | P155: 0.9 | Q155: 0 | S155: 100 | U155: 1.1 | V155: 1.1 | W155: 0 | X155: 74.4 | AA155: 0 | AB155: 0 | AC155: 100 | AD155: 100 | AE155: 1.1 | AF155: 1.1 | AH155: 74.4 | AK155: 20.4 | AL155: 79.6 | AM155: 2.1 | AN155: 2.1 | AP155: 140.8 | AT155: 0 | AU155: 0 | AV155: 1 | BG155: 0 | BI155: 32.5 | BJ155: 100 | BK155: 67.5 | BL155: 2.1 | BM155: 140.8 | BO155: 2.1 | BQ155: 1 | BU155: 0 | BX155: 0 | CC155: 0 | CN155: 0 | CO155: 0 | CP155: 0 | CQ155: 0 | CR155: 1 | CS155: 0 | CT155: 0 | CX155: 0.9 | CY155: 1.1 | CZ155: 45.3 | DA155: 19
A156: Taylor.Hall | B156: 2015-03-21 | C156: EDM | D156: PHI | E156: 0 | F156: 0 | G156: 0 | H156: 0 | I156: 0 | J156: 0 | K156: -1 | L156: 83 | M156: 100 | P156: 3.4 | Q156: 0 | R156: 0 | S156: 100 | T156: 100 | U156: 1.9 | V156: 1.9 | W156: 0 | X156: 33.5 | AA156: 0 | AB156: -20 | AC156: 80 | AD156: 100 | AE156: 3 | AF156: 4 | AH156: 69.7 | AK156: -17 | AL156: 100 | AM156: 3.9 | AN156: 4.9 | AP156: 85.3 | AT156: 0 | AU156: 0 | AV156: 0 | BG156: 0 | BI156: -24.8 | BJ156: 75.2 | BK156: 100 | BL156: 2 | BM156: 52.8 | BO156: 3 | BQ156: 0 | BU156: 0 | BX156: 0 | CC156: 0 | CE156: 100 | CN156: 0 | CO156: 0 | CP156: 0 | CQ156: 0 | CR156: 0 | CS156: 2 | CT156: 0 | CX156: 3.4 | CY156: 3.1 | CZ156: 52.9 | DA156: 16.8
A157: Taylor.Hall | B157: 2015-03-23 | C157: EDM | D157: WPG | E157: 0 | F157: 0 | G157: 0 | H157: 0 | I157: 0 | J157: 0 | K157: 0 | L157: 100 | P157: 1.5 | Q157: 0 | T157: 100 | U157: 0 | V157: 0 | W157: 0 | X157: 0 | AA157: 0 | AB157: 26.2 | AC157: 100 | AD157: 73.8 | AE157: 1 | AF157: 1 | AH157: 38.3 | AK157: 32.3 | AL157: 67.7 | AM157: 1.8 | AN157: 1.8 | AP157: 72.5 | AT157: 0 | AU157: 0 | AV157: 0 | BG157: 0 | BI157: 36.1 | BJ157: 100 | BK157: 63.9 | BL157: 1.8 | BM157: 72.5 | BO157: 1.8 | BQ157: 0 | BU157: 0 | BX157: 0 | CC157: 0 | CN157: 0 | CO157: 0 | CP157: 0 | CQ157: 0 | CR157: 0 | CS157: 0 | CT157: 0 | CX157: 1.5 | CY157: 5.5 | CZ157: 21.3 | DA157: 17.8
A158: Taylor.Hall | B158: 2015-03-25 | C158: EDM | D158: COL | E158: 0 | F158: 0 | G158: 0 | H158: 0 | I158: 0 | J158: 0 | K158: 0 | L158: 100 | P158: 0.2 | Q158: 0 | R158: 0 | S158: 100 | T158: 100 | U158: 2 | V158: 2 | W158: 0 | X158: 567.3 | AA158: 0 | AB158: 0 | AC158: 100 | AD158: 100 | AE158: 2 | AF158: 2 | AH158: 567.3 | AK158: 0 | AL158: 100 | AM158: 2 | AN158: 2 | AP158: 556.6 | AT158: 0 | AU158: 0 | AV158: 0 | BG158: 0 | BI158: 0 | BJ158: 100 | BK158: 100 | BL158: 2 | BM158: 556.6 | BO158: 2 | BQ158: 0 | BU158: 276.9 | BX158: 1 | CC158: 49.8 | CN158: 0 | CO158: 0 | CP158: 0 | CQ158: 0 | CR158: 0 | CS158: 0 | CT158: 0 | CX158: 0.2 | CY158: 1.4 | CZ158: 13.7 | DA158: 17.7
A159: Taylor.Hall | B159: 2015-03-27 | C159: EDM | D159: DAL | E159: 0 | F159: 0 | G159: 0 | H159: 0 | I159: 0 | J159: 0 | K159: 0 | P159: 1.1 | Q159: 0 | U159: 0 | V159: 0 | W159: 0 | X159: 0 | AA159: 0 | AE159: 0 | AF159: 0 | AH159: 0 | AM159: 0 | AN159: 0 | AP159: 0 | AT159: 0 | AU159: 0 | AV159: 0 | BG159: 0 | BL159: 0 | BM159: 0 | BO159: 0 | BQ159: 0 | BU159: 0 | BX159: 0 | CN159: 0 | CO159: 0 | CP159: 0 | CQ159: 0 | CR159: 0 | CS159: 0 | CT159: 0 | CX159: 1.1 | CY159: 0.4 | CZ159: 71.9 | DA159: 17.4
A160: Taylor.Hall | B160: 2015-04-01 | C160: EDM | D160: ANA | E160: 0 | F160: 0 | G160: 0 | H160: 0 | I160: 0 | J160: 0 | K160: 0 | L160: 100 | P160: 2.3 | Q160: 0 | U160: 0 | V160: 0 | W160: 0 | X160: 0 | AA160: 0 | AE160: 0 | AF160: 0 | AH160: 0 | AK160: 100 | AL160: 0 | AM160: 1.7 | AN160: 1.7 | AP160: 43.1 | AT160: 0 | AU160: 0 | AV160: 0 | BG160: 0 | BL160: 0 | BM160: 0 | BO160: 0 | BQ160: 0 | BU160: 0 | BX160: 0 | CN160: 0 | CO160: 0 | CP160: 0 | CQ160: 0 | CR160: 0 | CS160: 0 | CT160: 1 | CX160: 2.3 | CY160: 1.7 | CZ160: 57 | DA160: 17
A161: Taylor.Hall | B161: 2015-04-02 | C161: EDM | D161: L.A | E161: 0 | F161: 0 | G161: 0 | H161: 0 | I161: 0 | J161: 0 | K161: 0 | L161: 100 | P161: 1.1 | Q161: 1 | R161: 0 | S161: 100 | T161: 100 | U161: 1.6 | V161: 1.6 | W161: 0 | X161: 90.4 | AA161: 1 | AB161: 25 | AC161: 100 | AD161: 75 | AE161: 1.6 | AF161: 1.6 | AH161: 90.4 | AK161: 21.2 | AL161: 78.8 | AM161: 2.4 | AN161: 2.4 | AP161: 132.4 | AT161: 0 | AU161: 0 | AV161: 1 | BG161: 1 | BI161: 25.7 | BJ161: 100 | BK161: 74.3 | BL161: 0.9 | BM161: 47.3 | BO161: 0.9 | BQ161: 0 | BU161: 0 | BV161: 100 | BX161: 0 | CC161: 0 | CN161: 0 | CO161: 0 | CP161: 0 | CQ161: 0 | CR161: 0 | CS161: 0 | CT161: 0 | CX161: 1.1 | CY161: 1.6 | CZ161: 40.6 | DA161: 18.2
A162: Taylor.Hall | B162: 2015-04-07 | C162: EDM | D162: L.A | E162: 0 | F162: 0 | G162: 0 | H162: 0 | I162: 0 | J162: 0 | K162: 0 | L162: 100 | N162: 0 | P162: 1.3 | Q162: 0 | T162: 100 | U162: 0 | V162: 0 | W162: 0 | X162: 0 | AA162: 1 | AB162: 0 | AC162: 100 | AD162: 100 | AE162: 1 | AF162: 1 | AH162: 48.7 | AK162: 34.6 | AL162: 65.4 | AM162: 1 | AN162: 1 | AP162: 46.5 | AT162: 0 | AU162: 0 | AV162: 1 | BG162: 0 | BI162: 0 | BJ162: 100 | BK162: 100 | BL162: 1 | BM162: 46.5 | BO162: 1 | BQ162: 1 | BU162: 0 | BX162: 0 | CC162: 0 | CN162: 0 | CO162: 0 | CP162: 0 | CQ162: 0 | CR162: 1 | CS162: 0 | CT162: 1 | CX162: 1.3 | CY162: 0.7 | CZ162: 64.2 | DA162: 18.2
A163: Taylor.Hall | B163: 2015-04-09 | C163: EDM | D163: S.J | E163: 0 | F163: 0 | G163: 0 | H163: 0 | I163: 0 | J163: 0 | K163: 0 | L163: 100 | P163: 1.8 | Q163: 0 | T163: 0 | U163: 0 | V163: 0 | W163: 0 | X163: 0 | AA163: 0 | AD163: 73.5 | AE163: 0 | AF163: 0 | AH163: 0 | AK163: 23.8 | AL163: 76.2 | AM163: 0.9 | AN163: 0.9 | AP163: 29.3 | AT163: 1 | AU163: 0 | AV163: 1 | BG163: 0 | BK163: 54.3 | BL163: 0 | BM163: 0 | BO163: 0 | BQ163: 0 | BU163: 0 | BX163: 0 | CN163: 0 | CO163: 0 | CP163: 0 | CQ163: 0 | CR163: 0 | CS163: 0 | CT163: 0 | CX163: 1.8 | CY163: 2.2 | CZ163: 45.5 | DA163: 18.2
A164: Taylor.Hall | B164: 2015-04-11 | C164: EDM | D164: VAN | E164: 0 | F164: 0 | G164: 0 | H164: 0 | I164: 0 | J164: 0 | K164: 0 | L164: 49.4 | P164: 1.1 | Q164: 0 | U164: 0 | V164: 0 | W164: 0 | X164: 0 | AA164: 0 | AC164: 100 | AE164: 0.9 | AF164: 0.9 | AH164: 49.7 | AK164: -50.6 | AL164: 100 | AM164: 0 | AN164: 1 | AP164: 52.4 | AT164: 0 | AU164: 0 | AV164: 0 | BG164: 0 | BI164: -100 | BJ164: 0 | BK164: 100 | BL164: -1 | BM164: 0 | BO164: 0 | BQ164: 0 | BU164: 0 | BX164: 0 | CE164: 100 | CN164: 0 | CO164: 0 | CP164: 0 | CQ164: 0 | CR164: 0 | CS164: 0 | CT164: 0 | CX164: 1.1 | CY164: 0.8 | CZ164: 57.5 | DA164: 18.8
A165: Taylor.Hall | B165: 2015-10-08 | C165: EDM | D165: STL | E165: 0 | F165: 0 | G165: 0 | H165: 0 | I165: 0 | J165: 0 | K165: 0 | L165: 80.6 | M165: 131.7 | N165: 0 | P165: 1.7 | Q165: 0 | S165: 100 | U165: 2.2 | V165: 2.2 | W165: 0 | X165: 76.9 | AA165: 0 | AC165: 100 | AE165: 2.2 | AF165: 2.2 | AH165: 76.9 | AK165: 80.6 | AL165: 0 | AM165: 3.1 | AN165: 4.1 | AP165: 146.4 | AT165: 0 | AU165: 0 | AV165: 1 | BG165: 0 | BJ165: 76 | BL165: 2.2 | BM165: 111.5 | BO165: 3.2 | BQ165: 1 | BU165: 35.3 | BX165: 1 | CC165: 31.7 | CE165: 100 | CN165: 0 | CO165: 0 | CP165: 0 | CQ165: 0 | CR165: 1 | CS165: 0 | CT165: 0 | CX165: 1.7 | CY165: 2.1 | CZ165: 45 | DA165: 17
A166: Taylor.Hall | B166: 2015-10-10 | C166: EDM | D166: NSH | E166: 0 | F166: 0 | G166: 0 | H166: 0 | I166: 0 | J166: 0 | K166: 0 | L166: 100 | P166: 6.4 | Q166: 1 | S166: 100 | U166: 1.2 | V166: 1.2 | W166: 0 | X166: 11.5 | AA166: 1 | AB166: 100 | AC166: 100 | AD166: 0 | AE166: 2.2 | AF166: 2.2 | AH166: 20.5 | AK166: 40.4 | AL166: 59.6 | AM166: 7.5 | AN166: 7.5 | AP166: 70.8 | AT166: 1 | AU166: 0 | AV166: 2 | BG166: 1 | BI166: 68.5 | BJ166: 100 | BK166: 31.5 | BL166: 3.9 | BM166: 36.4 | BO166: 3.9 | BQ166: 0 | BU166: 0 | BX166: 0 | CC166: 0 | CN166: 0 | CO166: 0 | CP166: 0 | CQ166: 0 | CR166: 0 | CS166: 1 | CT166: 0 | CX166: 6.4 | CY166: 3.1 | CZ166: 67 | DA166: 17.6
A167: Taylor.Hall | B167: 2015-10-13 | C167: EDM | D167: DAL | E167: 0 | F167: 0 | G167: 0 | H167: 0 | I167: 0 | J167: 0 | K167: 0 | L167: 100 | N167: 0 | P167: 1.3 | Q167: 1 | S167: 100 | U167: 0.9 | V167: 0.9 | W167: 0 | X167: 39.9 | AA167: 1 | AC167: 100 | AE167: 2.7 | AF167: 2.7 | AH167: 121 | AM167: 3.7 | AN167: 3.7 | AP167: 168.5 | AT167: 0 | AU167: 0 | AV167: 1 | BG167: 0 | BJ167: 100 | BL167: 2.8 | BM167: 129.4 | BO167: 2.8 | BQ167: 1 | BU167: 0 | BX167: 0 | CC167: 0 | CN167: 0 | CO167: 1 | CP167: 0 | CQ167: 0 | CR167: 1 | CS167: 0 | CT167: 0 | CX167: 1.3 | CY167: 0.7 | CZ167: 64.2 | DA167: 17.6
A168: Taylor.Hall | B168: 2015-10-15 | C168: EDM | D168: STL | E168: 0 | F168: 0 | G168: 0 | H168: 0 | I168: 0 | J168: 0 | K168: 0 | L168: 85.8 | M168: 100 | N168: 0 | P168: 4.9 | Q168: 1 | S168: 100 | U168: 1.8 | V168: 1.8 | W168: 0 | X168: 21.7 | AA168: 2 | AC168: 100 | AE168: 4.5 | AF168: 4.5 | AH168: 55.1 | AK168: -14.2 | AL168: 100 | AM168: 5 | AN168: 6 | AP168: 73.1 | AT168: 3 | AU168: 0 | AV168: 4 | BG168: 0 | BI168: -26.5 | BJ168: 73.5 | BK168: 100 | BL168: 1.8 | BM168: 33.7 | BO168: 2.8 | BQ168: 1 | BU168: 0 | BX168: 0 | CC168: 0 | CE168: 100 | CN168: 0 | CO168: 2 | CP168: 0 | CQ168: 0 | CR168: 1 | CS168: 0 | CT168: 0 | CX168: 4.9 | CY168: 4.6 | CZ168: 51.8 | DA168: 18.2
A169: Taylor.Hall | B169: 2015-10-17 | C169: EDM | D169: CGY | E169: 0 | F169: 1 | G169: 1 | H169: 0 | I169: 9.3 | J169: 9.3 | K169: 0 | L169: 89.4 | M169: 116.4 | N169: 0 | P169: 6.5 | Q169: 0 | R169: 0 | S169: 100 | T169: 100 | U169: 3.2 | V169: 3.2 | W169: 0 | X169: 29.3 | AA169: 2 | AB169: -13.5 | AC169: 86.5 | AD169: 100 | AE169: 5.4 | AF169: 6.4 | AH169: 59.6 | AK169: -10.6 | AL169: 100 | AM169: 14.9 | AN169: 16.9 | AP169: 157 | AT169: 0 | AU169: 0 | AV169: 3 | BG169: 1 | BJ169: 75.4 | BL169: 4.1 | BM169: 56.7 | BO169: 6.1 | BQ169: 2 | BU169: 9.3 | BX169: 1 | CC169: 16.4 | CE169: 100 | CN169: 0 | CO169: 1 | CP169: 1 | CQ169: 0 | CR169: 2 | CS169: 1 | CT169: 0 | CX169: 6.5 | CY169: 0.9 | CZ169: 88.1 | DA169: 18
A170: Taylor.Hall | B170: 2015-10-18 | C170: EDM | D170: VAN | E170: 0 | F170: 0 | G170: 0 | H170: 0 | I170: 0 | J170: 0 | K170: 0 | P170: 0.9 | Q170: 0 | U170: 0 | V170: 0 | W170: 0 | X170: 0 | AA170: 0 | AE170: 0 | AF170: 0 | AH170: 0 | AL170: 100 | AM170: 0 | AN170: 0 | AP170: 0 | AT170: 0 | AU170: 0 | AV170: 0 | BG170: 0 | BK170: 100 | BL170: 0 | BM170: 0 | BO170: 0 | BQ170: 0 | BU170: 0 | BV170: 100 | BX170: 0 | CN170: 0 | CO170: 0 | CP170: 0 | CQ170: 0 | CR170: 0 | CS170: 0 | CT170: 0 | CX170: 0.9 | CY170: 1.1 | CZ170: 44.1 | DA170: 17.4
A171: Taylor.Hall | B171: 2015-10-21 | C171: EDM | D171: DET | E171: 0 | F171: 0 | G171: 0 | H171: 0 | I171: 0 | J171: 0 | K171: 0 | L171: 79.9 | M171: 100 | N171: 0 | P171: 2.4 | Q171: 0 | T171: 100 | U171: 0 | V171: 0 | W171: 0 | X171: 0 | AA171: 1 | AB171: -24.2 | AC171: 75.8 | AD171: 100 | AE171: 2.1 | AF171: 3.1 | AH171: 79.5 | AK171: -20.1 | AL171: 100 | AM171: 3 | AN171: 4 | AP171: 101.2 | AT171: 0 | AU171: 0 | AV171: 1 | BG171: 0 | BI171: -20.1 | BJ171: 79.9 | BK171: 100 | BL171: 3 | BM171: 101.2 | BO171: 4 | BQ171: 1 | BU171: 0 | BV171: 100 | BX171: 0 | CC171: 0 | CE171: 100 | CN171: 0 | CO171: 0 | CP171: 0 | CQ171: 0 | CR171: 1 | CS171: 0 | CT171: 0 | CX171: 2.4 | CY171: 1.6 | CZ171: 59.3 | DA171: 17.7
A172: Taylor.Hall | B172: 2015-10-23 | C172: EDM | D172: WSH | E172: 0 | F172: 0 | G172: 0 | H172: 0 | I172: 0 | J172: 0 | K172: -1 | L172: 100 | N172: 0 | P172: 4.3 | Q172: 0 | R172: 0 | S172: 100 | T172: 100 | U172: 1 | V172: 1 | W172: 0 | X172: 13.6 | AA172: 0 | AB172: 0 | AC172: 100 | AD172: 100 | AE172: 1 | AF172: 1 | AH172: 13.6 | AK172: 16.3 | AL172: 83.7 | AM172: 6.1 | AN172: 6.1 | AP172: 83.9 | AT172: 0 | AU172: 0 | AV172: 2 | BG172: 0 | BI172: 50 | BJ172: 100 | BK172: 50 | BL172: 2.7 | BM172: 37.7 | BO172: 2.7 | BQ172: 2 | BU172: 0 | BV172: 100 | BX172: 0 | CC172: 0 | CN172: 0 | CO172: 0 | CP172: 0 | CQ172: 0 | CR172: 2 | CS172: 0 | CT172: 0 | CX172: 4.3 | CY172: 5.3 | CZ172: 44.9 | DA172: 17.8
A173: Taylor.Hall | B173: 2015-10-25 | C173: EDM | D173: L.A | E173: 1 | F173: 0 | G173: 1 | H173: 39.3 | I173: 0 | J173: 39.3 | K173: 0 | L173: 100 | N173: 100 | P173: 1.5 | Q173: 1 | S173: 100 | U173: 1 | V173: 1 | W173: 0 | X173: 39.3 | AA173: 1 | AC173: 100 | AE173: 1 | AF173: 1 | AH173: 39.3 | AK173: 0 | AL173: 100 | AM173: 3.7 | AN173: 3.7 | AP173: 144.3 | AT173: 2 | AU173: 0 | AV173: 3 | BG173: 0 | BI173: 0 | BJ173: 100 | BK173: 100 | BL173: 1.9 | BM173: 74.9 | BO173: 1.9 | BQ173: 1 | BU173: 39.3 | BX173: 1 | CC173: 52.6 | CN173: 0 | CO173: 1 | CP173: 0 | CQ173: 0 | CR173: 0 | CS173: 0 | CT173: 0 | CX173: 1.5 | CY173: 2.3 | CZ173: 40 | DA173: 18.2
A174: Taylor.Hall | B174: 2015-10-27 | C174: EDM | D174: MIN | E174: 0 | F174: 0 | G174: 0 | H174: 0 | I174: 0 | J174: 0 | K174: 0 | L174: 100 | P174: 0.9 | Q174: 0 | U174: 0 | V174: 0 | W174: 0 | X174: 0 | AA174: 0 | AE174: 0 | AF174: 0 | AH174: 0 | AK174: 0 | AL174: 100 | AM174: 1 | AN174: 1 | AP174: 65.4 | AT174: 0 | AU174: 0 | AV174: 0 | BG174: 0 | BK174: 100 | BL174: 0 | BM174: 0 | BO174: 0 | BQ174: 0 | BU174: 0 | BX174: 0 | CN174: 0 | CO174: 0 | CP174: 0 | CQ174: 0 | CR174: 0 | CS174: 0 | CT174: 0 | CX174: 0.9 | CY174: 0.9 | CZ174: 49.8 | DA174: 17.5
A175: Taylor.Hall | B175: 2015-10-29 | C175: EDM | D175: MTL | E175: 0 | F175: 1 | G175: 1 | H175: 0 | I175: 13.1 | J175: 13.1 | K175: 0 | L175: 88.1 | P175: 4.6 | Q175: 1 | S175: 100 | U175: 4.8 | V175: 4.8 | W175: 0 | X175: 63.4 | AA175: 1 | AB175: 52.2 | AC175: 100 | AD175: 47.8 | AE175: 6.9 | AF175: 6.9 | AH175: 90.2 | AK175: 16.7 | AL175: 71.4 | AM175: 6.4 | AN175: 7.4 | AP175: 97.3 | AT175: 0 | AU175: 0 | AV175: 1 | BG175: 1 | BI175: 0 | BJ175: 100 | BK175: 100 | BL175: 5.7 | BM175: 75.3 | BO175: 5.7 | BQ175: 0 | BU175: 13.1 | BX175: 1 | CC175: 17.4 | CN175: 0 | CO175: 1 | CP175: 1 | CQ175: 0 | CR175: 0 | CS175: 0 | CT175: 0 | CX175: 4.6 | CY175: 2.4 | CZ175: 66 | DA175: 17.9
A176: Taylor.Hall | B176: 2015-10-31 | C176: EDM | D176: CGY | E176: 0 | F176: 1 | G176: 1 | H176: 0 | I176: 16.1 | J176: 16.1 | K176: 0 | L176: 86.3 | M176: 143 | P176: 3.7 | Q176: 0 | R176: -52.1 | S176: 47.9 | T176: 100 | U176: -0.1 | V176: 0.9 | W176: 1 | X176: 14.8 | AA176: 0 | AB176: -34.8 | AC176: 65.2 | AD176: 100 | AE176: 0.9 | AF176: 1.9 | AH176: 30.3 | AK176: 8.4 | AL176: 77.9 | AM176: 5.3 | AN176: 6.3 | AP176: 101.4 | AT176: 0 | AU176: 0 | AV176: 0 | BG176: 0 | BI176: 17.3 | BJ176: 82.3 | BK176: 65 | BL176: 3.6 | BM176: 75 | BO176: 4.6 | BQ176: 0 | BU176: 32.3 | BX176: 2 | CC176: 43 | CE176: 100 | CN176: 0 | CO176: 0 | CP176: 0 | CQ176: 1 | CR176: 0 | CS176: 1 | CT176: 0 | CX176: 3.7 | CY176: 3.3 | CZ176: 52.8 | DA176: 18
A177: Taylor.Hall | B177: 2015-11-03 | C177: EDM | D177: PHI | E177: 0 | F177: 1 | G177: 1 | H177: 0 | I177: 10 | J177: 10 | K177: 1 | L177: 100 | N177: 0 | P177: 6 | Q177: 2 | R177: 0 | S177: 100 | T177: 100 | U177: 8.6 | V177: 8.6 | W177: 0 | X177: 86.2 | AA177: 2 | AB177: 0 | AC177: 100 | AD177: 100 | AE177: 12.4 | AF177: 12.4 | AH177: 124.5 | AK177: 0 | AL177: 100 | AM177: 15.9 | AN177: 15.9 | AP177: 159.7 | AT177: 0 | AU177: 0 | AV177: 2 | BG177: 0 | BI177: 0 | BJ177: 100 | BK177: 100 | BL177: 8.5 | BM177: 85.4 | BO177: 8.5 | BQ177: 2 | BU177: 10 | BX177: 1 | CC177: 11.7 | CN177: 0 | CO177: 0 | CP177: 0 | CQ177: 1 | CR177: 2 | CS177: 0 | CT177: 0 | CX177: 6 | CY177: 1.7 | CZ177: 77.5 | DA177: 18.1
A178: Taylor.Hall | B178: 2015-11-06 | C178: EDM | D178: PIT | E178: 0 | F178: 0 | G178: 0 | H178: 0 | I178: 0 | J178: 0 | K178: -1 | L178: 100 | N178: 0 | P178: 2.7 | Q178: 0 | T178: 100 | U178: 0 | V178: 0 | W178: 0 | X178: 0 | AA178: 0 | AD178: 100 | AE178: 0 | AF178: 0 | AH178: 0 | AK178: 0 | AL178: 100 | AM178: 7.2 | AN178: 7.2 | AP178: 158.3 | AT178: 0 | AU178: 0 | AV178: 2 | BG178: 1 | BJ178: 100 | BL178: 2.9 | BM178: 63.6 | BO178: 2.9 | BQ178: 1 | BU178: 0 | BX178: 0 | CC178: 0 | CN178: 0 | CO178: 0 | CP178: 0 | CQ178: 0 | CR178: 1 | CS178: 0 | CT178: 0 | CX178: 2.7 | CY178: 0.4 | CZ178: 87 | DA178: 17.6
A179: Taylor.Hall | B179: 2015-11-08 | C179: EDM | D179: CHI | E179: 0 | F179: 0 | G179: 0 | H179: 0 | I179: 0 | J179: 0 | K179: 0 | L179: 100 | P179: 0.7 | Q179: 0 | S179: 100 | U179: 1 | V179: 1 | W179: 0 | X179: 90 | AA179: 0 | AC179: 100 | AE179: 2 | AF179: 2 | AH179: 176.7 | AM179: 1.9 | AN179: 1.9 | AP179: 166.7 | AT179: 0 | AU179: 0 | AV179: 0 | BG179: 0 | BJ179: 100 | BL179: 1.9 | BM179: 166.7 | BO179: 1.9 | BQ179: 0 | BU179: 90 | BX179: 1 | CC179: 54 | CN179: 0 | CO179: 0 | CP179: 0 | CQ179: 0 | CR179: 0 | CS179: 0 | CT179: 0 | CX179: 0.7 | CY179: 0 | CZ179: 100 | DA179: 17.9
A180: Taylor.Hall | B180: 2015-11-11 | C180: EDM | D180: ANA | E180: 0 | F180: 0 | G180: 0 | H180: 0 | I180: 0 | J180: 0 | K180: 0 | L180: 100 | P180: 1.6 | Q180: 0 | T180: 0 | U180: 0 | V180: 0 | W180: 0 | X180: 0 | AA180: 1 | AB180: 65.3 | AC180: 100 | AD180: 34.7 | AE180: 1.9 | AF180: 1.9 | AH180: 74.3 | AK180: 50.1 | AL180: 49.9 | AM180: 3.5 | AN180: 3.5 | AP180: 136.5 | AT180: 1 | AU180: 0 | AV180: 1 | BG180: 0 | BI180: 50 | BJ180: 100 | BK180: 50 | BL180: 1.9 | BM180: 71.6 | BO180: 1.9 | BQ180: 0 | BU180: 0 | BV180: 100 | BX180: 0 | CC180: 0 | CN180: 0 | CO180: 0 | CP180: 0 | CQ180: 0 | CR180: 0 | CS180: 0 | CT180: 0 | CX180: 1.6 | CY180: 2.3 | CZ180: 40.6 | DA180: 18.2
A181: Taylor.Hall | B181: 2015-11-12 | C181: EDM | D181: ARI | E181: 0 | F181: 0 | G181: 0 | H181: 0 | I181: 0 | J181: 0 | K181: 0 | L181: 61.3 | M181: 100 | P181: 5.5 | Q181: 0 | R181: -31.9 | S181: 68.1 | T181: 100 | U181: 1.1 | V181: 2.1 | W181: 1 | X181: 23.3 | AA181: 0 | AB181: -48.4 | AC181: 51.6 | AD181: 100 | AE181: 0.1 | AF181: 2.1 | AH181: 23.3 | AK181: -3.5 | AL181: 64.9 | AM181: 1.8 | AN181: 4.8 | AP181: 51.9 | AT181: 0 | AU181: 0 | AV181: 0 | BG181: 0 | BI181: -5.4 | BJ181: 59.5 | BK181: 64.9 | BL181: 0.9 | BM181: 32 | BO181: 2.9 | BQ181: 0 | BU181: 0 | BX181: 0 | CC181: 0 | CE181: 100 | CN181: 0 | CO181: 0 | CP181: 0 | CQ181: 0 | CR181: 0 | CS181: 0 | CT181: 0 | CX181: 5.5 | CY181: 1.9 | CZ181: 74.2 | DA181: 18.1
A182: Taylor.Hall | B182: 2015-11-14 | C182: EDM | D182: L.A | E182: 0 | F182: 0 | G182: 0 | H182: 0 | I182: 0 | J182: 0 | K182: 0 | L182: 100 | P182: 3.4 | Q182: 0 | U182: 0 | V182: 0 | W182: 0 | X182: 0 | AA182: 0 | AD182: 100 | AE182: 0 | AF182: 0 | AH182: 0 | AK182: 0 | AL182: 100 | AM182: 3.4 | AN182: 3.4 | AP182: 61 | AT182: 0 | AU182: 0 | AV182: 1 | BG182: 1 | BI182: 0 | BJ182: 100 | BK182: 100 | BL182: 1.9 | BM182: 33.1 | BO182: 1.9 | BQ182: 0 | BU182: 0 | BX182: 0 | CC182: 0 | CN182: 0 | CO182: 1 | CP182: 0 | CQ182: 0 | CR182: 0 | CS182: 0 | CT182: 0 | CX182: 3.4 | CY182: 2.4 | CZ182: 58.3 | DA182: 17.1
A183: Taylor.Hall | B183: 2015-11-18 | C183: EDM | D183: CHI | E183: 0 | F183: 0 | G183: 0 | H183: 0 | I183: 0 | J183: 0 | K183: 0 | L183: 84.8 | M183: 100 | N183: 0 | P183: 4.4 | Q183: 0 | S183: 100 | U183: 1 | V183: 1 | W183: 0 | X183: 14.4 | AA183: 1 | AB183: 0 | AC183: 100 | AD183: 100 | AE183: 3 | AF183: 3 | AH183: 41 | AK183: -15.2 | AL183: 100 | AM183: 4.6 | AN183: 5.6 | AP183: 76.8 | AT183: 0 | AU183: 0 | AV183: 1 | BG183: 0 | BI183: -20.5 | BJ183: 79.5 | BK183: 100 | BL183: 2.9 | BM183: 53.4 | BO183: 3.9 | BQ183: 1 | BU183: 0 | BX183: 0 | CC183: 0 | CE183: 100 | CN183: 0 | CO183: 0 | CP183: 0 | CQ183: 0 | CR183: 1 | CS183: 0 | CT183: 0 | CX183: 4.4 | CY183: 1.7 | CZ183: 72.4 | DA183: 17
A184: Taylor.Hall | B184: 2015-11-20 | C184: EDM | D184: N.J | E184: 0 | F184: 1 | G184: 1 | H184: 0 | I184: 9.4 | J184: 9.4 | K184: 0 | L184: 100 | N184: 0 | P184: 6.4 | Q184: 0 | R184: 0 | S184: 100 | T184: 100 | U184: 2.1 | V184: 2.1 | W184: 0 | X184: 20.2 | AA184: 2 | AB184: 0 | AC184: 100 | AD184: 100 | AE184: 5.2 | AF184: 5.2 | AH184: 48.7 | AK184: 0 | AL184: 100 | AM184: 8.6 | AN184: 8.6 | AP184: 81.1 | AT184: 0 | AU184: 0 | AV184: 2 | BG184: 0 | BI184: 0 | BJ184: 100 | BK184: 100 | BL184: 5.6 | BM184: 52.3 | BO184: 5.6 | BQ184: 2 | BU184: 9.4 | BX184: 1 | CC184: 18 | CN184: 1 | CO184: 0 | CP184: 1 | CQ184: 0 | CR184: 2 | CS184: 1 | CT184: 0 | CX184: 6.4 | CY184: 3.9 | CZ184: 61.8 | DA184: 17.2
A185: Taylor.Hall | B185: 2015-11-23 | C185: EDM | D185: WSH | E185: 0 | F185: 0 | G185: 0 | H185: 0 | I185: 0 | J185: 0 | K185: 0 | L185: 100 | P185: 2.4 | Q185: 0 | T185: 100 | U185: 0 | V185: 0 | W185: 0 | X185: 0 | AA185: 0 | AB185: 0 | AC185: 100 | AD185: 100 | AE185: 0.9 | AF185: 0.9 | AH185: 23.6 | AK185: 0 | AL185: 100 | AM185: 1.8 | AN185: 1.8 | AP185: 44.2 | AT185: 0 | AU185: 0 | AV185: 0 | BG185: 0 | BI185: 0 | BJ185: 100 | BK185: 100 | BL185: 1 | BM185: 23.9 | BO185: 1 | BQ185: 0 | BU185: 0 | BX185: 0 | CC185: 0 | CN185: 0 | CO185: 1 | CP185: 0 | CQ185: 0 | CR185: 0 | CS185: 0 | CT185: 0 | CX185: 2.4 | CY185: 2.6 | CZ185: 47.8 | DA185: 16.8
A186: Taylor.Hall | B186: 2015-11-25 | C186: EDM | D186: CAR | E186: 0 | F186: 0 | G186: 0 | H186: 0 | I186: 0 | J186: 0 | K186: 0 | L186: 100 | N186: 0 | P186: 3.2 | Q186: 0 | T186: 100 | U186: 0 | V186: 0 | W186: 0 | X186: 0 | AA186: 0 | AB186: 0 | AC186: 100 | AD186: 100 | AE186: 0.9 | AF186: 0.9 | AH186: 17.3 | AK186: 0 | AL186: 100 | AM186: 2.1 | AN186: 2.1 | AP186: 37.9 | AT186: 0 | AU186: 0 | AV186: 1 | BG186: 0 | BI186: 0 | BJ186: 100 | BK186: 100 | BL186: 2.1 | BM186: 37.9 | BO186: 2.1 | BQ186: 1 | BU186: 0 | BV186: 100 | BX186: 0 | CC186: 0 | CN186: 0 | CO186: 0 | CP186: 0 | CQ186: 0 | CR186: 1 | CS186: 0 | CT186: 0 | CX186: 3.2 | CY186: 3.8 | CZ186: 46 | DA186: 16.8
A187: Taylor.Hall | B187: 2015-11-27 | C187: EDM | D187: DET | E187: 0 | F187: 0 | G187: 0 | H187: 0 | I187: 0 | J187: 0 | K187: 0 | L187: 0 | P187: 1.2 | Q187: 0 | U187: 0 | V187: 0 | W187: 0 | X187: 0 | AA187: 0 | AD187: 100 | AE187: 0 | AF187: 0 | AH187: 0 | AK187: -100 | AL187: 100 | AM187: -1 | AN187: 0 | AP187: 0 | AT187: 0 | AU187: 0 | AV187: 0 | BG187: 0 | BK187: 100 | BL187: 0 | BM187: 0 | BO187: 0 | BQ187: 0 | BU187: 0 | BV187: 100 | BX187: 0 | CN187: 0 | CO187: 1 | CP187: 0 | CQ187: 0 | CR187: 0 | CS187: 0 | CT187: 0 | CX187: 1.2 | CY187: 1.5 | CZ187: 45.1 | DA187: 16.9
A188: Taylor.Hall | B188: 2015-11-28 | C188: EDM | D188: PIT | E188: 0 | F188: 0 | G188: 0 | H188: 0 | I188: 0 | J188: 0 | K188: 0 | L188: 87.5 | M188: 100 | P188: 2.5 | Q188: 0 | R188: -50 | S188: 50 | T188: 100 | U188: 0 | V188: 1 | W188: 1 | X188: 23.7 | AA188: 1 | AB188: -20 | AC188: 80 | AD188: 100 | AE188: 3 | AF188: 4 | AH188: 94.7 | AK188: -12.5 | AL188: 100 | AM188: 6 | AN188: 7 | AP188: 166.2 | AT188: 1 | AU188: 0 | AV188: 2 | BG188: 1 | BI188: -33.2 | BJ188: 66.8 | BK188: 100 | BL188: 1 | BM188: 47.8 | BO188: 2 | BQ188: 0 | BU188: 0 | BV188: 100 | BX188: 0 | CC188: 0 | CE188: 100 | CN188: 0 | CO188: 1 | CP188: 0 | CQ188: 0 | CR188: 0 | CS188: 1 | CT188: 0 | CX188: 2.5 | CY188: 3.3 | CZ188: 43.2 | DA188: 17
A189: Taylor.Hall | B189: 2015-11-30 | C189: EDM | D189: TOR | E189: 0 | F189: 0 | G189: 0 | H189: 0 | I189: 0 | J189: 0 | K189: 0 | L189: 45.6 | M189: 100 | N189: 0 | P189: 4 | Q189: 0 | U189: 0 | V189: 0 | W189: 0 | X189: 0 | AA189: 1 | AB189: -67.4 | AC189: 32.6 | AD189: 100 | AE189: -1 | AF189: 1 | AH189: 14.7 | AK189: -54.4 | AL189: 100 | AM189: -0.3 | AN189: 1.7 | AP189: 25.4 | AT189: 0 | AU189: 0 | AV189: 1 | BG189: 0 | BJ189: 31.2 | BL189: -1.1 | BM189: 13.7 | BO189: 0.9 | BQ189: 1 | BU189: 0 | BX189: 0 | CC189: 0 | CE189: 100 | CN189: 0 | CO189: 0 | CP189: 0 | CQ189: 0 | CR189: 1 | CS189: 1 | CT189: 1 | CX189: 4 | CY189: 1.7 | CZ189: 70.4 | DA189: 16.8
A190: Taylor.Hall | B190: 2015-12-02 | C190: EDM | D190: BOS | E190: 0 | F190: 0 | G190: 0 | H190: 0 | I190: 0 | J190: 0 | K190: 0 | L190: 72.1 | M190: 100 | N190: 0 | P190: 6 | Q190: 0 | R190: -52.2 | S190: 47.8 | T190: 100 | U190: -0.1 | V190: 0.9 | W190: 1 | X190: 9.1 | AA190: 1 | AB190: -14.4 | AC190: 85.6 | AD190: 100 | AE190: 5 | AF190: 6 | AH190: 59.3 | AK190: -13.1 | AL190: 85.2 | AM190: 4.8 | AN190: 7.8 | AP190: 77.3 | AT190: 0 | AU190: 0 | AV190: 2 | BG190: 0 | BI190: -29.7 | BJ190: 49.9 | BK190: 79.6 | BL190: 0 | BM190: 29.8 | BO190: 3 | BQ190: 2 | BU190: 0 | BX190: 0 | CC190: 0 | CE190: 100 | CN190: 0 | CO190: 0 | CP190: 0 | CQ190: 0 | CR190: 2 | CS190: 0 | CT190: 0 | CX190: 6 | CY190: 3 | CZ190: 66.9 | DA190: 18.2
A191: Taylor.Hall | B191: 2015-12-04 | C191: EDM | D191: DAL | E191: 0 | F191: 0 | G191: 0 | H191: 0 | I191: 0 | J191: 0 | K191: 0 | L191: 100 | N191: 0 | P191: 3.9 | Q191: 1 | R191: 0 | S191: 100 | T191: 100 | U191: 1.9 | V191: 1.9 | W191: 0 | X191: 28.9 | AA191: 1 | AB191: 0 | AC191: 100 | AD191: 100 | AE191: 2.9 | AF191: 2.9 | AH191: 44.2 | AK191: 0 | AL191: 100 | AM191: 5.8 | AN191: 5.8 | AP191: 88.1 | AT191: 1 | AU191: 0 | AV191: 2 | BG191: 0 | BI191: 0 | BJ191: 100 | BK191: 100 | BL191: 2 | BM191: 30.5 | BO191: 2 | BQ191: 1 | BU191: 0 | BX191: 0 | CC191: 0 | CN191: 1 | CO191: 0 | CP191: 0 | CQ191: 0 | CR191: 1 | CS191: 0 | CT191: 1 | CX191: 3.9 | CY191: 2.4 | CZ191: 62.5 | DA191: 17.8
A192: Taylor.Hall | B192: 2015-12-06 | C192: EDM | D192: BUF | E192: 1 | F192: 0 | G192: 1 | H192: 225 | I192: 0 | J192: 225 | K192: 0 | L192: 100 | N192: 100 | P192: 0.3 | Q192: 1 | S192: 100 | U192: 1 | V192: 1 | W192: 0 | X192: 225 | AA192: 1 | AC192: 100 | AE192: 1 | AF192: 1 | AH192: 225 | AM192: 1 | AN192: 1 | AP192: 225 | AT192: 0 | AU192: 0 | AV192: 1 | BG192: 0 | BJ192: 100 | BL192: 1 | BM192: 225 | BO192: 1 | BQ192: 1 | BU192: 225 | BX192: 1 | CC192: 100 | CN192: 0 | CO192: 0 | CP192: 0 | CQ192: 0 | CR192: 0 | CS192: 0 | CT192: 0 | CX192: 0.3 | CY192: 0 | CZ192: 100 | DA192: 17.2
A193: Taylor.Hall | B193: 2015-12-09 | C193: EDM | D193: PIT | E193: 0 | F193: 0 | G193: 0 | H193: 0 | I193: 0 | J193: 0 | K193: 0 | P193: 1 | Q193: 0 | T193: 100 | U193: 0 | V193: 0 | W193: 0 | X193: 0 | AA193: 0 | AD193: 100 | AE193: 0 | AF193: 0 | AH193: 0 | AL193: 100 | AM193: 0 | AN193: 0 | AP193: 0 | AT193: 0 | AU193: 0 | AV193: 0 | BG193: 0 | BK193: 100 | BL193: 0 | BM193: 0 | BO193: 0 | BQ193: 0 | BU193: 0 | BX193: 0 | CN193: 0 | CO193: 0 | CP193: 0 | CQ193: 0 | CR193: 0 | CS193: 0 | CT193: 0 | CX193: 1 | CY193: 0.9 | CZ193: 52.5 | DA193: 17.2
A194: Taylor.Hall | B194: 2015-12-11 | C194: EDM | D194: NYR | E194: 0 | F194: 0 | G194: 0 | H194: 0 | I194: 0 | J194: 0 | K194: 0 | L194: 100 | P194: 2.4 | Q194: 0 | T194: 100 | U194: 0 | V194: 0 | W194: 0 | X194: 0 | AA194: 0 | AD194: 100 | AE194: 0 | AF194: 0 | AH194: 0 | AK194: 0 | AL194: 100 | AM194: 1.9 | AN194: 1.9 | AP194: 48.6 | AT194: 0 | AU194: 0 | AV194: 0 | BG194: 0 | BI194: 0 | BJ194: 100 | BK194: 100 | BL194: 0.9 | BM194: 23.2 | BO194: 0.9 | BQ194: 0 | BU194: 0 | BV194: 100 | BX194: 0 | CC194: 0 | CN194: 0 | CO194: 0 | CP194: 0 | CQ194: 0 | CR194: 0 | CS194: 0 | CT194: 0 | CX194: 2.4 | CY194: 2.5 | CZ194: 49.2 | DA194: 17.2
A195: Taylor.Hall | B195: 2015-12-14 | C195: EDM | D195: BOS | E195: 0 | F195: 0 | G195: 0 | H195: 0 | I195: 0 | J195: 0 | K195: -1 | L195: 100 | P195: 2.2 | Q195: 0 | S195: 100 | U195: 1.2 | V195: 1.2 | W195: 0 | X195: 31.5 | AA195: 0 | AB195: 48.3 | AC195: 100 | AD195: 51.7 | AE195: 1.2 | AF195: 1.2 | AH195: 31.5 | AK195: 16.5 | AL195: 83.5 | AM195: 2.8 | AN195: 2.8 | AP195: 73.9 | AT195: 1 | AU195: 0 | AV195: 1 | BG195: 0 | BI195: 0 | BJ195: 100 | BK195: 100 | BL195: 1.2 | BM195: 31.7 | BO195: 1.2 | BQ195: 0 | BU195: 0 | BX195: 0 | CC195: 0 | CN195: 0 | CO195: 0 | CP195: 0 | CQ195: 0 | CR195: 0 | CS195: 0 | CT195: 0 | CX195: 2.2 | CY195: 2 | CZ195: 52.3 | DA195: 17
A196: Taylor.Hall | B196: 2015-12-15 | C196: EDM | D196: NYR | E196: 1 | F196: 0 | G196: 1 | H196: 10.2 | I196: 0 | J196: 10.2 | K196: 0 | L196: 84.6 | M196: 134.4 | N196: 50 | P196: 5.9 | Q196: 0 | U196: 0 | V196: 0 | W196: 0 | X196: 0 | AA196: 2 | AB196: 0 | AC196: 100 | AD196: 100 | AE196: 4.2 | AF196: 4.2 | AH196: 43.2 | AK196: -3.5 | AL196: 88.1 | AM196: 4.5 | AN196: 5.5 | AP196: 56 | AT196: 1 | AU196: 0 | AV196: 3 | BG196: 0 | BI196: 8.4 | BJ196: 74.4 | BK196: 66 | BL196: 1.9 | BM196: 29.6 | BO196: 2.9 | BQ196: 2 | BU196: 10.2 | BX196: 1 | CC196: 34.4 | CE196: 100 | CN196: 0 | CO196: 0 | CP196: 0 | CQ196: 0 | CR196: 1 | CS196: 1 | CT196: 0 | CX196: 5.9 | CY196: 4.1 | CZ196: 58.8 | DA196: 17
A197: Taylor.Hall | B197: 2015-12-19 | C197: EDM | D197: COL | E197: 0 | F197: 0 | G197: 0 | H197: 0 | I197: 0 | J197: 0 | K197: 0 | L197: 66.4 | M197: 50 | P197: 2.5 | Q197: 0 | R197: -33.6 | S197: 66.4 | T197: 100 | U197: 1 | V197: 2 | W197: 1 | X197: 46.5 | AA197: 0 | AB197: -40 | AC197: 60 | AD197: 100 | AE197: 1 | AF197: 3 | AH197: 70.5 | AK197: -33.6 | AL197: 100 | AM197: 2 | AN197: 4 | AP197: 93 | AT197: 0 | AU197: 0 | AV197: 0 | BG197: 0 | BI197: -50.3 | BJ197: 49.7 | BK197: 100 | BL197: 0 | BM197: 46.5 | BO197: 2 | BQ197: 0 | BU197: 0 | BX197: 0 | CC197: 0 | CE197: 50 | CN197: 1 | CO197: 0 | CP197: 0 | CQ197: 0 | CR197: 0 | CS197: 0 | CT197: 0 | CX197: 2.5 | CY197: 1.5 | CZ197: 62.4 | DA197: 17
A198: Taylor.Hall | B198: 2015-12-21 | C198: EDM | D198: WPG | E198: 0 | F198: 0 | G198: 0 | H198: 0 | I198: 0 | J198: 0 | K198: 0 | L198: 100 | P198: 1.5 | Q198: 0 | T198: 25.2 | U198: 0 | V198: 0 | W198: 0 | X198: 0 | AA198: 0 | AD198: 33.5 | AE198: 0 | AF198: 0 | AH198: 0 | AK198: 54.8 | AL198: 45.2 | AM198: 0.9 | AN198: 0.9 | AP198: 35.3 | AT198: 0 | AU198: 0 | AV198: 0 | BG198: 0 | BK198: 24.9 | BL198: 0 | BM198: 0 | BO198: 0 | BQ198: 0 | BU198: 0 | BX198: 0 | CN198: 0 | CO198: 0 | CP198: 0 | CQ198: 0 | CR198: 0 | CS198: 1 | CT198: 0 | CX198: 1.5 | CY198: 2.3 | CZ198: 40 | DA198: 17.2
A199: Taylor.Hall | B199: 2015-12-26 | C199: EDM | D199: VAN | E199: 0 | F199: 0 | G199: 0 | H199: 0 | I199: 0 | J199: 0 | K199: 0 | L199: 83.8 | N199: 0 | P199: 5 | Q199: 0 | R199: 100 | S199: 100 | T199: 0 | U199: 1.1 | V199: 1.1 | W199: 0 | X199: 12.9 | AA199: 0 | AB199: 16.8 | AC199: 68.7 | AD199: 51.8 | AE199: 1.2 | AF199: 2.2 | AH199: 26.3 | AK199: 32.6 | AL199: 51.1 | AM199: 4.2 | AN199: 5.2 | AP199: 61.9 | AT199: 1 | AU199: 0 | AV199: 2 | BG199: 0 | BI199: 48.9 | BJ199: 100 | BK199: 51.1 | BL199: 3.1 | BM199: 36.6 | BO199: 3.1 | BQ199: 1 | BU199: 0 | BX199: 0 | CC199: 0 | CN199: 0 | CO199: 0 | CP199: 0 | CQ199: 0 | CR199: 1 | CS199: 0 | CT199: 0 | CX199: 5 | CY199: 1.2 | CZ199: 80 | DA199: 17.4
A200: Taylor.Hall | B200: 2015-12-27 | C200: EDM | D200: CGY | E200: 0 | F200: 0 | G200: 0 | H200: 0 | I200: 0 | J200: 0 | K200: 0 | L200: 0 | P200: 1.1 | Q200: 0 | R200: -100 | S200: 0 | T200: 100 | U200: -2 | V200: 0 | W200: 2 | X200: 0 | AA200: 0 | AB200: -100 | AC200: 0 | AD200: 100 | AE200: -3 | AF200: 0 | AH200: 0 | AK200: -100 | AL200: 100 | AM200: -3 | AN200: 0 | AP200: 0 | AT200: 0 | AU200: 0 | AV200: 0 | BG200: 0 | BI200: -100 | BJ200: 0 | BK200: 100 | BL200: -2 | BM200: 0 | BO200: 0 | BQ200: 0 | BU200: 0 | BX200: 0 | CE200: 50 | CN200: 0 | CO200: 0 | CP200: 0 | CQ200: 0 | CR200: 0 | CS200: 0 | CT200: 0 | CX200: 1.1 | CY200: 1.1 | CZ200: 50.4 | DA200: 17.3
... 362 more rows

Sheet Sheet3
A3: Row Labels | B3: G | C3: A1 | D3: A2 | E3: P | H3: Row Labels | I3: TOI/Gm | J3: PSh% | K3: Average of OSh% | N3: TOI/Gm | O3: PSh% | P3: OSh% | Q3: P60 | S3: Row Labels | T3: TOI/Gm | U3: CF | V3: iCF | Y3: TOI/Gm | Z3: CF | AA3: iCF | AB3: P60 | AD3: Row Labels | AE3: HSCF | AF3: iHSC | AG3: HSCF%Rel | AH3: G60 | AJ3: HSCF | AK3: iHSC | AL3: HSCF%Rel | AM3: G60 | AO3: Row Labels | AP3: iHSC | AQ3: iSC | AR3: SCF%Rel | AS3: P60 | AU3: iHSC | AV3: iSC | AW3: SCF%Rel | AX3: P60 | AZ3: Row Labels | BA3: OSh% | BB3: SF60 | BC3: GF60 | BF3: OSh% | BG3: SF60 | BH3: GF60 | BI3: P60 | BK3: Row Labels | BL3: CF | BM3: SF | BN3: MS | BO3: BK | BQ3: CF | BR3: SF | BS3: MS | BT3: BK | BV3: Row Labels | BW3: HSCF60 | BX3: SCF60 | BY3: CF60 | BZ3: SF60 | CA3: TOI/Gm | CC3: HSCF60 | CD3: SCF60 | CE3: CF60 | CF3: SF60 | CG3: TOI/Gm | CI3: Row Labels | CJ3: G60 | CK3: P60 | CL3: A160 | CM3: A260 | CO3: G60 | CP3: P60 | CQ3: A160 | CR3: A260 | CT3: Row Labels | CU3: HSCF% | CV3: HSCF%off | CW3: SCF% | CX3: SCF%off | CZ3: HSCF% | DA3: HSCF%off | DB3: SCF% | DC3: SCF%off
A4: 2014-10-09 | B4: 0 | C4: 0 | D4: 0 | E4: 0 | H4: 2014-10-09 | I4: 2.1 | S4: 2014-10-09 | T4: 2.1 | U4: 3.4 | V4: 0 | AD4: 2014-10-09 | AE4: 0 | AF4: 0 | AH4: 0 | AO4: 2014-10-09 | AP4: 0 | AQ4: 0 | AR4: 0 | AS4: 0 | AZ4: 2014-10-09 | BB4: 0 | BC4: 0 | BK4: 2014-10-09 | BL4: 3.4 | BM4: 0 | BN4: 0 | BO4: 0 | BV4: 2014-10-09 | BW4: 0 | BX4: 88.9 | BY4: 96.1 | BZ4: 0 | CA4: 2.1 | CI4: 2014-10-09 | CJ4: 0 | CK4: 0 | CL4: 0 | CM4: 0 | CT4: 2014-10-09 | CV4: 100 | CW4: 100 | CX4: 100
A5: 2014-10-11 | B5: 0 | C5: 0 | D5: 0 | E5: 0 | H5: 2014-10-11 | I5: 6.6 | J5: 0 | K5: 0 | S5: 2014-10-11 | T5: 6.6 | U5: 19.4 | V5: 6 | AD5: 2014-10-11 | AE5: 7.5 | AF5: 2 | AG5: -11.8 | AH5: 0 | AO5: 2014-10-11 | AP5: 2 | AQ5: 3 | AR5: -6.4 | AS5: 0 | AZ5: 2014-10-11 | BA5: 0 | BB5: 108.9 | BC5: 0 | BK5: 2014-10-11 | BL5: 19.4 | BM5: 11.9 | BN5: 0 | BO5: 1 | BV5: 2014-10-11 | BW5: 68.4 | BX5: 133.7 | BY5: 177.2 | BZ5: 108.9 | CA5: 6.6 | CI5: 2014-10-11 | CJ5: 0 | CK5: 0 | CL5: 0 | CM5: 0 | CT5: 2014-10-11 | CU5: 88.2 | CV5: 100 | CW5: 93.6 | CX5: 100
A6: 2014-10-17 | B6: 0 | C6: 0 | D6: 0 | E6: 0 | H6: 2014-10-17 | I6: 3.6 | J6: 0 | K6: 0 | S6: 2014-10-17 | T6: 3.6 | U6: 9.2 | V6: 2 | AD6: 2014-10-17 | AE6: 5.6 | AF6: 2 | AG6: 46.8 | AH6: 0 | AO6: 2014-10-17 | AP6: 2 | AQ6: 2 | AR6: 47.5 | AS6: 0 | AZ6: 2014-10-17 | BA6: 0 | BB6: 90.1 | BC6: 0 | BK6: 2014-10-17 | BL6: 9.2 | BM6: 5.5 | BN6: 0 | BO6: 0 | BV6: 2014-10-17 | BW6: 92.7 | BX6: 128.8 | BY6: 152 | BZ6: 90.1 | CA6: 3.6 | CI6: 2014-10-17 | CJ6: 0 | CK6: 0 | CL6: 0 | CM6: 0 | CT6: 2014-10-17 | CU6: 100 | CV6: 53.2 | CW6: 100 | CX6: 52.5
A7: 2014-10-19 | B7: 0 | C7: 0 | D7: 0 | E7: 0 | H7: 2014-10-19 | I7: 6.5 | J7: 0 | K7: 0 | S7: 2014-10-19 | T7: 6.5 | U7: 15.7 | V7: 3 | AD7: 2014-10-19 | AE7: 6 | AF7: 2 | AG7: 0 | AH7: 0 | AO7: 2014-10-19 | AP7: 2 | AQ7: 3 | AR7: -8.4 | AS7: 0 | AZ7: 2014-10-19 | BA7: 0 | BB7: 94.7 | BC7: 0 | BK7: 2014-10-19 | BL7: 15.7 | BM7: 10.3 | BN7: 0 | BO7: 0 | BV7: 2014-10-19 | BW7: 55.5 | BX7: 100.7 | BY7: 144.7 | BZ7: 94.7 | CA7: 6.5 | CI7: 2014-10-19 | CJ7: 0 | CK7: 0 | CL7: 0 | CM7: 0 | CT7: 2014-10-19 | CU7: 100 | CV7: 100 | CW7: 91.6 | CX7: 100
A8: 2014-10-23 | B8: 0 | C8: 0 | D8: 0 | E8: 0 | H8: 2014-10-23 | I8: 4.8 | J8: 0 | K8: 0 | S8: 2014-10-23 | T8: 4.8 | U8: 5.1 | V8: 1 | AD8: 2014-10-23 | AE8: 0 | AF8: 0 | AH8: 0 | AO8: 2014-10-23 | AP8: 0 | AQ8: 1 | AR8: 0 | AS8: 0 | AZ8: 2014-10-23 | BA8: 0 | BB8: 24.6 | BC8: 0 | BK8: 2014-10-23 | BL8: 5.1 | BM8: 1.9 | BN8: 0 | BO8: 0 | BV8: 2014-10-23 | BW8: 0 | BX8: 25.2 | BY8: 64.7 | BZ8: 24.6 | CA8: 4.8 | CI8: 2014-10-23 | CJ8: 0 | CK8: 0 | CL8: 0 | CM8: 0 | CT8: 2014-10-23 | CW8: 100 | CX8: 100
A9: 2014-10-25 | B9: 0 | C9: 0 | D9: 0 | E9: 0 | H9: 2014-10-25 | I9: 1.1 | S9: 2014-10-25 | T9: 1.1 | U9: 0 | V9: 0 | AD9: 2014-10-25 | AE9: 0 | AF9: 0 | AH9: 0 | AO9: 2014-10-25 | AP9: 0 | AQ9: 0 | AR9: -100 | AS9: 0 | AZ9: 2014-10-25 | BB9: 0 | BC9: 0 | BK9: 2014-10-25 | BL9: 0 | BM9: 0 | BN9: 0 | BO9: 0 | BV9: 2014-10-25 | BW9: 0 | BX9: 0 | BY9: 0 | BZ9: 0 | CA9: 1.1 | CI9: 2014-10-25 | CJ9: 0 | CK9: 0 | CL9: 0 | CM9: 0 | CT9: 2014-10-25 | CW9: 0 | CX9: 100
A10: 2014-10-27 | B10: 0 | C10: 0 | D10: 0 | E10: 0 | H10: 2014-10-27 | I10: 4.6 | K10: 0 | S10: 2014-10-27 | T10: 4.6 | U10: 6.9 | V10: 0 | AD10: 2014-10-27 | AE10: 1.9 | AF10: 0 | AG10: 0 | AH10: 0 | AO10: 2014-10-27 | AP10: 0 | AQ10: 0 | AR10: 12.2 | AS10: 0 | AZ10: 2014-10-27 | BA10: 0 | BB10: 40.1 | BC10: 0 | BK10: 2014-10-27 | BL10: 6.9 | BM10: 3.1 | BN10: 0 | BO10: 0 | BV10: 2014-10-27 | BW10: 25.2 | BX10: 54.9 | BY10: 91.2 | BZ10: 40.1 | CA10: 4.6 | CI10: 2014-10-27 | CJ10: 0 | CK10: 0 | CL10: 0 | CM10: 0 | CT10: 2014-10-27 | CU10: 100 | CV10: 100 | CW10: 100 | CX10: 87.8
A11: 2014-10-28 | B11: 0 | C11: 0 | D11: 0 | E11: 0 | H11: 2014-10-28 | I11: 2.3 | J11: 0 | K11: 0 | S11: 2014-10-28 | T11: 2.3 | U11: 6.9 | V11: 2 | AD11: 2014-10-28 | AE11: 1.1 | AF11: 1 | AH11: 0 | AO11: 2014-10-28 | AP11: 1 | AQ11: 1 | AS11: 0 | AZ11: 2014-10-28 | BA11: 0 | BB11: 98.5 | BC11: 0 | BK11: 2014-10-28 | BL11: 6.9 | BM11: 3.7 | BN11: 1 | BO11: 0 | BV11: 2014-10-28 | BW11: 28.5 | BX11: 130.4 | BY11: 183.9 | BZ11: 98.5 | CA11: 2.3 | CI11: 2014-10-28 | CJ11: 0 | CK11: 0 | CL11: 0 | CM11: 0 | CT11: 2014-10-28 | CU11: 100 | CW11: 100
A12: 2014-10-30 | B12: 0 | C12: 0 | D12: 0 | E12: 0 | H12: 2014-10-30 | I12: 1.1 | S12: 2014-10-30 | T12: 1.1 | U12: 0 | V12: 0 | AD12: 2014-10-30 | AE12: 0 | AF12: 0 | AG12: -100 | AH12: 0 | AO12: 2014-10-30 | AP12: 0 | AQ12: 0 | AR12: -100 | AS12: 0 | AZ12: 2014-10-30 | BB12: 0 | BC12: 0 | BK12: 2014-10-30 | BL12: 0 | BM12: 0 | BN12: 0 | BO12: 0 | BV12: 2014-10-30 | BW12: 0 | BX12: 0 | BY12: 0 | BZ12: 0 | CA12: 1.1 | CI12: 2014-10-30 | CJ12: 0 | CK12: 0 | CL12: 0 | CM12: 0 | CT12: 2014-10-30 | CU12: 0 | CV12: 100 | CW12: 0 | CX12: 100
A13: 2014-11-01 | B13: 0 | C13: 1 | D13: 0 | E13: 1 | H13: 2014-11-01 | I13: 2.8 | J13: 0 | K13: 50.3 | S13: 2014-11-01 | T13: 2.8 | U13: 5.8 | V13: 3 | AD13: 2014-11-01 | AE13: 1 | AF13: 0 | AG13: 0 | AH13: 0 | AO13: 2014-11-01 | AP13: 0 | AQ13: 1 | AR13: 0 | AS13: 21.2 | AZ13: 2014-11-01 | BA13: 50.3 | BB13: 42.2 | BC13: 21.2 | BK13: 2014-11-01 | BL13: 5.8 | BM13: 2 | BN13: 1 | BO13: 1 | BV13: 2014-11-01 | BW13: 21.2 | BX13: 43.7 | BY13: 123.1 | BZ13: 42.2 | CA13: 2.8 | CI13: 2014-11-01 | CJ13: 0 | CK13: 21.2 | CL13: 21.42857143 | CM13: 0 | CT13: 2014-11-01 | CU13: 100 | CV13: 100 | CW13: 100 | CX13: 100
A14: 2014-11-04 | B14: 0 | C14: 1 | D14: 0 | E14: 1 | H14: 2014-11-04 | I14: 3 | K14: 0 | S14: 2014-11-04 | T14: 3 | U14: 5 | V14: 1 | AD14: 2014-11-04 | AE14: 0 | AF14: 0 | AH14: 0 | AO14: 2014-11-04 | AP14: 0 | AQ14: 1 | AR14: -27.5 | AS14: 0 | AZ14: 2014-11-04 | BA14: 0 | BB14: 34.6 | BC14: 0 | BK14: 2014-11-04 | BL14: 5 | BM14: 1.8 | BN14: 1 | BO14: 0 | BV14: 2014-11-04 | BW14: 0 | BX14: 52 | BY14: 98.2 | BZ14: 34.6 | CA14: 3 | CI14: 2014-11-04 | CJ14: 0 | CK14: 0 | CL14: 0 | CM14: 0 | CT14: 2014-11-04 | CV14: 100 | CW14: 72.5 | CX14: 100
A15: 2014-11-16 | B15: 0 | C15: 1 | D15: 0 | E15: 1 | H15: 2014-11-16 | I15: 6.2 | K15: 0 | S15: 2014-11-16 | T15: 6.2 | U15: 10.7 | V15: 0 | AD15: 2014-11-16 | AE15: 1 | AF15: 0 | AG15: 0 | AH15: 0 | AO15: 2014-11-16 | AP15: 0 | AQ15: 0 | AR15: 0 | AS15: 0 | AZ15: 2014-11-16 | BA15: 0 | BB15: 51.9 | BC15: 0 | BK15: 2014-11-16 | BL15: 10.7 | BM15: 5.3 | BN15: 0 | BO15: 0 | BV15: 2014-11-16 | BW15: 9.3 | BX15: 52.6 | BY15: 104.9 | BZ15: 51.9 | CA15: 6.2 | CI15: 2014-11-16 | CJ15: 0 | CK15: 0 | CL15: 0 | CM15: 0 | CT15: 2014-11-16 | CU15: 100 | CV15: 100 | CW15: 100 | CX15: 100
A16: 2014-11-20 | B16: 0 | C16: 1 | D16: 0 | E16: 1 | H16: 2014-11-20 | I16: 5.6 | S16: 2014-11-20 | T16: 5.6 | U16: 1 | V16: 1 | AD16: 2014-11-20 | AE16: 1 | AF16: 1 | AG16: 0 | AH16: 0 | AO16: 2014-11-20 | AP16: 1 | AQ16: 1 | AR16: -50 | AS16: 0 | AZ16: 2014-11-20 | BB16: 0 | BC16: 0 | BK16: 2014-11-20 | BL16: 1 | BM16: 0 | BN16: 1 | BO16: 0 | BV16: 2014-11-20 | BW16: 10.7 | BX16: 10.7 | BY16: 10.4 | BZ16: 0 | CA16: 5.6 | CI16: 2014-11-20 | CJ16: 0 | CK16: 0 | CL16: 0 | CM16: 0 | CT16: 2014-11-20 | CU16: 100 | CV16: 100 | CW16: 50 | CX16: 100
A17: 2014-11-22 | B17: 0 | C17: 1 | D17: 0 | E17: 1 | H17: 2014-11-22 | I17: 1 | S17: 2014-11-22 | T17: 1 | U17: 1 | V17: 0 | AD17: 2014-11-22 | AE17: 0 | AF17: 0 | AH17: 0 | AO17: 2014-11-22 | AP17: 0 | AQ17: 0 | AR17: 0 | AS17: 0 | AZ17: 2014-11-22 | BB17: 0 | BC17: 0 | BK17: 2014-11-22 | BL17: 1 | BM17: 0 | BN17: 0 | BO17: 0 | BV17: 2014-11-22 | BW17: 0 | BX17: 56.4 | BY17: 65 | BZ17: 0 | CA17: 1 | CI17: 2014-11-22 | CJ17: 0 | CK17: 0 | CL17: 0 | CM17: 0 | CT17: 2014-11-22 | CV17: 100 | CW17: 100 | CX17: 100
A18: 2014-11-24 | B18: 0 | C18: 1 | D18: 0 | E18: 1 | H18: 2014-11-24 | I18: 3 | J18: 0 | K18: 0 | S18: 2014-11-24 | T18: 3 | U18: 8 | V18: 1 | AD18: 2014-11-24 | AE18: 2.5 | AF18: 0 | AG18: 100 | AH18: 0 | AO18: 2014-11-24 | AP18: 0 | AQ18: 0 | AR18: 100 | AS18: 0 | AZ18: 2014-11-24 | BA18: 0 | BB18: 113.4 | BC18: 0 | BK18: 2014-11-24 | BL18: 8 | BM18: 5.6 | BN18: 0 | BO18: 0 | BV18: 2014-11-24 | BW18: 50.2 | BX18: 97.2 | BY18: 161.9 | BZ18: 113.4 | CA18: 3 | CI18: 2014-11-24 | CJ18: 0 | CK18: 0 | CL18: 0 | CM18: 0 | CT18: 2014-11-24 | CU18: 100 | CV18: 0 | CW18: 100 | CX18: 0
A19: 2014-11-26 | B19: 0 | C19: 1 | D19: 0 | E19: 1 | H19: 2014-11-26 | I19: 2.6 | J19: 0 | K19: 0 | S19: 2014-11-26 | T19: 2.6 | U19: 4.2 | V19: 1 | AD19: 2014-11-26 | AE19: 1.8 | AF19: 1 | AG19: 100 | AH19: 0 | AO19: 2014-11-26 | AP19: 1 | AQ19: 1 | AR19: 36.9 | AS19: 0 | AZ19: 2014-11-26 | BA19: 0 | BB19: 77.8 | BC19: 0 | BK19: 2014-11-26 | BL19: 4.2 | BM19: 3.4 | BN19: 0 | BO19: 0 | BV19: 2014-11-26 | BW19: 41.3 | BX19: 41.3 | BY19: 96 | BZ19: 77.8 | CA19: 2.6 | CI19: 2014-11-26 | CJ19: 0 | CK19: 0 | CL19: 0 | CM19: 0 | CT19: 2014-11-26 | CU19: 100 | CV19: 0 | CW19: 100 | CX19: 63.1
A20: 2014-11-28 | B20: 0 | C20: 1 | D20: 0 | E20: 1 | H20: 2014-11-28 | I20: 1 | S20: 2014-11-28 | T20: 1 | U20: 0 | V20: 0 | AD20: 2014-11-28 | AE20: 0 | AF20: 0 | AH20: 0 | AO20: 2014-11-28 | AP20: 0 | AQ20: 0 | AS20: 0 | AZ20: 2014-11-28 | BB20: 0 | BC20: 0 | BK20: 2014-11-28 | BL20: 0 | BM20: 0 | BN20: 0 | BO20: 0 | BV20: 2014-11-28 | BW20: 0 | BX20: 0 | BY20: 0 | BZ20: 0 | CA20: 1 | CI20: 2014-11-28 | CJ20: 0 | CK20: 0 | CL20: 0 | CM20: 0 | CT20: 2014-11-28 | CX20: 100
A21: 2014-11-29 | B21: 1 | C21: 1 | D21: 0 | E21: 2 | H21: 2014-11-29 | I21: 7 | J21: 50 | K21: 16.9 | S21: 2014-11-29 | T21: 7 | U21: 8.6 | V21: 2 | AD21: 2014-11-29 | AE21: 1 | AF21: 1 | AH21: 8.6 | AO21: 2014-11-29 | AP21: 1 | AQ21: 1 | AR21: -34.8 | AS21: 8.6 | AZ21: 2014-11-29 | BA21: 16.9 | BB21: 51 | BC21: 8.6 | BK21: 2014-11-29 | BL21: 8.6 | BM21: 5.9 | BN21: 0 | BO21: 0 | BV21: 2014-11-29 | BW21: 8.9 | BX21: 32.1 | BY21: 73.7 | BZ21: 51 | CA21: 7 | CI21: 2014-11-29 | CJ21: 8.6 | CK21: 8.6 | CL21: 0 | CM21: 0 | CT21: 2014-11-29 | CU21: 50.8 | CW21: 65.2 | CX21: 100
A22: 2014-12-03 | B22: 1 | C22: 1 | D22: 0 | E22: 2 | H22: 2014-12-03 | I22: 5.3 | K22: 0 | S22: 2014-12-03 | T22: 5.3 | U22: 7.9 | V22: 1 | AD22: 2014-12-03 | AE22: 1.9 | AF22: 0 | AG22: 0 | AH22: 0 | AO22: 2014-12-03 | AP22: 0 | AQ22: 1 | AR22: 0 | AS22: 0 | AZ22: 2014-12-03 | BA22: 0 | BB22: 32.9 | BC22: 0 | BK22: 2014-12-03 | BL22: 7.9 | BM22: 2.9 | BN22: 0 | BO22: 1 | BV22: 2014-12-03 | BW22: 21 | BX22: 42 | BY22: 88.4 | BZ22: 32.9 | CA22: 5.3 | CI22: 2014-12-03 | CJ22: 0 | CK22: 0 | CL22: 0 | CM22: 0 | CT22: 2014-12-03 | CU22: 100 | CV22: 100 | CW22: 100 | CX22: 100
A23: 2014-12-05 | B23: 2 | C23: 1 | D23: 0 | E23: 3 | H23: 2014-12-05 | I23: 4.1 | J23: 100 | K23: 36.1 | N23: =AVERAGE(I4:I23) -> 3.715 | O23: =AVERAGE(J4:J23) -> 15 | P23: 7.378571429 | Q23: =AVERAGE(L5:L24) ->  | S23: 2014-12-05 | T23: 4.1 | U23: 9.8 | V23: 1 | Y23: =AVERAGE(T4:T23) -> 3.715 | Z23: =AVERAGE(U4:U23) -> 6.43 | AA23: =AVERAGE(V4:V23) -> 1.25 | AB23: =AVERAGE(W5:W24) ->  | AD23: 2014-12-05 | AE23: 0 | AF23: 0 | AH23: 14.7 | AJ23: =AVERAGE(AE4:AE23) -> 1.615 | AK23: =AVERAGE(AF4:AF23) -> 0.5 | AL23: =AVERAGE(AG4:AG23) -> 12.27272727 | AM23: =AVERAGE(AH5:AH24) -> 1.165 | AO23: 2014-12-05 | AP23: 0 | AQ23: 1 | AS23: 14.7 | AU23: =AVERAGE(AP4:AP23) -> 0.5 | AV23: =AVERAGE(AQ4:AQ23) -> 0.85 | AW23: =AVERAGE(AR4:AR23) -> -7.676470588 | AX23: =AVERAGE(AS5:AS24) -> 2.225 | AZ23: 2014-12-05 | BA23: 36.1 | BB23: 81.4 | BC23: 29.4 | BF23: =AVERAGE(BA4:BA23) -> 7.378571429 | BG23: =AVERAGE(BB4:BB23) -> 47.105 | BH23: =AVERAGE(BC4:BC23) -> 2.96 | BI23: =AVERAGE(BD5:BD24) ->  | BK23: 2014-12-05 | BL23: 9.8 | BM23: 5.5 | BN23: 0 | BO23: 0 | BQ23: =AVERAGE(BL4:BL23) -> 6.43 | BR23: =AVERAGE(BM4:BM23) -> 3.44 | BS23: =AVERAGE(BN4:BN23) -> 0.2 | BT23: =AVERAGE(BO5:BO24) -> 0.15 | BV23: 2014-12-05 | BW23: 0 | BX23: 28.2 | BY23: 143.5 | BZ23: 81.4 | CA23: 4.1 | CC23: =AVERAGE(BW4:BW23) -> 21.645 | CD23: =AVERAGE(BX4:BX23) -> 55.94 | CE23: =AVERAGE(BY4:BY23) -> 93.745 | CF23: =AVERAGE(BZ5:BZ24) -> 49.215 | CG23: 3.81 | CI23: 2014-12-05 | CJ23: 14.7 | CK23: 14.7 | CL23: 0 | CM23: 0 | CO23: =AVERAGE(CJ4:CJ23) -> 1.165 | CP23: =AVERAGE(CK4:CK23) -> 2.225 | CQ23: =AVERAGE(CL4:CL23) -> 1.071428571 | CR23: 0 | CT23: 2014-12-05 | CW23: 100 | CZ23: =AVERAGE(CU4:CU23) -> 87.61538462 | DA23: =AVERAGE(CV4:CV23) -> 82.37142857 | DB23: =AVERAGE(CW4:CW23) -> 82.78421053 | DC23: =AVERAGE(CX4:CX23) -> 89.07777778
A24: 2014-12-09 | B24: 2 | C24: 1 | D24: 0 | E24: 3 | H24: 2014-12-09 | I24: 4 | K24: 35.3 | N24: =AVERAGE(I5:I24) -> 3.81 | O24: =AVERAGE(J5:J24) -> 15 | P24: =AVERAGE(K5:K24) -> 9.24 | S24: 2014-12-09 | T24: 4 | U24: 8.1 | V24: 0 | Y24: =AVERAGE(T5:T24) -> 3.81 | Z24: 6.665 | AA24: 1.25 | AD24: 2014-12-09 | AE24: 1.9 | AF24: 0 | AG24: 0 | AH24: 0 | AJ24: =AVERAGE(AE5:AE24) -> 1.71 | AK24: 0.5 | AL24: 11.25 | AM24: 1.165 | AO24: 2014-12-09 | AP24: 0 | AQ24: 0 | AR24: 0 | AS24: 0 | AU24: =AVERAGE(AP5:AP24) -> 0.5 | AV24: 0.85 | AW24: -7.676470588 | AX24: 2.225 | AZ24: 2014-12-09 | BA24: 35.3 | BB24: 42.2 | BC24: 14.9 | BF24: =AVERAGE(BA5:BA24) -> 9.24 | BG24: 49.215 | BH24: 3.705 | BK24: 2014-12-09 | BL24: 8.1 | BM24: 2.8 | BN24: 0 | BO24: 0 | BQ24: =AVERAGE(BL5:BL24) -> 6.665 | BR24: 3.58 | BS24: 0.2 | BT24: 0.1 | BV24: 2014-12-09 | BW24: 28.9 | BX24: 53.6 | BY24: 120.6 | BZ24: 42.2 | CA24: 4 | CC24: =AVERAGE(BW5:BW24) -> 23.09 | CD24: 54.175 | CE24: 94.97 | CF24: 43.77 | CG24: 3.58 | CI24: 2014-12-09 | CJ24: 0 | CK24: 0 | CL24: 0 | CM24: 0 | CO24: =AVERAGE(CJ5:CJ24) -> 1.165 | CP24: 2.225 | CQ24: 1.071428571 | CR24: 0 | CT24: 2014-12-09 | CU24: 100 | CV24: 100 | CW24: 100 | CX24: 100 | CZ24: =AVERAGE(CU5:CU24) -> 88.5 | DA24: 82.37142857 | DB24: 82.78421053 | DC24: 89.07777778
A25: 2014-12-11 | B25: 2 | C25: 1 | D25: 0 | E25: 3 | H25: 2014-12-11 | I25: 2 | N25: 3.58 | O25: 16.66666667 | P25: 9.9 | S25: 2014-12-11 | T25: 2 | U25: 0.7 | V25: 0 | Y25: 3.58 | Z25: 5.73 | AA25: 0.95 | AD25: 2014-12-11 | AE25: 0 | AF25: 0 | AH25: 0 | AJ25: 1.335 | AK25: 0.4 | AL25: 13.34545455 | AM25: 2.16 | AO25: 2014-12-11 | AP25: 0 | AQ25: 0 | AS25: 0 | AU25: 0.4 | AV25: 0.7 | AW25: -7.75625 | AX25: 3.22 | AZ25: 2014-12-11 | BB25: 0 | BC25: 0 | BF25: 9.9 | BG25: 43.77 | BH25: 3.705 | BK25: 2014-12-11 | BL25: 0.7 | BM25: 0 | BN25: 0 | BO25: 0 | BQ25: 5.73 | BR25: 2.985 | BS25: 0.2 | BT25: 0.1 | BV25: 2014-12-11 | BW25: 0 | BX25: 0 | BY25: 21 | BZ25: 0 | CA25: 2 | CC25: 19.67 | CD25: 47.49 | CE25: 87.16 | CF25: 43.02 | CG25: 3.55 | CI25: 2014-12-11 | CJ25: 0 | CK25: 0 | CL25: 0 | CM25: 0 | CO25: 1.165 | CP25: 2.225 | CQ25: 1.071428571 | CR25: 0 | CT25: 2014-12-11 | CZ25: 88.52307692 | DA25: 81.01538462 | DB25: 82.18333333 | DC25: 88.43529412
A26: 2014-12-13 | B26: 3 | C26: 1 | D26: 0 | E26: 4 | H26: 2014-12-13 | I26: 3 | J26: 50 | K26: 26.6 | N26: 3.55 | O26: 22.22222222 | P26: 11.8 | S26: 2014-12-13 | T26: 3 | U26: 9 | V26: 3 | Y26: 3.55 | Z26: 5.72 | AA26: 1 | AD26: 2014-12-13 | AE26: 3.1 | AF26: 1 | AG26: 0 | AH26: 19.9 | AJ26: 1.21 | AK26: 0.35 | AL26: 9.090909091 | AM26: 2.16 | AO26: 2014-12-13 | AP26: 1 | AQ26: 3 | AR26: 0 | AS26: 19.9 | AU26: 0.35 | AV26: 0.75 | AW26: -10.725 | AX26: 3.22 | AZ26: 2014-12-13 | BA26: 26.6 | BB26: 75.1 | BC26: 19.9 | BF26: 11.8 | BG26: 43.02 | BH26: 4.7 | BK26: 2014-12-13 | BL26: 9 | BM26: 3.8 | BN26: 1 | BO26: 0 | BQ26: 5.72 | BR26: 2.9 | BS26: 0.25 | BT26: 0.15 | BV26: 2014-12-13 | BW26: 61.9 | BX26: 155.5 | BY26: 180.1 | BZ26: 75.1 | CA26: 3 | CC26: 18.13 | CD26: 48.825 | CE26: 88.565 | CF26: 40.565 | CG26: 3.47 | CI26: 2014-12-13 | CJ26: 19.9 | CK26: 19.9 | CL26: 0 | CM26: 0 | CO26: 2.16 | CP26: 3.22 | CQ26: 1.071428571 | CR26: 0 | CT26: 2014-12-13 | CU26: 100 | CV26: 100 | CW26: 100 | CX26: 100 | CZ26: 88.52307692 | DA26: 84.61538462 | DB26: 82.18333333 | DC26: 91.22941176
A27: 2014-12-16 | B27: 3 | C27: 1 | D27: 0 | E27: 4 | H27: 2014-12-16 | I27: 4.9 | J27: 0 | K27: 0 | N27: 3.47 | O27: 22.22222222 | P27: 11.8 | S27: 2014-12-16 | T27: 4.9 | U27: 7.8 | V27: 3 | Y27: 3.47 | Z27: 5.325 | AA27: 1 | AD27: 2014-12-16 | AE27: 3.1 | AF27: 2 | AG27: 0 | AH27: 0 | AJ27: 1.065 | AK27: 0.35 | AL27: 9.090909091 | AM27: 2.16 | AO27: 2014-12-16 | AP27: 2 | AQ27: 2 | AR27: 0 | AS27: 0 | AU27: 0.35 | AV27: 0.7 | AW27: -10.2 | AX27: 3.22 | AZ27: 2014-12-16 | BA27: 0 | BB27: 45.6 | BC27: 0 | BF27: 11.8 | BG27: 40.565 | BH27: 4.7 | BK27: 2014-12-16 | BL27: 7.8 | BM27: 3.7 | BN27: 1 | BO27: 1 | BQ27: 5.325 | BR27: 2.57 | BS27: 0.3 | BT27: 0.15 | BV27: 2014-12-16 | BW27: 38.4 | BX27: 38.4 | BY27: 95.3 | BZ27: 45.6 | CA27: 4.9 | CC27: 17.275 | CD27: 45.71 | CE27: 86.095 | CF27: 46.075 | CG27: 3.33 | CI27: 2014-12-16 | CJ27: 0 | CK27: 0 | CL27: 0 | CM27: 0 | CO27: 2.16 | CP27: 3.22 | CQ27: 1.071428571 | CR27: 0 | CT27: 2014-12-16 | CU27: 100 | CV27: 100 | CW27: 100 | CX27: 100 | CZ27: 88.52307692 | DA27: 84.61538462 | DB27: 82.65 | DC27: 91.22941176
A28: 2014-12-17 | B28: 3 | C28: 1 | D28: 0 | E28: 4 | H28: 2014-12-17 | I28: 2 | J28: 0 | K28: 0 | N28: 3.33 | O28: 22.22222222 | P28: 11.8 | S28: 2014-12-17 | T28: 2 | U28: 5.3 | V28: 2 | Y28: 3.33 | Z28: 5.335 | AA28: 1.05 | AD28: 2014-12-17 | AE28: 2.7 | AF28: 2 | AH28: 0 | AJ28: 1.2 | AK28: 0.45 | AL28: 9.090909091 | AM28: 2.95 | AO28: 2014-12-17 | AP28: 2 | AQ28: 2 | AS28: 0 | AU28: 0.45 | AV28: 0.75 | AW28: -10.88 | AX28: 4.8 | AZ28: 2014-12-17 | BA28: 0 | BB28: 134.8 | BC28: 0 | BF28: 11.8 | BG28: 46.075 | BH28: 4.7 | BK28: 2014-12-17 | BL28: 5.3 | BM28: 4.4 | BN28: 0 | BO28: 0 | BQ28: 5.335 | BR28: 2.695 | BS28: 0.3 | BT28: 0.15 | BV28: 2014-12-17 | BW28: 82.5 | BX28: 110.1 | BY28: 161.6 | BZ28: 134.8 | CA28: 2 | CC28: 21.4 | CD28: 49.955 | CE28: 90.94 | CF28: 51.22 | CG28: 3.465 | CI28: 2014-12-17 | CJ28: 0 | CK28: 0 | CL28: 0 | CM28: 0 | CO28: 2.16 | CP28: 3.22 | CQ28: 1.071428571 | CR28: 0 | CT28: 2014-12-17 | CU28: 100 | CW28: 100 | CZ28: 89.34285714 | DA28: 84.61538462 | DB28: 82.65 | DC28: 90.68125
A29: 2014-12-20 | B29: 4 | C29: 1 | D29: 1 | E29: 6 | H29: 2014-12-20 | I29: 3.8 | J29: 100 | K29: 30.7 | N29: 3.465 | O29: 30 | P29: 13.06 | S29: 2014-12-20 | T29: 3.8 | U29: 7.3 | V29: 1 | Y29: 3.465 | Z29: 5.7 | AA29: 1.1 | AD29: 2014-12-20 | AE29: 2.9 | AF29: 1 | AG29: 0 | AH29: 15.8 | AJ29: 1.345 | AK29: 0.5 | AL29: 8.333333333 | AM29: 2.95 | AO29: 2014-12-20 | AP29: 1 | AQ29: 1 | AR29: 0 | AS29: 31.6 | AU29: 0.5 | AV29: 0.8 | AW29: -4.213333333 | AX29: 4.8 | AZ29: 2014-12-20 | BA29: 30.7 | BB29: 102.9 | BC29: 31.6 | BF29: 13.06 | BG29: 51.22 | BH29: 6.28 | BK29: 2014-12-20 | BL29: 7.3 | BM29: 6.5 | BN29: 0 | BO29: 0 | BQ29: 5.7 | BR29: 3.02 | BS29: 0.3 | BT29: 0.15 | BV29: 2014-12-20 | BW29: 45.9 | BX29: 60.3 | BY29: 115.4 | BZ29: 102.9 | CA29: 3.8 | CC29: 23.695 | CD29: 52.97 | CE29: 96.71 | CF29: 51.555 | CG29: 3.53 | CI29: 2014-12-20 | CJ29: 15.8 | CK29: 31.6 | CL29: 0 | CM29: 94.73684211 | CO29: 2.95 | CP29: 4.8 | CQ29: 1.071428571 | CR29: 4.736842105 | CT29: 2014-12-20 | CU29: 100 | CV29: 100 | CW29: 100 | CX29: 100 | CZ29: 90.05333333 | DA29: 85.71428571 | DB29: 88.20555556 | DC29: 90.68125
A30: 2014-12-23 | B30: 4 | C30: 1 | D30: 1 | E30: 6 | H30: 2014-12-23 | I30: 5.9 | J30: 0 | K30: 21.7 | N30: 3.53 | O30: 27.27272727 | P30: 14.50666667 | S30: 2014-12-23 | T30: 5.9 | U30: 8 | V30: 2 | Y30: 3.53 | Z30: 5.755 | AA30: 1.2 | AD30: 2014-12-23 | AE30: 0.9 | AF30: 0 | AH30: 0 | AJ30: 1.295 | AK30: 0.5 | AL30: 9.090909091 | AM30: 2.95 | AO30: 2014-12-23 | AP30: 0 | AQ30: 0 | AR30: 0 | AS30: 0 | AU30: 0.5 | AV30: 0.8 | AW30: -5.026666667 | AX30: 4.8 | AZ30: 2014-12-23 | BA30: 21.7 | BB30: 46.8 | BC30: 10.2 | BF30: 14.50666667 | BG30: 51.555 | BH30: 6.79 | BK30: 2014-12-23 | BL30: 8 | BM30: 4.6 | BN30: 1 | BO30: 0 | BQ30: 5.755 | BR30: 3.095 | BS30: 0.35 | BT30: 0.15 | BV30: 2014-12-23 | BW30: 9.3 | BX30: 36 | BY30: 81.4 | BZ30: 46.8 | CA30: 5.9 | CC30: 22.9 | CD30: 52.025 | CE30: 96.22 | CF30: 48.095 | CG30: 3.71 | CI30: 2014-12-23 | CJ30: 0 | CK30: 0 | CL30: 0 | CM30: 0 | CO30: 2.95 | CP30: 4.8 | CQ30: 1.071428571 | CR30: 4.736842105 | CT30: 2014-12-23 | CU30: 100 | CW30: 100 | CX30: 100 | CZ30: 90.05333333 | DA30: 84.61538462 | DB30: 88.20555556 | DC30: 91.44375
A31: 2014-12-27 | B31: 4 | C31: 1 | D31: 1 | E31: 6 | H31: 2014-12-27 | I31: 5.9 | J31: 0 | K31: 0 | N31: 3.71 | O31: 27.27272727 | P31: 14.50666667 | S31: 2014-12-27 | T31: 5.9 | U31: 6.5 | V31: 1 | Y31: 3.71 | Z31: 5.735 | AA31: 1.15 | AD31: 2014-12-27 | AE31: 4 | AF31: 1 | AG31: -20 | AH31: 0 | AJ31: 1.44 | AK31: 0.5 | AL31: 6.666666667 | AM31: 2.95 | AO31: 2014-12-27 | AP31: 1 | AQ31: 1 | AR31: -14.5 | AS31: 0 | AU31: 0.5 | AV31: 0.8 | AW31: -5.61875 | AX31: 4.8 | AZ31: 2014-12-27 | BA31: 0 | BB31: 29.3 | BC31: 0 | BF31: 14.50666667 | BG31: 48.095 | BH31: 6.79 | BK31: 2014-12-27 | BL31: 6.5 | BM31: 2.9 | BN31: 0 | BO31: 0 | BQ31: 5.735 | BR31: 3.055 | BS31: 0.3 | BT31: 0.15 | BV31: 2014-12-27 | BW31: 41 | BX31: 60.4 | BY31: 66.6 | BZ31: 29.3 | CA31: 5.9 | CC31: 23.525 | CD31: 48.525 | CE31: 90.355 | CF31: 51.94 | CG31: 3.845 | CI31: 2014-12-27 | CJ31: 0 | CK31: 0 | CL31: 0 | CM31: 0 | CO31: 2.95 | CP31: 4.8 | CQ31: 1.071428571 | CR31: 4.736842105 | CT31: 2014-12-27 | CU31: 80 | CV31: 100 | CW31: 85.5 | CX31: 100 | CZ31: 88.72 | DA31: 85.71428571 | DB31: 87.4 | DC31: 91.94705882
A32: 2014-12-29 | B32: 4 | C32: 1 | D32: 1 | E32: 6 | H32: 2014-12-29 | I32: 3.8 | J32: 0 | K32: 0 | N32: 3.845 | O32: 25 | P32: 13.6 | S32: 2014-12-29 | T32: 3.8 | U32: 7.2 | V32: 1 | Y32: 3.845 | Z32: 6.095 | AA32: 1.2 | AD32: 2014-12-29 | AE32: 2.1 | AF32: 0 | AH32: 0 | AJ32: 1.545 | AK32: 0.5 | AL32: 16.36363636 | AM32: 3.585 | AO32: 2014-12-29 | AP32: 0 | AQ32: 0 | AS32: 0 | AU32: 0.5 | AV32: 0.8 | AW32: 0.6733333333 | AX32: 4.375 | AZ32: 2014-12-29 | BA32: 0 | BB32: 76.9 | BC32: 0 | BF32: 13.6 | BG32: 51.94 | BH32: 6.79 | BK32: 2014-12-29 | BL32: 7.2 | BM32: 4.9 | BN32: 0 | BO32: 0 | BQ32: 6.095 | BR32: 3.3 | BS32: 0.3 | BT32: 0.1 | BV32: 2014-12-29 | BW32: 32.2 | BX32: 80.4 | BY32: 111.5 | BZ32: 76.9 | CA32: 3.8 | CC32: 25.135 | CD32: 52.545 | CE32: 95.93 | CF32: 55.46 | CG32: 3.94 | CI32: 2014-12-29 | CJ32: 0 | CK32: 0 | CL32: 0 | CM32: 0 | CO32: 2.95 | CP32: 4.8 | CQ32: 1.071428571 | CR32: 4.736842105 | CT32: 2014-12-29 | CU32: 67.4 | CW32: 83.8 | CZ32: 93.21333333 | DA32: 84.61538462 | DB32: 92.05555556 | DC32: 91.44375
A33: 2014-12-31 | B33: 5 | C33: 1 | D33: 1 | E33: 7 | H33: 2014-12-31 | I33: 4.7 | J33: 100 | K33: 11.3 | N33: 3.94 | O33: 33.33333333 | P33: 11.1625 | S33: 2014-12-31 | T33: 4.7 | U33: 9.9 | V33: 1 | Y33: 3.94 | Z33: 6.3 | AA33: 1.1 | AD33: 2014-12-31 | AE33: 5.4 | AF33: 1 | AG33: 0 | AH33: 12.7 | AJ33: 1.765 | AK33: 0.55 | AL33: 16.36363636 | AM33: 3.585 | AO33: 2014-12-31 | AP33: 1 | AQ33: 1 | AR33: 0 | AS33: 12.7 | AU33: 0.55 | AV33: 0.8 | AW33: 0.6733333333 | AX33: 4.375 | AZ33: 2014-12-31 | BA33: 11.3 | BB33: 112.6 | BC33: 12.7 | BF33: 11.1625 | BG33: 55.46 | BH33: 6.365 | BK33: 2014-12-31 | BL33: 9.9 | BM33: 8.9 | BN33: 0 | BO33: 0 | BQ33: 6.3 | BR33: 3.645 | BS33: 0.25 | BT33: 0.1 | BV33: 2014-12-31 | BW33: 69.1 | BX33: 97.5 | BY33: 126.2 | BZ33: 112.6 | CA33: 4.7 | CC33: 27.53 | CD33: 55.235 | CE33: 96.085 | CF33: 57.315 | CG33: 3.88 | CI33: 2014-12-31 | CJ33: 12.7 | CK33: 12.7 | CL33: 0 | CM33: 0 | CO33: 3.585 | CP33: 4.375 | CQ33: 0 | CR33: 4.736842105 | CT33: 2014-12-31 | CU33: 100 | CV33: 100 | CW33: 100 | CX33: 100 | CZ33: 93.21333333 | DA33: 84.61538462 | DB33: 92.05555556 | DC33: 91.44375
A34: 2015-01-02 | B34: 5 | C34: 1 | D34: 1 | E34: 7 | H34: 2015-01-02 | I34: 1.8 | K34: 46.3 | N34: 3.88 | O34: 33.33333333 | P34: 14.05625 | S34: 2015-01-02 | T34: 1.8 | U34: 6.1 | V34: 1 | Y34: 3.88 | Z34: 6.355 | AA34: 1.1 | AD34: 2015-01-02 | AE34: 1 | AF34: 1 | AG34: 0 | AH34: 0 | AJ34: 1.815 | AK34: 0.6 | AL34: 15 | AM34: 3.585 | AO34: 2015-01-02 | AP34: 1 | AQ34: 1 | AR34: 0 | AS34: 0 | AU34: 0.6 | AV34: 0.8 | AW34: 2.506666667 | AX34: 4.99 | AZ34: 2015-01-02 | BA34: 46.3 | BB34: 71.7 | BC34: 33.2 | BF34: 14.05625 | BG34: 57.315 | BH34: 8.025 | BK34: 2015-01-02 | BL34: 6.1 | BM34: 2.2 | BN34: 1 | BO34: 0 | BQ34: 6.355 | BR34: 3.665 | BS34: 0.25 | BT34: 0.15 | BV34: 2015-01-02 | BW34: 32.3 | BX34: 133.1 | BY34: 202.8 | BZ34: 71.7 | CA34: 1.8 | CC34: 29.145 | CD34: 59.29 | CE34: 101.315 | CF34: 56.55 | CG34: 3.815 | CI34: 2015-01-02 | CJ34: 0 | CK34: 0 | CL34: 0 | CM34: 0 | CO34: 3.585 | CP34: 4.375 | CQ34: 0 | CR34: 4.736842105 | CT34: 2015-01-02 | CU34: 100 | CV34: 100 | CW34: 100 | CX34: 100 | CZ34: 93.6375 | DA34: 84.61538462 | DB34: 93.58333333 | DC34: 91.44375
A35: 2015-01-03 | B35: 5 | C35: 1 | D35: 2 | E35: 8 | H35: 2015-01-03 | I35: 4.9 | K35: 33.7 | N35: 3.815 | O35: 33.33333333 | P35: 16.1625 | S35: 2015-01-03 | T35: 4.9 | U35: 7.6 | V35: 1 | Y35: 3.815 | Z35: 6.2 | AA35: 1.15 | AD35: 2015-01-03 | AE35: 0 | AF35: 0 | AH35: 0 | AJ35: 1.765 | AK35: 0.6 | AL35: 16.36363636 | AM35: 3.585 | AO35: 2015-01-03 | AP35: 0 | AQ35: 0 | AR35: 50.9 | AS35: 12.3 | AU35: 0.6 | AV35: 0.8 | AW35: 5.9 | AX35: 4.99 | AZ35: 2015-01-03 | BA35: 33.7 | BB35: 36.6 | BC35: 12.3 | BF35: 16.1625 | BG35: 56.55 | BH35: 8.64 | BK35: 2015-01-03 | BL35: 7.6 | BM35: 3 | BN35: 0 | BO35: 1 | BQ35: 6.2 | BR35: 3.55 | BS35: 0.25 | BT35: 0.15 | BV35: 2015-01-03 | BW35: 0 | BX35: 56.6 | BY35: 93.8 | BZ35: 36.6 | CA35: 4.9 | CC35: 28.68 | CD35: 59.49 | CE35: 100.76 | CF35: 58.505 | CG35: 3.81 | CI35: 2015-01-03 | CJ35: 0 | CK35: 12.3 | CL35: 0 | CM35: 73.46938776 | CO35: 3.585 | CP35: 4.99 | CQ35: 0 | CR35: 8.410311493 | CT35: 2015-01-03 | CV35: 100 | CW35: 100 | CX35: 49.1 | CZ35: 93.21333333 | DA35: 84.61538462 | DB35: 93.58333333 | DC35: 88.2625
A36: 2015-01-10 | B36: 5 | C36: 1 | D36: 2 | E36: 8 | H36: 2015-01-10 | I36: 5.5 | J36: 0 | K36: 0 | N36: 3.81 | O36: 30.76923077 | P36: 15.21176471 | S36: 2015-01-10 | T36: 5.5 | U36: 4.4 | V36: 1 | Y36: 3.81 | Z36: 6.37 | AA36: 1.15 | AD36: 2015-01-10 | AE36: 0.9 | AF36: 0 | AH36: 0 | AJ36: 1.76 | AK36: 0.55 | AL36: 18 | AM36: 3.585 | AO36: 2015-01-10 | AP36: 0 | AQ36: 0 | AR36: 51.9 | AS36: 0 | AU36: 0.55 | AV36: 0.75 | AW36: 12.69333333 | AX36: 4.99 | AZ36: 2015-01-10 | BA36: 0 | BB36: 39.1 | BC36: 0 | BF36: 15.21176471 | BG36: 58.505 | BH36: 8.64 | BK36: 2015-01-10 | BL36: 4.4 | BM36: 3.6 | BN36: 0 | BO36: 0 | BQ36: 6.37 | BR36: 3.73 | BS36: 0.2 | BT36: 0.15 | BV36: 2015-01-10 | BW36: 9.9 | BX36: 9.9 | BY36: 47.6 | BZ36: 39.1 | CA36: 5.5 | CC36: 28.64 | CD36: 59.45 | CE36: 102.62 | CF36: 64.92 | CG36: 3.825 | CI36: 2015-01-10 | CJ36: 0 | CK36: 0 | CL36: 0 | CM36: 0 | CO36: 3.585 | CP36: 4.99 | CQ36: 0 | CR36: 8.410311493 | CT36: 2015-01-10 | CU36: 100 | CW36: 100 | CX36: 48.1 | CZ36: 93.21333333 | DA36: 83.33333333 | DB36: 96.36111111 | DC36: 85.01875
A37: 2015-01-11 | B37: 5 | C37: 1 | D37: 2 | E37: 8 | H37: 2015-01-11 | I37: 1.3 | J37: 0 | K37: 0 | N37: 3.825 | O37: 28.57142857 | P37: 14.36666667 | S37: 2015-01-11 | T37: 1.3 | U37: 2.8 | V37: 1 | Y37: 3.825 | Z37: 6.46 | AA37: 1.2 | AD37: 2015-01-11 | AE37: 1 | AF37: 1 | AH37: 0 | AJ37: 1.81 | AK37: 0.6 | AL37: 18 | AM37: 3.585 | AO37: 2015-01-11 | AP37: 1 | AQ37: 1 | AR37: 0 | AS37: 0 | AU37: 0.6 | AV37: 0.8 | AW37: 12.69333333 | AX37: 4.99 | AZ37: 2015-01-11 | BA37: 0 | BB37: 128.3 | BC37: 0 | BF37: 14.36666667 | BG37: 64.92 | BH37: 8.64 | BK37: 2015-01-11 | BL37: 2.8 | BM37: 2.8 | BN37: 0 | BO37: 0 | BQ37: 6.46 | BR37: 3.87 | BS37: 0.2 | BT37: 0.15 | BV37: 2015-01-11 | BW37: 46.2 | BX37: 134.8 | BY37: 128.3 | BZ37: 128.3 | CA37: 1.3 | CC37: 30.95 | CD37: 63.37 | CE37: 105.785 | CF37: 62.3 | CG37: 3.765 | CI37: 2015-01-11 | CJ37: 0 | CK37: 0 | CL37: 0 | CM37: 0 | CO37: 3.585 | CP37: 4.99 | CQ37: 0 | CR37: 8.410311493 | CT37: 2015-01-11 | CU37: 100 | CW37: 100 | CX37: 100 | CZ37: 93.6375 | DA37: 81.81818182 | DB37: 96.36111111 | DC37: 85.01875
A38: 2015-01-13 | B38: 5 | C38: 1 | D38: 2 | E38: 8 | H38: 2015-01-13 | I38: 1.8 | J38: 0 | K38: 0 | N38: 3.765 | O38: 28.57142857 | P38: 14.36666667 | S38: 2015-01-13 | T38: 1.8 | U38: 3.7 | V38: 1 | Y38: 3.765 | Z38: 6.245 | AA38: 1.2 | AD38: 2015-01-13 | AE38: 1 | AF38: 1 | AH38: 0 | AJ38: 1.735 | AK38: 0.65 | AL38: 8.888888889 | AM38: 3.585 | AO38: 2015-01-13 | AP38: 1 | AQ38: 1 | AS38: 0 | AU38: 0.65 | AV38: 0.85 | AW38: 6.457142857 | AX38: 4.99 | AZ38: 2015-01-13 | BA38: 0 | BB38: 61 | BC38: 0 | BF38: 14.36666667 | BG38: 62.3 | BH38: 8.64 | BK38: 2015-01-13 | BL38: 3.7 | BM38: 1.8 | BN38: 0 | BO38: 0 | BQ38: 6.245 | BR38: 3.68 | BS38: 0.2 | BT38: 0.2 | BV38: 2015-01-13 | BW38: 33.3 | BX38: 99.9 | BY38: 128.5 | BZ38: 61 | CA38: 1.8 | CC38: 30.105 | CD38: 63.505 | CE38: 104.115 | CF38: 60.27 | CG38: 3.905 | CI38: 2015-01-13 | CJ38: 0 | CK38: 0 | CL38: 0 | CM38: 0 | CO38: 3.585 | CP38: 4.99 | CQ38: 0 | CR38: 8.410311493 | CT38: 2015-01-13 | CU38: 100 | CW38: 100 | CZ38: 93.6375 | DA38: 90 | DB38: 96.36111111 | DC38: 90.68666667
A39: 2015-01-15 | B39: 5 | C39: 1 | D39: 2 | E39: 8 | H39: 2015-01-15 | I39: 5.4 | J39: 0 | K39: 30.1 | N39: 3.905 | O39: 28.57142857 | P39: 16.03888889 | Q39: =AVERAGE(L21:L40) ->  | S39: 2015-01-15 | T39: 5.4 | U39: 9.2 | V39: 2 | Y39: 3.905 | Z39: 6.495 | AA39: 1.25 | AD39: 2015-01-15 | AE39: 0 | AF39: 0 | AH39: 0 | AJ39: 1.645 | AK39: 0.6 | AL39: -2.5 | AM39: 3.585 | AO39: 2015-01-15 | AP39: 0 | AQ39: 1 | AR39: -23.9 | AS39: 0 | AU39: 0.6 | AV39: 0.85 | AW39: 2.114285714 | AX39: 4.99 | AZ39: 2015-01-15 | BA39: 30.1 | BB39: 37.2 | BC39: 11.2 | BF39: 16.03888889 | BG39: 60.27 | BH39: 9.2 | BK39: 2015-01-15 | BL39: 9.2 | BM39: 3.3 | BN39: 0 | BO39: 1 | BQ39: 6.495 | BR39: 3.675 | BS39: 0.2 | BT39: 0.2 | BV39: 2015-01-15 | BW39: 0 | BX39: 35.6 | BY39: 103.5 | BZ39: 37.2 | CA39: 5.4 | CC39: 28.04 | CD39: 63.22 | CE39: 104.49 | CF39: 63.93 | CG39: 4.1 | CI39: 2015-01-15 | CJ39: 0 | CK39: 0 | CL39: 0 | CM39: 0 | CO39: 3.585 | CP39: 4.99 | CQ39: 0 | CR39: 8.410311493 | CT39: 2015-01-15 | CW39: 76.1 | CX39: 100 | CZ39: 93.21333333 | DA39: 100 | DB39: 95.03333333 | DC39: 93.14666667
A40: 2015-01-17 | B40: 5 | C40: 1 | D40: 2 | E40: 8 | H40: 2015-01-17 | I40: 4.9 | J40: 0 | K40: 0 | N40: 4.1 | O40: 26.66666667 | P40: 15.19473684 | S40: 2015-01-17 | T40: 4.9 | U40: 9.7 | V40: 2 | Y40: 4.1 | Z40: 6.98 | AA40: 1.35 | AD40: 2015-01-17 | AE40: 3 | AF40: 2 | AG40: -24.8 | AH40: 0 | AJ40: 1.795 | AK40: 0.7 | AL40: -4.977777778 | AM40: 3.82 | AO40: 2015-01-17 | AP40: 2 | AQ40: 2 | AR40: -14.4 | AS40: 0 | AU40: 0.7 | AV40: 0.95 | AW40: 1.013333333 | AX40: 5.225 | AZ40: 2015-01-17 | BA40: 0 | BB40: 73.2 | BC40: 0 | BF40: 15.19473684 | BG40: 63.93 | BH40: 9.2 | BK40: 2015-01-17 | BL40: 9.7 | BM40: 6 | BN40: 1 | BO40: 0 | BQ40: 6.98 | BR40: 3.975 | BS40: 0.25 | BT40: 0.25 | BV40: 2015-01-17 | BW40: 37.1 | BX40: 72.8 | BY40: 118.1 | BZ40: 73.2 | CA40: 4.9 | CC40: 29.895 | CD40: 66.86 | CE40: 110.395 | CF40: 63.9 | CG40: 3.975 | CI40: 2015-01-17 | CJ40: 0 | CK40: 0 | CL40: 0 | CM40: 0 | CO40: 3.585 | CP40: 4.99 | CQ40: 0 | CR40: 8.410311493 | CT40: 2015-01-17 | CU40: 75.2 | CV40: 100 | CW40: 85.6 | CX40: 100 | CZ40: 92.0875 | DA40: 100 | DB40: 94.53684211 | DC40: 93.14666667
A41: 2015-01-19 | B41: 6 | C41: 1 | D41: 2 | E41: 9 | H41: 2015-01-19 | I41: 4.5 | J41: 50 | K41: 26.3 | N41: 3.975 | O41: 26.66666667 | P41: 15.68947368 | S41: 2015-01-19 | T41: 4.5 | U41: 5.6 | V41: 3 | Y41: 3.975 | Z41: 6.83 | AA41: 1.4 | AD41: 2015-01-19 | AE41: 1.9 | AF41: 2 | AG41: 0 | AH41: 13.3 | AJ41: 1.84 | AK41: 0.75 | AL41: -4.48 | AM41: 4.505 | AO41: 2015-01-19 | AP41: 2 | AQ41: 3 | AR41: 0 | AS41: 13.3 | AU41: 0.75 | AV41: 1.05 | AW41: 3.333333333 | AX41: 5.91 | AZ41: 2015-01-19 | BA41: 26.3 | BB41: 50.4 | BC41: 13.3 | BF41: 15.68947368 | BG41: 63.9 | BH41: 9.435 | BK41: 2015-01-19 | BL41: 5.6 | BM41: 3.8 | BN41: 0 | BO41: 1 | BQ41: 6.83 | BR41: 3.87 | BS41: 0.25 | BT41: 0.2 | BV41: 2015-01-19 | BW41: 25.4 | BX41: 37 | BY41: 74.6 | BZ41: 50.4 | CA41: 4.5 | CC41: 30.72 | CD41: 67.105 | CE41: 110.44 | CF41: 66.905 | CG41: 3.93 | CI41: 2015-01-19 | CJ41: 13.3 | CK41: 13.3 | CL41: 0 | CM41: 0 | CO41: 3.82 | CP41: 5.225 | CQ41: 0 | CR41: 8.410311493 | CT41: 2015-01-19 | CU41: 100 | CV41: 100 | CW41: 100 | CX41: 100 | CZ41: 95.1625 | DA41: 100 | DB41: 96.36842105 | DC41: 93.14666667
A42: 2015-01-20 | B42: 7 | C42: 1 | D42: 2 | E42: 10 | H42: 2015-01-20 | I42: 4.4 | J42: 33.3 | K42: 29.6 | N42: 3.93 | O42: 27.08125 | P42: 17.24736842 | S42: 2015-01-20 | T42: 4.4 | U42: 10 | V42: 3 | Y42: 3.93 | Z42: 6.935 | AA42: 1.5 | AD42: 2015-01-20 | AE42: 3.1 | AF42: 1 | AH42: 13.7 | AJ42: 1.9 | AK42: 0.8 | AL42: -4.977777778 | AM42: 3.77 | AO42: 2015-01-20 | AP42: 1 | AQ42: 1 | AR42: 0 | AS42: 13.7 | AU42: 0.8 | AV42: 1.05 | AW42: 3.333333333 | AX42: 5.175 | AZ42: 2015-01-20 | BA42: 29.6 | BB42: 93 | BC42: 27.5 | BF42: 17.24736842 | BG42: 66.905 | BH42: 10.81 | BK42: 2015-01-20 | BL42: 10 | BM42: 6.8 | BN42: 0 | BO42: 0 | BQ42: 6.935 | BR42: 4.065 | BS42: 0.25 | BT42: 0.2 | BV42: 2015-01-20 | BW42: 43.1 | BX42: 99.5 | BY42: 136.9 | BZ42: 93 | CA42: 4.4 | CC42: 31.825 | CD42: 69.98 | CE42: 112.865 | CF42: 62.835 | CG42: 3.805 | CI42: 2015-01-20 | CJ42: 13.7 | CK42: 13.7 | CL42: 0 | CM42: 0 | CO42: 4.505 | CP42: 5.91 | CQ42: 0 | CR42: 8.410311493 | CT42: 2015-01-20 | CU42: 100 | CW42: 100 | CX42: 100 | CZ42: 95.1625 | DA42: 100 | DB42: 96.36842105 | DC42: 93.14666667
A43: 2015-01-27 | B43: 7 | C43: 1 | D43: 2 | E43: 10 | H43: 2015-01-27 | I43: 1.6 | N43: 3.805 | O43: 22.22 | P43: 16.2 | S43: 2015-01-27 | T43: 1.6 | U43: 1 | V43: 0 | Y43: 3.805 | Z43: 6.495 | AA43: 1.45 | AD43: 2015-01-27 | AE43: 1 | AF43: 0 | AH43: 0 | AJ43: 1.95 | AK43: 0.8 | AL43: -4.977777778 | AM43: 3.77 | AO43: 2015-01-27 | AP43: 0 | AQ43: 0 | AR43: -50.1 | AS43: 0 | AU43: 0.8 | AV43: 1 | AW43: -0.00625 | AX43: 5.175 | AZ43: 2015-01-27 | BB43: 0 | BC43: 0 | BF43: 16.2 | BG43: 62.835 | BH43: 9.34 | BK43: 2015-01-27 | BL43: 1 | BM43: 0 | BN43: 0 | BO43: 0 | BQ43: 6.495 | BR43: 3.79 | BS43: 0.25 | BT43: 0.2 | BV43: 2015-01-27 | BW43: 37.4 | BX43: 37.4 | BY43: 38.2 | BZ43: 0 | CA43: 1.6 | CC43: 33.695 | CD43: 70.44 | CE43: 107.6 | CF43: 60.725 | CG43: 3.645 | CI43: 2015-01-27 | CJ43: 0 | CK43: 0 | CL43: 0 | CM43: 0 | CO43: 3.77 | CP43: 5.175 | CQ43: 0 | CR43: 8.410311493 | CT43: 2015-01-27 | CU43: 100 | CW43: 49.9 | CX43: 100 | CZ43: 95.44705882 | DA43: 100 | DB43: 93.73157895 | DC43: 93.575
A44: 2015-01-29 | B44: 7 | C44: 1 | D44: 2 | E44: 10 | H44: 2015-01-29 | I44: 0.8 | N44: 3.645 | O44: 22.22 | P44: 15.07647059 | S44: 2015-01-29 | T44: 0.8 | U44: 0 | V44: 0 | Y44: 3.645 | Z44: 6.09 | AA44: 1.45 | AD44: 2015-01-29 | AE44: 0 | AF44: 0 | AH44: 0 | AJ44: 1.855 | AK44: 0.8 | AL44: -5.6 | AM44: 3.77 | AO44: 2015-01-29 | AP44: 0 | AQ44: 0 | AS44: 0 | AU44: 0.8 | AV44: 1 | AW44: -0.006666666667 | AX44: 5.175 | AZ44: 2015-01-29 | BB44: 0 | BC44: 0 | BF44: 15.07647059 | BG44: 60.725 | BH44: 8.595 | BK44: 2015-01-29 | BL44: 0 | BM44: 0 | BN44: 0 | BO44: 0 | BQ44: 6.09 | BR44: 3.65 | BS44: 0.25 | BT44: 0.2 | BV44: 2015-01-29 | BW44: 0 | BX44: 0 | BY44: 0 | BZ44: 0 | CA44: 0.8 | CC44: 32.25 | CD44: 67.76 | CE44: 101.57 | CF44: 62.16 | CG44: 3.65 | CI44: 2015-01-29 | CJ44: 0 | CK44: 0 | CL44: 0 | CM44: 0 | CO44: 3.77 | CP44: 5.175 | CQ44: 0 | CR44: 8.410311493 | CT44: 2015-01-29 | CV44: 100 | CX44: 100 | CZ44: 95.1625 | DA44: 100 | DB44: 93.38333333 | DC44: 93.575
A45: 2015-02-01 | B45: 7 | C45: 1 | D45: 2 | E45: 10 | H45: 2015-02-01 | I45: 2.1 | K45: 0 | N45: 3.65 | O45: 22.22 | P45: 14.23888889 | S45: 2015-02-01 | T45: 2.1 | U45: 2.1 | V45: 0 | Y45: 3.65 | Z45: 6.16 | AA45: 1.45 | AD45: 2015-02-01 | AE45: 0 | AF45: 0 | AH45: 0 | AJ45: 1.855 | AK45: 0.8 | AL45: -5.6 | AM45: 2.775 | AO45: 2015-02-01 | AP45: 0 | AQ45: 0 | AR45: -100 | AS45: 0 | AU45: 0.8 | AV45: 1 | AW45: -6.25625 | AX45: 4.18 | AZ45: 2015-02-01 | BA45: 0 | BB45: 28.7 | BC45: 0 | BF45: 14.23888889 | BG45: 62.16 | BH45: 8.595 | BK45: 2015-02-01 | BL45: 2.1 | BM45: 1 | BN45: 0 | BO45: 0 | BQ45: 6.16 | BR45: 3.7 | BS45: 0.25 | BT45: 0.2 | BV45: 2015-02-01 | BW45: 0 | BX45: 0 | BY45: 59.7 | BZ45: 28.7 | CA45: 2.1 | CC45: 32.25 | CD45: 67.76 | CE45: 103.505 | CF45: 62.785 | CG45: 3.635 | CI45: 2015-02-01 | CJ45: 0 | CK45: 0 | CL45: 0 | CM45: 0 | CO45: 3.77 | CP45: 5.175 | CQ45: 0 | CR45: 8.410311493 | CT45: 2015-02-01 | CV45: 100 | CW45: 0 | CX45: 100 | CZ45: 95.1625 | DA45: 100 | DB45: 88.46842105 | DC45: 93.95294118
A46: 2015-02-03 | B46: 7 | C46: 1 | D46: 2 | E46: 10 | H46: 2015-02-03 | I46: 2.7 | K46: 0 | N46: 3.635 | O46: 20.23571429 | P46: 12.76111111 | S46: 2015-02-03 | T46: 2.7 | U46: 5 | V46: 0 | Y46: 3.635 | Z46: 5.96 | AA46: 1.3 | AD46: 2015-02-03 | AE46: 0.9 | AF46: 0 | AH46: 0 | AJ46: 1.745 | AK46: 0.75 | AL46: -6.4 | AM46: 2.775 | AO46: 2015-02-03 | AP46: 0 | AQ46: 0 | AS46: 0 | AU46: 0.75 | AV46: 0.85 | AW46: -6.673333333 | AX46: 4.18 | AZ46: 2015-02-03 | BA46: 0 | BB46: 87.6 | BC46: 0 | BF46: 12.76111111 | BG46: 62.785 | BH46: 7.6 | BK46: 2015-02-03 | BL46: 5 | BM46: 3.9 | BN46: 0 | BO46: 0 | BQ46: 5.96 | BR46: 3.705 | BS46: 0.2 | BT46: 0.15 | BV46: 2015-02-03 | BW46: 20.9 | BX46: 20.9 | BY46: 112.8 | BZ46: 87.6 | CA46: 2.7 | CC46: 30.2 | CD46: 61.03 | CE46: 100.14 | CF46: 64.71 | CG46: 3.625 | CI46: 2015-02-03 | CJ46: 0 | CK46: 0 | CL46: 0 | CM46: 0 | CO46: 2.775 | CP46: 4.18 | CQ46: 0 | CR46: 8.410311493 | CT46: 2015-02-03 | CU46: 100 | CW46: 100 | CZ46: 95.1625 | DA46: 100 | DB46: 88.46842105 | DC46: 93.575
A47: 2015-02-07 | B47: 7 | C47: 1 | D47: 2 | E47: 10 | H47: 2015-02-07 | I47: 4.7 | J47: 0 | K47: 0 | N47: 3.625 | O47: 20.23571429 | P47: 12.76111111 | S47: 2015-02-07 | T47: 4.7 | U47: 11.4 | V47: 3 | Y47: 3.625 | Z47: 6.14 | AA47: 1.3 | AD47: 2015-02-07 | AE47: 4.3 | AF47: 3 | AH47: 0 | AJ47: 1.805 | AK47: 0.8 | AL47: -7.466666667 | AM47: 2.775 | AO47: 2015-02-07 | AP47: 3 | AQ47: 3 | AS47: 0 | AU47: 0.8 | AV47: 0.9 | AW47: -7.15 | AX47: 5.335 | AZ47: 2015-02-07 | BA47: 0 | BB47: 84.1 | BC47: 0 | BF47: 12.76111111 | BG47: 64.71 | BH47: 7.6 | BK47: 2015-02-07 | BL47: 11.4 | BM47: 6.6 | BN47: 2 | BO47: 0 | BQ47: 6.14 | BR47: 3.85 | BS47: 0.25 | BT47: 0.15 | BV47: 2015-02-07 | BW47: 54.4 | BX47: 66.3 | BY47: 146.2 | BZ47: 84.1 | CA47: 4.7 | CC47: 31 | CD47: 62.425 | CE47: 102.685 | CF47: 63.95 | CG47: 3.655 | CI47: 2015-02-07 | CJ47: 0 | CK47: 0 | CL47: 0 | CM47: 0 | CO47: 2.775 | CP47: 4.18 | CQ47: 0 | CR47: 8.410311493 | CT47: 2015-02-07 | CU47: 100 | CW47: 100 | CZ47: 95.1625 | DA47: 100 | DB47: 88.46842105 | DC47: 93.14666667
A48: 2015-02-09 | B48: 7 | C48: 1 | D48: 3 | E48: 11 | H48: 2015-02-09 | I48: 2.6 | K48: 38.6 | N48: 3.655 | O48: 21.79230769 | P48: 14.90555556 | S48: 2015-02-09 | T48: 2.6 | U48: 11.2 | V48: 0 | Y48: 3.655 | Z48: 6.435 | AA48: 1.2 | AD48: 2015-02-09 | AE48: 0 | AF48: 0 | AH48: 0 | AJ48: 1.67 | AK48: 0.7 | AL48: -7.466666667 | AM48: 1.985 | AO48: 2015-02-09 | AP48: 0 | AQ48: 0 | AR48: 49.2 | AS48: 23.1 | AU48: 0.7 | AV48: 0.8 | AW48: -3.393333333 | AX48: 3.755 | AZ48: 2015-02-09 | BA48: 38.6 | BB48: 119.6 | BC48: 46.2 | BF48: 14.90555556 | BG48: 63.95 | BH48: 9.91 | BK48: 2015-02-09 | BL48: 11.2 | BM48: 5.2 | BN48: 0 | BO48: 0 | BQ48: 6.435 | BR48: 3.89 | BS48: 0.25 | BT48: 0.15 | BV48: 2015-02-09 | BW48: 0 | BX48: 135 | BY48: 258.3 | BZ48: 119.6 | CA48: 2.6 | CC48: 26.875 | CD48: 63.67 | CE48: 107.52 | CF48: 62.92 | CG48: 3.645 | CI48: 2015-02-09 | CJ48: 0 | CK48: 23.1 | CL48: 0 | CM48: 138.4615385 | CO48: 2.775 | CP48: 5.335 | CQ48: 0 | CR48: 15.33338842 | CT48: 2015-02-09 | CV48: 50.8 | CW48: 100 | CX48: 50.8 | CZ48: 94.84 | DA48: 95.08 | DB48: 88.46842105 | DC48: 90.5
A49: 2015-02-10 | B49: 7 | C49: 1 | D49: 3 | E49: 11 | H49: 2015-02-10 | I49: 3.6 | J49: 0 | K49: 0 | N49: 3.645 | O49: 14.1 | P49: 13.2 | S49: 2015-02-10 | T49: 3.6 | U49: 5.9 | V49: 1 | Y49: 3.645 | Z49: 6.365 | AA49: 1.2 | AD49: 2015-02-10 | AE49: 1 | AF49: 0 | AG49: 0 | AH49: 0 | AJ49: 1.575 | AK49: 0.65 | AL49: -7.466666667 | AM49: 3.485 | AO49: 2015-02-10 | AP49: 0 | AQ49: 0 | AR49: 23.8 | AS49: 0 | AU49: 0.65 | AV49: 0.75 | AW49: -1.806666667 | AX49: 5.255 | AZ49: 2015-02-10 | BA49: 0 | BB49: 82.3 | BC49: 0 | BF49: 13.2 | BG49: 62.92 | BH49: 8.33 | BK49: 2015-02-10 | BL49: 5.9 | BM49: 5 | BN49: 0 | BO49: 0 | BQ49: 6.365 | BR49: 3.815 | BS49: 0.25 | BT49: 0.15 | BV49: 2015-02-10 | BW49: 16.3 | BX49: 48.8 | BY49: 97.4 | BZ49: 82.3 | CA49: 3.6 | CC49: 25.395 | CD49: 63.095 | CE49: 106.62 | CF49: 66.535 | CG49: 3.45 | CI49: 2015-02-10 | CJ49: 0 | CK49: 0 | CL49: 0 | CM49: 0 | CO49: 1.985 | CP49: 3.755 | CQ49: 0 | CR49: 10.59654631 | CT49: 2015-02-10 | CU49: 100 | CV49: 100 | CW49: 100 | CX49: 76.2 | CZ49: 94.84 | DA49: 95.08 | DB49: 88.46842105 | DC49: 89.0125
A50: 2015-02-12 | B50: 8 | C50: 1 | D50: 3 | E50: 12 | H50: 2015-02-12 | I50: 2 | J50: 50 | K50: 25.2 | N50: 3.45 | O50: 17.94615385 | P50: 13.39444444 | S50: 2015-02-12 | T50: 2 | U50: 5 | V50: 2 | Y50: 3.45 | Z50: 6.215 | AA50: 1.2 | AD50: 2015-02-12 | AE50: 2 | AF50: 2 | AH50: 30 | AJ50: 1.63 | AK50: 0.75 | AL50: -7.466666667 | AM50: 3.485 | AO50: 2015-02-12 | AP50: 2 | AQ50: 2 | AS50: 30 | AU50: 0.75 | AV50: 0.85 | AW50: -1.935714286 | AX50: 5.255 | AZ50: 2015-02-12 | BA50: 25.2 | BB50: 119.1 | BC50: 30 | BF50: 13.39444444 | BG50: 66.535 | BH50: 9.32 | BK50: 2015-02-12 | BL50: 5 | BM50: 4 | BN50: 0 | BO50: 0 | BQ50: 6.215 | BR50: 3.785 | BS50: 0.2 | BT50: 0.15 | BV50: 2015-02-12 | BW50: 59.9 | BX50: 116 | BY50: 149.2 | BZ50: 119.1 | CA50: 2 | CC50: 27.925 | CD50: 67.095 | CE50: 110.01 | CF50: 67.98 | CG50: 3.28 | CI50: 2015-02-12 | CJ50: 30 | CK50: 30 | CL50: 0 | CM50: 0 | CO50: 3.485 | CP50: 5.255 | CQ50: 0 | CR50: 10.59654631 | CT50: 2015-02-12 | CU50: 100 | CW50: 100 | CZ50: 94.84 | DA50: 95.08 | DB50: 88.46842105 | DC50: 88.28
A51: 2015-02-14 | B51: 8 | C51: 1 | D51: 3 | E51: 12 | H51: 2015-02-14 | I51: 2.5 | K51: 0 | N51: 3.28 | O51: 19.44166667 | P51: 13.39444444 | S51: 2015-02-14 | T51: 2.5 | U51: 3.9 | V51: 0 | Y51: 3.28 | Z51: 6.085 | AA51: 1.15 | AD51: 2015-02-14 | AE51: 2.1 | AF51: 0 | AH51: 0 | AJ51: 1.535 | AK51: 0.7 | AL51: -4.96 | AM51: 3.485 | AO51: 2015-02-14 | AP51: 0 | AQ51: 0 | AR51: 0 | AS51: 0 | AU51: 0.7 | AV51: 0.8 | AW51: -0.9 | AX51: 5.255 | AZ51: 2015-02-14 | BA51: 0 | BB51: 58.2 | BC51: 0 | BF51: 13.39444444 | BG51: 67.98 | BH51: 9.32 | BK51: 2015-02-14 | BL51: 3.9 | BM51: 2.4 | BN51: 0 | BO51: 0 | BQ51: 6.085 | BR51: 3.76 | BS51: 0.2 | BT51: 0.15 | BV51: 2015-02-14 | BW51: 50.4 | BX51: 50.4 | BY51: 93.4 | BZ51: 58.2 | CA51: 2.5 | CC51: 28.395 | CD51: 66.595 | CE51: 111.35 | CF51: 66.655 | CG51: 3.205 | CI51: 2015-02-14 | CJ51: 0 | CK51: 0 | CL51: 0 | CM51: 0 | CO51: 3.485 | CP51: 5.255 | CQ51: 0 | CR51: 10.59654631 | CT51: 2015-02-14 | CU51: 100 | CW51: 100 | CX51: 100 | CZ51: 96.17333333 | DA51: 94.53333333 | DB51: 89.23157895 | DC51: 88.28
A52: 2015-02-16 | B52: 8 | C52: 1 | D52: 3 | E52: 12 | H52: 2015-02-16 | I52: 2.3 | K52: 0 | N52: 3.205 | O52: 21.20909091 | P52: 13.39444444 | S52: 2015-02-16 | T52: 2.3 | U52: 3.9 | V52: 1 | Y52: 3.205 | Z52: 5.92 | AA52: 1.15 | AD52: 2015-02-16 | AE52: 1 | AF52: 1 | AH52: 0 | AJ52: 1.48 | AK52: 0.75 | AL52: -4.96 | AM52: 2.85 | AO52: 2015-02-16 | AP52: 1 | AQ52: 1 | AS52: 0 | AU52: 0.75 | AV52: 0.85 | AW52: -0.9 | AX52: 4.62 | AZ52: 2015-02-16 | BA52: 0 | BB52: 50.4 | BC52: 0 | BF52: 13.39444444 | BG52: 66.655 | BH52: 9.32 | BK52: 2015-02-16 | BL52: 3.9 | BM52: 1.9 | BN52: 1 | BO52: 0 | BQ52: 5.92 | BR52: 3.61 | BS52: 0.25 | BT52: 0.15 | BV52: 2015-02-16 | BW52: 26.5 | BX52: 99.6 | BY52: 102.8 | BZ52: 50.4 | CA52: 2.3 | CC52: 28.11 | CD52: 67.555 | CE52: 110.915 | CF52: 68.21 | CG52: 3.04 | CI52: 2015-02-16 | CJ52: 0 | CK52: 0 | CL52: 0 | CM52: 0 | CO52: 3.485 | CP52: 5.255 | CQ52: 0 | CR52: 10.59654631 | CT52: 2015-02-16 | CU52: 100 | CW52: 100 | CZ52: 98.34666667 | DA52: 94.53333333 | DB52: 90.08421053 | DC52: 88.28
A53: 2015-02-18 | B53: 8 | C53: 1 | D53: 3 | E53: 12 | H53: 2015-02-18 | I53: 1.4 | J53: 0 | K53: 0 | N53: 3.04 | O53: 12.11818182 | P53: 12.76666667 | S53: 2015-02-18 | T53: 1.4 | U53: 4.5 | V53: 1 | Y53: 3.04 | Z53: 5.65 | AA53: 1.15 | AD53: 2015-02-18 | AE53: 2.5 | AF53: 1 | AG53: 100 | AH53: 0 | AJ53: 1.335 | AK53: 0.75 | AL53: 15.04 | AM53: 2.85 | AO53: 2015-02-18 | AP53: 1 | AQ53: 1 | AR53: 100 | AS53: 0 | AU53: 0.75 | AV53: 0.85 | AW53: 6.242857143 | AX53: 4.62 | AZ53: 2015-02-18 | BA53: 0 | BB53: 143.7 | BC53: 0 | BF53: 12.76666667 | BG53: 68.21 | BH53: 8.685 | BK53: 2015-02-18 | BL53: 4.5 | BM53: 3.4 | BN53: 0 | BO53: 0 | BQ53: 5.65 | BR53: 3.335 | BS53: 0.25 | BT53: 0.15 | BV53: 2015-02-18 | BW53: 102.7 | BX53: 102.7 | BY53: 188.5 | BZ53: 143.7 | CA53: 1.4 | CC53: 29.79 | CD53: 67.815 | CE53: 114.03 | CF53: 74.675 | CG53: 3.045 | CI53: 2015-02-18 | CJ53: 0 | CK53: 0 | CL53: 0 | CM53: 0 | CO53: 2.85 | CP53: 4.62 | CQ53: 0 | CR53: 10.59654631 | CT53: 2015-02-18 | CU53: 100 | CV53: 0 | CW53: 100 | CX53: 0 | CZ53: 98.34666667 | DA53: 83.42222222 | DB53: 90.08421053 | DC53: 81.61333333
A54: 2015-02-22 | B54: 8 | C54: 1 | D54: 3 | E54: 12 | H54: 2015-02-22 | I54: 1.9 | J54: 0 | K54: 0 | N54: 3.045 | O54: 11.10833333 | P54: 10.19444444 | S54: 2015-02-22 | T54: 1.9 | U54: 6.4 | V54: 2 | Y54: 3.045 | Z54: 5.665 | AA54: 1.2 | AD54: 2015-02-22 | AE54: 3.1 | AF54: 1 | AH54: 0 | AJ54: 1.44 | AK54: 0.75 | AL54: 18.8 | AM54: 2.85 | AO54: 2015-02-22 | AP54: 1 | AQ54: 1 | AR54: 0 | AS54: 0 | AU54: 0.75 | AV54: 0.85 | AW54: 6.242857143 | AX54: 4.005 | AZ54: 2015-02-22 | BA54: 0 | BB54: 201 | BC54: 0 | BF54: 10.19444444 | BG54: 74.675 | BH54: 7.025 | BK54: 2015-02-22 | BL54: 6.4 | BM54: 6.4 | BN54: 0 | BO54: 0 | BQ54: 5.665 | BR54: 3.545 | BS54: 0.2 | BT54: 0.15 | BV54: 2015-02-22 | BW54: 96.3 | BX54: 96.3 | BY54: 201 | BZ54: 201 | CA54: 1.9 | CC54: 32.99 | CD54: 65.975 | CE54: 113.94 | CF54: 75.335 | CG54: 3.015 | CI54: 2015-02-22 | CJ54: 0 | CK54: 0 | CL54: 0 | CM54: 0 | CO54: 2.85 | CP54: 4.62 | CQ54: 0 | CR54: 10.59654631 | CT54: 2015-02-22 | CU54: 100 | CW54: 100 | CX54: 100 | CZ54: 98.34666667 | DA54: 81.35 | DB54: 90.08421053 | DC54: 81.61333333
A55: 2015-02-24 | B55: 8 | C55: 1 | D55: 3 | E55: 12 | H55: 2015-02-24 | I55: 4.3 | J55: 0 | K55: 0 | N55: 3.015 | O55: 10.25384615 | P55: 8.322222222 | S55: 2015-02-24 | T55: 4.3 | U55: 7.6 | V55: 4 | Y55: 3.015 | Z55: 5.665 | AA55: 1.35 | AD55: 2015-02-24 | AE55: 0 | AF55: 0 | AH55: 0 | AJ55: 1.44 | AK55: 0.75 | AL55: 18.8 | AM55: 2.85 | AO55: 2015-02-24 | AP55: 0 | AQ55: 4 | AR55: 0 | AS55: 0 | AU55: 0.75 | AV55: 1.05 | AW55: 2.607142857 | AX55: 4.005 | AZ55: 2015-02-24 | BA55: 0 | BB55: 49.8 | BC55: 0 | BF55: 8.322222222 | BG55: 75.335 | BH55: 6.41 | BK55: 2015-02-24 | BL55: 7.6 | BM55: 3.6 | BN55: 1 | BO55: 1 | BQ55: 5.665 | BR55: 3.575 | BS55: 0.25 | BT55: 0.15 | BV55: 2015-02-24 | BW55: 0 | BX55: 72.8 | BY55: 105.4 | BZ55: 49.8 | CA55: 4.3 | CC55: 32.99 | CD55: 66.785 | CE55: 114.52 | CF55: 76.75 | CG55: 2.875 | CI55: 2015-02-24 | CJ55: 0 | CK55: 0 | CL55: 0 | CM55: 0 | CO55: 2.85 | CP55: 4.005 | CQ55: 0 | CR55: 6.923076923 | CT55: 2015-02-24 | CW55: 100 | CX55: 100 | CZ55: 98.34666667 | DA55: 78.68571429 | DB55: 90.08421053 | DC55: 85.00666667
A56: 2015-02-26 | B56: 8 | C56: 1 | D56: 3 | E56: 12 | H56: 2015-02-26 | I56: 2.7 | K56: 0 | N56: 2.875 | O56: 11.10833333 | P56: 8.322222222 | S56: 2015-02-26 | T56: 2.7 | U56: 3 | V56: 0 | Y56: 2.875 | Z56: 5.595 | AA56: 1.3 | AD56: 2015-02-26 | AE56: 0 | AF56: 0 | AH56: 0 | AJ56: 1.395 | AK56: 0.75 | AL56: 18.8 | AM56: 2.85 | AO56: 2015-02-26 | AP56: 0 | AQ56: 0 | AS56: 0 | AU56: 0.75 | AV56: 1.05 | AW56: -1.184615385 | AX56: 4.005 | AZ56: 2015-02-26 | BA56: 0 | BB56: 67.4 | BC56: 0 | BF56: 8.322222222 | BG56: 76.75 | BH56: 6.41 | BK56: 2015-02-26 | BL56: 3 | BM56: 3 | BN56: 0 | BO56: 0 | BQ56: 5.595 | BR56: 3.545 | BS56: 0.25 | BT56: 0.15 | BV56: 2015-02-26 | BW56: 0 | BX56: 21.9 | BY56: 67.4 | BZ56: 67.4 | CA56: 2.7 | CC56: 32.495 | CD56: 67.385 | CE56: 115.51 | CF56: 72.23 | CG56: 3 | CI56: 2015-02-26 | CJ56: 0 | CK56: 0 | CL56: 0 | CM56: 0 | CO56: 2.85 | CP56: 4.005 | CQ56: 0 | CR56: 6.923076923 | CT56: 2015-02-26 | CW56: 100 | CZ56: 98.22857143 | DA56: 78.68571429 | DB56: 90.08421053 | DC56: 87.64285714
A57: 2015-02-28 | B57: 8 | C57: 1 | D57: 3 | E57: 12 | H57: 2015-02-28 | I57: 3.8 | K57: 0 | N57: 3 | O57: 12.11818182 | P57: 8.322222222 | S57: 2015-02-28 | T57: 3.8 | U57: 4.4 | V57: 1 | Y57: 3 | Z57: 5.675 | AA57: 1.3 | AD57: 2015-02-28 | AE57: 1.1 | AF57: 0 | AG57: 100 | AH57: 0 | AJ57: 1.4 | AK57: 0.7 | AL57: 35.04 | AM57: 2.85 | AO57: 2015-02-28 | AP57: 0 | AQ57: 1 | AR57: 31.1 | AS57: 0 | AU57: 0.7 | AV57: 1.05 | AW57: 1.207692308 | AX57: 4.005 | AZ57: 2015-02-28 | BA57: 0 | BB57: 37.9 | BC57: 0 | BF57: 8.322222222 | BG57: 72.23 | BH57: 6.41 | BK57: 2015-02-28 | BL57: 4.4 | BM57: 2.4 | BN57: 1 | BO57: 0 | BQ57: 5.675 | BR57: 3.525 | BS57: 0.3 | BT57: 0.15 | BV57: 2015-02-28 | BW57: 18 | BX57: 34.2 | BY57: 68.7 | BZ57: 37.9 | CA57: 3.8 | CC57: 31.085 | CD57: 62.355 | CE57: 112.53 | CF57: 72.845 | CG57: 3.11 | CI57: 2015-02-28 | CJ57: 0 | CK57: 0 | CL57: 0 | CM57: 0 | CO57: 2.85 | CP57: 4.005 | CQ57: 0 | CR57: 6.923076923 | CT57: 2015-02-28 | CU57: 100 | CV57: 0 | CW57: 100 | CX57: 68.9 | CZ57: 98.22857143 | DA57: 68.85 | DB57: 90.08421053 | DC57: 85.42142857
A58: 2015-03-03 | B58: 8 | C58: 1 | D58: 3 | E58: 12 | H58: 2015-03-03 | I58: 4 | J58: 0 | K58: 0 | N58: 3.11 | O58: 12.11818182 | P58: 8.322222222 | S58: 2015-03-03 | T58: 4 | U58: 5.9 | V58: 2 | Y58: 3.11 | Z58: 5.785 | AA58: 1.35 | AD58: 2015-03-03 | AE58: 1.9 | AF58: 1 | AH58: 0 | AJ58: 1.445 | AK58: 0.7 | AL58: 35.04 | AM58: 2.85 | AO58: 2015-03-03 | AP58: 1 | AQ58: 1 | AS58: 0 | AU58: 0.7 | AV58: 1.05 | AW58: 1.207692308 | AX58: 4.005 | AZ58: 2015-03-03 | BA58: 0 | BB58: 73.3 | BC58: 0 | BF58: 8.322222222 | BG58: 72.845 | BH58: 6.41 | BK58: 2015-03-03 | BL58: 5.9 | BM58: 4.9 | BN58: 0 | BO58: 0 | BQ58: 5.785 | BR58: 3.68 | BS58: 0.3 | BT58: 0.1 | BV58: 2015-03-03 | BW58: 27.5 | BX58: 42.2 | BY58: 86.9 | BZ58: 73.3 | CA58: 4 | CC58: 30.795 | CD58: 59.47 | CE58: 110.45 | CF58: 72.8 | CG58: 2.915 | CI58: 2015-03-03 | CJ58: 0 | CK58: 0 | CL58: 0 | CM58: 0 | CO58: 2.85 | CP58: 4.005 | CQ58: 0 | CR58: 6.923076923 | CT58: 2015-03-03 | CU58: 100 | CW58: 74 | CZ58: 98.22857143 | DA58: 68.85 | DB58: 88.71578947 | DC58: 85.42142857
A59: 2015-03-05 | B59: 8 | C59: 1 | D59: 3 | E59: 12 | H59: 2015-03-05 | I59: 1.5 | K59: 0 | N59: 2.915 | O59: 13.33 | P59: 6.65 | S59: 2015-03-05 | T59: 1.5 | U59: 1.8 | V59: 0 | Y59: 2.915 | Z59: 5.415 | AA59: 1.25 | AD59: 2015-03-05 | AE59: 0 | AF59: 0 | AH59: 0 | AJ59: 1.445 | AK59: 0.7 | AL59: 35.04 | AM59: 2.85 | AO59: 2015-03-05 | AP59: 0 | AQ59: 0 | AS59: 0 | AU59: 0.7 | AV59: 1 | AW59: 3.3 | AX59: 4.005 | AZ59: 2015-03-05 | BA59: 0 | BB59: 36.3 | BC59: 0 | BF59: 6.65 | BG59: 72.8 | BH59: 5.85 | BK59: 2015-03-05 | BL59: 1.8 | BM59: 0.9 | BN59: 0 | BO59: 0 | BQ59: 5.415 | BR59: 3.56 | BS59: 0.3 | BT59: 0.1 | BV59: 2015-03-05 | BW59: 0 | BX59: 38.2 | BY59: 71.4 | BZ59: 36.3 | CA59: 1.5 | CC59: 30.795 | CD59: 59.6 | CE59: 108.845 | CF59: 69.14 | CG59: 2.78 | CI59: 2015-03-05 | CJ59: 0 | CK59: 0 | CL59: 0 | CM59: 0 | CO59: 2.85 | CP59: 4.005 | CQ59: 0 | CR59: 6.923076923 | CT59: 2015-03-05 | CW59: 100 | CZ59: 98.22857143 | DA59: 68.85 | DB59: 89.97368421 | DC59: 84.3
A60: 2015-03-06 | B60: 8 | C60: 1 | D60: 3 | E60: 12 | H60: 2015-03-06 | I60: 2.2 | N60: 2.78 | O60: 14.81111111 | P60: 7.041176471 | S60: 2015-03-06 | T60: 2.2 | U60: 2.6 | V60: 0 | Y60: 2.78 | Z60: 5.06 | AA60: 1.15 | AD60: 2015-03-06 | AE60: 0.9 | AF60: 0 | AH60: 0 | AJ60: 1.34 | AK60: 0.6 | AL60: 50 | AM60: 2.185 | AO60: 2015-03-06 | AP60: 0 | AQ60: 0 | AR60: 0 | AS60: 0 | AU60: 0.6 | AV60: 0.9 | AW60: 4.5 | AX60: 3.34 | AZ60: 2015-03-06 | BB60: 0 | BC60: 0 | BF60: 7.041176471 | BG60: 69.14 | BH60: 5.85 | BK60: 2015-03-06 | BL60: 2.6 | BM60: 0 | BN60: 0 | BO60: 0 | BQ60: 5.06 | BR60: 3.26 | BS60: 0.25 | BT60: 0.05 | BV60: 2015-03-06 | BW60: 23.3 | BX60: 77.7 | BY60: 70.1 | BZ60: 0 | CA60: 2.2 | CC60: 30.105 | CD60: 59.845 | CE60: 106.445 | CF60: 73.51 | CG60: 2.655 | CI60: 2015-03-06 | CJ60: 0 | CK60: 0 | CL60: 0 | CM60: 0 | CO60: 2.85 | CP60: 4.005 | CQ60: 0 | CR60: 6.923076923 | CT60: 2015-03-06 | CU60: 100 | CW60: 100 | CX60: 100 | CZ60: 100 | DA60: 64.4 | DB60: 90.73157895 | DC60: 84.3
A61: 2015-03-08 | B61: 8 | C61: 1 | D61: 3 | E61: 12 | H61: 2015-03-08 | I61: 2 | J61: 0 | K61: 0 | N61: 2.655 | O61: 9.255555556 | P61: 5.494117647 | S61: 2015-03-08 | T61: 2 | U61: 4.7 | V61: 3 | Y61: 2.655 | Z61: 5.015 | AA61: 1.15 | AD61: 2015-03-08 | AE61: 4.1 | AF61: 3 | AG61: 100 | AH61: 0 | AJ61: 1.45 | AK61: 0.65 | AL61: 75 | AM61: 1.5 | AO61: 2015-03-08 | AP61: 3 | AQ61: 3 | AR61: 80.4 | AS61: 0 | AU61: 0.65 | AV61: 0.9 | AW61: 11.2 | AX61: 3.32 | AZ61: 2015-03-08 | BA61: 0 | BB61: 137.8 | BC61: 0 | BF61: 5.494117647 | BG61: 73.51 | BH61: 5.185 | BK61: 2015-03-08 | BL61: 4.7 | BM61: 4.7 | BN61: 0 | BO61: 0 | BQ61: 5.015 | BR61: 3.305 | BS61: 0.25 | BT61: 0.1 | BV61: 2015-03-08 | BW61: 119.9 | BX61: 119.9 | BY61: 137.8 | BZ61: 137.8 | CA61: 2 | CC61: 34.83 | CD61: 63.99 | CE61: 109.605 | CF61: 70.175 | CG61: 2.66 | CI61: 2015-03-08 | CJ61: 0 | CK61: 0 | CL61: 0 | CM61: 0 | CO61: 2.185 | CP61: 3.34 | CQ61: 0 | CR61: 6.923076923 | CT61: 2015-03-08 | CU61: 100 | CV61: 0 | CW61: 80.4 | CX61: 0 | CZ61: 100 | DA61: 50.11428571 | DB61: 89.7 | DC61: 76.60769231
A62: 2015-03-10 | B62: 8 | C62: 2 | D62: 3 | E62: 13 | H62: 2015-03-10 | I62: 4.5 | K62: 50.7 | N62: 2.66 | O62: 6.25 | P62: 6.735294118 | S62: 2015-03-10 | T62: 4.5 | U62: 4.1 | V62: 1 | Y62: 2.66 | Z62: 4.72 | AA62: 1.05 | AD62: 2015-03-10 | AE62: 1.9 | AF62: 0 | AG62: 51.9 | AH62: 0 | AJ62: 1.39 | AK62: 0.6 | AL62: 70.38 | AM62: 1.995 | AO62: 2015-03-10 | AP62: 0 | AQ62: 0 | AR62: 35.7 | AS62: 13.3 | AU62: 0.6 | AV62: 0.85 | AW62: 14.175 | AX62: 3.815 | AZ62: 2015-03-10 | BA62: 50.7 | BB62: 26.3 | BC62: 13.3 | BF62: 6.735294118 | BG62: 70.175 | BH62: 4.475 | BK62: 2015-03-10 | BL62: 4.1 | BM62: 2 | BN62: 0 | BO62: 1 | BQ62: 4.72 | BR62: 3.065 | BS62: 0.25 | BT62: 0.1 | BV62: 2015-03-10 | BW62: 25.7 | BX62: 25.7 | BY62: 54.1 | BZ62: 26.3 | CA62: 4.5 | CC62: 33.96 | CD62: 60.3 | CE62: 105.465 | CF62: 73.465 | CG62: 2.88 | CI62: 2015-03-10 | CJ62: 0 | CK62: 13.3 | CL62: 13.33333333 | CM62: 0 | CO62: 1.5 | CP62: 3.32 | CQ62: 0.6666666667 | CR62: 6.923076923 | CT62: 2015-03-10 | CU62: 100 | CV62: 48.1 | CW62: 100 | CX62: 64.3 | CZ62: 100 | DA62: 49.8625 | DB62: 89.7 | DC62: 73.86153846
A63: 2015-03-13 | B63: 9 | C63: 2 | D63: 3 | E63: 14 | H63: 2015-03-13 | I63: 6 | J63: 33.3 | K63: 15.1 | N63: 2.88 | O63: 9.255555556 | P63: 7.2 | S63: 2015-03-13 | T63: 6 | U63: 6.6 | V63: 3 | Y63: 2.88 | Z63: 5 | AA63: 1.2 | AD63: 2015-03-13 | AE63: 4 | AF63: 3 | AG63: -33.2 | AH63: 9.9 | AJ63: 1.54 | AK63: 0.75 | AL63: 53.11666667 | AM63: 1.995 | AO63: 2015-03-13 | AP63: 3 | AQ63: 3 | AR63: -39.8 | AS63: 9.9 | AU63: 0.75 | AV63: 1 | AW63: 15.03333333 | AX63: 3.815 | AZ63: 2015-03-13 | BA63: 15.1 | BB63: 65.8 | BC63: 9.9 | BF63: 7.2 | BG63: 73.465 | BH63: 4.97 | BK63: 2015-03-13 | BL63: 6.6 | BM63: 6.6 | BN63: 0 | BO63: 0 | BQ63: 5 | BR63: 3.395 | BS63: 0.25 | BT63: 0.1 | BV63: 2015-03-13 | BW63: 39.9 | BX63: 59.9 | BY63: 65.8 | BZ63: 65.8 | CA63: 6 | CC63: 34.085 | CD63: 61.425 | CE63: 106.845 | CF63: 76.375 | CG63: 2.945 | CI63: 2015-03-13 | CJ63: 9.9 | CK63: 9.9 | CL63: 0 | CM63: 0 | CO63: 1.995 | CP63: 3.815 | CQ63: 0.6666666667 | CR63: 6.923076923 | CT63: 2015-03-13 | CU63: 66.8 | CV63: 100 | CW63: 60.2 | CX63: 100 | CZ63: 97.62857143 | DA63: 55.43333333 | DB63: 90.24210526 | DC63: 73.86153846
A64: 2015-03-14 | B64: 9 | C64: 2 | D64: 3 | E64: 14 | H64: 2015-03-14 | I64: 2.1 | J64: 0 | K64: 0 | N64: 2.945 | O64: 8.33 | P64: 6.821052632 | S64: 2015-03-14 | T64: 2.1 | U64: 6.2 | V64: 1 | Y64: 2.945 | Z64: 5.31 | AA64: 1.25 | AD64: 2015-03-14 | AE64: 1.1 | AF64: 1 | AH64: 0 | AJ64: 1.595 | AK64: 0.8 | AL64: 53.11666667 | AM64: 1.995 | AO64: 2015-03-14 | AP64: 1 | AQ64: 1 | AR64: 0 | AS64: 0 | AU64: 0.8 | AV64: 1.05 | AW64: 13.87692308 | AX64: 3.815 | AZ64: 2015-03-14 | BA64: 0 | BB64: 58.2 | BC64: 0 | BF64: 6.821052632 | BG64: 76.375 | BH64: 4.97 | BK64: 2015-03-14 | BL64: 6.2 | BM64: 2.1 | BN64: 0 | BO64: 0 | BQ64: 5.31 | BR64: 3.5 | BS64: 0.25 | BT64: 0.1 | BV64: 2015-03-14 | BW64: 32.3 | BX64: 62.1 | BY64: 175.2 | BZ64: 58.2 | CA64: 2.1 | CC64: 35.7 | CD64: 64.53 | CE64: 115.605 | CF64: 77.205 | CG64: 2.96 | CI64: 2015-03-14 | CJ64: 0 | CK64: 0 | CL64: 0 | CM64: 0 | CO64: 1.995 | CP64: 3.815 | CQ64: 0.6666666667 | CR64: 6.923076923 | CT64: 2015-03-14 | CU64: 100 | CW64: 100 | CX64: 100 | CZ64: 97.78666667 | DA64: 49.8625 | DB64: 90.73 | DC64: 73.86153846
A65: 2015-03-19 | B65: 9 | C65: 2 | D65: 3 | E65: 14 | H65: 2015-03-19 | I65: 2.4 | K65: 0 | N65: 2.96 | O65: 8.33 | P65: 6.821052632 | S65: 2015-03-19 | T65: 2.4 | U65: 2.7 | V65: 0 | Y65: 2.96 | Z65: 5.34 | AA65: 1.25 | AD65: 2015-03-19 | AE65: 0 | AF65: 0 | AH65: 0 | AJ65: 1.595 | AK65: 0.8 | AL65: 53.11666667 | AM65: 1.995 | AO65: 2015-03-19 | AP65: 0 | AQ65: 0 | AS65: 0 | AU65: 0.8 | AV65: 1.05 | AW65: 23.36666667 | AX65: 3.815 | AZ65: 2015-03-19 | BA65: 0 | BB65: 45.3 | BC65: 0 | BF65: 6.821052632 | BG65: 77.205 | BH65: 4.97 | BK65: 2015-03-19 | BL65: 2.7 | BM65: 1.8 | BN65: 0 | BO65: 0 | BQ65: 5.34 | BR65: 3.54 | BS65: 0.25 | BT65: 0.1 | BV65: 2015-03-19 | BW65: 0 | BX65: 0 | BY65: 67 | BZ65: 45.3 | CA65: 2.4 | CC65: 35.7 | CD65: 64.53 | CE65: 115.97 | CF65: 75.515 | CG65: 3.07 | CI65: 2015-03-19 | CJ65: 0 | CK65: 0 | CL65: 0 | CM65: 0 | CO65: 1.995 | CP65: 3.815 | CQ65: 0.6666666667 | CR65: 6.923076923 | CT65: 2015-03-19 | CV65: 100 | CX65: 100 | CZ65: 97.78666667 | DA65: 49.8625 | DB65: 95.50526316 | DC65: 73.86153846
A66: 2015-03-21 | B66: 9 | C66: 2 | D66: 3 | E66: 14 | H66: 2015-03-21 | I66: 4.9 | K66: 22.9 | N66: 3.07 | O66: 8.33 | P66: 8.026315789 | S66: 2015-03-21 | T66: 4.9 | U66: 9.7 | V66: 0 | Y66: 3.07 | Z66: 5.575 | AA66: 1.25 | AD66: 2015-03-21 | AE66: 1.9 | AF66: 0 | AH66: 0 | AJ66: 1.645 | AK66: 0.8 | AL66: 53.11666667 | AM66: 1.995 | AO66: 2015-03-21 | AP66: 0 | AQ66: 0 | AR66: 0 | AS66: 0 | AU66: 0.8 | AV66: 1.05 | AW66: 21.56923077 | AX66: 3.815 | AZ66: 2015-03-21 | BA66: 22.9 | BB66: 53.8 | BC66: 12.3 | BF66: 8.026315789 | BG66: 75.515 | BH66: 5.585 | BK66: 2015-03-21 | BL66: 9.7 | BM66: 4.4 | BN66: 0 | BO66: 0 | BQ66: 5.575 | BR66: 3.565 | BS66: 0.25 | BT66: 0.1 | BV66: 2015-03-21 | BW66: 23.9 | BX66: 37.9 | BY66: 119.9 | BZ66: 53.8 | CA66: 4.9 | CC66: 35.85 | CD66: 65.38 | CE66: 116.325 | CF66: 74.7 | CG66: 2.97 | CI66: 2015-03-21 | CJ66: 0 | CK66: 0 | CL66: 0 | CM66: 0 | CO66: 1.995 | CP66: 3.815 | CQ66: 0.6666666667 | CR66: 6.923076923 | CT66: 2015-03-21 | CU66: 100 | CW66: 100 | CX66: 100 | CZ66: 97.78666667 | DA66: 49.8625 | DB66: 95.50526316 | DC66: 75.72857143
A67: 2015-03-23 | B67: 9 | C67: 2 | D67: 3 | E67: 14 | H67: 2015-03-23 | I67: 2.7 | K67: 0 | N67: 2.97 | O67: 9.255555556 | P67: 8.026315789 | S67: 2015-03-23 | T67: 2.7 | U67: 5.7 | V67: 1 | Y67: 2.97 | Z67: 5.29 | AA67: 1.15 | AD67: 2015-03-23 | AE67: 0 | AF67: 0 | AH67: 0 | AJ67: 1.43 | AK67: 0.65 | AL67: 53.11666667 | AM67: 1.995 | AO67: 2015-03-23 | AP67: 0 | AQ67: 1 | AR67: 100 | AS67: 0 | AU67: 0.65 | AV67: 0.95 | AW67: 27.17142857 | AX67: 2.66 | AZ67: 2015-03-23 | BA67: 0 | BB67: 67.8 | BC67: 0 | BF67: 8.026315789 | BG67: 74.7 | BH67: 5.585 | BK67: 2015-03-23 | BL67: 5.7 | BM67: 3.1 | BN67: 1 | BO67: 0 | BQ67: 5.29 | BR67: 3.39 | BS67: 0.2 | BT67: 0.1 | BV67: 2015-03-23 | BW67: 0 | BX67: 40.2 | BY67: 127 | BZ67: 67.8 | CA67: 2.7 | CC67: 33.13 | CD67: 64.075 | CE67: 115.365 | CF67: 70.23 | CG67: 2.93 | CI67: 2015-03-23 | CJ67: 0 | CK67: 0 | CL67: 0 | CM67: 0 | CO67: 1.995 | CP67: 3.815 | CQ67: 0.6666666667 | CR67: 6.923076923 | CT67: 2015-03-23 | CV67: 0 | CW67: 100 | CX67: 0 | CZ67: 97.62857143 | DA67: 44.32222222 | DB67: 95.50526316 | DC67: 70.68
A68: 2015-03-24 | B68: 9 | C68: 2 | D68: 3 | E68: 14 | H68: 2015-03-24 | I68: 1.8 | K68: 0 | N68: 2.93 | O68: 9.255555556 | P68: 5.994736842 | S68: 2015-03-24 | T68: 1.8 | U68: 5.2 | V68: 0 | Y68: 2.93 | Z68: 4.99 | AA68: 1.15 | AD68: 2015-03-24 | AE68: 0 | AF68: 0 | AH68: 0 | AJ68: 1.43 | AK68: 0.65 | AL68: 53.11666667 | AM68: 1.995 | AO68: 2015-03-24 | AP68: 0 | AQ68: 0 | AS68: 0 | AU68: 0.65 | AV68: 0.95 | AW68: 25.47692308 | AX68: 2.66 | AZ68: 2015-03-24 | BA68: 0 | BB68: 30.2 | BC68: 0 | BF68: 5.994736842 | BG68: 70.23 | BH68: 3.275 | BK68: 2015-03-24 | BL68: 5.2 | BM68: 0.9 | BN68: 0 | BO68: 0 | BQ68: 4.99 | BR68: 3.175 | BS68: 0.2 | BT68: 0.1 | BV68: 2015-03-24 | BW68: 0 | BX68: 0 | BY68: 171.8 | BZ68: 30.2 | CA68: 1.8 | CC68: 33.13 | CD68: 57.325 | CE68: 111.04 | CF68: 66.115 | CG68: 2.79 | CI68: 2015-03-24 | CJ68: 0 | CK68: 0 | CL68: 0 | CM68: 0 | CO68: 1.995 | CP68: 2.66 | CQ68: 0.6666666667 | CR68: 0 | CT68: 2015-03-24 | CZ68: 97.62857143 | DA68: 43.5125 | DB68: 95.25555556 | DC68: 72.1
A69: 2015-03-27 | B69: 9 | C69: 2 | D69: 3 | E69: 14 | H69: 2015-03-27 | I69: 0.8 | N69: 2.79 | O69: 10.4125 | P69: 6.327777778 | S69: 2015-03-27 | T69: 0.8 | U69: 1.9 | V69: 0 | Y69: 2.79 | Z69: 4.79 | AA69: 1.1 | AD69: 2015-03-27 | AE69: 1 | AF69: 0 | AG69: -50.7 | AH69: 0 | AJ69: 1.43 | AK69: 0.65 | AL69: 44.66666667 | AM69: 0.495 | AO69: 2015-03-27 | AP69: 0 | AQ69: 0 | AR69: -50.7 | AS69: 0 | AU69: 0.65 | AV69: 0.95 | AW69: 19.74615385 | AX69: 1.16 | AZ69: 2015-03-27 | BB69: 0 | BC69: 0 | BF69: 6.327777778 | BG69: 66.115 | BH69: 3.275 | BK69: 2015-03-27 | BL69: 1.9 | BM69: 0 | BN69: 0 | BO69: 0 | BQ69: 4.79 | BR69: 2.925 | BS69: 0.2 | BT69: 0.1 | BV69: 2015-03-27 | BW69: 68.7 | BX69: 68.7 | BY69: 132.1 | BZ69: 0 | CA69: 0.8 | CC69: 35.75 | CD69: 58.32 | CE69: 112.775 | CF69: 63.565 | CG69: 2.74 | CI69: 2015-03-27 | CJ69: 0 | CK69: 0 | CL69: 0 | CM69: 0 | CO69: 1.995 | CP69: 2.66 | CQ69: 0.6666666667 | CR69: 0 | CT69: 2015-03-27 | CU69: 49.3 | CV69: 100 | CW69: 49.3 | CX69: 100 | CZ69: 94.00714286 | DA69: 43.5125 | DB69: 92.43888889 | DC69: 73.8
A70: 2015-03-28 | B70: 9 | C70: 2 | D70: 3 | E70: 14 | H70: 2015-03-28 | I70: 1 | J70: 0 | K70: 0 | N70: 2.74 | O70: 4.1625 | P70: 4.927777778 | S70: 2015-03-28 | T70: 1 | U70: 1.2 | V70: 1 | Y70: 2.74 | Z70: 4.6 | AA70: 1.05 | AD70: 2015-03-28 | AE70: 1.2 | AF70: 1 | AG70: 0 | AH70: 0 | AJ70: 1.39 | AK70: 0.6 | AL70: 38.28571429 | AM70: 0.495 | AO70: 2015-03-28 | AP70: 1 | AQ70: 1 | AR70: 0 | AS70: 0 | AU70: 0.6 | AV70: 0.9 | AW70: 18.33571429 | AX70: 1.16 | AZ70: 2015-03-28 | BA70: 0 | BB70: 68.1 | BC70: 0 | BF70: 4.927777778 | BG70: 63.565 | BH70: 1.775 | BK70: 2015-03-28 | BL70: 1.2 | BM70: 1.2 | BN70: 0 | BO70: 0 | BQ70: 4.6 | BR70: 2.785 | BS70: 0.2 | BT70: 0.1 | BV70: 2015-03-28 | BW70: 66.3 | BX70: 66.3 | BY70: 68.1 | BZ70: 68.1 | CA70: 1 | CC70: 36.07 | CD70: 55.835 | CE70: 108.72 | CF70: 65.445 | CG70: 2.735 | CI70: 2015-03-28 | CJ70: 0 | CK70: 0 | CL70: 0 | CM70: 0 | CO70: 0.495 | CP70: 1.16 | CQ70: 0.6666666667 | CR70: 0 | CT70: 2015-03-28 | CU70: 100 | CV70: 100 | CW70: 100 | CX70: 100 | CZ70: 94.00714286 | DA70: 49.78888889 | DB70: 92.43888889 | DC70: 75.54666667
A71: 2015-04-02 | B71: 9 | C71: 2 | D71: 3 | E71: 14 | H71: 2015-04-02 | I71: 2.4 | K71: 0 | N71: 2.735 | O71: 4.1625 | P71: 4.927777778 | S71: 2015-04-02 | T71: 2.4 | U71: 3.9 | V71: 0 | Y71: 2.735 | Z71: 4.6 | AA71: 1.05 | AD71: 2015-04-02 | AE71: 1 | AF71: 0 | AH71: 0 | AJ71: 1.335 | AK71: 0.6 | AL71: 38.28571429 | AM71: 0.98 | AO71: 2015-04-02 | AP71: 0 | AQ71: 0 | AS71: 0 | AU71: 0.6 | AV71: 0.9 | AW71: 19.74615385 | AX71: 1.645 | AZ71: 2015-04-02 | BA71: 0 | BB71: 95.8 | BC71: 0 | BF71: 4.927777778 | BG71: 65.445 | BH71: 1.775 | BK71: 2015-04-02 | BL71: 3.9 | BM71: 3.9 | BN71: 0 | BO71: 0 | BQ71: 4.6 | BR71: 2.86 | BS71: 0.2 | BT71: 0.1 | BV71: 2015-04-02 | BW71: 23.6 | BX71: 23.6 | BY71: 95.8 | BZ71: 95.8 | CA71: 2.4 | CC71: 34.73 | CD71: 54.495 | CE71: 108.84 | CF71: 64.74 | CG71: 2.93 | CI71: 2015-04-02 | CJ71: 0 | CK71: 0 | CL71: 0 | CM71: 0 | CO71: 0.495 | CP71: 1.16 | CQ71: 0.6666666667 | CR71: 0 | CT71: 2015-04-02 | CU71: 100 | CW71: 48.8 | CZ71: 94.00714286 | DA71: 49.78888889 | DB71: 89.59444444 | DC71: 73.8
A72: 2015-04-04 | B72: 10 | C72: 2 | D72: 3 | E72: 15 | H72: 2015-04-04 | I72: 6.2 | J72: 100 | K72: 26.8 | N72: 2.93 | O72: 14.81111111 | P72: 6.416666667 | S72: 2015-04-04 | T72: 6.2 | U72: 8.4 | V72: 1 | Y72: 2.93 | Z72: 4.825 | AA72: 1.05 | AD72: 2015-04-04 | AE72: 0 | AF72: 0 | AG72: 0 | AH72: 9.7 | AJ72: 1.285 | AK72: 0.55 | AL72: 33.5 | AM72: 0.98 | AO72: 2015-04-04 | AP72: 0 | AQ72: 1 | AR72: 59 | AS72: 9.7 | AU72: 0.55 | AV72: 0.9 | AW72: 22.55 | AX72: 1.645 | AZ72: 2015-04-04 | BA72: 26.8 | BB72: 36.3 | BC72: 9.7 | BF72: 6.416666667 | BG72: 64.74 | BH72: 2.26 | BK72: 2015-04-04 | BL72: 8.4 | BM72: 3.7 | BN72: 0 | BO72: 0 | BQ72: 4.825 | BR72: 2.95 | BS72: 0.15 | BT72: 0.1 | BV72: 2015-04-04 | BW72: 0 | BX72: 27.9 | BY72: 81.3 | BZ72: 36.3 | CA72: 6.2 | CC72: 33.405 | CD72: 50.91 | CE72: 107.765 | CF72: 61.79 | CG72: 3.05 | CI72: 2015-04-04 | CJ72: 9.7 | CK72: 9.7 | CL72: 0 | CM72: 0 | CO72: 0.98 | CP72: 1.645 | CQ72: 0.6666666667 | CR72: 0 | CT72: 2015-04-04 | CU72: 0 | CV72: 0 | CW72: 59 | CX72: 0 | CZ72: 86.86428571 | DA72: 44.81 | DB72: 87.31666667 | DC72: 68.88
A73: 2015-04-06 | B73: 10 | C73: 2 | D73: 3 | E73: 15 | H73: 2015-04-06 | I73: 3.8 | J73: 0 | K73: 0 | N73: 3.05 | O73: 14.81111111 | P73: 6.416666667 | S73: 2015-04-06 | T73: 3.8 | U73: 7.1 | V73: 1 | Y73: 3.05 | Z73: 4.955 | AA73: 1.05 | AD73: 2015-04-06 | AE73: 0.9 | AF73: 1 | AH73: 0 | AJ73: 1.205 | AK73: 0.55 | AL73: 24 | AM73: 0.98 | AO73: 2015-04-06 | AP73: 1 | AQ73: 1 | AS73: 0 | AU73: 0.55 | AV73: 0.9 | AW73: 16.59230769 | AX73: 1.645 | AZ73: 2015-04-06 | BA73: 0 | BB73: 84.7 | BC73: 0 | BF73: 6.416666667 | BG73: 61.79 | BH73: 2.26 | BK73: 2015-04-06 | BL73: 7.1 | BM73: 5.4 | BN73: 0 | BO73: 0 | BQ73: 4.955 | BR73: 3.05 | BS73: 0.15 | BT73: 0.1 | BV73: 2015-04-06 | BW73: 14.2 | BX73: 28.5 | BY73: 111.6 | BZ73: 84.7 | CA73: 3.8 | CC73: 28.98 | CD73: 47.2 | CE73: 103.92 | CF73: 53.6 | CG73: 3.025 | CI73: 2015-04-06 | CJ73: 0 | CK73: 0 | CL73: 0 | CM73: 0 | CO73: 0.98 | CP73: 1.645 | CQ73: 0.6666666667 | CR73: 0 | CT73: 2015-04-06 | CU73: 100 | CW73: 100 | CZ73: 86.86428571 | DA73: 49.78888889 | DB73: 87.31666667 | DC73: 73.8
A74: 2015-04-07 | B74: 10 | C74: 2 | D74: 3 | E74: 15 | H74: 2015-04-07 | I74: 1.4 | K74: 0 | N74: 3.025 | O74: 16.6625 | P74: 6.416666667 | S74: 2015-04-07 | T74: 1.4 | U74: 0.9 | V74: 0 | Y74: 3.025 | Z74: 4.68 | AA74: 0.95 | AD74: 2015-04-07 | AE74: 0.9 | AF74: 0 | AH74: 0 | AJ74: 1.095 | AK74: 0.5 | AL74: 24 | AM74: 0.98 | AO74: 2015-04-07 | AP74: 0 | AQ74: 0 | AS74: 0 | AU74: 0.5 | AV74: 0.85 | AW74: 17.975 | AX74: 1.645 | AZ74: 2015-04-07 | BA74: 0 | BB74: 37.2 | BC74: 0 | BF74: 6.416666667 | BG74: 53.6 | BH74: 2.26 | BK74: 2015-04-07 | BL74: 0.9 | BM74: 0.9 | BN74: 0 | BO74: 0 | BQ74: 4.68 | BR74: 2.775 | BS74: 0.15 | BT74: 0.05 | BV74: 2015-04-07 | BW74: 36.5 | BX74: 36.5 | BY74: 37.2 | BZ74: 37.2 | CA74: 1.4 | CC74: 25.99 | CD74: 44.21 | CE74: 95.73 | CF74: 53.965 | CG74: 2.965 | CI74: 2015-04-07 | CJ74: 0 | CK74: 0 | CL74: 0 | CM74: 0 | CO74: 0.98 | CP74: 1.645 | CQ74: 0.6666666667 | CR74: 0 | CT74: 2015-04-07 | CU74: 100 | CW74: 100 | CZ74: 86.86428571 | DA74: 49.78888889 | DB74: 87.31666667 | DC74: 71.78461538
A75: 2015-04-11 | B75: 10 | C75: 2 | D75: 3 | E75: 15 | H75: 2015-04-11 | I75: 3.1 | K75: 0 | N75: 2.965 | O75: 19.04285714 | P75: 6.416666667 | S75: 2015-04-11 | T75: 3.1 | U75: 4.8 | V75: 0 | Y75: 2.965 | Z75: 4.54 | AA75: 0.75 | AD75: 2015-04-11 | AE75: 1 | AF75: 0 | AH75: 0 | AJ75: 1.145 | AK75: 0.5 | AL75: 24 | AM75: 2.625 | AO75: 2015-04-11 | AP75: 0 | AQ75: 0 | AS75: 0 | AU75: 0.5 | AV75: 0.65 | AW75: 19.60909091 | AX75: 3.29 | AZ75: 2015-04-11 | BA75: 0 | BB75: 57.1 | BC75: 0 | BF75: 6.416666667 | BG75: 53.965 | BH75: 2.26 | BK75: 2015-04-11 | BL75: 4.8 | BM75: 2.9 | BN75: 0 | BO75: 0 | BQ75: 4.54 | BR75: 2.74 | BS75: 0.1 | BT75: 0.1 | BV75: 2015-04-11 | BW75: 19.7 | BX75: 39.7 | BY75: 93.1 | BZ75: 57.1 | CA75: 3.1 | CC75: 26.975 | CD75: 42.555 | CE75: 95.115 | CF75: 52.24 | CG75: 2.92 | CI75: 2015-04-11 | CJ75: 0 | CK75: 0 | CL75: 0 | CM75: 0 | CO75: 0.98 | CP75: 1.645 | CQ75: 0.6666666667 | CR75: 0 | CT75: 2015-04-11 | CU75: 100 | CW75: 100 | CZ75: 87.74 | DA75: 49.78888889 | DB75: 87.31666667 | DC75: 69.43333333
A76: 2015-10-08 | B76: 11 | C76: 2 | D76: 3 | E76: 16 | H76: 2015-10-08 | I76: 1.8 | J76: 100 | K76: 100 | N76: 2.92 | O76: 29.1625 | P76: 11.97222222 | S76: 2015-10-08 | T76: 1.8 | U76: 3.4 | V76: 2 | Y76: 2.92 | Z76: 4.56 | AA76: 0.85 | AD76: 2015-10-08 | AE76: 0 | AF76: 0 | AH76: 32.9 | AJ76: 1.145 | AK76: 0.5 | AL76: 24 | AM76: 3.755 | AO76: 2015-10-08 | AP76: 0 | AQ76: 0 | AS76: 32.9 | AU76: 0.5 | AV76: 0.65 | AW76: 19.60909091 | AX76: 4.42 | AZ76: 2015-10-08 | BA76: 100 | BB76: 32.9 | BC76: 32.9 | BF76: 11.97222222 | BG76: 52.24 | BH76: 3.905 | BK76: 2015-10-08 | BL76: 3.4 | BM76: 1 | BN76: 0 | BO76: 1 | BQ76: 4.56 | BR76: 2.64 | BS76: 0.1 | BT76: 0.1 | BV76: 2015-10-08 | BW76: 0 | BX76: 24.5 | BY76: 112.6 | BZ76: 32.9 | CA76: 1.8 | CC76: 26.975 | CD76: 42.685 | CE76: 97.375 | CF76: 52.51 | CG76: 2.865 | CI76: 2015-10-08 | CJ76: 32.9 | CK76: 32.9 | CL76: 0 | CM76: 0 | CO76: 2.625 | CP76: 3.29 | CQ76: 0.6666666667 | CR76: 0 | CT76: 2015-10-08 | CW76: 100 | CZ76: 87.74 | DA76: 49.78888889 | DB76: 87.31666667 | DC76: 69.43333333
A77: 2015-10-10 | B77: 12 | C77: 2 | D77: 3 | E77: 17 | H77: 2015-10-10 | I77: 2.7 | J77: 100 | K77: 52.1 | N77: 2.865 | O77: 37.03333333 | P77: 14.86666667 | S77: 2015-10-10 | T77: 2.7 | U77: 2.9 | V77: 1 | Y77: 2.865 | Z77: 4.485 | AA77: 0.85 | AD77: 2015-10-10 | AE77: 0 | AF77: 0 | AH77: 22.6 | AJ77: 1.09 | AK77: 0.5 | AL77: 11.33333333 | AM77: 4.585 | AO77: 2015-10-10 | AP77: 0 | AQ77: 0 | AS77: 22.6 | AU77: 0.5 | AV77: 0.6 | AW77: 18.46 | AX77: 5.25 | AZ77: 2015-10-10 | BA77: 52.1 | BB77: 43.3 | BC77: 22.6 | BF77: 14.86666667 | BG77: 52.51 | BH77: 5.035 | BK77: 2015-10-10 | BL77: 2.9 | BM77: 1.9 | BN77: 0 | BO77: 0 | BQ77: 4.485 | BR77: 2.615 | BS77: 0.05 | BT77: 0.1 | BV77: 2015-10-10 | BW77: 0 | BX77: 0 | BY77: 65 | BZ77: 43.3 | CA77: 2.7 | CC77: 26.075 | CD77: 40.975 | CE77: 97.19 | CF77: 51.68 | CG77: 2.845 | CI77: 2015-10-10 | CJ77: 22.6 | CK77: 22.6 | CL77: 0 | CM77: 0 | CO77: 3.755 | CP77: 4.42 | CQ77: 0.6666666667 | CR77: 0 | CT77: 2015-10-10 | CX77: 100 | CZ77: 86.86428571 | DA77: 56.0125 | DB77: 86.57058824 | DC77: 72.025
A78: 2015-10-15 | B78: 13 | C78: 2 | D78: 3 | E78: 18 | H78: 2015-10-15 | I78: 3.6 | J78: 100 | K78: 29.2 | N78: 2.845 | O78: 48.14444444 | P78: 16.48888889 | S78: 2015-10-15 | T78: 3.6 | U78: 7.5 | V78: 3 | Y78: 2.845 | Z78: 4.565 | AA78: 0.9 | AD78: 2015-10-15 | AE78: 1 | AF78: 1 | AH78: 16.6 | AJ78: 1.045 | AK78: 0.5 | AL78: 11.33333333 | AM78: 4.585 | AO78: 2015-10-15 | AP78: 1 | AQ78: 3 | AR78: 0 | AS78: 16.6 | AU78: 0.5 | AV78: 0.7 | AW78: 16.78181818 | AX78: 5.755 | AZ78: 2015-10-15 | BA78: 29.2 | BB78: 56.7 | BC78: 16.6 | BF78: 16.48888889 | BG78: 51.68 | BH78: 5.865 | BK78: 2015-10-15 | BL78: 7.5 | BM78: 3.4 | BN78: 2 | BO78: 0 | BQ78: 4.565 | BR78: 2.54 | BS78: 0.15 | BT78: 0.2 | BV78: 2015-10-15 | BW78: 16.6 | BX78: 86.6 | BY78: 123.4 | BZ78: 56.7 | CA78: 3.6 | CC78: 25.53 | CD78: 43.195 | CE78: 99.015 | CF78: 52.355 | CG78: 3.07 | CI78: 2015-10-15 | CJ78: 16.6 | CK78: 16.6 | CL78: 0 | CM78: 0 | CO78: 4.585 | CP78: 5.25 | CQ78: 0.6666666667 | CR78: 0 | CT78: 2015-10-15 | CU78: 100 | CW78: 100 | CX78: 100 | CZ78: 86.86428571 | DA78: 56.0125 | DB78: 88.1 | DC78: 74.17692308
A79: 2015-10-16 | B79: 13 | C79: 3 | D79: 3 | E79: 19 | H79: 2015-10-16 | I79: 6 | J79: 0 | K79: 20.3 | N79: 3.07 | O79: 43.33 | P79: 17.61666667 | S79: 2015-10-16 | T79: 6 | U79: 9.9 | V79: 5 | Y79: 3.07 | Z79: 4.97 | AA79: 1.15 | AD79: 2015-10-16 | AE79: 2.1 | AF79: 1 | AH79: 0 | AJ79: 1.15 | AK79: 0.55 | AL79: 11.33333333 | AM79: 4.585 | AO79: 2015-10-16 | AP79: 1 | AQ79: 4 | AR79: 0 | AS79: 10.1 | AU79: 0.55 | AV79: 0.9 | AW79: 15.38333333 | AX79: 5.755 | AZ79: 2015-10-16 | BA79: 20.3 | BB79: 49.8 | BC79: 10.1 | BF79: 17.61666667 | BG79: 52.355 | BH79: 6.37 | BK79: 2015-10-16 | BL79: 9.9 | BM79: 4.9 | BN79: 0 | BO79: 2 | BQ79: 4.97 | BR79: 2.74 | BS79: 0.15 | BT79: 0.2 | BV79: 2015-10-16 | BW79: 20.7 | BX79: 81.5 | BY79: 99.8 | BZ79: 49.8 | CA79: 6 | CC79: 26.565 | CD79: 45.36 | CE79: 100.435 | CF79: 57.375 | CG79: 3.015 | CI79: 2015-10-16 | CJ79: 0 | CK79: 10.1 | CL79: 10 | CM79: 0 | CO79: 4.585 | CP79: 5.755 | CQ79: 1.166666667 | CR79: 0 | CT79: 2015-10-16 | CU79: 100 | CW79: 100 | CX79: 100 | CZ79: 87.74 | DA79: 56.0125 | DB79: 88.1 | DC79: 76.02142857
A80: 2015-10-18 | B80: 13 | C80: 3 | D80: 3 | E80: 19 | H80: 2015-10-18 | I80: 1.1 | K80: 0 | N80: 3.015 | O80: 43.33 | P80: 16.68947368 | S80: 2015-10-18 | T80: 1.1 | U80: 4.1 | V80: 1 | Y80: 3.015 | Z80: 5.045 | AA80: 1.2 | AD80: 2015-10-18 | AE80: 1 | AF80: 0 | AH80: 0 | AJ80: 1.155 | AK80: 0.55 | AL80: 11.33333333 | AM80: 4.585 | AO80: 2015-10-18 | AP80: 0 | AQ80: 0 | AS80: 0 | AU80: 0.55 | AV80: 0.9 | AW80: 16.78181818 | AX80: 5.755 | AZ80: 2015-10-18 | BA80: 0 | BB80: 100.4 | BC80: 0 | BF80: 16.68947368 | BG80: 57.375 | BH80: 6.37 | BK80: 2015-10-18 | BL80: 4.1 | BM80: 1.8 | BN80: 1 | BO80: 0 | BQ80: 5.045 | BR80: 2.83 | BS80: 0.2 | BT80: 0.2 | BV80: 2015-10-18 | BW80: 55.9 | BX80: 106.7 | BY80: 228 | BZ80: 100.4 | CA80: 1.1 | CC80: 28.195 | CD80: 46.81 | CE80: 108.33 | CF80: 53.355 | CG80: 3.01 | CI80: 2015-10-18 | CJ80: 0 | CK80: 0 | CL80: 0 | CM80: 0 | CO80: 4.585 | CP80: 5.755 | CQ80: 1.166666667 | CR80: 0 | CT80: 2015-10-18 | CU80: 100 | CW80: 100 | CZ80: 87.74 | DA80: 56.0125 | DB80: 88.1 | DC80: 74.17692308
A81: 2015-10-22 | B81: 13 | C81: 3 | D81: 3 | E81: 19 | H81: 2015-10-22 | I81: 1.9 | J81: 0 | K81: 0 | N81: 3.01 | O81: 43.33 | P81: 16.68947368 | S81: 2015-10-22 | T81: 1.9 | U81: 1.8 | V81: 1 | Y81: 3.01 | Z81: 4.9 | AA81: 1.1 | AD81: 2015-10-22 | AE81: 0 | AF81: 0 | AH81: 0 | AJ81: 0.95 | AK81: 0.4 | AL81: -6.4 | AM81: 4.585 | AO81: 2015-10-22 | AP81: 0 | AQ81: 0 | AR81: 34.3 | AS81: 0 | AU81: 0.4 | AV81: 0.75 | AW81: 12.59090909 | AX81: 5.09 | AZ81: 2015-10-22 | BA81: 0 | BB81: 57.4 | BC81: 0 | BF81: 16.68947368 | BG81: 53.355 | BH81: 6.37 | BK81: 2015-10-22 | BL81: 1.8 | BM81: 1.8 | BN81: 0 | BO81: 0 | BQ81: 4.9 | BR81: 2.685 | BS81: 0.2 | BT81: 0.3 | BV81: 2015-10-22 | BW81: 0 | BX81: 28.6 | BY81: 57.4 | BZ81: 57.4 | CA81: 1.9 | CC81: 22.2 | CD81: 42.245 | CE81: 104.31 | CF81: 52.895 | CG81: 3.13 | CI81: 2015-10-22 | CJ81: 0 | CK81: 0 | CL81: 0 | CM81: 0 | CO81: 4.585 | CP81: 5.755 | CQ81: 1.166666667 | CR81: 0 | CT81: 2015-10-22 | CV81: 100 | CW81: 100 | CX81: 65.7 | CZ81: 86.86428571 | DA81: 68.5125 | DB81: 89.25294118 | DC81: 79.23076923
A82: 2015-10-24 | B82: 13 | C82: 3 | D82: 3 | E82: 19 | H82: 2015-10-24 | I82: 6.9 | J82: 0 | K82: 0 | N82: 3.13 | O82: 39.39090909 | P82: 14.02105263 | S82: 2015-10-24 | T82: 6.9 | U82: 13.6 | V82: 5 | Y82: 3.13 | Z82: 5.375 | AA82: 1.3 | AD82: 2015-10-24 | AE82: 0 | AF82: 0 | AH82: 0 | AJ82: 0.855 | AK82: 0.4 | AL82: -20.975 | AM82: 4.09 | AO82: 2015-10-24 | AP82: 0 | AQ82: 1 | AR82: -18 | AS82: 0 | AU82: 0.4 | AV82: 0.8 | AW82: 7.709090909 | AX82: 4.595 | AZ82: 2015-10-24 | BA82: 0 | BB82: 17.1 | BC82: 0 | BF82: 14.02105263 | BG82: 52.895 | BH82: 5.705 | BK82: 2015-10-24 | BL82: 13.6 | BM82: 2 | BN82: 1 | BO82: 3 | BQ82: 5.375 | BR82: 2.685 | BS82: 0.25 | BT82: 0.35 | BV82: 2015-10-24 | BW82: 0 | BX82: 39.4 | BY82: 117.5 | BZ82: 17.1 | CA82: 6.9 | CC82: 20.915 | CD82: 42.93 | CE82: 107.48 | CF82: 52.12 | CG82: 3.105 | CI82: 2015-10-24 | CJ82: 0 | CK82: 0 | CL82: 0 | CM82: 0 | CO82: 4.585 | CP82: 5.09 | CQ82: 0.5 | CR82: 0 | CT82: 2015-10-24 | CV82: 100 | CW82: 82 | CX82: 100 | CZ82: 85.85384615 | DA82: 75 | DB82: 88.19411765 | DC82: 81.97692308
A83: 2015-10-25 | B83: 13 | C83: 3 | D83: 3 | E83: 19 | H83: 2015-10-25 | I83: 5.5 | J83: 0 | K83: 21.6 | N83: 3.105 | O83: 36.36363636 | P83: 14.36315789 | S83: 2015-10-25 | T83: 5.5 | U83: 10.2 | V83: 2 | Y83: 3.105 | Z83: 5.555 | AA83: 1.25 | AD83: 2015-10-25 | AE83: 0 | AF83: 0 | AG83: -100 | AH83: 0 | AJ83: 0.655 | AK83: 0.25 | AL83: -37.675 | AM83: 4.09 | AO83: 2015-10-25 | AP83: 0 | AQ83: 1 | AR83: -33.7 | AS83: 0 | AU83: 0.25 | AV83: 0.7 | AW83: 8.263636364 | AX83: 4.595 | AZ83: 2015-10-25 | BA83: 21.6 | BB83: 50.3 | BC83: 10.9 | BF83: 14.36315789 | BG83: 52.12 | BH83: 5.755 | BK83: 2015-10-25 | BL83: 10.2 | BM83: 4.6 | BN83: 0 | BO83: 1 | BQ83: 5.555 | BR83: 2.585 | BS83: 0.25 | BT83: 0.35 | BV83: 2015-10-25 | BW83: 0 | BX83: 42.8 | BY83: 110.7 | BZ83: 50.3 | CA83: 5.5 | CC83: 18.92 | CD83: 42.075 | CE83: 109.725 | CF83: 52.17 | CG83: 3.105 | CI83: 2015-10-25 | CJ83: 0 | CK83: 0 | CL83: 0 | CM83: 0 | CO83: 4.09 | CP83: 4.595 | CQ83: 0.5 | CR83: 0 | CT83: 2015-10-25 | CU83: 0 | CV83: 100 | CW83: 66.3 | CX83: 100 | CZ83: 80.71538462 | DA83: 75 | DB83: 88.55294118 | DC83: 81.97692308
A84: 2015-10-27 | B84: 13 | C84: 3 | D84: 3 | E84: 19 | H84: 2015-10-27 | I84: 2.1 | J84: 0 | K84: 0 | N84: 3.105 | O84: 36.36363636 | P84: 14.36315789 | S84: 2015-10-27 | T84: 2.1 | U84: 3.1 | V84: 2 | Y84: 3.105 | Z84: 5.4 | AA84: 1.3 | AD84: 2015-10-27 | AE84: 0.9 | AF84: 1 | AG84: 0 | AH84: 0 | AJ84: 0.645 | AK84: 0.25 | AL84: -30.14 | AM84: 4.09 | AO84: 2015-10-27 | AP84: 1 | AQ84: 2 | AR84: 24.2 | AS84: 0 | AU84: 0.25 | AV84: 0.75 | AW84: 10.46363636 | AX84: 4.595 | AZ84: 2015-10-27 | BA84: 0 | BB84: 59.2 | BC84: 0 | BF84: 14.36315789 | BG84: 52.17 | BH84: 5.755 | BK84: 2015-10-27 | BL84: 3.1 | BM84: 2.1 | BN84: 1 | BO84: 0 | BQ84: 5.4 | BR84: 2.585 | BS84: 0.3 | BT84: 0.4 | BV84: 2015-10-27 | BW84: 25 | BX84: 53.7 | BY84: 85.9 | BZ84: 59.2 | CA84: 2.1 | CC84: 18.555 | CD84: 41.655 | CE84: 105.26 | CF84: 51.225 | CG84: 3.105 | CI84: 2015-10-27 | CJ84: 0 | CK84: 0 | CL84: 0 | CM84: 0 | CO84: 4.09 | CP84: 4.595 | CQ84: 0.5 | CR84: 0 | CT84: 2015-10-27 | CU84: 100 | CV84: 100 | CW84: 100 | CX84: 75.8 | CZ84: 80.71538462 | DA84: 77.77777778 | DB84: 88.55294118 | DC84: 80.11538462
A85: 2015-10-30 | B85: 13 | C85: 3 | D85: 3 | E85: 19 | H85: 2015-10-30 | I85: 2.4 | K85: 0 | N85: 3.105 | O85: 36.36363636 | P85: 14.36315789 | S85: 2015-10-30 | T85: 2.4 | U85: 4 | V85: 2 | Y85: 3.105 | Z85: 5.465 | AA85: 1.4 | AD85: 2015-10-30 | AE85: 1 | AF85: 1 | AG85: -50.7 | AH85: 0 | AJ85: 0.695 | AK85: 0.3 | AL85: -33.56666667 | AM85: 4.09 | AO85: 2015-10-30 | AP85: 1 | AQ85: 2 | AR85: -1 | AS85: 0 | AU85: 0.3 | AV85: 0.85 | AW85: 9.508333333 | AX85: 4.595 | AZ85: 2015-10-30 | BA85: 0 | BB85: 26.4 | BC85: 0 | BF85: 14.36315789 | BG85: 51.225 | BH85: 5.755 | BK85: 2015-10-30 | BL85: 4 | BM85: 1.1 | BN85: 1 | BO85: 1 | BQ85: 5.465 | BR85: 2.55 | BS85: 0.35 | BT85: 0.45 | BV85: 2015-10-30 | BW85: 24.3 | BX85: 47 | BY85: 100.3 | BZ85: 26.4 | CA85: 2.4 | CC85: 19.77 | CD85: 44.005 | CE85: 106.925 | CF85: 50.515 | CG85: 3.16 | CI85: 2015-10-30 | CJ85: 0 | CK85: 0 | CL85: 0 | CM85: 0 | CO85: 4.09 | CP85: 4.595 | CQ85: 0.5 | CR85: 0 | CT85: 2015-10-30 | CU85: 49.3 | CV85: 100 | CW85: 65.4 | CX85: 66.4 | CZ85: 78.47142857 | DA85: 77.77777778 | DB85: 87.26666667 | DC85: 77.53076923
A86: 2015-10-31 | B86: 13 | C86: 3 | D86: 3 | E86: 19 | H86: 2015-10-31 | I86: 6 | J86: 0 | K86: 0 | N86: 3.16 | O86: 33.33333333 | P86: 13.15789474 | S86: 2015-10-31 | T86: 6 | U86: 8 | V86: 3 | Y86: 3.16 | Z86: 5.38 | AA86: 1.55 | AD86: 2015-10-31 | AE86: 3 | AF86: 0 | AG86: 0 | AH86: 0 | AJ86: 0.75 | AK86: 0.3 | AL86: -28.77142857 | AM86: 4.09 | AO86: 2015-10-31 | AP86: 0 | AQ86: 3 | AR86: 0 | AS86: 0 | AU86: 0.3 | AV86: 1 | AW86: 9.508333333 | AX86: 4.595 | AZ86: 2015-10-31 | BA86: 0 | BB86: 39.6 | BC86: 0 | BF86: 13.15789474 | BG86: 50.515 | BH86: 5.14 | BK86: 2015-10-31 | BL86: 8 | BM86: 4 | BN86: 0 | BO86: 1 | BQ86: 5.38 | BR86: 2.53 | BS86: 0.35 | BT86: 0.45 | BV86: 2015-10-31 | BW86: 30.4 | BX86: 70.7 | BY86: 79.8 | BZ86: 39.6 | CA86: 6 | CC86: 20.095 | CD86: 45.645 | CE86: 104.92 | CF86: 49.82 | CG86: 3.08 | CI86: 2015-10-31 | CJ86: 0 | CK86: 0 | CL86: 0 | CM86: 0 | CO86: 4.09 | CP86: 4.595 | CQ86: 0.5 | CR86: 0 | CT86: 2015-10-31 | CU86: 100 | CV86: 100 | CW86: 100 | CX86: 100 | CZ86: 78.47142857 | DA86: 80 | DB86: 87.26666667 | DC86: 77.53076923
A87: 2015-11-05 | B87: 13 | C87: 3 | D87: 3 | E87: 19 | H87: 2015-11-05 | I87: 1.1 | K87: 0 | N87: 3.08 | O87: 33.33333333 | P87: 13.15789474 | S87: 2015-11-05 | T87: 1.1 | U87: 1 | V87: 0 | Y87: 3.08 | Z87: =AVERAGE(U68:U87) -> 5.145 | AA87: =AVERAGE(V68:V87) -> 1.5 | AB87: =AVERAGE(W69:W88) ->  | AD87: 2015-11-05 | AE87: 0 | AF87: 0 | AH87: 0 | AJ87: 0.75 | AK87: =AVERAGE(AF68:AF87) -> 0.3 | AL87: =AVERAGE(AG68:AG87) -> -28.77142857 | AM87: =AVERAGE(AH69:AH88) -> 4.09 | AO87: 2015-11-05 | AP87: 0 | AQ87: 0 | AS87: 0 | AU87: 0.3 | AV87: =AVERAGE(AQ68:AQ87) -> 0.95 | AW87: =AVERAGE(AR68:AR87) -> 1.281818182 | AX87: =AVERAGE(AS69:AS88) -> 4.595 | AZ87: 2015-11-05 | BA87: 0 | BB87: 53.9 | BC87: 0 | BF87: 13.15789474 | BG87: =AVERAGE(BB68:BB87) -> 49.82 | BH87: =AVERAGE(BC68:BC87) -> 5.14 | BI87: =AVERAGE(BD69:BD88) ->  | BK87: 2015-11-05 | BL87: 1 | BM87: 1 | BN87: 0 | BO87: 0 | BQ87: 5.145 | BR87: =AVERAGE(BM68:BM87) -> 2.425 | BS87: =AVERAGE(BN68:BN87) -> 0.3 | BT87: =AVERAGE(BO69:BO88) -> 0.45 | BV87: 2015-11-05 | BW87: 0 | BX87: 0 | BY87: 53.9 | BZ87: 53.9 | CA87: 1.1 | CC87: 20.095 | CD87: =AVERAGE(BX68:BX87) -> 43.635 | CE87: =AVERAGE(BY68:BY87) -> 101.265 | CF87: =AVERAGE(BZ69:BZ88) -> 48.31 | CG87: 3.025 | CI87: 2015-11-05 | CJ87: 0 | CK87: 0 | CL87: 0 | CM87: 0 | CO87: 4.09 | CP87: =AVERAGE(CK68:CK87) -> 4.595 | CQ87: =AVERAGE(CL68:CL87) -> 0.5 | CR87: 0 | CT87: 2015-11-05 | CX87: 100 | CZ87: 78.47142857 | DA87: =AVERAGE(CV68:CV87) -> 88.88888889 | DB87: =AVERAGE(CW68:CW87) -> 86.51764706 | DC87: =AVERAGE(CX68:CX87) -> 85.22307692
A88: 2015-11-27 | B88: 13 | C88: 3 | D88: 3 | E88: 19 | H88: 2015-11-27 | I88: 0.7 | N88: =AVERAGE(I69:I88) -> 3.025 | O88: =AVERAGE(J69:J88) -> 33.33333333 | P88: =AVERAGE(K69:K88) -> 13.88888889 | Q88: =AVERAGE(L70:L89) ->  | S88: 2015-11-27 | T88: 0.7 | U88: 0 | V88: 0 | Y88: =AVERAGE(T69:T88) -> 3.025 | Z88: 4.885 | AA88: 1.5 | AD88: 2015-11-27 | AE88: 0 | AF88: 0 | AH88: 0 | AJ88: =AVERAGE(AE69:AE88) -> 0.75 | AK88: 0.3 | AL88: -28.77142857 | AM88: 4.09 | AO88: 2015-11-27 | AP88: 0 | AQ88: 0 | AS88: 0 | AU88: =AVERAGE(AP69:AP88) -> 0.3 | AV88: 0.95 | AW88: 1.281818182 | AX88: 4.595 | AZ88: 2015-11-27 | BB88: 0 | BC88: 0 | BF88: =AVERAGE(BA69:BA88) -> 13.88888889 | BG88: 48.31 | BH88: 5.14 | BK88: 2015-11-27 | BL88: 0 | BM88: 0 | BN88: 0 | BO88: 0 | BQ88: =AVERAGE(BL69:BL88) -> 4.885 | BR88: 2.38 | BS88: 0.3 | BT88: 0.45 | BV88: 2015-11-27 | BW88: 0 | BX88: 0 | BY88: 0 | BZ88: 0 | CA88: 0.7 | CC88: =AVERAGE(BW69:BW88) -> 20.095 | CD88: 43.635 | CE88: 92.675 | CF88: 48.31 | CG88: 3.07 | CI88: 2015-11-27 | CJ88: 0 | CK88: 0 | CL88: 0 | CM88: 0 | CO88: =AVERAGE(CJ69:CJ88) -> 4.09 | CP88: 4.595 | CQ88: 0.5 | CR88: 0 | CT88: 2015-11-27 | CZ88: =AVERAGE(CU69:CU88) -> 78.47142857 | DA88: 88.88888889 | DB88: 86.51764706 | DC88: 85.22307692
A89: 2015-11-28 | B89: 13 | C89: 3 | D89: 3 | E89: 19 | H89: 2015-11-28 | I89: 1.7 | N89: 3.07 | O89: 33.33333333 | P89: 13.88888889 | S89: 2015-11-28 | T89: 1.7 | U89: 0 | V89: 0 | Y89: 3.07 | Z89: 4.79 | AA89: 1.5 | AD89: 2015-11-28 | AE89: 0 | AF89: 0 | AH89: 0 | AJ89: 0.7 | AK89: 0.3 | AL89: -25.11666667 | AM89: 4.09 | AO89: 2015-11-28 | AP89: 0 | AQ89: 0 | AR89: 0 | AS89: 0 | AU89: 0.3 | AV89: 0.95 | AW89: 5.890909091 | AX89: 4.595 | AZ89: 2015-11-28 | BB89: 0 | BC89: 0 | BF89: 13.88888889 | BG89: 48.31 | BH89: 5.14 | BK89: 2015-11-28 | BL89: 0 | BM89: 0 | BN89: 0 | BO89: 0 | BQ89: 4.79 | BR89: 2.38 | BS89: 0.3 | BT89: 0.45 | BV89: 2015-11-28 | BW89: 0 | BX89: 0 | BY89: 0 | BZ89: 0 | CA89: 1.7 | CC89: 16.66 | CD89: 40.2 | CE89: 86.07 | CF89: 47.33 | CG89: 3.27 | CI89: 2015-11-28 | CJ89: 0 | CK89: 0 | CL89: 0 | CM89: 0 | CO89: 4.09 | CP89: 4.595 | CQ89: 0.5 | CR89: 0 | CT89: 2015-11-28 | CW89: 0 | CX89: 0 | CZ89: 80.71538462 | DA89: 87.5 | DB89: 83.61764706 | DC89: 77.53076923
A90: 2015-12-01 | B90: 13 | C90: 3 | D90: 3 | E90: 19 | H90: 2015-12-01 | I90: 5 | J90: 0 | K90: 0 | N90: 3.27 | O90: 33.33333333 | P90: 13.88888889 | S90: 2015-12-01 | T90: 5 | U90: 12 | V90: 4 | Y90: 3.27 | Z90: 5.33 | AA90: 1.65 | AD90: 2015-12-01 | AE90: 0 | AF90: 0 | AH90: 0 | AJ90: 0.64 | AK90: 0.25 | AL90: -30.14 | AM90: 4.09 | AO90: 2015-12-01 | AP90: 0 | AQ90: 3 | AR90: 0 | AS90: 0 | AU90: 0.25 | AV90: 1.05 | AW90: 5.890909091 | AX90: 4.595 | AZ90: 2015-12-01 | BA90: 0 | BB90: 48.5 | BC90: 0 | BF90: 13.88888889 | BG90: 47.33 | BH90: 5.14 | BK90: 2015-12-01 | BL90: 12 | BM90: 4.1 | BN90: 3 | BO90: 0 | BQ90: 5.33 | BR90: 2.525 | BS90: 0.45 | BT90: 0.45 | BV90: 2015-12-01 | BW90: 0 | BX90: 51.5 | BY90: 142.4 | BZ90: 48.5 | CA90: 5 | CC90: 13.345 | CD90: 39.46 | CE90: 89.785 | CF90: 42.54 | CG90: 3.32 | CI90: 2015-12-01 | CJ90: 0 | CK90: 0 | CL90: 0 | CM90: 0 | CO90: 4.09 | CP90: 4.595 | CQ90: 0.5 | CR90: 0 | CT90: 2015-12-01 | CV90: 100 | CW90: 100 | CX90: 100 | CZ90: 79.10833333 | DA90: 87.5 | DB90: 83.61764706 | DC90: 77.53076923
A91: 2015-12-03 | B91: 13 | C91: 3 | D91: 3 | E91: 19 | H91: 2015-12-03 | I91: 3.4 | N91: 3.32 | O91: 33.33333333 | P91: 14.70588235 | S91: 2015-12-03 | T91: 3.4 | U91: 1 | V91: 0 | Y91: 3.32 | Z91: 5.185 | AA91: 1.65 | AD91: 2015-12-03 | AE91: 0 | AF91: 0 | AH91: 0 | AJ91: 0.59 | AK91: 0.25 | AL91: -30.14 | AM91: 3.605 | AO91: 2015-12-03 | AP91: 0 | AQ91: 0 | AR91: -50 | AS91: 0 | AU91: 0.25 | AV91: 1.05 | AW91: 1.233333333 | AX91: 4.11 | AZ91: 2015-12-03 | BB91: 0 | BC91: 0 | BF91: 14.70588235 | BG91: 42.54 | BH91: 5.14 | BK91: 2015-12-03 | BL91: 1 | BM91: 0 | BN91: 0 | BO91: 0 | BQ91: 5.185 | BR91: 2.33 | BS91: 0.45 | BT91: 0.45 | BV91: 2015-12-03 | BW91: 0 | BX91: 0 | BY91: 16.8 | BZ91: 0 | CA91: 3.4 | CC91: 12.165 | CD91: 38.28 | CE91: 85.835 | CF91: 44.545 | CG91: 3.14 | CI91: 2015-12-03 | CJ91: 0 | CK91: 0 | CL91: 0 | CM91: 0 | CO91: 4.09 | CP91: 4.595 | CQ91: 0.5 | CR91: 0 | CT91: 2015-12-03 | CU91: 0 | CW91: 0 | CX91: 50 | CZ91: 70.775 | DA91: 87.5 | DB91: 80.74705882 | DC91: 75.56428571
A92: 2015-12-05 | B92: 13 | C92: 3 | D92: 3 | E92: 19 | H92: 2015-12-05 | I92: 2.6 | J92: 0 | K92: 0 | N92: 3.14 | O92: 25 | P92: 13.12941176 | S92: 2015-12-05 | T92: 2.6 | U92: 3.3 | V92: 1 | Y92: 3.14 | Z92: 4.93 | AA92: 1.65 | AD92: 2015-12-05 | AE92: 0 | AF92: 0 | AG92: -100 | AH92: 0 | AJ92: 0.59 | AK92: 0.25 | AL92: -50.14 | AM92: 3.605 | AO92: 2015-12-05 | AP92: 0 | AQ92: 1 | AR92: -47.8 | AS92: 0 | AU92: 0.25 | AV92: 1.05 | AW92: -7.666666667 | AX92: 4.11 | AZ92: 2015-12-05 | BA92: 0 | BB92: 76.4 | BC92: 0 | BF92: 13.12941176 | BG92: 44.545 | BH92: 4.655 | BK92: 2015-12-05 | BL92: 3.3 | BM92: 3.3 | BN92: 0 | BO92: 0 | BQ92: 4.93 | BR92: 2.31 | BS92: 0.45 | BT92: 0.45 | BV92: 2015-12-05 | BW92: 0 | BX92: 50.5 | BY92: 76.4 | BZ92: 76.4 | CA92: 2.6 | CC92: 12.165 | CD92: 39.41 | CE92: 85.59 | CF92: 43.34 | CG92: 3.095 | CI92: 2015-12-05 | CJ92: 0 | CK92: 0 | CL92: 0 | CM92: 0 | CO92: 3.605 | CP92: 4.11 | CQ92: 0.5 | CR92: 0 | CT92: 2015-12-05 | CU92: 0 | CV92: 100 | CW92: 52.2 | CX92: 100 | CZ92: 70.775 | DA92: 100 | DB92: 80.34705882 | DC92: 82.70714286
A93: 2015-12-07 | B93: 13 | C93: 3 | D93: 3 | E93: 19 | H93: 2015-12-07 | I93: 2.9 | K93: 0 | N93: 3.095 | O93: 27.27272727 | P93: 13.12941176 | S93: 2015-12-07 | T93: 2.9 | U93: 5.5 | V93: 1 | Y93: 3.095 | Z93: 4.85 | AA93: 1.65 | AD93: 2015-12-07 | AE93: 3.2 | AF93: 0 | AH93: 0 | AJ93: 0.705 | AK93: 0.2 | AL93: -50.14 | AM93: 3.605 | AO93: 2015-12-07 | AP93: 0 | AQ93: 0 | AS93: 0 | AU93: 0.2 | AV93: 1 | AW93: -7.666666667 | AX93: 4.11 | AZ93: 2015-12-07 | BA93: 0 | BB93: 60.6 | BC93: 0 | BF93: 13.12941176 | BG93: 43.34 | BH93: 4.655 | BK93: 2015-12-07 | BL93: 5.5 | BM93: 3 | BN93: 1 | BO93: 0 | BQ93: 4.85 | BR93: 2.19 | BS93: 0.5 | BT93: 0.5 | BV93: 2015-12-07 | BW93: 65.6 | BX93: 83.6 | BY93: 113.7 | BZ93: 60.6 | CA93: 2.9 | CC93: 14.735 | CD93: 42.165 | CE93: 85.695 | CF93: 44.23 | CG93: 3.355 | CI93: 2015-12-07 | CJ93: 0 | CK93: 0 | CL93: 0 | CM93: 0 | CO93: 3.605 | CP93: 4.11 | CQ93: 0.5 | CR93: 0 | CT93: 2015-12-07 | CU93: 100 | CW93: 100 | CZ93: 70.775 | DA93: 100 | DB93: 80.34705882 | DC93: 82.70714286
A94: 2015-12-11 | B94: 13 | C94: 3 | D94: 3 | E94: 19 | H94: 2015-12-11 | I94: 6.6 | J94: 0 | K94: 0 | N94: 3.355 | O94: 25 | P94: 13.12941176 | S94: 2015-12-11 | T94: 6.6 | U94: 12.8 | V94: 4 | Y94: 3.355 | Z94: 5.445 | AA94: 1.85 | AD94: 2015-12-11 | AE94: 2.1 | AF94: 1 | AH94: 0 | AJ94: 0.765 | AK94: 0.25 | AL94: -50.14 | AM94: 3.605 | AO94: 2015-12-11 | AP94: 1 | AQ94: 4 | AS94: 0 | AU94: 0.25 | AV94: 1.2 | AW94: -7.666666667 | AX94: 4.11 | AZ94: 2015-12-11 | BA94: 0 | BB94: 55 | BC94: 0 | BF94: 13.12941176 | BG94: 44.23 | BH94: 4.655 | BK94: 2015-12-11 | BL94: 12.8 | BM94: 6 | BN94: 0 | BO94: 1 | BQ94: 5.445 | BR94: 2.445 | BS94: 0.5 | BT94: 0.5 | BV94: 2015-12-11 | BW94: 19.1 | BX94: 74.5 | BY94: 116.3 | BZ94: 55 | CA94: 6.6 | CC94: 13.865 | CD94: 44.065 | CE94: 89.65 | CF94: 41.375 | CG94: 3.275 | CI94: 2015-12-11 | CJ94: 0 | CK94: 0 | CL94: 0 | CM94: 0 | CO94: 3.605 | CP94: 4.11 | CQ94: 0.5 | CR94: 0 | CT94: 2015-12-11 | CU94: 100 | CW94: 100 | CZ94: 70.775 | DA94: 100 | DB94: 80.34705882 | DC94: 82.70714286
A95: 2015-12-12 | B95: 13 | C95: 3 | D95: 3 | E95: 19 | H95: 2015-12-12 | I95: 1.5 | N95: 3.275 | O95: 25 | P95: 13.95 | S95: 2015-12-12 | T95: 1.5 | U95: 0.9 | V95: 0 | Y95: 3.275 | Z95: 5.25 | AA95: 1.85 | AD95: 2015-12-12 | AE95: 0 | AF95: 0 | AH95: 0 | AJ95: 0.715 | AK95: 0.25 | AL95: -50.14 | AM95: 2.97 | AO95: 2015-12-12 | AP95: 0 | AQ95: 0 | AR95: 0 | AS95: 0 | AU95: 0.25 | AV95: 1.2 | AW95: -7.076923077 | AX95: 5.49 | AZ95: 2015-12-12 | BB95: 0 | BC95: 0 | BF95: 13.95 | BG95: 41.375 | BH95: 4.655 | BK95: 2015-12-12 | BL95: 0.9 | BM95: 0 | BN95: 0 | BO95: 0 | BQ95: 5.25 | BR95: 2.3 | BS95: 0.5 | BT95: 0.45 | BV95: 2015-12-12 | BW95: 0 | BX95: 36.8 | BY95: 34.9 | BZ95: 0 | CA95: 1.5 | CC95: 12.88 | CD95: 43.92 | CE95: 86.74 | CF95: 48.93 | CG95: 3.335 | CI95: 2015-12-12 | CJ95: 0 | CK95: 0 | CL95: 0 | CM95: 0 | CO95: 3.605 | CP95: 4.11 | CQ95: 0.5 | CR95: 0 | CT95: 2015-12-12 | CW95: 100 | CX95: 100 | CZ95: 68.11818182 | DA95: 100 | DB95: 80.34705882 | DC95: 83.86
A96: 2015-12-15 | B96: 14 | C96: 5 | D96: 3 | E96: 22 | H96: 2015-12-15 | I96: 3 | J96: 33.3 | K96: 32.9 | N96: 3.335 | O96: 19.44166667 | P96: 9.75625 | S96: 2015-12-15 | T96: 3 | U96: 11.3 | V96: 4 | Y96: 3.335 | Z96: 5.645 | AA96: 1.95 | AD96: 2015-12-15 | AE96: 2 | AF96: 0 | AG96: 25.8 | AH96: 20.2 | AJ96: 0.815 | AK96: 0.25 | AL96: -37.48333333 | AM96: 1.84 | AO96: 2015-12-15 | AP96: 0 | AQ96: 2 | AR96: 20.4 | AS96: 60.5 | AU96: 0.25 | AV96: 1.3 | AW96: -5.114285714 | AX96: 4.36 | AZ96: 2015-12-15 | BA96: 32.9 | BB96: 184 | BC96: 60.5 | BF96: 9.75625 | BG96: 48.93 | BH96: 6.035 | BK96: 2015-12-15 | BL96: 11.3 | BM96: 9.1 | BN96: 1 | BO96: 0 | BQ96: 5.645 | BR96: 2.705 | BS96: 0.55 | BT96: 0.45 | BV96: 2015-12-15 | BW96: 39.5 | BX96: 122.1 | BY96: 227.8 | BZ96: 184 | CA96: 3 | CC96: 14.855 | CD96: 48.8 | CE96: 92.5 | CF96: 47.965 | CG96: 3.325 | CI96: 2015-12-15 | CJ96: 20.2 | CK96: 60.5 | CL96: 40 | CM96: 0 | CO96: 2.97 | CP96: 5.49 | CQ96: 2.5 | CR96: 0 | CT96: 2015-12-15 | CU96: 100 | CV96: 74.2 | CW96: 100 | CX96: 79.6 | CZ96: 70.775 | DA96: 97.13333333 | DB96: 80.34705882 | DC96: 83.59375
A97: 2015-12-17 | B97: 14 | C97: 5 | D97: 3 | E97: 22 | H97: 2015-12-17 | I97: 2.5 | K97: 100 | N97: 3.325 | O97: 12.11818182 | P97: 12.75 | S97: 2015-12-17 | T97: 2.5 | U97: 2 | V97: 0 | Y97: 3.325 | Z97: 5.6 | AA97: 1.9 | AD97: 2015-12-17 | AE97: 1 | AF97: 0 | AG97: 0 | AH97: 0 | AJ97: 0.865 | AK97: 0.25 | AL97: -32.12857143 | AM97: 1.01 | AO97: 2015-12-17 | AP97: 0 | AQ97: 0 | AR97: 0 | AS97: 0 | AU97: 0.25 | AV97: 1.3 | AW97: -4.773333333 | AX97: 3.53 | AZ97: 2015-12-17 | BA97: 100 | BB97: 24 | BC97: 24 | BF97: 12.75 | BG97: 47.965 | BH97: 6.105 | BK97: 2015-12-17 | BL97: 2 | BM97: 1 | BN97: 0 | BO97: 0 | BQ97: 5.6 | BR97: 2.66 | BS97: 0.55 | BT97: 0.5 | BV97: 2015-12-17 | BW97: 24 | BX97: 45.2 | BY97: 48.1 | BZ97: 24 | CA97: 2.5 | CC97: 16.055 | CD97: 51.06 | CE97: 91.655 | CF97: 49.1 | CG97: 3.215 | CI97: 2015-12-17 | CJ97: 0 | CK97: 0 | CL97: 0 | CM97: 0 | CO97: 1.84 | CP97: 4.36 | CQ97: 2.5 | CR97: 0 | CT97: 2015-12-17 | CU97: 100 | CV97: 100 | CW97: 100 | CX97: 100 | CZ97: 73.02307692 | DA97: 97.42 | DB97: 81.43888889 | DC97: 83.59375
A98: 2015-12-19 | B98: 14 | C98: 5 | D98: 3 | E98: 22 | H98: 2015-12-19 | I98: 1.4 | K98: 0 | N98: 3.215 | O98: 3.33 | P98: 10.925 | S98: 2015-12-19 | T98: 1.4 | U98: 4.5 | V98: 1 | Y98: 3.215 | Z98: 5.45 | AA98: 1.8 | AD98: 2015-12-19 | AE98: 0 | AF98: 0 | AH98: 0 | AJ98: 0.815 | AK98: 0.2 | AL98: -32.12857143 | AM98: 1.01 | AO98: 2015-12-19 | AP98: 0 | AQ98: 1 | AR98: 0 | AS98: 0 | AU98: 0.2 | AV98: 1.2 | AW98: -4.773333333 | AX98: 3.025 | AZ98: 2015-12-19 | BA98: 0 | BB98: 79.4 | BC98: 0 | BF98: 10.925 | BG98: 49.1 | BH98: 5.275 | BK98: 2015-12-19 | BL98: 4.5 | BM98: 1.8 | BN98: 0 | BO98: 1 | BQ98: 5.45 | BR98: 2.58 | BS98: 0.45 | BT98: 0.4 | BV98: 2015-12-19 | BW98: 0 | BX98: 40.9 | BY98: 194.7 | BZ98: 79.4 | CA98: 1.4 | CC98: 15.225 | CD98: 48.775 | CE98: 95.22 | CF98: 46.61 | CG98: 2.985 | CI98: 2015-12-19 | CJ98: 0 | CK98: 0 | CL98: 0 | CM98: 0 | CO98: 1.01 | CP98: 3.53 | CQ98: 2.5 | CR98: 0 | CT98: 2015-12-19 | CW98: 100 | CX98: 100 | CZ98: 70.775 | DA98: 97.42 | DB98: 81.43888889 | DC98: 83.59375
A99: 2015-12-22 | B99: 14 | C99: 5 | D99: 3 | E99: 22 | H99: 2015-12-22 | I99: 1.4 | N99: 2.985 | O99: 3.7 | P99: 10.3 | S99: 2015-12-22 | T99: 1.4 | U99: 1 | V99: 0 | Y99: 2.985 | Z99: 5.005 | AA99: 1.55 | AD99: 2015-12-22 | AE99: 0 | AF99: 0 | AH99: 0 | AJ99: 0.71 | AK99: 0.15 | AL99: -32.12857143 | AM99: 1.01 | AO99: 2015-12-22 | AP99: 0 | AQ99: 0 | AS99: 0 | AU99: 0.15 | AV99: 1 | AW99: -5.114285714 | AX99: 3.025 | AZ99: 2015-12-22 | BB99: 0 | BC99: 0 | BF99: 10.3 | BG99: 46.61 | BH99: 4.77 | BK99: 2015-12-22 | BL99: 1 | BM99: 0 | BN99: 0 | BO99: 0 | BQ99: 5.005 | BR99: 2.335 | BS99: 0.45 | BT99: 0.4 | BV99: 2015-12-22 | BW99: 0 | BX99: 40.1 | BY99: 44.5 | BZ99: 0 | CA99: 1.4 | CC99: 14.19 | CD99: 46.705 | CE99: 92.455 | CF99: 45.295 | CG99: 3.15 | CI99: 2015-12-22 | CJ99: 0 | CK99: 0 | CL99: 0 | CM99: 0 | CO99: 1.01 | CP99: 3.025 | CQ99: 2 | CR99: 0 | CT99: 2015-12-22 | CW99: 100 | CZ99: 68.11818182 | DA99: 97.42 | DB99: 81.43888889 | DC99: 82.5
A100: 2015-12-26 | B100: 14 | C100: 5 | D100: 3 | E100: 22 | H100: 2015-12-26 | I100: 4.4 | J100: 0 | K100: 0 | N100: 3.15 | O100: 3.33 | P100: 10.3 | S100: 2015-12-26 | T100: 4.4 | U100: 8 | V100: 2 | Y100: 3.15 | Z100: 5.2 | AA100: 1.6 | AD100: 2015-12-26 | AE100: 2.9 | AF100: 0 | AG100: 0 | AH100: 0 | AJ100: 0.805 | AK100: 0.15 | AL100: -28.1125 | AM100: 1.01 | AO100: 2015-12-26 | AP100: 0 | AQ100: 2 | AR100: 15.4 | AS100: 0 | AU100: 0.15 | AV100: 1.1 | AW100: -3.746666667 | AX100: 4.475 | AZ100: 2015-12-26 | BA100: 0 | BB100: 74.1 | BC100: 0 | BF100: 10.3 | BG100: 45.295 | BH100: 4.77 | BK100: 2015-12-26 | BL100: 8 | BM100: 5.4 | BN100: 0 | BO100: 0 | BQ100: 5.2 | BR100: 2.515 | BS100: 0.4 | BT100: 0.4 | BV100: 2015-12-26 | BW100: 40 | BX100: 90.5 | BY100: 109.5 | BZ100: 74.1 | CA100: 4.4 | CC100: 13.395 | CD100: 45.895 | CE100: 86.53 | CF100: 43.875 | CG100: 3.16 | CI100: 2015-12-26 | CJ100: 0 | CK100: 0 | CL100: 0 | CM100: 0 | CO100: 1.01 | CP100: 3.025 | CQ100: 2 | CR100: 0 | CT100: 2015-12-26 | CU100: 100 | CV100: 100 | CW100: 100 | CX100: 84.6 | CZ100: 68.11818182 | DA100: 97.65454545 | DB100: 81.43888889 | DC100: 82.63125
A101: 2015-12-28 | B101: 14 | C101: 5 | D101: 4 | E101: 23 | H101: 2015-12-28 | I101: 2.1 | K101: 100 | N101: 3.16 | O101: 3.7 | P101: 16.96666667 | S101: 2015-12-28 | T101: 2.1 | U101: 1 | V101: 0 | Y101: 3.16 | Z101: 5.16 | AA101: 1.55 | AD101: 2015-12-28 | AE101: 1 | AF101: 0 | AH101: 0 | AJ101: 0.855 | AK101: 0.15 | AL101: -28.1125 | AM101: 1.01 | AO101: 2015-12-28 | AP101: 0 | AQ101: 0 | AS101: 29 | AU101: 0.15 | AV101: 1.1 | AW101: -6.464285714 | AX101: 4.475 | AZ101: 2015-12-28 | BA101: 100 | BB101: 29 | BC101: 29 | BF101: 16.96666667 | BG101: 43.875 | BH101: 6.22 | BK101: 2015-12-28 | BL101: 1 | BM101: 1 | BN101: 0 | BO101: 0 | BQ101: 5.16 | BR101: 2.475 | BS101: 0.4 | BT101: 0.3 | BV101: 2015-12-28 | BW101: 29 | BX101: 29 | BY101: 29 | BZ101: 29 | CA101: 2.1 | CC101: 14.845 | CD101: 45.915 | CE101: 85.11 | CF101: 45.805 | CG101: 3.15 | CI101: 2015-12-28 | CJ101: 0 | CK101: 29 | CL101: 0 | CM101: 171.4285714 | CO101: 1.01 | CP101: 4.475 | CQ101: 2 | CR101: 8.571428571 | CT101: 2015-12-28 | CU101: 100 | CW101: 50 | CZ101: 70.775 | DA101: 97.42 | DB101: 78.66111111 | DC101: 83.76
A102: 2016-01-02 | B102: 14 | C102: 5 | D102: 4 | E102: 23 | H102: 2016-01-02 | I102: 6.7 | J102: 0 | K102: 0 | N102: 3.15 | O102: 3.7 | P102: 16.96666667 | S102: 2016-01-02 | T102: 6.7 | U102: 10.9 | V102: 2 | Y102: 3.15 | Z102: 5.025 | AA102: 1.4 | AD102: 2016-01-02 | AE102: 1.8 | AF102: 1 | AH102: 0 | AJ102: 0.945 | AK102: 0.2 | AL102: -28.1125 | AM102: 1.01 | AO102: 2016-01-02 | AP102: 1 | AQ102: 1 | AS102: 0 | AU102: 0.2 | AV102: 1.1 | AW102: -5.576923077 | AX102: 4.475 | AZ102: 2016-01-02 | BA102: 0 | BB102: 55.7 | BC102: 0 | BF102: 16.96666667 | BG102: 45.805 | BH102: 6.22 | BK102: 2016-01-02 | BL102: 10.9 | BM102: 6.2 | BN102: 0 | BO102: 1 | BQ102: 5.025 | BR102: 2.685 | BS102: 0.35 | BT102: 0.25 | BV102: 2016-01-02 | BW102: 16 | BX102: 39 | BY102: 98 | BZ102: 55.7 | CA102: 6.7 | CC102: 15.645 | CD102: 45.895 | CE102: 84.135 | CF102: 47.79 | CG102: 3.165 | CI102: 2016-01-02 | CJ102: 0 | CK102: 0 | CL102: 0 | CM102: 0 | CO102: 1.01 | CP102: 4.475 | CQ102: 2 | CR102: 8.571428571 | CT102: 2016-01-02 | CU102: 100 | CW102: 81.3 | CZ102: 73.02307692 | DA102: 97.13333333 | DB102: 78.62222222 | DC102: 82.6
A103: 2016-01-03 | B103: 14 | C103: 5 | D103: 4 | E103: 23 | H103: 2016-01-03 | I103: 5.8 | J103: 0 | K103: 0 | N103: 3.165 | O103: 3.7 | P103: 15.52666667 | S103: 2016-01-03 | T103: 5.8 | U103: 10.9 | V103: 2 | Y103: 3.165 | Z103: 5.06 | AA103: 1.4 | AD103: 2016-01-03 | AE103: 5.1 | AF103: 1 | AH103: 0 | AJ103: 1.2 | AK103: 0.25 | AL103: -17.84285714 | AM103: 1.01 | AO103: 2016-01-03 | AP103: 1 | AQ103: 1 | AS103: 0 | AU103: 0.25 | AV103: 1.1 | AW103: -3.233333333 | AX103: 4.475 | AZ103: 2016-01-03 | BA103: 0 | BB103: 90 | BC103: 0 | BF103: 15.52666667 | BG103: 47.79 | BH103: 5.675 | BK103: 2016-01-03 | BL103: 10.9 | BM103: 8.7 | BN103: 0 | BO103: 0 | BQ103: 5.06 | BR103: 2.89 | BS103: 0.35 | BT103: 0.25 | BV103: 2016-01-03 | BW103: 52 | BX103: 52 | BY103: 111.9 | BZ103: 90 | CA103: 5.8 | CC103: 18.245 | CD103: 46.355 | CE103: 84.195 | CF103: 44.83 | CG103: 3.09 | CI103: 2016-01-03 | CJ103: 0 | CK103: 0 | CL103: 0 | CM103: 0 | CO103: 1.01 | CP103: 4.475 | CQ103: 2 | CR103: 8.571428571 | CT103: 2016-01-03 | CU103: 100 | CW103: 100 | CZ103: 80.71538462 | DA103: 96.775 | DB103: 80.49444444 | DC103: 81.26153846
A104: 2016-01-05 | B104: 14 | C104: 5 | D104: 4 | E104: 23 | H104: 2016-01-05 | I104: 0.6 | N104: 3.09 | O104: 4.1625 | P104: 16.63571429 | S104: 2016-01-05 | T104: 0.6 | U104: 0 | V104: 0 | Y104: 3.09 | Z104: 4.905 | AA104: 1.3 | AD104: 2016-01-05 | AE104: 0 | AF104: 0 | AH104: 0 | AJ104: 1.155 | AK104: 0.2 | AL104: -20.81666667 | AM104: 1.01 | AO104: 2016-01-05 | AP104: 0 | AQ104: 0 | AS104: 0 | AU104: 0.2 | AV104: 1 | AW104: -5.727272727 | AX104: 4.475 | AZ104: 2016-01-05 | BB104: 0 | BC104: 0 | BF104: 16.63571429 | BG104: 44.83 | BH104: 5.675 | BK104: 2016-01-05 | BL104: 0 | BM104: 0 | BN104: 0 | BO104: 0 | BQ104: 4.905 | BR104: 2.785 | BS104: 0.3 | BT104: 0.2 | BV104: 2016-01-05 | BW104: 0 | BX104: 0 | BY104: 0 | BZ104: 0 | CA104: 0.6 | CC104: 16.995 | CD104: 43.67 | CE104: 79.9 | CF104: 47.45 | CG104: 3.04 | CI104: 2016-01-05 | CJ104: 0 | CK104: 0 | CL104: 0 | CM104: 0 | CO104: 1.01 | CP104: 4.475 | CQ104: 2 | CR104: 8.571428571 | CT104: 2016-01-05 | CV104: 100 | CX104: 100 | CZ104: 79.10833333 | DA104: 96.775 | DB104: 79.34705882 | DC104: 83.12307692
A105: 2016-01-07 | B105: 14 | C105: 5 | D105: 4 | E105: 23 | H105: 2016-01-07 | I105: 1.4 | J105: 0 | K105: 0 | N105: 3.04 | O105: 3.7 | P105: 16.63571429 | S105: 2016-01-07 | T105: 1.4 | U105: 1.8 | V105: 1 | Y105: 3.04 | Z105: 4.795 | AA105: 1.25 | AD105: 2016-01-07 | AE105: 1 | AF105: 0 | AH105: 0 | AJ105: 1.155 | AK105: 0.15 | AL105: -14.84 | AM105: 1.01 | AO105: 2016-01-07 | AP105: 0 | AQ105: 1 | AR105: 0 | AS105: 0 | AU105: 0.15 | AV105: 0.95 | AW105: -5.636363636 | AX105: 4.475 | AZ105: 2016-01-07 | BA105: 0 | BB105: 78.8 | BC105: 0 | BF105: 16.63571429 | BG105: 47.45 | BH105: 5.675 | BK105: 2016-01-07 | BL105: 1.8 | BM105: 1.8 | BN105: 0 | BO105: 0 | BQ105: 4.795 | BR105: 2.82 | BS105: 0.25 | BT105: 0.15 | BV105: 2016-01-07 | BW105: 43 | BX105: 85.1 | BY105: 78.8 | BZ105: 78.8 | CA105: 1.4 | CC105: 17.93 | CD105: 45.575 | CE105: 78.825 | CF105: 45.47 | CG105: 2.805 | CI105: 2016-01-07 | CJ105: 0 | CK105: 0 | CL105: 0 | CM105: 0 | CO105: 1.01 | CP105: 4.475 | CQ105: 2 | CR105: 8.571428571 | CT105: 2016-01-07 | CU105: 100 | CW105: 100 | CX105: 100 | CZ105: 83.33333333 | DA105: 96.31428571 | DB105: 81.38235294 | DC105: 85.70769231
A106: 2016-01-09 | B106: 14 | C106: 5 | D106: 4 | E106: 23 | H106: 2016-01-09 | I106: 1.3 | N106: 2.805 | O106: 4.1625 | P106: 17.91538462 | S106: 2016-01-09 | T106: 1.3 | U106: 1 | V106: 0 | Y106: 2.805 | Z106: 4.445 | AA106: 1.1 | AD106: 2016-01-09 | AE106: 0 | AF106: 0 | AH106: 0 | AJ106: 1.005 | AK106: 0.15 | AL106: -18.55 | AM106: 1.01 | AO106: 2016-01-09 | AP106: 0 | AQ106: 0 | AS106: 0 | AU106: 0.15 | AV106: 0.8 | AW106: -6.2 | AX106: 4.475 | AZ106: 2016-01-09 | BB106: 0 | BC106: 0 | BF106: 17.91538462 | BG106: 45.47 | BH106: 5.675 | BK106: 2016-01-09 | BL106: 1 | BM106: 0 | BN106: 0 | BO106: 0 | BQ106: 4.445 | BR106: 2.62 | BS106: 0.25 | BT106: 0.15 | BV106: 2016-01-09 | BW106: 0 | BX106: 0 | BY106: 45.8 | BZ106: 0 | CA106: 1.3 | CC106: 16.41 | CD106: 42.04 | CE106: 77.125 | CF106: 42.775 | CG106: 2.795 | CI106: 2016-01-09 | CJ106: 0 | CK106: 0 | CL106: 0 | CM106: 0 | CO106: 1.01 | CP106: 4.475 | CQ106: 2 | CR106: 8.571428571 | CT106: 2016-01-09 | CZ106: 81.81818182 | DA106: 95.7 | DB106: 80.21875 | DC106: 84.51666667
A107: 2016-01-10 | B107: 14 | C107: 5 | D107: 4 | E107: 23 | H107: 2016-01-10 | I107: 0.9 | N107: 2.795 | O107: 4.1625 | P107: 19.40833333 | S107: 2016-01-10 | T107: 0.9 | U107: 0 | V107: 0 | Y107: 2.795 | Z107: 4.395 | AA107: 1.1 | AD107: 2016-01-10 | AE107: 0 | AF107: 0 | AH107: 0 | AJ107: 1.005 | AK107: 0.15 | AL107: -18.55 | AM107: 1.01 | AO107: 2016-01-10 | AP107: 0 | AQ107: 0 | AS107: 0 | AU107: 0.15 | AV107: 0.8 | AW107: -6.2 | AX107: 4.475 | AZ107: 2016-01-10 | BB107: 0 | BC107: 0 | BF107: 19.40833333 | BG107: 42.775 | BH107: 5.675 | BK107: 2016-01-10 | BL107: 0 | BM107: 0 | BN107: 0 | BO107: 0 | BQ107: 4.395 | BR107: 2.57 | BS107: 0.25 | BT107: 0.15 | BV107: 2016-01-10 | BW107: 0 | BX107: 0 | BY107: 0 | BZ107: 0 | CA107: 0.9 | CC107: 16.41 | CD107: 42.04 | CE107: 74.43 | CF107: 44.415 | CG107: 2.85 | CI107: 2016-01-10 | CJ107: 0 | CK107: 0 | CL107: 0 | CM107: 0 | CO107: 1.01 | CP107: 4.475 | CQ107: 2 | CR107: 8.571428571 | CT107: 2016-01-10 | CX107: 0 | CZ107: 81.81818182 | DA107: 95.7 | DB107: 80.21875 | DC107: 76.18333333
A108: 2016-01-12 | B108: 14 | C108: 5 | D108: 4 | E108: 23 | H108: 2016-01-12 | I108: 1.8 | K108: 0 | N108: 2.85 | O108: 4.1625 | P108: 17.91538462 | S108: 2016-01-12 | T108: 1.8 | U108: 1.9 | V108: 1 | Y108: 2.85 | Z108: 4.49 | AA108: 1.15 | AD108: 2016-01-12 | AE108: 1 | AF108: 0 | AH108: 0 | AJ108: 1.055 | AK108: 0.15 | AL108: -18.55 | AM108: 1.01 | AO108: 2016-01-12 | AP108: 0 | AQ108: 1 | AS108: 0 | AU108: 0.15 | AV108: 0.85 | AW108: -6.2 | AX108: 4.475 | AZ108: 2016-01-12 | BA108: 0 | BB108: 32.8 | BC108: 0 | BF108: 17.91538462 | BG108: 44.415 | BH108: 5.675 | BK108: 2016-01-12 | BL108: 1.9 | BM108: 1 | BN108: 1 | BO108: 0 | BQ108: 4.49 | BR108: 2.62 | BS108: 0.3 | BT108: 0.15 | BV108: 2016-01-12 | BW108: 35 | BX108: 65.1 | BY108: 62.5 | BZ108: 32.8 | CA108: 1.8 | CC108: 18.16 | CD108: 45.295 | CE108: 77.555 | CF108: 48.795 | CG108: 2.96 | CI108: 2016-01-12 | CJ108: 0 | CK108: 0 | CL108: 0 | CM108: 0 | CO108: 1.01 | CP108: 4.475 | CQ108: 2 | CR108: 8.571428571 | CT108: 2016-01-12 | CU108: 100 | CW108: 100 | CZ108: 83.33333333 | DA108: 95.7 | DB108: 81.38235294 | DC108: 76.18333333
A109: 2016-01-15 | B109: 14 | C109: 5 | D109: 4 | E109: 23 | H109: 2016-01-15 | I109: 3.9 | J109: 0 | K109: 0 | N109: 2.96 | O109: 3.7 | P109: 16.63571429 | S109: 2016-01-15 | T109: 3.9 | U109: 11.4 | V109: 6 | Y109: 2.96 | Z109: 5.06 | AA109: 1.45 | AD109: 2016-01-15 | AE109: 4 | AF109: 4 | AH109: 0 | AJ109: 1.255 | AK109: 0.35 | AL109: -18.55 | AM109: 1.01 | AO109: 2016-01-15 | AP109: 4 | AQ109: 5 | AS109: 0 | AU109: 0.35 | AV109: 1.1 | AW109: -6.888888889 | AX109: 4.475 | AZ109: 2016-01-15 | BA109: 0 | BB109: 87.6 | BC109: 0 | BF109: 16.63571429 | BG109: 48.795 | BH109: 5.675 | BK109: 2016-01-15 | BL109: 11.4 | BM109: 5.7 | BN109: 3 | BO109: 0 | BQ109: 5.06 | BR109: 2.905 | BS109: 0.45 | BT109: 0.15 | BV109: 2016-01-15 | BW109: 61.3 | BX109: 118.5 | BY109: 173.3 | BZ109: 87.6 | CA109: 3.9 | CC109: 21.225 | CD109: 51.22 | CE109: 86.22 | CF109: 47.18 | CG109: 2.88 | CI109: 2016-01-15 | CJ109: 0 | CK109: 0 | CL109: 0 | CM109: 0 | CO109: 1.01 | CP109: 4.475 | CQ109: 2 | CR109: 8.571428571 | CT109: 2016-01-15 | CU109: 100 | CW109: 100 | CZ109: 84.61538462 | DA109: 95.7 | DB109: 87.26470588 | DC109: 83.10909091
A110: 2016-01-16 | B110: 14 | C110: 5 | D110: 4 | E110: 23 | H110: 2016-01-16 | I110: 3.4 | K110: 0 | N110: 2.88 | O110: 4.1625 | P110: 16.63571429 | S110: 2016-01-16 | T110: 3.4 | U110: 2.7 | V110: 0 | Y110: 2.88 | Z110: 4.595 | AA110: 1.25 | AD110: 2016-01-16 | AE110: 0 | AF110: 0 | AH110: 0 | AJ110: 1.255 | AK110: 0.35 | AL110: -18.55 | AM110: 1.01 | AO110: 2016-01-16 | AP110: 0 | AQ110: 0 | AR110: 0 | AS110: 0 | AU110: 0.35 | AV110: 0.95 | AW110: -6.888888889 | AX110: 4.475 | AZ110: 2016-01-16 | BA110: 0 | BB110: 16.2 | BC110: 0 | BF110: 16.63571429 | BG110: 47.18 | BH110: 5.675 | BK110: 2016-01-16 | BL110: 2.7 | BM110: 0.9 | BN110: 0 | BO110: 0 | BQ110: 4.595 | BR110: 2.745 | BS110: 0.3 | BT110: 0.15 | BV110: 2016-01-16 | BW110: 0 | BX110: 18.6 | BY110: 48.2 | BZ110: 16.2 | CA110: 3.4 | CC110: 21.225 | CD110: 49.575 | CE110: 81.51 | CF110: 49.01 | CG110: 2.87 | CI110: 2016-01-16 | CJ110: 0 | CK110: 0 | CL110: 0 | CM110: 0 | CO110: 1.01 | CP110: 4.475 | CQ110: 2 | CR110: 8.571428571 | CT110: 2016-01-16 | CV110: 100 | CW110: 100 | CX110: 100 | CZ110: 84.61538462 | DA110: 95.7 | DB110: 87.26470588 | DC110: 83.10909091
A111: 2016-01-20 | B111: 14 | C111: 5 | D111: 4 | E111: 23 | H111: 2016-01-20 | I111: 3.2 | K111: 0 | N111: 2.87 | O111: 4.1625 | P111: 15.52666667 | S111: 2016-01-20 | T111: 3.2 | U111: 1.9 | V111: 0 | Y111: 2.87 | Z111: 4.64 | AA111: 1.25 | AD111: 2016-01-20 | AE111: 0 | AF111: 0 | AH111: 0 | AJ111: 1.255 | AK111: 0.35 | AL111: -18.55 | AM111: 2.21 | AO111: 2016-01-20 | AP111: 0 | AQ111: 0 | AR111: -24 | AS111: 0 | AU111: 0.35 | AV111: 0.95 | AW111: -4 | AX111: 5.675 | AZ111: 2016-01-20 | BA111: 0 | BB111: 36.6 | BC111: 0 | BF111: 15.52666667 | BG111: 49.01 | BH111: 5.675 | BK111: 2016-01-20 | BL111: 1.9 | BM111: 1.9 | BN111: 0 | BO111: 0 | BQ111: 4.64 | BR111: 2.84 | BS111: 0.3 | BT111: 0.2 | BV111: 2016-01-20 | BW111: 0 | BX111: 20.3 | BY111: 36.6 | BZ111: 36.6 | CA111: 3.2 | CC111: 21.225 | CD111: 50.59 | CE111: 82.5 | CF111: 46.39 | CG111: 2.865 | CI111: 2016-01-20 | CJ111: 0 | CK111: 0 | CL111: 0 | CM111: 0 | CO111: 1.01 | CP111: 4.475 | CQ111: 2 | CR111: 8.571428571 | CT111: 2016-01-20 | CV111: 100 | CW111: 51.7 | CX111: 75.8 | CZ111: 91.66666667 | DA111: 96.31428571 | DB111: 90.30588235 | DC111: 85.45454545
A112: 2016-01-21 | B112: 15 | C112: 5 | D112: 4 | E112: 24 | H112: 2016-01-21 | I112: 2.5 | J112: 100 | K112: 100 | N112: 2.865 | O112: 16.6625 | P112: 22.19333333 | S112: 2016-01-21 | T112: 2.5 | U112: 3.9 | V112: 2 | Y112: 2.865 | Z112: 4.67 | AA112: 1.3 | AD112: 2016-01-21 | AE112: 0 | AF112: 0 | AH112: 24 | AJ112: 1.255 | AK112: 0.35 | AL112: 8.6 | AM112: 2.21 | AO112: 2016-01-21 | AP112: 0 | AQ112: 1 | AR112: 0 | AS112: 24 | AU112: 0.35 | AV112: 0.95 | AW112: 1.311111111 | AX112: 5.675 | AZ112: 2016-01-21 | BA112: 100 | BB112: 24 | BC112: 24 | BF112: 22.19333333 | BG112: 46.39 | BH112: 6.875 | BK112: 2016-01-21 | BL112: 3.9 | BM112: 1 | BN112: 0 | BO112: 1 | BQ112: 4.67 | BR112: 2.725 | BS112: 0.3 | BT112: 0.2 | BV112: 2016-01-21 | BW112: 0 | BX112: 24 | BY112: 93.5 | BZ112: 24 | CA112: 2.5 | CC112: 21.225 | CD112: 49.265 | CE112: 83.355 | CF112: 46.935 | CG112: 2.885 | CI112: 2016-01-21 | CJ112: 24 | CK112: 24 | CL112: 0 | CM112: 0 | CO112: 2.21 | CP112: 5.675 | CQ112: 2 | CR112: 8.571428571 | CT112: 2016-01-21 | CW112: 100 | CX112: 100 | CZ112: 100 | DA112: 95.7 | DB112: 93.11764706 | DC112: 85.45454545
A113: 2016-01-23 | B113: 15 | C113: 5 | D113: 4 | E113: 24 | H113: 2016-01-23 | I113: 3.3 | K113: 0 | N113: 2.885 | O113: 16.6625 | P113: 22.19333333 | S113: 2016-01-23 | T113: 3.3 | U113: 7.4 | V113: 0 | Y113: 2.885 | Z113: 4.765 | AA113: 1.25 | AD113: 2016-01-23 | AE113: 4 | AF113: 0 | AG113: 50 | AH113: 0 | AJ113: 1.295 | AK113: 0.35 | AL113: 18.95 | AM113: 2.21 | AO113: 2016-01-23 | AP113: 0 | AQ113: 0 | AR113: 32.9 | AS113: 0 | AU113: 0.35 | AV113: 0.95 | AW113: 4.47 | AX113: 5.675 | AZ113: 2016-01-23 | BA113: 0 | BB113: 71.5 | BC113: 0 | BF113: 22.19333333 | BG113: 46.935 | BH113: 6.875 | BK113: 2016-01-23 | BL113: 7.4 | BM113: 3.9 | BN113: 0 | BO113: 0 | BQ113: 4.765 | BR113: 2.77 | BS113: 0.25 | BT113: 0.15 | BV113: 2016-01-23 | BW113: 73.9 | BX113: 90.7 | BY113: 135.6 | BZ113: 71.5 | CA113: 3.3 | CC113: 21.64 | CD113: 49.62 | CE113: 84.45 | CF113: 46 | CG113: 2.72 | CI113: 2016-01-23 | CJ113: 0 | CK113: 0 | CL113: 0 | CM113: 0 | CO113: 2.21 | CP113: 5.675 | CQ113: 2 | CR113: 8.571428571 | CT113: 2016-01-23 | CU113: 100 | CV113: 50 | CW113: 100 | CX113: 67.1 | CZ113: 100 | DA113: 89.17142857 | DB113: 93.11764706 | DC113: 83.925
A114: 2016-01-25 | B114: 15 | C114: 5 | D114: 4 | E114: 24 | H114: 2016-01-25 | I114: 3.3 | J114: 0 | K114: 0 | N114: 2.72 | O114: 16.6625 | P114: 22.19333333 | S114: 2016-01-25 | T114: 3.3 | U114: 5 | V114: 2 | Y114: 2.72 | Z114: 4.375 | AA114: 1.15 | AD114: 2016-01-25 | AE114: 0 | AF114: 0 | AH114: 0 | AJ114: 1.19 | AK114: 0.3 | AL114: 18.95 | AM114: 2.21 | AO114: 2016-01-25 | AP114: 0 | AQ114: 0 | AS114: 0 | AU114: 0.3 | AV114: 0.75 | AW114: 4.47 | AX114: 5.675 | AZ114: 2016-01-25 | BA114: 0 | BB114: 36.3 | BC114: 0 | BF114: 22.19333333 | BG114: 46 | BH114: 6.875 | BK114: 2016-01-25 | BL114: 5 | BM114: 2 | BN114: 0 | BO114: 0 | BQ114: 4.375 | BR114: 2.57 | BS114: 0.25 | BT114: 0.15 | BV114: 2016-01-25 | BW114: 0 | BX114: 16.5 | BY114: 91.1 | BZ114: 36.3 | CA114: 3.3 | CC114: 20.685 | CD114: 46.72 | CE114: 83.19 | CF114: 49.38 | CG114: 2.865 | CI114: 2016-01-25 | CJ114: 0 | CK114: 0 | CL114: 0 | CM114: 0 | CO114: 2.21 | CP114: 5.675 | CQ114: 2 | CR114: 8.571428571 | CT114: 2016-01-25 | CW114: 100 | CZ114: 100 | DA114: 89.17142857 | DB114: 93.11764706 | DC114: 83.925
A115: 2016-02-02 | B115: 15 | C115: 5 | D115: 4 | E115: 24 | H115: 2016-02-02 | I115: 4.4 | J115: 0 | K115: 0 | N115: 2.865 | O115: 14.81111111 | P115: 20.80625 | S115: 2016-02-02 | T115: 4.4 | U115: 7.8 | V115: 1 | Y115: 2.865 | Z115: 4.72 | AA115: 1.2 | AD115: 2016-02-02 | AE115: 3.7 | AF115: 0 | AG115: 0 | AH115: 0 | AJ115: 1.375 | AK115: 0.3 | AL115: 15.16 | AM115: 1.2 | AO115: 2016-02-02 | AP115: 0 | AQ115: 0 | AR115: -17.6 | AS115: 0 | AU115: 0.3 | AV115: 0.75 | AW115: 2.71 | AX115: 2.65 | AZ115: 2016-02-02 | BA115: 0 | BB115: 67.6 | BC115: 0 | BF115: 20.80625 | BG115: 49.38 | BH115: 6.875 | BK115: 2016-02-02 | BL115: 7.8 | BM115: 4.9 | BN115: 0 | BO115: 0 | BQ115: 4.72 | BR115: 2.815 | BS115: 0.25 | BT115: 0.35 | BV115: 2016-02-02 | BW115: 50.4 | BX115: 64.3 | BY115: 107.5 | BZ115: 67.6 | CA115: 4.4 | CC115: 23.205 | CD115: 48.095 | CE115: 86.82 | CF115: 41.015 | CG115: 2.92 | CI115: 2016-02-02 | CJ115: 0 | CK115: 0 | CL115: 0 | CM115: 0 | CO115: 2.21 | CP115: 5.675 | CQ115: 2 | CR115: 8.571428571 | CT115: 2016-02-02 | CU115: 100 | CV115: 100 | CW115: 82.4 | CX115: 100 | CZ115: 100 | DA115: 90.525 | DB115: 92.08235294 | DC115: 83.925
A116: 2016-02-04 | B116: 15 | C116: 5 | D116: 4 | E116: 24 | H116: 2016-02-04 | I116: 4.1 | K116: 0 | N116: 2.92 | O116: 12.5 | P116: 18.75 | S116: 2016-02-04 | T116: 4.1 | U116: 9.9 | V116: 5 | Y116: 2.92 | Z116: 4.65 | AA116: 1.25 | AD116: 2016-02-04 | AE116: 0 | AF116: 0 | AH116: 0 | AJ116: 1.275 | AK116: 0.3 | AL116: 12.5 | AM116: 1.2 | AO116: 2016-02-04 | AP116: 0 | AQ116: 3 | AS116: 0 | AU116: 0.3 | AV116: 0.8 | AW116: 0.7444444444 | AX116: 3.085 | AZ116: 2016-02-04 | BA116: 0 | BB116: 16.7 | BC116: 0 | BF116: 18.75 | BG116: 41.015 | BH116: 3.85 | BK116: 2016-02-04 | BL116: 9.9 | BM116: 1.1 | BN116: 1 | BO116: 4 | BQ116: 4.65 | BR116: 2.415 | BS116: 0.25 | BT116: 0.35 | BV116: 2016-02-04 | BW116: 0 | BX116: 58.9 | BY116: 145.1 | BZ116: 16.7 | CA116: 4.1 | CC116: 21.23 | CD116: 44.935 | CE116: 82.685 | CF116: 45.635 | CG116: 3.14 | CI116: 2016-02-04 | CJ116: 0 | CK116: 0 | CL116: 0 | CM116: 0 | CO116: 1.2 | CP116: 2.65 | CQ116: 0 | CR116: 8.571428571 | CT116: 2016-02-04 | CU116: 0 | CW116: 80.1 | CZ116: 90.90909091 | DA116: 92.85714286 | DB116: 90.91176471 | DC116: 84.31818182
A117: 2016-02-06 | B117: 15 | C117: 6 | D117: 4 | E117: 25 | H117: 2016-02-06 | I117: 6.9 | J117: 0 | K117: 7.4 | N117: 3.14 | O117: 11.11111111 | P117: 12.9625 | S117: 2016-02-06 | T117: 6.9 | U117: 21 | V117: 5 | Y117: 3.14 | Z117: 5.6 | AA117: 1.5 | AD117: 2016-02-06 | AE117: 7.2 | AF117: 5 | AG117: 0 | AH117: 0 | AJ117: 1.585 | AK117: 0.55 | AL117: 12.5 | AM117: 1.2 | AO117: 2016-02-06 | AP117: 5 | AQ117: 5 | AR117: 0 | AS117: 8.7 | AU117: 0.55 | AV117: 1.05 | AW117: 0.7444444444 | AX117: 3.755 | AZ117: 2016-02-06 | BA117: 7.4 | BB117: 116.4 | BC117: 8.7 | BF117: 12.9625 | BG117: 45.635 | BH117: 3.085 | BK117: 2016-02-06 | BL117: 21 | BM117: 13.5 | BN117: 0 | BO117: 0 | BQ117: 5.6 | BR117: 3.04 | BS117: 0.25 | BT117: 0.3 | BV117: 2016-02-06 | BW117: 62.7 | BX117: 116.7 | BY117: 181.5 | BZ117: 116.4 | CA117: 6.9 | CC117: 23.165 | CD117: 48.51 | CE117: 89.355 | CF117: 46.7 | CG117: 3.295 | CI117: 2016-02-06 | CJ117: 0 | CK117: 8.7 | CL117: 8.695652174 | CM117: 0 | CO117: 1.2 | CP117: 3.085 | CQ117: 0.4347826087 | CR117: 8.571428571 | CT117: 2016-02-06 | CU117: 100 | CV117: 100 | CW117: 100 | CX117: 100 | CZ117: 90.90909091 | DA117: 92.85714286 | DB117: 90.91176471 | DC117: 84.31818182
A118: 2016-02-09 | B118: 15 | C118: 6 | D118: 5 | E118: 26 | H118: 2016-02-09 | I118: 4.5 | J118: 0 | K118: 13.3 | N118: 3.295 | O118: 10 | P118: 13.79375 | S118: 2016-02-09 | T118: 4.5 | U118: 11.2 | V118: 5 | Y118: 3.295 | Z118: 5.935 | AA118: 1.7 | AD118: 2016-02-09 | AE118: 8.2 | AF118: 5 | AG118: 0 | AH118: 0 | AJ118: 1.995 | AK118: 0.8 | AL118: 10 | AM118: 1.2 | AO118: 2016-02-09 | AP118: 5 | AQ118: 5 | AR118: 47.4 | AS118: 13.4 | AU118: 0.8 | AV118: 1.25 | AW118: 6.011111111 | AX118: 4.255 | AZ118: 2016-02-09 | BA118: 13.3 | BB118: 100.7 | BC118: 13.4 | BF118: 13.79375 | BG118: 46.7 | BH118: 3.755 | BK118: 2016-02-09 | BL118: 11.2 | BM118: 7.5 | BN118: 1 | BO118: 0 | BQ118: 5.935 | BR118: 3.325 | BS118: 0.3 | BT118: 0.3 | BV118: 2016-02-09 | BW118: 109.7 | BX118: 109.7 | BY118: 150 | BZ118: 100.7 | CA118: 4.5 | CC118: 28.65 | CD118: 51.95 | CE118: 87.12 | CF118: 49.93 | CG118: 3.525 | CI118: 2016-02-09 | CJ118: 0 | CK118: 13.4 | CL118: 0 | CM118: 80 | CO118: 1.2 | CP118: 3.755 | CQ118: 0.4347826087 | CR118: 12.57142857 | CT118: 2016-02-09 | CU118: 100 | CV118: 100 | CW118: 100 | CX118: 52.6 | CZ118: 91.66666667 | DA118: 93.75 | DB118: 90.91176471 | DC118: 80.00909091
A119: 2016-02-11 | B119: 15 | C119: 6 | D119: 6 | E119: 27 | H119: 2016-02-11 | I119: 6 | J119: 0 | K119: 15.4 | N119: 3.525 | O119: 9.090909091 | P119: 13.88823529 | S119: 2016-02-11 | T119: 6 | U119: 10 | V119: 2 | Y119: 3.525 | Z119: 6.385 | AA119: 1.8 | AD119: 2016-02-11 | AE119: 2 | AF119: 1 | AG119: 0 | AH119: 0 | AJ119: 2.095 | AK119: 0.85 | AL119: 8.333333333 | AM119: 1.2 | AO119: 2016-02-11 | AP119: 1 | AQ119: 2 | AR119: -21 | AS119: 10 | AU119: 0.85 | AV119: 1.35 | AW119: 3.31 | AX119: 4.255 | AZ119: 2016-02-11 | BA119: 15.4 | BB119: 64.6 | BC119: 10 | BF119: 13.88823529 | BG119: 49.93 | BH119: 4.255 | BK119: 2016-02-11 | BL119: 10 | BM119: 6.5 | BN119: 1 | BO119: 0 | BQ119: 6.385 | BR119: 3.65 | BS119: 0.35 | BT119: 0.3 | BV119: 2016-02-11 | BW119: 19.6 | BX119: 37.5 | BY119: 100 | BZ119: 64.6 | CA119: 6 | CC119: 29.63 | CD119: 51.82 | CE119: 89.895 | CF119: 47.295 | CG119: 3.58 | CI119: 2016-02-11 | CJ119: 0 | CK119: 10 | CL119: 0 | CM119: 60 | CO119: 1.2 | CP119: 4.255 | CQ119: 0.4347826087 | CR119: 15.57142857 | CT119: 2016-02-11 | CU119: 100 | CV119: 100 | CW119: 79 | CX119: 100 | CZ119: 92.30769231 | DA119: 94.44444444 | DB119: 89.67647059 | DC119: 81.675
A120: 2016-02-13 | B120: 15 | C120: 6 | D120: 6 | E120: 27 | H120: 2016-02-13 | I120: 5.5 | K120: 0 | N120: 3.58 | O120: 10 | P120: 13.88823529 | S120: 2016-02-13 | T120: 5.5 | U120: 4.5 | V120: 1 | Y120: 3.58 | Z120: 6.21 | AA120: 1.75 | AD120: 2016-02-13 | AE120: 1 | AF120: 1 | AG120: -67.2 | AH120: 0 | AJ120: 2 | AK120: 0.9 | AL120: -2.866666667 | AM120: 1.2 | AO120: 2016-02-13 | AP120: 1 | AQ120: 1 | AR120: -67.2 | AS120: 0 | AU120: 0.9 | AV120: 1.3 | AW120: -4.95 | AX120: 2.805 | AZ120: 2016-02-13 | BA120: 0 | BB120: 21.4 | BC120: 0 | BF120: 13.88823529 | BG120: 47.295 | BH120: 4.255 | BK120: 2016-02-13 | BL120: 4.5 | BM120: 1.9 | BN120: 1 | BO120: 0 | BQ120: 6.21 | BR120: 3.475 | BS120: 0.4 | BT120: 0.3 | BV120: 2016-02-13 | BW120: 10.7 | BX120: 10.7 | BY120: 49.9 | BZ120: 21.4 | CA120: 5.5 | CC120: 28.165 | CD120: 47.83 | CE120: 86.915 | CF120: 52.69 | CG120: 3.65 | CI120: 2016-02-13 | CJ120: 0 | CK120: 0 | CL120: 0 | CM120: 0 | CO120: 1.2 | CP120: 4.255 | CQ120: 0.4347826087 | CR120: 15.57142857 | CT120: 2016-02-13 | CU120: 32.8 | CV120: 100 | CW120: 32.8 | CX120: 100 | CZ120: 87.13846154 | DA120: 94.44444444 | DB120: 85.72352941 | DC120: 82.95833333
A121: 2016-02-15 | B121: 15 | C121: 6 | D121: 6 | E121: 27 | H121: 2016-02-15 | I121: 3.5 | K121: 12.6 | N121: 3.65 | O121: 10 | P121: 8.747058824 | S121: 2016-02-15 | T121: 3.5 | U121: 9.4 | V121: 0 | Y121: 3.65 | Z121: 6.63 | AA121: 1.75 | AD121: 2016-02-15 | AE121: 2.1 | AF121: 0 | AG121: 0 | AH121: 0 | AJ121: 2.055 | AK121: 0.9 | AL121: -2.457142857 | AM121: 1.2 | AO121: 2016-02-15 | AP121: 0 | AQ121: 0 | AR121: 0 | AS121: 0 | AU121: 0.9 | AV121: 1.3 | AW121: -4.5 | AX121: 4.11 | AZ121: 2016-02-15 | BA121: 12.6 | BB121: 136.9 | BC121: 17.2 | BF121: 8.747058824 | BG121: 52.69 | BH121: 3.665 | BK121: 2016-02-15 | BL121: 9.4 | BM121: 7.9 | BN121: 0 | BO121: 0 | BQ121: 6.63 | BR121: 3.82 | BS121: 0.4 | BT121: 0.25 | BV121: 2016-02-15 | BW121: 36.5 | BX121: 94.6 | BY121: 161.5 | BZ121: 136.9 | CA121: 3.5 | CC121: 28.54 | CD121: 51.11 | CE121: 93.54 | CF121: 52.7 | CG121: 3.43 | CI121: 2016-02-15 | CJ121: 0 | CK121: 0 | CL121: 0 | CM121: 0 | CO121: 1.2 | CP121: 2.805 | CQ121: 0.4347826087 | CR121: 7 | CT121: 2016-02-15 | CU121: 100 | CV121: 100 | CW121: 100 | CX121: 100 | CZ121: 87.13846154 | DA121: 95 | DB121: 88.66470588 | DC121: 84.26923077
A122: 2016-02-17 | B122: 15 | C122: 6 | D122: 7 | E122: 28 | H122: 2016-02-17 | I122: 2.3 | K122: 46.7 | N122: 3.43 | O122: 11.11111111 | P122: 11.49411765 | S122: 2016-02-17 | T122: 2.3 | U122: 3.2 | V122: 0 | Y122: 3.43 | Z122: 6.245 | AA122: 1.65 | AD122: 2016-02-17 | AE122: 1 | AF122: 0 | AG122: 0 | AH122: 0 | AJ122: 2.015 | AK122: 0.85 | AL122: -2.15 | AM122: 1.2 | AO122: 2016-02-17 | AP122: 0 | AQ122: 0 | AR122: 0 | AS122: 26.1 | AU122: 0.85 | AV122: 1.25 | AW122: -4.125 | AX122: 4.95 | AZ122: 2016-02-17 | BA122: 46.7 | BB122: 55.9 | BC122: 26.1 | BF122: 11.49411765 | BG122: 52.7 | BH122: 4.97 | BK122: 2016-02-17 | BL122: 3.2 | BM122: 2.1 | BN122: 0 | BO122: 0 | BQ122: 6.245 | BR122: 3.615 | BS122: 0.4 | BT122: 0.25 | BV122: 2016-02-17 | BW122: 26.1 | BX122: 51.8 | BY122: 83.2 | BZ122: 55.9 | CA122: 2.3 | CC122: 29.045 | CD122: 51.75 | CE122: 92.8 | CF122: 50.81 | CG122: 3.32 | CI122: 2016-02-17 | CJ122: 0 | CK122: 26.1 | CL122: 0 | CM122: 156.5217391 | CO122: 1.2 | CP122: 4.11 | CQ122: 0.4347826087 | CR122: 14.82608696 | CT122: 2016-02-17 | CU122: 100 | CV122: 100 | CW122: 100 | CX122: 100 | CZ122: 87.13846154 | DA122: 95.45454545 | DB122: 89.76470588 | DC122: 85.39285714
A123: 2016-02-18 | B123: 15 | C123: 7 | D123: 7 | E123: 29 | H123: 2016-02-18 | I123: 3.6 | J123: 0 | K123: 32.2 | N123: 3.32 | O123: 11.11111111 | P123: 13.38823529 | S123: 2016-02-18 | T123: 3.6 | U123: 9.9 | V123: 2 | Y123: 3.32 | Z123: 6.195 | AA123: 1.65 | AD123: 2016-02-18 | AE123: 3.2 | AF123: 2 | AG123: 0 | AH123: 0 | AJ123: 1.92 | AK123: 0.9 | AL123: -1.911111111 | AM123: 1.2 | AO123: 2016-02-18 | AP123: 2 | AQ123: 2 | AR123: 0 | AS123: 16.8 | AU123: 0.9 | AV123: 1.3 | AW123: -3.807692308 | AX123: 4.95 | AZ123: 2016-02-18 | BA123: 32.2 | BB123: 52.2 | BC123: 16.8 | BF123: 13.38823529 | BG123: 50.81 | BH123: 5.81 | BK123: 2016-02-18 | BL123: 9.9 | BM123: 3.1 | BN123: 0 | BO123: 0 | BQ123: 6.195 | BR123: 3.335 | BS123: 0.4 | BT123: 0.25 | BV123: 2016-02-18 | BW123: 53.8 | BX123: 71.8 | BY123: 165.7 | BZ123: 52.2 | CA123: 3.6 | CC123: 29.135 | CD123: 52.74 | CE123: 95.49 | CF123: 52.835 | CG123: 3.685 | CI123: 2016-02-18 | CJ123: 0 | CK123: 16.8 | CL123: 16.66666667 | CM123: 0 | CO123: 1.2 | CP123: 4.95 | CQ123: 1.268115942 | CR123: 14.82608696 | CT123: 2016-02-18 | CU123: 100 | CV123: 100 | CW123: 100 | CX123: 100 | CZ123: 87.13846154 | DA123: 95.83333333 | DB123: 89.76470588 | DC123: 86.36666667
A124: 2016-02-21 | B124: 15 | C124: 7 | D124: 7 | E124: 29 | H124: 2016-02-21 | I124: 7.9 | J124: 0 | K124: 0 | N124: 3.685 | O124: 10 | P124: 12.64444444 | S124: 2016-02-21 | T124: 7.9 | U124: 8.7 | V124: 1 | Y124: 3.685 | Z124: 6.63 | AA124: 1.7 | AD124: 2016-02-21 | AE124: 1 | AF124: 0 | AG124: 21 | AH124: 0 | AJ124: 1.97 | AK124: 0.9 | AL124: 0.38 | AM124: 1.2 | AO124: 2016-02-21 | AP124: 0 | AQ124: 1 | AR124: 13.2 | AS124: 0 | AU124: 0.9 | AV124: 1.35 | AW124: -2.592857143 | AX124: 4.95 | AZ124: 2016-02-21 | BA124: 0 | BB124: 40.5 | BC124: 0 | BF124: 12.64444444 | BG124: 52.835 | BH124: 5.81 | BK124: 2016-02-21 | BL124: 8.7 | BM124: 5.3 | BN124: 0 | BO124: 0 | BQ124: 6.63 | BR124: 3.6 | BS124: 0.4 | BT124: 0.25 | BV124: 2016-02-21 | BW124: 7.3 | BX124: 15.8 | BY124: 65.7 | BZ124: 40.5 | CA124: 7.9 | CC124: 29.5 | CD124: 53.53 | CE124: 98.775 | CF124: 49.965 | CG124: 3.86 | CI124: 2016-02-21 | CJ124: 0 | CK124: 0 | CL124: 0 | CM124: 0 | CO124: 1.2 | CP124: 4.95 | CQ124: 1.268115942 | CR124: 14.82608696 | CT124: 2016-02-21 | CU124: 100 | CV124: 79 | CW124: 67.6 | CX124: 54.4 | CZ124: 88.05714286 | DA124: 94.08333333 | DB124: 88.53333333 | DC124: 83.32666667
A125: 2016-02-23 | B125: 15 | C125: 7 | D125: 7 | E125: 29 | H125: 2016-02-23 | I125: 4.9 | K125: 0 | N125: 3.86 | O125: 11.11111111 | P125: 12.64444444 | S125: 2016-02-23 | T125: 4.9 | U125: 7.1 | V125: 1 | Y125: 3.86 | Z125: 6.895 | AA125: 1.7 | AD125: 2016-02-23 | AE125: 1 | AF125: 1 | AG125: 0 | AH125: 0 | AJ125: 1.97 | AK125: 0.95 | AL125: 0.3454545455 | AM125: 1.263157895 | AO125: 2016-02-23 | AP125: 1 | AQ125: 1 | AR125: -16.6 | AS125: 0 | AU125: 0.95 | AV125: 1.35 | AW125: -3.778571429 | AX125: 5.210526316 | AZ125: 2016-02-23 | BA125: 0 | BB125: 21.4 | BC125: 0 | BF125: 12.64444444 | BG125: 49.965 | BH125: 5.81 | BK125: 2016-02-23 | BL125: 7.1 | BM125: 1.8 | BN125: 1 | BO125: 0 | BQ125: 6.895 | BR125: 3.6 | BS125: 0.45 | BT125: 0.2631578947 | BV125: 2016-02-23 | BW125: 11.9 | BX125: 52.9 | BY125: 86 | BZ125: 21.4 | CA125: 4.9 | CC125: 27.945 | CD125: 51.92 | CE125: 99.135 | CF125: 52.59473684 | CG125: 3.994736842 | CI125: 2016-02-23 | CJ125: 0 | CK125: 0 | CL125: 0 | CM125: 0 | CO125: 1.2 | CP125: 4.95 | CQ125: 1.268115942 | CR125: 14.82608696 | CT125: 2016-02-23 | CU125: 100 | CV125: 100 | CW125: 68.4 | CX125: 85.1 | CZ125: 88.05714286 | DA125: 94.53846154 | DB125: 86.77777778 | DC125: 82.33333333
N126: 3.994736842 | O126: 11.11111111 | P126: 12.64444444 | Y126: 3.994736842 | Z126: 7.205263158 | AA126: 1.789473684 | AJ126: 2.073684211 | AK126: 1 | AL126: 0.3454545455 | AM126: 1.333333333 | AU126: 1 | AV126: 1.421052632 | AW126: -3.778571429 | AX126: 5.5 | BF126: 12.64444444 | BG126: 52.59473684 | BH126: 6.115789474 | BQ126: 7.205263158 | BR126: 3.789473684 | BS126: 0.4736842105 | BT126: 0.2777777778 | CC126: 29.41578947 | CD126: 54.65263158 | CE126: 101.9421053 | CF126: 55.51666667 | CG126: 4.166666667 | CO126: 1.263157895 | CP126: 5.210526316 | CQ126: 1.334858886 | CR126: 15.60640732 | CZ126: 88.05714286 | DA126: 94.53846154 | DB126: 86.77777778 | DC126: 82.33333333
N127: 4.166666667 | O127: 11.11111111 | P127: 12.64444444 | Y127: 4.166666667 | Z127: 7.605555556 | AA127: 1.888888889 | AJ127: 2.188888889 | AK127: 1.055555556 | AL127: 0.3454545455 | AM127: 1.411764706 | AU127: 1.055555556 | AV127: 1.5 | AW127: -3.778571429 | AX127: 5.823529412 | BF127: 12.64444444 | BG127: 55.51666667 | BH127: 6.455555556 | BQ127: 7.605555556 | BR127: 4 | BS127: 0.5 | BT127: 0.2941176471 | CC127: 31.05 | CD127: 57.68888889 | CE127: 107.6055556 | CF127: 56.85294118 | CG127: 4.305882353 | CO127: 1.333333333 | CP127: 5.5 | CQ127: 1.409017713 | CR127: 16.47342995 | CZ127: 88.05714286 | DA127: 94.53846154 | DB127: 86.77777778 | DC127: 88.21428571
N128: 4.305882353 | O128: 11.11111111 | P128: 13.38823529 | Y128: 4.305882353 | Z128: 7.941176471 | AA128: 1.941176471 | AJ128: 2.258823529 | AK128: 1.117647059 | AL128: 0.3454545455 | AM128: 1.5 | AU128: 1.117647059 | AV128: 1.529411765 | AW128: -3.778571429 | AX128: 6.1875 | BF128: 13.38823529 | BG128: 56.85294118 | BH128: 6.835294118 | BQ128: 7.941176471 | BR128: 4.176470588 | BS128: 0.4705882353 | BT128: 0.3125 | CC128: 30.81764706 | CD128: 57.25294118 | CE128: 110.2588235 | CF128: 54.93125 | CG128: 4.33125 | CO128: 1.411764706 | CP128: 5.823529412 | CQ128: 1.491901108 | CR128: 17.44245524 | CZ128: 87.13846154 | DA128: 94.53846154 | DB128: 86 | DC128: 88.21428571
N129: 4.33125 | O129: 12.5 | P129: 14.225 | Y129: 4.33125 | Z129: 7.725 | AA129: 1.6875 | AJ129: 2.15 | AK129: 0.9375 | AL129: 0.3454545455 | AM129: 1.6 | AU129: 0.9375 | AV129: 1.3125 | AW129: -3.778571429 | AX129: 6.6 | BF129: 14.225 | BG129: 54.93125 | BH129: 7.2625 | BQ129: 7.725 | BR129: 4.08125 | BS129: 0.3125 | BT129: 0.3333333333 | CC129: 28.9125 | CD129: 53.425 | CE129: 106.31875 | CF129: 57.51333333 | CG129: 4.393333333 | CO129: 1.5 | CP129: 6.1875 | CQ129: 1.585144928 | CR129: 18.5326087 | CZ129: 86.06666667 | DA129: 94.53846154 | DB129: 85.125 | DC129: 88.21428571
N130: 4.393333333 | O130: 12.5 | P130: 15.17333333 | Y130: 4.393333333 | Z130: 8.06 | AA130: 1.8 | AJ130: 2.293333333 | AK130: 1 | AL130: 0.3454545455 | AM130: 1.714285714 | AU130: 1 | AV130: 1.4 | AW130: -4.069230769 | AX130: 7.071428571 | BF130: 15.17333333 | BG130: 57.51333333 | BH130: 7.746666667 | BQ130: 8.06 | BR130: 4.293333333 | BS130: 0.3333333333 | BT130: 0.3571428571 | CC130: 30.84 | CD130: 55.74666667 | CE130: 110.1933333 | CF130: 59.00714286 | CG130: 4.478571429 | CO130: 1.6 | CP130: 6.6 | CQ130: 1.690821256 | CR130: 19.76811594 | CZ130: 86.06666667 | DA130: 94.08333333 | DB130: 84.13333333 | DC130: 87.30769231
N131: 4.478571429 | O131: 12.5 | P131: 16.25714286 | Y131: 4.478571429 | Z131: 8.5 | AA131: 1.928571429 | AJ131: 2.457142857 | AK131: 1.071428571 | AL131: 0.3454545455 | AM131: 0 | AU131: 1.071428571 | AV131: 1.5 | AW131: -2.408333333 | AX131: 5.769230769 | BF131: 16.25714286 | BG131: 59.00714286 | BH131: 8.3 | BQ131: 8.5 | BR131: 4.464285714 | BS131: 0.3571428571 | BT131: 0.3076923077 | CC131: 33.04285714 | CD131: 58.27857143 | CE131: 115.45 | CF131: 61.7 | CG131: 4.630769231 | CO131: 1.714285714 | CP131: 7.071428571 | CQ131: 1.811594203 | CR131: 21.18012422 | CZ131: 86.06666667 | DA131: 93.54545455 | DB131: 86.45 | DC131: 88.26666667
N132: 4.630769231 | O132: 0 | P132: 9.815384615 | Y132: 4.630769231 | Z132: 8.853846154 | AA132: 1.923076923 | AJ132: 2.646153846 | AK132: 1.153846154 | AL132: 0.3454545455 | AM132: 0 | AU132: 1.153846154 | AV132: 1.538461538 | AW132: -2.627272727 | AX132: 6.25 | BF132: 9.815384615 | BG132: 61.7 | BH132: 7.092307692 | BQ132: 8.853846154 | BR132: 4.730769231 | BS132: 0.3846153846 | BT132: 0.3333333333 | CC132: 35.58461538 | CD132: 60.91538462 | CE132: 117.1384615 | CF132: 60.88333333 | CG132: 4.741666667 | CO132: 0 | CP132: 5.769230769 | CQ132: 1.950947603 | CR132: 22.80936455 | CZ132: 86.06666667 | DA132: 93.54545455 | DB132: 85.40769231 | DC132: 87.2
N133: 4.741666667 | O133: 0 | P133: 10.63333333 | Y133: 4.741666667 | Z133: 8.975 | AA133: 2.083333333 | AJ133: 2.533333333 | AK133: 1.25 | AL133: -4.62 | AM133: 0 | AU133: 1.25 | AV133: 1.666666667 | AW133: -6.18 | AX133: 6.818181818 | BF133: 10.63333333 | BG133: 60.88333333 | BH133: 7.683333333 | BQ133: 8.975 | BR133: 4.8 | BS133: 0.4166666667 | BT133: 0.3636363636 | CC133: 32.39166667 | CD133: 58.43333333 | CE133: 115.6 | CF133: 63.11818182 | CG133: 4.872727273 | CO133: 0 | CP133: 6.25 | CQ133: 2.11352657 | CR133: 24.71014493 | CZ133: 84.8 | DA133: 97.9 | DB133: 84.19166667 | DC133: 89.21
N134: 4.872727273 | O134: 0 | P134: 11.6 | Y134: 4.872727273 | Z134: 9.336363636 | AA134: 2.090909091 | AJ134: 2.763636364 | AK134: 1.363636364 | AL134: -4.62 | AM134: 0 | AU134: 1.363636364 | AV134: 1.818181818 | AW134: -6.18 | AX134: 7.5 | BF134: 11.6 | BG134: 63.11818182 | BH134: 8.381818182 | BQ134: 9.336363636 | BR134: 5.054545455 | BS134: 0.4545454545 | BT134: 0.4 | CC134: 35.33636364 | CD134: 62.24545455 | CE134: 117.8272727 | CF134: 62.67 | CG134: 4.92 | CO134: 0 | CP134: 6.818181818 | CQ134: 2.305665349 | CR134: 26.95652174 | CZ134: 84.8 | DA134: 97.9 | DB134: 82.75454545 | DC134: 89.21
N135: 4.92 | O135: 0 | P135: 12.76 | Y135: 4.92 | Z135: 9.49 | AA135: 2.2 | AJ135: 2.67 | AK135: 1.5 | AL135: -5.133333333 | AM135: 0 | AU135: 1.5 | AV135: 2 | AW135: -4.911111111 | AX135: 8.333333333 | BF135: 12.76 | BG135: 62.67 | BH135: 9.22 | BQ135: 9.49 | BR135: 5.07 | BS135: 0.5 | BT135: 0 | CC135: 33.83 | CD135: 62.04 | CE135: 118.86 | CF135: 67.77777778 | CG135: 5.011111111 | CO135: 0 | CP135: 7.5 | CQ135: 2.536231884 | CR135: 29.65217391 | CZ135: 83.28 | DA135: 97.66666667 | DB135: 82.79 | DC135: 88.01111111
N136: 5.011111111 | O136: 0 | P136: 14.17777778 | Y136: 5.011111111 | Z136: 9.444444444 | AA136: 1.888888889 | AJ136: 2.966666667 | AK136: 1.666666667 | AL136: -5.133333333 | AM136: 0 | AU136: 1.666666667 | AV136: 1.888888889 | AW136: -4.911111111 | AX136: 8.2875 | BF136: 14.17777778 | BG136: 67.77777778 | BH136: 10.24444444 | BQ136: 9.444444444 | BR136: 5.511111111 | BS136: 0.4444444444 | BT136: 0 | CC136: 37.58888889 | CD136: 62.38888889 | CE136: 115.9444444 | CF136: 61.7 | CG136: 4.775 | CO136: 0 | CP136: 8.333333333 | CQ136: 2.818035427 | CR136: 32.9468599 | CZ136: 92.53333333 | DA136: 97.66666667 | DB136: 83.08888889 | DC136: 88.01111111
N137: 4.775 | O137: 0 | P137: 15.025 | Y137: 4.775 | Z137: 8 | AA137: 1.5 | AJ137: 2.4375 | AK137: 1.25 | AL137: -5.775 | AM137: 0 | AU137: 1.25 | AV137: 1.5 | AW137: -5.525 | AX137: 7.557142857 | BF137: 15.025 | BG137: 61.7 | BH137: 10.4375 | BQ137: 8 | BR137: 4.5125 | BS137: 0.5 | BT137: 0 | CC137: 34.45 | CD137: 55.6 | CE137: 107.75 | CF137: 56.12857143 | CG137: 4.814285714 | CO137: 0 | CP137: 8.2875 | CQ137: 2.083333333 | CR137: 37.06521739 | CZ137: 91.6 | DA137: 97.375 | DB137: 80.975 | DC137: 86.5125
N138: 4.814285714 | O138: 0 | P138: 15.27142857 | Y138: 4.814285714 | Z138: 7.542857143 | AA138: 1 | AJ138: 1.614285714 | AK138: 0.7142857143 | AL138: -6.6 | AM138: 0 | AU138: 0.7142857143 | AV138: 1 | AW138: -13.08571429 | AX138: 7.15 | BF138: 15.27142857 | BG138: 56.12857143 | BH138: 10.01428571 | BQ138: 7.542857143 | BR138: 4.085714286 | BS138: 0.4285714286 | BT138: 0 | CC138: 23.7 | CD138: 47.87142857 | CE138: 101.7142857 | CF138: 54.71666667 | CG138: 4.616666667 | CO138: 0 | CP138: 7.557142857 | CQ138: 2.380952381 | CR138: 30.93167702 | CZ138: 90.4 | DA138: 97 | DB138: 78.25714286 | DC138: 91.35714286
N139: 4.616666667 | O139: 0 | P139: 15.25 | Y139: 4.616666667 | Z139: 7.133333333 | AA139: 0.8333333333 | AJ139: 1.55 | AK139: 0.6666666667 | AL139: -7.7 | AM139: 0 | AU139: 0.6666666667 | AV139: 0.8333333333 | AW139: -11.76666667 | AX139: 8.58 | BF139: 15.25 | BG139: 54.71666667 | BH139: 10.01666667 | BQ139: 7.133333333 | BR139: 3.683333333 | BS139: 0.3333333333 | BT139: 0 | CC139: 24.38333333 | CD139: 49.6 | CE139: 102 | CF139: 61.38 | CG139: 4.44 | CO139: 0 | CP139: 7.15 | CQ139: 2.777777778 | CR139: 26.08695652 | CZ139: 88.8 | DA139: 96.5 | DB139: 78.13333333 | DC139: 89.91666667
N140: 4.44 | O140: 0 | P140: 18.3 | Y140: 4.44 | Z140: 7.66 | AA140: 0.8 | AJ140: 1.66 | AK140: 0.6 | AL140: 4.2 | AM140: 0 | AU140: 0.6 | AV140: 0.8 | AW140: -0.68 | AX140: 10.725 | BF140: 18.3 | BG140: 61.38 | BH140: 12.02 | BQ140: 7.66 | BR140: 4.04 | BS140: 0.2 | BT140: 0 | CC140: 27.12 | CD140: 57.38 | CE140: 112.42 | CF140: 42.5 | CG140: 4.675 | CO140: 0 | CP140: 8.58 | CQ140: 3.333333333 | CR140: 31.30434783 | CZ140: 100 | DA140: 95.8 | DB140: 87.2 | DC140: 87.9
N141: 4.675 | O141: 0 | P141: 19.725 | Y141: 4.675 | Z141: 7.225 | AA141: 1 | AJ141: 1.55 | AK141: 0.75 | AL141: 5.25 | AM141: 0 | AU141: 0.75 | AV141: 1 | AW141: -0.85 | AX141: 5.6 | BF141: 19.725 | BG141: 42.5 | BH141: 10.725 | BQ141: 7.225 | BR141: 3.075 | BS141: 0.25 | BT141: 0 | CC141: 24.775 | CD141: 48.075 | CE141: 100.15 | CF141: 38.03333333 | CG141: 5.466666667 | CO141: 0 | CP141: 10.725 | CQ141: 4.166666667 | CR141: 39.13043478 | CZ141: 100 | DA141: 94.75 | DB141: 84 | DC141: 84.875
N142: 5.466666667 | O142: 0 | P142: 10.73333333 | Y142: 5.466666667 | Z142: 8.566666667 | AA142: 1.333333333 | AJ142: 1.733333333 | AK142: 1 | AL142: 7 | AM142: 0 | AU142: 1 | AV142: 1.333333333 | AW142: -1.133333333 | AX142: 0 | BF142: 10.73333333 | BG142: 38.03333333 | BH142: 5.6 | BQ142: 8.566666667 | BR142: 3.4 | BS142: 0.3333333333 | BT142: 0 | CC142: 24.33333333 | CD142: 46.83333333 | CE142: 105.8 | CF142: 30.95 | CG142: 6.4 | CO142: 0 | CP142: 5.6 | CQ142: 5.555555556 | CR142: 0 | CZ142: 100 | DA142: 93 | DB142: 78.66666667 | DC142: 79.83333333
N143: 6.4 | O143: 0 | P143: 0 | Y143: 6.4 | Z143: 7.9 | AA143: 1 | AJ143: 1 | AK143: 0.5 | AL143: 10.5 | AM143: 0 | AU143: 0.5 | AV143: 1 | AW143: -1.7 | AX143: 0 | BF143: 0 | BG143: 30.95 | BH143: 0 | BQ143: 7.9 | BR143: 3.55 | BS143: 0.5 | BT143: 0 | CC143: 9.6 | CD143: 34.35 | CE143: 75.85 | CF143: 21.4 | CG143: 4.9 | CO143: 0 | CP143: 0 | CQ143: 0 | CR143: 0 | CZ143: 100 | DA143: 89.5 | DB143: 68 | DC143: 69.75
N144: 4.9 | P144: 0 | Y144: 4.9 | Z144: 7.1 | AA144: 1 | AJ144: 1 | AK144: 1 | AL144: 0 | AU144: 1 | AV144: 1 | AW144: -16.6 | BF144: 0 | BG144: 21.4 | BH144: 0 | BQ144: 7.1 | BR144: 1.8 | BS144: 1 | CC144: 11.9 | CD144: 52.9 | CE144: 86 | CO144: 0 | CP144: 0 | CQ144: 0 | CR144: 0 | CZ144: 100 | DA144: 100 | DB144: 68.4 | DC144: 85.1
Q151: =AVERAGE(L133:L152) ->  | Z151: =AVERAGE(U132:U151) ->  | AA151: =AVERAGE(V132:V151) ->  | AB151: =AVERAGE(W133:W152) ->  | AK151: =AVERAGE(AF132:AF151) ->  | AL151: =AVERAGE(AG132:AG151) ->  | AM151: =AVERAGE(AH133:AH152) ->  | AV151: =AVERAGE(AQ132:AQ151) ->  | AW151: =AVERAGE(AR132:AR151) ->  | AX151: =AVERAGE(AS133:AS152) ->  | BG151: =AVERAGE(BB132:BB151) ->  | BH151: =AVERAGE(BC132:BC151) ->  | BI151: =AVERAGE(BD133:BD152) ->  | BR151: =AVERAGE(BM132:BM151) ->  | BS151: =AVERAGE(BN132:BN151) ->  | BT151: =AVERAGE(BO133:BO152) ->  | CD151: =AVERAGE(BX132:BX151) ->  | CE151: =AVERAGE(BY132:BY151) ->  | CF151: =AVERAGE(BZ133:BZ152) ->  | CG151: =AVERAGE(CA133:CA152) ->  | CP151: =AVERAGE(CK132:CK151) ->  | CQ151: =AVERAGE(CL132:CL151) ->  | DA151: =AVERAGE(CV132:CV151) ->  | DB151: =AVERAGE(CW132:CW151) ->  | DC151: =AVERAGE(CX132:CX151) -> 
N152: =AVERAGE(I133:I152) ->  | O152: =AVERAGE(J133:J152) ->  | P152: =AVERAGE(K133:K152) ->  | Y152: =AVERAGE(T133:T152) ->  | AJ152: =AVERAGE(AE133:AE152) ->  | AU152: =AVERAGE(AP133:AP152) ->  | BF152: =AVERAGE(BA133:BA152) ->  | BQ152: =AVERAGE(BL133:BL152) ->  | CC152: =AVERAGE(BW133:BW152) ->  | CO152: =AVERAGE(CJ133:CJ152) ->  | CZ152: =AVERAGE(CU133:CU152) -> 

Sheet Charts
